Workbook

Sheet changelog
B1: Detailed log of changes made to Transmission PTRM template to produce version 6 of the PTRM
B3: Category of change | C3: Category description
B4: Modelling changes arising from final 'Financeability guideline' | C4: These changes were required to implement the final financeability guideline by allowing a stream of capex be depreciated in a shorter timeframe while preventing unintended tax implications.
A6: Issue | B6: Category | C6: Sheet | D6: Updated Cells | E6: Change Description
A7: 1 | B7: Modelling changes arising from final 'Financeability guideline' | C7: PTRM input | D7: N48:N52 | E7: Inserted column within the RAB & TAB inputs to allow for the inclusion of a 'financeability life' for certain asset classes.
A8: 2 | B8: Modelling changes arising from final 'Financeability guideline' | C8: Assets | D8: Rows 649:713 | E8: Updated depreciation formula for asset classes eligble for a 'financeabiliy life' to allow for accelerated depreciation as permitted under the Financeability guideline.
A9: 3 | B9: WACC wording | C9: WACC | D9: G31 | E9: Updated 'access arrangement' to 'regulatory control' as per NER terminology
A10: 4 | B10: Te and Td comments | C10: WACC | D10: G27:G28 | E10: Removed mention of button in the comments. Check if remaining wording is still accurate.

Sheet Intro
G2: Electricity Transmission Network Service Provider
H3: Post-Tax Revenue Model
K4: Version: | L4: 6
K5: Date: | L5: November 2024
B8: Introduction | J8: Electricity Transmission Model
C13: This model illustrates the basic elements of the AER's building block calculation and produces associated X factors to determine the maximum allowed revenue (revenue cap) form of control.
C14: Building block revenues and cash flows are modelled in nominal terms unless specified otherwise.
C16: INSTRUCTIONS FOR USE
C17: The full PTRM handbook is available on the AER website at https://www.aer.gov.au/node/74034
C19: 1. Prior to the commencement of the regulatory control period
C21: 1a. Fill out input cells on the 'DMS Input' sheet. These input cells are highlighted blue.
C22: This provides information on the service provider submitting the PTRM and the context for the PTRM preparation.
C23: This information also controls the automatic import of the PTRM into the AER's Data Management System (DMS).
C25: 1b. Fill out input cells on the 'PTRM Input' sheet. These input cells are highlighted blue.
C26: This provides the data for the PTRM calculations.
C27: In general, input expenditure data should be valued in real dollar terms of the year indicated, as at the end of that year.
C28: Units and basis for entry are specified where required for each data table.
C29: Review any cautions (which are generated based on data entered) before continuing.
C31: 1c. Determine the maximum allowed revenue (smoothed revenue) using the 'X factors' sheet
C32: Clause 6A.5.3(b)(5) requires that the CPI–X method is to be applied in escalating the MAR for each year of a regulatory control period.
C33: This sheet provides for the calculation of X factors under a revenue cap form of control.
C34: The X factor values may differ for each year of the regulatory control period but must be set such that the NPV of annual MARs (smoothed) is equal to the NPV of the annual building block revenue requirements (unsmoothed) for that period.
C35: This sheet provides input cells for each X factor and contains macro buttons which should be used to goal seek an X factor value for a specific year to equate the NPVs of smoothed and unsmoothed revenues.
C37: 2. Within the regulatory control period when updating the annual return on debt
C39: 2a. Update input cells on the 'DMS Input' sheet. These input cells are highlighted blue.
C40: Check that the contact details are still current and describe the new amendment.
C42: 2b. Update input cells on the 'PTRM Input' sheet. These input cells are highlighted blue.
C43: In general, the only row that should be changed is the Trailing Average Portfolio Return on Debt (row 487).
C44: The basis for updating the annual return on debt will be in accordance with the relevant regulatory decision prior to the commencement of the period.
C46: 2c. Determine the maximum allowed revenue (smoothed revenue) using the 'X factors' sheet
C47: Indicate the year of the annual debt update (cell F21) to ensure the correct content-sensitive cautions are displayed.
C48: Enter new X factors for this year (and potentially later years within the regulatory control period) in order to equate the NPVs of smoothed and unsmoothed revenues.
C49: The macro buttons should be used to goal seek the X factor for these specific years.
C50: Note that X factors for earlier years within the regulatory control period should not be changed.
C53: VERSION RECORD
C55: Version | D55: Date | F55: Description
C56: 1 | D56: September 2007 | F56: Initial model
C58: 2 | D58: December 2010 | F58: Modified input section to allow opening regulatory asset base to be based on as-commissioned capex (instead of as-incurred)
F59: Adjusted depreciation calculation formula in the RAB roll forward
F60: Added equity raising costs calculations and summary tables
C62: 3 | D62: January 2015 | F62: Allowed time-varying return on debt, and revenue revisions for annual return on debt update
F63: Explicitly recognised revenue adjustments in building block calculations
F64: Incorporated equity raising costs calculations into automatic smoothing process
F65: Revised and expanded summary tables and reporting
F66: Standardised many elements with distribution PTRM
F67: Enabled automatic import into AER DMS
C69: 4 | D69: April 2019 | F69: Allowed for immediate expensing of capex for tax purposes
F70: Applied the diminishing value method for depreciation of new capex added to the TAB for asset classes 1 to 46
F71: Allowed for option of using year-by-year tracking method for straight-line depreciation of opening RAB and TAB
C73: 5 | D73: April 2021 | F73: Applied inflation review final position for calculation of expected inflation
C75: 5.1 | D75: May 2022 | F75: Fixed error in 'PTRM input' sheet for expected inflation formula reference related to regulatory control period > 5 years (cells L481:P481)
C77: 6 | D77: October 2024 | F77: Included 'financeability life' input and updated depreciation formula to reflect outcome of the Financeability guideline

Sheet DMS input
B2: =$C$16&" - DMS Input"&" - TNSP PTRM - version "&Intro!$L$4 -> Aus Elec - DMS Input - TNSP PTRM - version 6 | G2: Input cells are in blue
B6: This sheet requests information that allows the AER to automatically import the PTRM into our data management system (DMS).
B7: This sheet's metadata relates to the business and context for the PTRM (rather than the PTRM itself).
B8: Some of this data is automatically populated based on data entered on the PTRM input sheet. Only change blue input cells.
B9: Some rows are hidden. To facilitate the automatic import, please do not delete or add rows on this sheet.
B10: Throughout the rest of the workbook, defined name ranges are used to identify data that is imported into the DMS.
B12: Entity details
B14: Trading name | C14: Australian Transmission Co.
B15: ACN / ABN | C15: =dms_ABN -> 11222333444
B16: Business short name | C16: Aus Elec
B19: Regulatory process details
B32: Source | C32: Regulatory proposal
B33: Amended model submission - reason
B34: Form of control | C34: Revenue Cap

Sheet PTRM input
E2: ='DMS input'!$C$16&" - PTRM input"&" - TNSP PTRM - version "&Intro!$L$4 -> Aus Elec - PTRM input - TNSP PTRM - version 6 | I2: Input cells are in blue | K2: 1
E5: ="Opening Regulatory Asset Base and Opening Tax Asset Base for "&R7&" ($m Nominal)" -> Opening Regulatory Asset Base and Opening Tax Asset Base for 2028-29 ($m Nominal)
G6: Asset Class Name | J6: Opening Asset Value (Partially As Incurred) | K6: Opening Asset Value (As Commissioned) | L6: Average Remaining Life (Year) | M6: Standard Life (Year) | N6: Financeability Life (Year) | O6: Opening Tax Asset Value | P6: Average Tax Remaining Life (Year) | Q6: Tax Standard Life (Year) | R6: Base Regulatory Year | S6: Length of Regulatory Control Period (Year)
E7: Asset Class 1 | G7: Transmission Lines (pre 2004-05) | J7: 369.6620857 | K7: 369.6620857 | L7: 5 | O7: 0 | P7: 0 | R7: 2028-29 | S7: 5
E8: Asset Class 2 | G8: Underground Cables (pre 2004-05) | J8: 143.4112202 | K8: 143.4112202 | L8: 5 | O8: 31.69604624 | P8: 20.59117717
E9: Asset Class 3 | G9: Substations including Buildings (pre 2004-05) | J9: 176.143296 | K9: 176.143296 | L9: 5 | O9: -7.105427358e-15 | P9: 5
E10: Asset Class 4 | G10: Transmission Lines (2004-09) | J10: 180.7550605 | K10: 180.7550605 | L10: 5 | O10: 108.6404543 | P10: 30.13238402
E11: Asset Class 5 | G11: Underground Cables (2004-09) | J11: 7.070335358 | K11: 7.070335358 | L11: 5 | O11: 4.143800328 | P11: 22.41771808
E12: Asset Class 6 | G12: Substations including Buildings (2004-09) | J12: 734.9475807 | K12: 734.9475807 | L12: 5 | O12: 442.0090193 | P12: 19.83225651
E13: Asset Class 7 | G13: SCADA and Communications (2004-09) | J13: 13.71563548 | K13: 13.71563548 | L13: 5 | O13: 0 | P13: 0
E14: Asset Class 8 | G14: Transmission Lines & Cables (09-14) | J14: 436.9955053 | K14: 427.6420453 | L14: 5 | O14: 310.4866218 | P14: 34.67654845
E15: Asset Class 9 | G15: Substations (09-14) | J15: 887.1998589 | K15: 830.6089183 | L15: 5 | O15: 591.8049066 | P15: 24.23399481
E16: Asset Class 10 | G16: Secondary Systems (09-14) | J16: 60.75085215 | K16: 56.61020455 | L16: 5 | O16: 40.29313176 | P16: 19.53829995
E17: Asset Class 11 | G17: Communications (09-14) | J17: 88.5387123 | K17: 76.1222907 | L17: 5 | O17: 54.36498221 | P17: 19.41178629
E18: Asset Class 12 | G18: Minor Plant, Motor Vehicles & Mobile Plant (2009-14) | J18: 0.004744754679 | K18: 0.004744754679 | L18: 5 | O18: 0 | P18: 0
E19: Asset Class 13 | G19: Transmission Lines (2014-18) | J19: 207.6532858 | K19: 71.4886266 | L19: 5 | O19: 73.17419699 | P19: 39.61534567
E20: Asset Class 14 | G20: Underground Cables (2014-18) | J20: 2.861777757 | K20: 2.95143364 | L20: 5 | O20: 2.420728365 | P20: 33.0951072
E21: Asset Class 15 | G21: Substations (2014-18) | J21: 500.4672658 | K21: 445.6099418 | L21: 5 | O21: 345.4361065 | P21: 28.28796526
E22: Asset Class 16 | G22: Secondary Systems (2014-18) | J22: 27.15479808 | K22: 30.1428313 | L22: 5 | O22: 23.39016364 | P22: 3.657249111
E23: Asset Class 17 | G23: Communications (short life) (2014-18) | J23: 34.42405001 | K23: 8.744411649 | L23: 5 | O23: 0 | P23: 0
E24: Asset Class 18 | G24: Business IT (2014-18) | J24: 16.42249172 | K24: 0.3892518669 | L24: 5 | O24: 3.944304526e-31 | P24: 5
E25: Asset Class 19 | G25: Minor Plant, Motor Vehicles & Mobile Plant (2014-18) | J25: 7.019760009 | K25: 6.936727284 | L25: 5 | O25: 0 | P25: 0
E26: Asset Class 20 | G26: Transmission Line Life Extension (2014-18) | J26: 2.363233339 | K26: 2.82430679 | L26: 5 | O26: 3.1054165 | P26: 13.96559394
E27: Asset Class 21 | G27: Residual - other | J27: 0.4560466845 | K27: -0.0004806131054 | L27: 5 | O27: 0 | P27: 0
E28: Asset Class 22 | G28: Transmission Lines (2018 onwards) | J28: 7677.35229 | K28: 7146.501581 | L28: 48.38251685 | M28: 50 | O28: 6537.506284 | P28: 48.16724662 | Q28: 50
E29: Asset Class 23 | G29: Underground Cables (2018 onwards) | J29: -2.92902542 | K29: -3.66879566 | L29: 5 | M29: 45 | O29: -0.4907879509 | P29: 5 | Q29: 45
E30: Asset Class 24 | G30: Substations (2018 onwards) | J30: 3297.989489 | K30: 3197.521938 | L30: 38.31897538 | M30: 40 | O30: 2847.534084 | P30: 37.445884 | Q30: 40
E31: Asset Class 25 | G31: Secondary Systems (2018 onwards) | J31: 260.1919483 | K31: 254.3365708 | L31: 13.13927019 | M31: 15 | O31: 208.4060135 | P31: 11.90585128 | Q31: 15
E32: Asset Class 26 | G32: Communications (short life) (2018 onwards) | J32: 22.89379456 | K32: 23.42592739 | L32: 8.043867106 | M32: 10 | O32: 32.15673002 | P32: 4.759699335 | Q32: 10
E33: Asset Class 27 | G33: Business IT (2018 onwards) | J33: 29.18070927 | K33: -132.7074106 | L33: 4 | M33: 4 | O33: -79.02371086 | P33: 4 | Q33: 4
E34: Asset Class 28 | G34: Minor Plant, Motor Vehicles & Mobile Plant (2018 onwards) | J34: 52.26371725 | K34: 52.50287428 | L34: 5.977814083 | M34: 8 | O34: 29.71793418 | P34: 5.462543743 | Q34: 8
E35: Asset Class 29 | G35: Transmission Line Life Extension (2018-23) | J35: 281.7795617 | K35: 275.6187629 | L35: 31.02355651 | M35: 35 | O35: 232.5883185 | P35: 28.83373297 | Q35: 35
E36: Asset Class 30 | G36: Land and Easements | J36: 1825.77284 | K36: 1717.046108 | L36: 5 | M36: n/a | O36: 1351.682397 | P36: n/a | Q36: n/a
E37: Asset Class 31 | G37: Synchronous Condensers | J37: 153.7621324 | K37: 141.5561539 | L37: 38.060131 | M37: 40 | O37: 125.8236161 | P37: 28.09457198 | Q37: 30
E38: Asset Class 32 | G38: Leasehold Land and Property | J38: 5.523501168 | K38: 5.523501168 | L38: 1.33490434 | M38: 5 | O38: 2.738137421 | P38: 5.624773742 | Q38: 5
E39: Asset Class 33 | G39: Biodiversity offsets (Stewardship sites) - VNI West | J39: 7.579801011 | K39: -1.239518331 | L39: 5 | M39: 45.58174129 | O39: 0 | P39: n/a | Q39: n/a
E40: Asset Class 34 | G40: Biodiversity offsets (Direct payments and other costs) - VNI West | J40: -0.9090697048 | K40: -1.385143402 | L40: 5 | M40: 45.58174129 | O40: -0.0415950978 | P40: 5 | Q40: 50
E41: Asset Class 35 | G41: Biodiversity offsets (Stewardship sites) - Humelink S2 | J41: 128.0573627 | K41: 128.0568596 | L41: 46.52428483 | M41: 47.67747621 | O41: 123.851789 | P41: 5 | Q41: n/a
E42: Asset Class 36 | G42: Biodiversity offsets (Direct payments and other costs) - Humelink S2 | J42: 310.8695698 | K42: 310.8659831 | L42: 46.32350503 | M42: 47.67747621 | O42: 288.4557755 | P42: 48.65590852 | Q42: 50
E43: Asset Class 37
E44: Asset Class 38
E45: Asset Class 39
E46: Asset Class 40
E47: Asset Class 41
E48: Asset Class 42 | G48: Financeability class #1 (Transmission lines 1y)
E49: Asset Class 43 | G49: Financeability class #2 (Substations 5y)
E50: Asset Class 44 | G50: Financeability class #3
E51: Asset Class 45 | G51: Financeability class #4
E52: Asset Class 46 | G52: Financeability class #5
E53: Asset Class 47 | G53: Spare straight-line tax asset class
E54: Asset Class 48 | G54: Buildings - capital works | J54: -1.34686198 | K54: -1.34686198 | L54: 5 | M54: 40 | O54: 0 | P54: 0 | Q54: 40
E55: Asset Class 49 | G55: In-house software | J55: -4.419823268 | K55: -4.419823268 | L55: 5 | M55: 15 | O55: 0 | P55: 0 | Q55: 5
E56: Asset Class 50 | G56: Equity raising costs | J56: 57.81795697 | K56: 57.81795697 | L56: 40.72118454 | M56: =IFERROR(S219,0.01) -> 34.24974878 | O56: 8.26305246 | P56: 0.9999363718 | Q56: 5
E57: Total | J57: =SUM(J7:J56) -> 17999.44749 | K57: =SUM(K7:K56) -> 16751.78713 | O57: =SUM(O7:O56) -> 13740.13361
E59: ="Forecast Capital Expenditure – As Incurred ($m Real "&$F$632&")" -> Forecast Capital Expenditure – As Incurred ($m Real 2027-28)
E60: Year | G60: =R7 -> 2028-29 | H60: =(LEFT(G60,4)+1&IF(MID(G60,5,1)="","","-"&TEXT(MOD(MID(G60,6,2)+1,100),"00"))) -> 2029-30 | I60: =(LEFT(H60,4)+1&IF(MID(H60,5,1)="","","-"&TEXT(MOD(MID(H60,6,2)+1,100),"00"))) -> 2030-31 | J60: 2031-32 | K60: 2032-33 | L60: 2033-34 | M60: 2034-35 | N60: 2035-36 | O60: 2036-37 | P60: 2037-38
E61: =Asset1 -> Transmission Lines (pre 2004-05)
E62: =Asset2 -> Underground Cables (pre 2004-05)
E63: =Asset3 -> Substations including Buildings (pre 2004-05)
E64: =Asset4 -> Transmission Lines (2004-09)
E65: =Asset5 -> Underground Cables (2004-09)
E66: =Asset6 -> Substations including Buildings (2004-09)
E67: =Asset7 -> SCADA and Communications (2004-09)
E68: =Asset8 -> Transmission Lines & Cables (09-14)
E69: =Asset9 -> Substations (09-14)
E70: =Asset10 -> Secondary Systems (09-14)
E71: =Asset11 -> Communications (09-14)
E72: =Asset12 -> Minor Plant, Motor Vehicles & Mobile Plant (2009-14)
E73: =Asset13 -> Transmission Lines (2014-18)
E74: =Asset14 -> Underground Cables (2014-18)
E75: =Asset15 -> Substations (2014-18)
E76: =Asset16 -> Secondary Systems (2014-18)
E77: =Asset17 -> Communications (short life) (2014-18)
E78: =Asset18 -> Business IT (2014-18)
E79: =Asset19 -> Minor Plant, Motor Vehicles & Mobile Plant (2014-18) | U79: Base Business
E80: =Asset20 -> Transmission Line Life Extension (2014-18) | U80: Capital Profile (Exc. Major Projects)($m Real 2027-28) | AA80: Capital Profile (Major Projects)($m Real 2027-28)
E81: =Asset21 -> Residual - other | U81: 2028-29 | V81: 2029-30 | W81: 2030-31 | X81: 2031-32 | Y81: 2032-33 | AA81: 2028-29 | AB81: 2029-30 | AC81: 2030-31 | AD81: 2031-32 | AE81: 2032-33
E82: =Asset22 -> Transmission Lines (2018 onwards) | G82: =U82+AA82 -> 93.69392019 | H82: =V82+AB82 -> 93.69392019 | I82: =W82+AC82 -> 93.69392019 | J82: =X82+AD82 -> 93.69392019 | K82: =Y82+AE82 -> 93.69392019 | U82: 93.69392019 | V82: 93.69392019 | W82: 93.69392019 | X82: 93.69392019 | Y82: 93.69392019
E83: =Asset23 -> Underground Cables (2018 onwards) | G83: =U83+AA83 -> 0.8418476552 | H83: 0.8418476552 | I83: 0.8418476552 | J83: 0.8418476552 | K83: 0.8418476552 | U83: 0.8418476552 | V83: 0.8418476552 | W83: 0.8418476552 | X83: 0.8418476552 | Y83: 0.8418476552
E84: =Asset24 -> Substations (2018 onwards) | G84: 101.1286578 | H84: 101.1286578 | I84: 101.1286578 | J84: 101.1286578 | K84: 101.1286578 | U84: 101.1286578 | V84: 101.1286578 | W84: 101.1286578 | X84: 101.1286578 | Y84: 101.1286578
E85: =Asset25 -> Secondary Systems (2018 onwards) | G85: 39.18478089 | H85: 39.18478089 | I85: 39.18478089 | J85: 39.18478089 | K85: 39.18478089 | U85: 39.18478089 | V85: 39.18478089 | W85: 39.18478089 | X85: 39.18478089 | Y85: 39.18478089
E86: =Asset26 -> Communications (short life) (2018 onwards) | G86: 5.414959887 | H86: 5.414959887 | I86: 5.414959887 | J86: 5.414959887 | K86: 5.414959887 | U86: 5.414959887 | V86: 5.414959887 | W86: 5.414959887 | X86: 5.414959887 | Y86: 5.414959887
E87: =Asset27 -> Business IT (2018 onwards) | G87: 28.41619208 | H87: 28.41619208 | I87: 28.41619208 | J87: 28.41619208 | K87: 28.41619208 | U87: 28.41619208 | V87: 28.41619208 | W87: 28.41619208 | X87: 28.41619208 | Y87: 28.41619208
E88: =Asset28 -> Minor Plant, Motor Vehicles & Mobile Plant (2018 onwards) | G88: 12.23161289 | H88: 12.23161289 | I88: 12.23161289 | J88: 12.23161289 | K88: 12.23161289 | U88: 12.23161289 | V88: 12.23161289 | W88: 12.23161289 | X88: 12.23161289 | Y88: 12.23161289
E89: =Asset29 -> Transmission Line Life Extension (2018-23) | G89: 0 | H89: 0 | I89: 0 | J89: 0 | K89: 0 | U89: 0 | V89: 0 | W89: 0 | X89: 0 | Y89: 0
E90: =Asset30 -> Land and Easements | G90: 8.577404342 | H90: 8.577404342 | I90: 8.577404342 | J90: 8.577404342 | K90: 8.577404342 | U90: 8.577404342 | V90: 8.577404342 | W90: 8.577404342 | X90: 8.577404342 | Y90: 8.577404342
E91: =Asset31 -> Synchronous Condensers | G91: 0 | H91: 0 | I91: 0 | J91: 0 | K91: 0 | U91: 0 | V91: 0 | W91: 0 | X91: 0 | Y91: 0
E92: =Asset32 -> Leasehold Land and Property | G92: 0 | H92: 0 | I92: 0 | J92: 0 | K92: 0 | U92: 0 | V92: 0 | W92: 0 | X92: 0 | Y92: 0
E93: =Asset33 -> Biodiversity offsets (Stewardship sites) - VNI West | G93: 0 | H93: 0 | I93: 0 | J93: 0 | K93: 0 | U93: 0 | V93: 0 | W93: 0 | X93: 0 | Y93: 0
E94: =Asset34 -> Biodiversity offsets (Direct payments and other costs) - VNI West | G94: 0 | H94: 0 | I94: 0 | J94: 0 | K94: 0 | U94: 0 | V94: 0 | W94: 0 | X94: 0 | Y94: 0
E95: =Asset35 -> Biodiversity offsets (Stewardship sites) - Humelink S2 | G95: 0 | H95: 0 | I95: 0 | J95: 0 | K95: 0 | U95: 0 | V95: 0 | W95: 0 | X95: 0 | Y95: 0
E96: =Asset36 -> Biodiversity offsets (Direct payments and other costs) - Humelink S2 | G96: 0 | H96: 0 | I96: 0 | J96: 0 | K96: 0 | U96: 0 | V96: 0 | W96: 0 | X96: 0 | Y96: 0
E97: =Asset37 -> 0 | G97: 0 | H97: 0 | I97: 0 | J97: 0 | K97: 0
E98: =Asset38 -> 0 | G98: 0 | H98: 0 | I98: 0 | J98: 0 | K98: 0
E99: =Asset39 -> 0 | G99: 0 | H99: 0 | I99: 0 | J99: 0 | K99: 0
E100: =Asset40 -> 0 | G100: 0 | H100: 0 | I100: 0 | J100: 0 | K100: 0
E101: =Asset41 -> 0 | G101: 0 | H101: 0 | I101: 0 | J101: 0 | K101: 0
E102: =Asset42 -> Financeability class #1 (Transmission lines 1y) | G102: 0 | H102: 0 | I102: 0 | J102: 0 | K102: 0
E103: =Asset43 -> Financeability class #2 (Substations 5y) | G103: 0 | H103: 0 | I103: 0 | J103: 0 | K103: 0
E104: =Asset44 -> Financeability class #3 | G104: 0 | H104: 0 | I104: 0 | J104: 0 | K104: 0
E105: =Asset45 -> Financeability class #4 | G105: 0 | H105: 0 | I105: 0 | J105: 0 | K105: 0
E106: =Asset46 -> Financeability class #5 | G106: 0 | H106: 0 | I106: 0 | J106: 0 | K106: 0
E107: =Asset47 -> Spare straight-line tax asset class | G107: 0 | H107: 0 | I107: 0 | J107: 0 | K107: 0
E108: =Asset48 -> Buildings - capital works | G108: 0 | H108: 0 | I108: 0 | J108: 0 | K108: 0
E109: =Asset49 -> In-house software | G109: 0 | H109: 0 | I109: 0 | J109: 0 | K109: 0
E110: =Asset50 -> Equity raising costs | G110: 0 | U110: =SUM(U82:U109) -> 289.4893757 | V110: 289.4893757 | W110: 289.4893757 | X110: 289.4893757 | Y110: 289.4893757 | AA110: =SUM(AA82:AA109) -> 0 | AB110: 0 | AC110: 0 | AD110: 0 | AE110: 0
E111: Total | G111: =SUM(G61:G110) -> 289.4893757 | H111: 289.4893757 | I111: 289.4893757 | J111: 289.4893757 | K111: 289.4893757 | L111: 0 | M111: 0 | N111: 0 | O111: 0 | P111: 0
Q112: =SUM(OFFSET(G111,0,0,1,$S$7)) -> 1447.446879
E113: ="Forecast Asset Disposal – As Incurred ($m Real "&$F$632&")" -> Forecast Asset Disposal – As Incurred ($m Real 2027-28)
E114: Year | G114: =G60 -> 2028-29 | H114: 2029-30 | I114: 2030-31 | J114: 2031-32 | K114: 2032-33 | L114: 2033-34 | M114: 2034-35 | N114: 2035-36 | O114: 2036-37 | P114: 2037-38
E115: =Asset1 -> Transmission Lines (pre 2004-05)
E116: =Asset2 -> Underground Cables (pre 2004-05)
E117: =Asset3 -> Substations including Buildings (pre 2004-05)
E118: =Asset4 -> Transmission Lines (2004-09)
E119: =Asset5 -> Underground Cables (2004-09)
E120: =Asset6 -> Substations including Buildings (2004-09)
E121: =Asset7 -> SCADA and Communications (2004-09)
E122: =Asset8 -> Transmission Lines & Cables (09-14)
E123: =Asset9 -> Substations (09-14)
E124: =Asset10 -> Secondary Systems (09-14)
E125: =Asset11 -> Communications (09-14)
E126: =Asset12 -> Minor Plant, Motor Vehicles & Mobile Plant (2009-14)
E127: =Asset13 -> Transmission Lines (2014-18)
E128: =Asset14 -> Underground Cables (2014-18)
E129: =Asset15 -> Substations (2014-18)
E130: =Asset16 -> Secondary Systems (2014-18)
E131: =Asset17 -> Communications (short life) (2014-18)
E132: =Asset18 -> Business IT (2014-18)
E133: =Asset19 -> Minor Plant, Motor Vehicles & Mobile Plant (2014-18)
E134: =Asset20 -> Transmission Line Life Extension (2014-18) | U134: =U80 -> Capital Profile (Exc. Major Projects)($m Real 2027-28) | AA134: =AA80 -> Capital Profile (Major Projects)($m Real 2027-28)
E135: =Asset21 -> Residual - other | U135: =U81 -> 2028-29 | V135: =V81 -> 2029-30 | W135: 2030-31 | X135: 2031-32 | Y135: 2032-33 | AA135: =AA81 -> 2028-29 | AB135: 2029-30 | AC135: 2030-31 | AD135: 2031-32 | AE135: 2032-33
E136: =Asset22 -> Transmission Lines (2018 onwards) | G136: =U136+AA136 -> 0 | H136: =V136+AB136 -> 0 | I136: =W136+AC136 -> 0 | J136: =X136+AD136 -> 0 | K136: =Y136+AE136 -> 0
E137: =Asset23 -> Underground Cables (2018 onwards) | G137: =U137+AA137 -> 0 | H137: 0 | I137: 0 | J137: 0 | K137: 0
E138: =Asset24 -> Substations (2018 onwards) | G138: 0 | H138: 0 | I138: 0 | J138: 0 | K138: 0
E139: =Asset25 -> Secondary Systems (2018 onwards) | G139: 0 | H139: 0 | I139: 0 | J139: 0 | K139: 0
E140: =Asset26 -> Communications (short life) (2018 onwards) | G140: 0 | H140: 0 | I140: 0 | J140: 0 | K140: 0
E141: =Asset27 -> Business IT (2018 onwards) | G141: 0 | H141: 0 | I141: 0 | J141: 0 | K141: 0
E142: =Asset28 -> Minor Plant, Motor Vehicles & Mobile Plant (2018 onwards) | G142: 0 | H142: 0 | I142: 0 | J142: 0 | K142: 0
E143: =Asset29 -> Transmission Line Life Extension (2018-23) | G143: 0 | H143: 0 | I143: 0 | J143: 0 | K143: 0
E144: =Asset30 -> Land and Easements | G144: 0 | H144: 0 | I144: 0 | J144: 0 | K144: 0
E145: =Asset31 -> Synchronous Condensers | G145: 0 | H145: 0 | I145: 0 | J145: 0 | K145: 0
E146: =Asset32 -> Leasehold Land and Property | G146: 0 | H146: 0 | I146: 0 | J146: 0 | K146: 0
E147: =Asset33 -> Biodiversity offsets (Stewardship sites) - VNI West | G147: 0 | H147: 0 | I147: 0 | J147: 0 | K147: 0
E148: =Asset34 -> Biodiversity offsets (Direct payments and other costs) - VNI West | G148: 0 | H148: 0 | I148: 0 | J148: 0 | K148: 0
E149: =Asset35 -> Biodiversity offsets (Stewardship sites) - Humelink S2 | G149: 0 | H149: 0 | I149: 0 | J149: 0 | K149: 0
E150: =Asset36 -> Biodiversity offsets (Direct payments and other costs) - Humelink S2 | G150: 0 | H150: 0 | I150: 0 | J150: 0 | K150: 0
E151: =Asset37 -> 0 | G151: 0 | H151: 0 | I151: 0 | J151: 0 | K151: 0
E152: =Asset38 -> 0 | G152: 0 | H152: 0 | I152: 0 | J152: 0 | K152: 0
E153: =Asset39 -> 0 | G153: 0 | H153: 0 | I153: 0 | J153: 0 | K153: 0
E154: =Asset40 -> 0 | G154: 0 | H154: 0 | I154: 0 | J154: 0 | K154: 0
E155: =Asset41 -> 0 | G155: 0 | H155: 0 | I155: 0 | J155: 0 | K155: 0
E156: =Asset42 -> Financeability class #1 (Transmission lines 1y) | G156: 0 | H156: 0 | I156: 0 | J156: 0 | K156: 0
E157: =Asset43 -> Financeability class #2 (Substations 5y) | G157: 0 | H157: 0 | I157: 0 | J157: 0 | K157: 0
E158: =Asset44 -> Financeability class #3 | G158: 0 | H158: 0 | I158: 0 | J158: 0 | K158: 0
E159: =Asset45 -> Financeability class #4 | G159: 0 | H159: 0 | I159: 0 | J159: 0 | K159: 0
E160: =Asset46 -> Financeability class #5 | G160: 0 | H160: 0 | I160: 0 | J160: 0 | K160: 0
E161: =Asset47 -> Spare straight-line tax asset class | G161: 0 | H161: 0 | I161: 0 | J161: 0 | K161: 0
E162: =Asset48 -> Buildings - capital works | G162: 0 | H162: 0 | I162: 0 | J162: 0 | K162: 0
E163: =Asset49 -> In-house software | G163: 0 | H163: 0 | I163: 0 | J163: 0 | K163: 0
E164: =Asset50 -> Equity raising costs | U164: =SUM(U136:U163) -> 0 | V164: 0 | W164: 0 | X164: 0 | Y164: 0 | AA164: =SUM(AA136:AA163) -> 0 | AB164: 0 | AC164: 0 | AD164: 0 | AE164: 0
E165: Total | G165: =SUM(G115:G164) -> 0 | H165: 0 | I165: 0 | J165: 0 | K165: 0 | L165: 0 | M165: 0 | N165: 0 | O165: 0 | P165: 0
Q166: =SUM(OFFSET(G165,0,0,1,$S$7)) -> 0
E167: ="Forecast Net Capital Expenditure – As Incurred ($m Real "&$F$632&")" -> Forecast Net Capital Expenditure – As Incurred ($m Real 2027-28)
E168: Year | G168: =G60 -> 2028-29 | H168: 2029-30 | I168: 2030-31 | J168: 2031-32 | K168: 2032-33 | L168: 2033-34 | M168: 2034-35 | N168: 2035-36 | O168: 2036-37 | P168: 2037-38
E169: =Asset1 -> Transmission Lines (pre 2004-05) | G169: =G61-G115 -> 0 | H169: 0 | I169: 0 | J169: 0 | K169: 0 | L169: 0 | M169: 0 | N169: 0 | O169: 0 | P169: 0
E170: =Asset2 -> Underground Cables (pre 2004-05) | G170: 0 | H170: 0 | I170: 0 | J170: 0 | K170: 0 | L170: 0 | M170: 0 | N170: 0 | O170: 0 | P170: 0
E171: =Asset3 -> Substations including Buildings (pre 2004-05) | G171: 0 | H171: 0 | I171: 0 | J171: 0 | K171: 0 | L171: 0 | M171: 0 | N171: 0 | O171: 0 | P171: 0
E172: =Asset4 -> Transmission Lines (2004-09) | G172: 0 | H172: 0 | I172: 0 | J172: 0 | K172: 0 | L172: 0 | M172: 0 | N172: 0 | O172: 0 | P172: 0
E173: =Asset5 -> Underground Cables (2004-09) | G173: 0 | H173: 0 | I173: 0 | J173: 0 | K173: 0 | L173: 0 | M173: 0 | N173: 0 | O173: 0 | P173: 0
E174: =Asset6 -> Substations including Buildings (2004-09) | G174: 0 | H174: 0 | I174: 0 | J174: 0 | K174: 0 | L174: 0 | M174: 0 | N174: 0 | O174: 0 | P174: 0
E175: =Asset7 -> SCADA and Communications (2004-09) | G175: 0 | H175: 0 | I175: 0 | J175: 0 | K175: 0 | L175: 0 | M175: 0 | N175: 0 | O175: 0 | P175: 0
E176: =Asset8 -> Transmission Lines & Cables (09-14) | G176: 0 | H176: 0 | I176: 0 | J176: 0 | K176: 0 | L176: 0 | M176: 0 | N176: 0 | O176: 0 | P176: 0
E177: =Asset9 -> Substations (09-14) | G177: 0 | H177: 0 | I177: 0 | J177: 0 | K177: 0 | L177: 0 | M177: 0 | N177: 0 | O177: 0 | P177: 0
E178: =Asset10 -> Secondary Systems (09-14) | G178: 0 | H178: 0 | I178: 0 | J178: 0 | K178: 0 | L178: 0 | M178: 0 | N178: 0 | O178: 0 | P178: 0
E179: =Asset11 -> Communications (09-14) | G179: 0 | H179: 0 | I179: 0 | J179: 0 | K179: 0 | L179: 0 | M179: 0 | N179: 0 | O179: 0 | P179: 0
E180: =Asset12 -> Minor Plant, Motor Vehicles & Mobile Plant (2009-14) | G180: 0 | H180: 0 | I180: 0 | J180: 0 | K180: 0 | L180: 0 | M180: 0 | N180: 0 | O180: 0 | P180: 0
E181: =Asset13 -> Transmission Lines (2014-18) | G181: 0 | H181: 0 | I181: 0 | J181: 0 | K181: 0 | L181: 0 | M181: 0 | N181: 0 | O181: 0 | P181: 0
E182: =Asset14 -> Underground Cables (2014-18) | G182: 0 | H182: 0 | I182: 0 | J182: 0 | K182: 0 | L182: 0 | M182: 0 | N182: 0 | O182: 0 | P182: 0
E183: =Asset15 -> Substations (2014-18) | G183: 0 | H183: 0 | I183: 0 | J183: 0 | K183: 0 | L183: 0 | M183: 0 | N183: 0 | O183: 0 | P183: 0
E184: =Asset16 -> Secondary Systems (2014-18) | G184: 0 | H184: 0 | I184: 0 | J184: 0 | K184: 0 | L184: 0 | M184: 0 | N184: 0 | O184: 0 | P184: 0
E185: =Asset17 -> Communications (short life) (2014-18) | G185: =G77-G131 -> 0 | H185: 0 | I185: 0 | J185: 0 | K185: 0 | L185: 0 | M185: 0 | N185: 0 | O185: 0 | P185: 0
E186: =Asset18 -> Business IT (2014-18) | G186: 0 | H186: 0 | I186: 0 | J186: 0 | K186: 0 | L186: 0 | M186: 0 | N186: 0 | O186: 0 | P186: 0
E187: =Asset19 -> Minor Plant, Motor Vehicles & Mobile Plant (2014-18) | G187: 0 | H187: 0 | I187: 0 | J187: 0 | K187: 0 | L187: 0 | M187: 0 | N187: 0 | O187: 0 | P187: 0
E188: =Asset20 -> Transmission Line Life Extension (2014-18) | G188: 0 | H188: 0 | I188: 0 | J188: 0 | K188: 0 | L188: 0 | M188: 0 | N188: 0 | O188: 0 | P188: 0
E189: =Asset21 -> Residual - other | G189: 0 | H189: 0 | I189: 0 | J189: 0 | K189: 0 | L189: 0 | M189: 0 | N189: 0 | O189: 0 | P189: 0 | R189: ERC calculation
E190: =Asset22 -> Transmission Lines (2018 onwards) | G190: 93.69392019 | H190: 93.69392019 | I190: 93.69392019 | J190: 93.69392019 | K190: 93.69392019 | L190: 0 | M190: 0 | N190: 0 | O190: 0 | P190: 0 | R190: =SUM(G190:P190) -> 468.4696009 | S190: =M28 -> 50
E191: =Asset23 -> Underground Cables (2018 onwards) | G191: 0.8418476552 | H191: 0.8418476552 | I191: 0.8418476552 | J191: 0.8418476552 | K191: 0.8418476552 | L191: 0 | M191: 0 | N191: 0 | O191: 0 | P191: 0 | R191: =SUM(G191:P191) -> 4.209238276 | S191: =M29 -> 45
E192: =Asset24 -> Substations (2018 onwards) | G192: 101.1286578 | H192: 101.1286578 | I192: 101.1286578 | J192: 101.1286578 | K192: 101.1286578 | L192: 0 | M192: 0 | N192: 0 | O192: 0 | P192: 0 | R192: 505.643289 | S192: 40
E193: =Asset25 -> Secondary Systems (2018 onwards) | G193: 39.18478089 | H193: 39.18478089 | I193: 39.18478089 | J193: 39.18478089 | K193: 39.18478089 | L193: 0 | M193: 0 | N193: 0 | O193: 0 | P193: 0 | R193: 195.9239044 | S193: 15
E194: =Asset26 -> Communications (short life) (2018 onwards) | G194: 5.414959887 | H194: 5.414959887 | I194: 5.414959887 | J194: 5.414959887 | K194: 5.414959887 | L194: 0 | M194: 0 | N194: 0 | O194: 0 | P194: 0 | R194: 27.07479944 | S194: 10
E195: =Asset27 -> Business IT (2018 onwards) | G195: 28.41619208 | H195: 28.41619208 | I195: 28.41619208 | J195: 28.41619208 | K195: 28.41619208 | L195: 0 | M195: 0 | N195: 0 | O195: 0 | P195: 0 | R195: 142.0809604 | S195: 4
E196: =Asset28 -> Minor Plant, Motor Vehicles & Mobile Plant (2018 onwards) | G196: 12.23161289 | H196: 12.23161289 | I196: 12.23161289 | J196: 12.23161289 | K196: 12.23161289 | L196: 0 | M196: 0 | N196: 0 | O196: 0 | P196: 0 | R196: 61.15806447 | S196: 8
E197: =Asset29 -> Transmission Line Life Extension (2018-23) | G197: 0 | H197: 0 | I197: 0 | J197: 0 | K197: 0 | L197: 0 | M197: 0 | N197: 0 | O197: 0 | P197: 0 | R197: 0 | S197: 35
E198: =Asset30 -> Land and Easements | G198: 8.577404342 | H198: 8.577404342 | I198: 8.577404342 | J198: 8.577404342 | K198: 8.577404342 | L198: 0 | M198: 0 | N198: 0 | O198: 0 | P198: 0
E199: =Asset31 -> Synchronous Condensers | G199: 0 | H199: 0 | I199: 0 | J199: 0 | K199: 0 | L199: 0 | M199: 0 | N199: 0 | O199: 0 | P199: 0 | R199: 0 | S199: 40
E200: =Asset32 -> Leasehold Land and Property | G200: 0 | H200: 0 | I200: 0 | J200: 0 | K200: 0 | L200: 0 | M200: 0 | N200: 0 | O200: 0 | P200: 0 | R200: 0 | S200: 5
E201: =Asset33 -> Biodiversity offsets (Stewardship sites) - VNI West | G201: =G93-G147 -> 0 | H201: 0 | I201: 0 | J201: 0 | K201: 0 | L201: 0 | M201: 0 | N201: 0 | O201: 0 | P201: 0 | R201: 0 | S201: 45.58174129
E202: =Asset34 -> Biodiversity offsets (Direct payments and other costs) - VNI West | G202: 0 | H202: 0 | I202: 0 | J202: 0 | K202: 0 | L202: 0 | M202: 0 | N202: 0 | O202: 0 | P202: 0 | R202: 0 | S202: 45.58174129
E203: =Asset35 -> Biodiversity offsets (Stewardship sites) - Humelink S2 | G203: 0 | H203: 0 | I203: 0 | J203: 0 | K203: 0 | L203: 0 | M203: 0 | N203: 0 | O203: 0 | P203: 0 | R203: 0 | S203: 47.67747621
E204: =Asset36 -> Biodiversity offsets (Direct payments and other costs) - Humelink S2 | G204: 0 | H204: 0 | I204: 0 | J204: 0 | K204: 0 | L204: 0 | M204: 0 | N204: 0 | O204: 0 | P204: 0 | R204: 0 | S204: 47.67747621
... 403 more rows

Sheet WACC
B2: ='DMS input'!$C$16&" - Cost of Capital Parameters"&" - TNSP PTRM - version "&Intro!$L$4 -> Aus Elec - Cost of Capital Parameters - TNSP PTRM - version 6
B4: Year | G4: ='PTRM input'!G60 -> 2028-29 | H4: ='PTRM input'!H60 -> 2029-30 | I4: ='PTRM input'!I60 -> 2030-31 | J4: ='PTRM input'!J60 -> 2031-32 | K4: ='PTRM input'!K60 -> 2032-33 | L4: ='PTRM input'!L60 -> 2033-34 | M4: ='PTRM input'!M60 -> 2034-35 | N4: ='PTRM input'!N60 -> 2035-36 | O4: ='PTRM input'!O60 -> 2036-37 | P4: ='PTRM input'!P60 -> 2037-38 | R4: Final decision checks
R5: This column contains calculations that presume a constant WACC. They are therefore to be used at the start of the regulatory control period (prior to any annual debt updates).
B6: Inflation Rate | D6: f | F6: Constant | G6: =f -> 0.025 | H6: 0.025 | I6: 0.025 | J6: 0.025 | K6: 0.025 | L6: 0.025 | M6: 0.025 | N6: 0.025 | O6: 0.025 | P6: 0.025
B7: Value of Imputation Credits (gamma) | D7: γ | F7: Constant | G7: =g -> 0.57 | H7: 0.57 | I7: 0.57 | J7: 0.57 | K7: 0.57 | L7: 0.57 | M7: 0.57 | N7: 0.57 | O7: 0.57 | P7: 0.57
B8: Proportion of Equity Funding | D8: E/V | F8: Constant | G8: =1-G9 -> 0.4 | H8: =1-H9 -> 0.4 | I8: 0.4 | J8: 0.4 | K8: 0.4 | L8: 0.4 | M8: 0.4 | N8: 0.4 | O8: 0.4 | P8: 0.4
B9: Proportion of Debt Funding | D9: D/V | F9: Constant | G9: =Dv -> 0.6 | H9: =Dv -> 0.6 | I9: 0.6 | J9: 0.6 | K9: 0.6 | L9: 0.6 | M9: 0.6 | N9: 0.6 | O9: 0.6 | P9: 0.6
B10: Post-tax Nominal Return on Equity | D10: Re | F10: Constant | G10: ='PTRM input'!$G$491 -> 0.07480583578 | H10: ='PTRM input'!$G$491 -> 0.07480583578 | I10: ='PTRM input'!$G$491 -> 0.07480583578 | J10: ='PTRM input'!$G$491 -> 0.07480583578 | K10: ='PTRM input'!$G$491 -> 0.07480583578 | L10: ='PTRM input'!$G$491 -> 0.07480583578 | M10: ='PTRM input'!$G$491 -> 0.07480583578 | N10: ='PTRM input'!$G$491 -> 0.07480583578 | O10: ='PTRM input'!$G$491 -> 0.07480583578 | P10: ='PTRM input'!$G$491 -> 0.07480583578 | R10: =Analysis!$E$110 -> 0.07480583578
B11: Post-tax Real Return on Equity | D11: Rre | F11: Constant | G11: =(1+G10)/(1+G6)-1 -> 0.0485910593 | H11: 0.0485910593 | I11: 0.0485910593 | J11: 0.0485910593 | K11: 0.0485910593 | L11: 0.0485910593 | M11: 0.0485910593 | N11: 0.0485910593 | O11: 0.0485910593 | P11: 0.0485910593 | R11: =Analysis!$E$114 -> 0.0485910593
B13: Corporate Tax Rate | D13: T | F13: Varying | G13: ='PTRM input'!G471 -> 0.3 | H13: =IF(OR(ISBLANK('PTRM input'!H471),'PTRM input'!H471=0),G13,'PTRM input'!H471) -> 0.3 | I13: =IF(OR(ISBLANK('PTRM input'!I471),'PTRM input'!I471=0),H13,'PTRM input'!I471) -> 0.3 | J13: =IF(OR(ISBLANK('PTRM input'!J471),'PTRM input'!J471=0),I13,'PTRM input'!J471) -> 0.3 | K13: =IF(OR(ISBLANK('PTRM input'!K471),'PTRM input'!K471=0),J13,'PTRM input'!K471) -> 0.3 | L13: =IF(OR(ISBLANK('PTRM input'!L471),'PTRM input'!L471=0),K13,'PTRM input'!L471) -> 0.3 | M13: =IF(OR(ISBLANK('PTRM input'!M471),'PTRM input'!M471=0),L13,'PTRM input'!M471) -> 0.3 | N13: =IF(OR(ISBLANK('PTRM input'!N471),'PTRM input'!N471=0),M13,'PTRM input'!N471) -> 0.3 | O13: =IF(OR(ISBLANK('PTRM input'!O471),'PTRM input'!O471=0),N13,'PTRM input'!O471) -> 0.3 | P13: =IF(OR(ISBLANK('PTRM input'!P471),'PTRM input'!P471=0),O13,'PTRM input'!P471) -> 0.3
B14: Nominal Pre-tax Return on Debt | D14: Rd | F14: Varying | G14: ='PTRM input'!G496 -> 0.04967235702 | H14: =IF(OR(ISBLANK('PTRM input'!H496),'PTRM input'!H496=0),G14,'PTRM input'!H496) -> 0.04967235702 | I14: =IF(OR(ISBLANK('PTRM input'!I496),'PTRM input'!I496=0),H14,'PTRM input'!I496) -> 0.04967235702 | J14: =IF(OR(ISBLANK('PTRM input'!J496),'PTRM input'!J496=0),I14,'PTRM input'!J496) -> 0.04967235702 | K14: =IF(OR(ISBLANK('PTRM input'!K496),'PTRM input'!K496=0),J14,'PTRM input'!K496) -> 0.04967235702 | L14: =IF(OR(ISBLANK('PTRM input'!L496),'PTRM input'!L496=0),K14,'PTRM input'!L496) -> 0.04967235702 | M14: =IF(OR(ISBLANK('PTRM input'!M496),'PTRM input'!M496=0),L14,'PTRM input'!M496) -> 0.04967235702 | N14: =IF(OR(ISBLANK('PTRM input'!N496),'PTRM input'!N496=0),M14,'PTRM input'!N496) -> 0.04967235702 | O14: =IF(OR(ISBLANK('PTRM input'!O496),'PTRM input'!O496=0),N14,'PTRM input'!O496) -> 0.04967235702 | P14: =IF(OR(ISBLANK('PTRM input'!P496),'PTRM input'!P496=0),O14,'PTRM input'!P496) -> 0.04967235702
B15: Real Pre-tax Return on Debt | D15: Rrd | F15: Varying | G15: =(1+G14)/(1+G6)-1 -> 0.02407059221 | H15: 0.02407059221 | I15: 0.02407059221 | J15: 0.02407059221 | K15: 0.02407059221 | L15: 0.02407059221 | M15: 0.02407059221 | N15: 0.02407059221 | O15: 0.02407059221 | P15: 0.02407059221
G17: Formula approximations of WACC | R17: Cashflow derivations of WACC
B18: Nominal Vanilla WACC | F18: Varying | G18: =G8*G10+G9*G14 -> 0.05972574852 | H18: 0.05972574852 | I18: 0.05972574852 | J18: 0.05972574852 | K18: 0.05972574852 | L18: 0.05972574852 | M18: 0.05972574852 | N18: 0.05972574852 | O18: 0.05972574852 | P18: 0.05972574852 | R18: =Analysis!$E$125 -> 0.05972574852
B19: Real Vanilla WACC | F19: Varying | G19: =G8*G11+G9*G15 -> 0.03387877905 | H19: 0.03387877905 | I19: 0.03387877905 | J19: 0.03387877905 | K19: 0.03387877905 | L19: 0.03387877905 | M19: 0.03387877905 | N19: 0.03387877905 | O19: 0.03387877905 | P19: 0.03387877905 | R19: =Analysis!$E$126 -> 0.03387877905
B20: Post-tax Nominal WACC | F20: Varying | G20: =G10*G8+G14*G9*(1-G28*(1-G7)) -> 0.05584825415 | H20: =H10*H8+H14*H9*(1-H28*(1-H7)) -> 0.05584825415 | I20: 0.05584825415 | J20: 0.05584825415 | K20: 0.05584825415 | L20: 0.05584825415 | M20: 0.05584825415 | N20: 0.05584825415 | O20: 0.05584825415 | P20: 0.05584825415 | R20: =Analysis!$E$122 -> 0.05650511545
B21: Post-tax Real WACC | F21: Varying | G21: =(1+G20)/(1+G6)-1 -> 0.0300958577 | H21: 0.0300958577 | I21: 0.0300958577 | J21: 0.0300958577 | K21: 0.0300958577 | L21: 0.0300958577 | M21: 0.0300958577 | N21: 0.0300958577 | O21: 0.0300958577 | P21: 0.0300958577 | R21: =Analysis!$E$124 -> 0.030736698
B22: Pre-tax Nominal WACC | F22: Varying | G22: =G10*(1/(1-G27*(1-G7)))*G8+G14*G9 -> 0.06186221641 | H22: 0.06186221641 | I22: 0.06186221641 | J22: 0.06186221641 | K22: 0.06186221641 | L22: 0.06186221641 | M22: 0.06186221641 | N22: 0.06186221641 | O22: 0.06186221641 | P22: 0.06186221641 | R22: =Analysis!$E$121 -> 0.06207267791
B23: Pre-tax Real WACC | F23: Varying | G23: =(1+G22)/(1+G6)-1 -> 0.03596313796 | H23: 0.03596313796 | I23: 0.03596313796 | J23: 0.03596313796 | K23: 0.03596313796 | L23: 0.03596313796 | M23: 0.03596313796 | N23: 0.03596313796 | O23: 0.03596313796 | P23: 0.03596313796 | R23: =Analysis!$E$123 -> 0.03616846626
B24: Nominal Tax Allowance | F24: Varying | G24: =G22-G20 -> 0.006013962261 | H24: =H22-H20 -> 0.006013962261 | I24: 0.006013962261 | J24: 0.006013962261 | K24: 0.006013962261 | L24: 0.006013962261 | M24: 0.006013962261 | N24: 0.006013962261 | O24: 0.006013962261 | P24: 0.006013962261 | R24: =$R$22-$R$20 -> 0.00556756246
B25: Real Tax Allowance | F25: Varying | G25: =G23-G21 -> 0.005867280255 | H25: =H23-H21 -> 0.005867280255 | I25: 0.005867280255 | J25: 0.005867280255 | K25: 0.005867280255 | L25: 0.005867280255 | M25: 0.005867280255 | N25: 0.005867280255 | O25: 0.005867280255 | P25: 0.005867280255 | R25: =$R$23-$R$21 -> 0.005431768254
B27: Effective Tax Rate for Equity (from relevant cashflows) | D27: Te | G27: 0.1549817717 | H27: =$G27 -> 0.1549817717 | I27: =$G27 -> 0.1549817717 | J27: 0.1549817717 | K27: 0.1549817717 | L27: 0.1549817717 | M27: 0.1549817717 | N27: 0.1549817717 | O27: 0.1549817717 | P27: 0.1549817717 | R27: =Analysis!$D$108 -> 0.1598308748
B28: Effective Tax Rate for Debt (effective debt shield) | D28: Td | G28: 0.3025636164 | H28: =$G28 -> 0.3025636164 | I28: 0.3025636164 | J28: 0.3025636164 | K28: 0.3025636164 | L28: 0.3025636164 | M28: 0.3025636164 | N28: 0.3025636164 | O28: 0.3025636164 | P28: 0.3025636164 | R28: =Analysis!$D$119 -> 0.2997708138
G30: At the start of the regulatory control period, indicative cashflow-calculated average of Te and Td are copied over to this sheet
G31: These calculations presume a constant WACC so Te/Td should not be updated during a regulatory control period
G32: when annually updating the return on debt - just use the same Te/Td from the final decision.
G34: Numbers in White cells are calculated on this sheet from input parameters.
G35: Numbers in Orange cells are transferred from relevant sheets

Sheet Assets
B2: ='DMS input'!$C$16&" - Asset Roll Forward"&" - TNSP PTRM - version "&Intro!$L$4 -> Aus Elec - Asset Roll Forward - TNSP PTRM - version 6
F3: 0 | G3: =F3+1 -> 1 | H3: 2 | I3: 3 | J3: 4 | K3: 5 | L3: 6 | M3: 7 | N3: 8 | O3: 9 | P3: 10 | Q3: 11 | R3: 12 | S3: 13 | T3: 14 | U3: 15 | V3: 16 | W3: 17 | X3: 18 | Y3: 19 | Z3: 20 | AA3: 21 | AB3: 22 | AC3: 23 | AD3: 24 | AE3: 25 | AF3: 26 | AG3: 27 | AH3: 28 | AI3: 29 | AJ3: 30 | AK3: 31 | AL3: 32 | AM3: =AL3+1 -> 33 | AN3: 34 | AO3: 35 | AP3: 36 | AQ3: 37 | AR3: 38 | AS3: 39 | AT3: 40 | AU3: 41 | AV3: 42 | AW3: 43 | AX3: 44 | AY3: 45 | AZ3: 46 | BA3: 47 | BB3: 48 | BC3: 49 | BD3: 50 | BE3: 51 | BF3: 52 | BG3: 53 | BH3: 54 | BI3: 55
B4: Year | F4: ='PTRM input'!F632 -> 2027-28 | G4: ='PTRM input'!G632 -> 2028-29 | H4: ='PTRM input'!H632 -> 2029-30 | I4: ='PTRM input'!I632 -> 2030-31 | J4: ='PTRM input'!J632 -> 2031-32 | K4: ='PTRM input'!K632 -> 2032-33 | L4: ='PTRM input'!L632 -> 2033-34 | M4: ='PTRM input'!M632 -> 2034-35 | N4: ='PTRM input'!N632 -> 2035-36 | O4: ='PTRM input'!O632 -> 2036-37 | P4: ='PTRM input'!P632 -> 2037-38 | Q4: =(LEFT(P4,4)+1&IF(MID(P4,5,1)="","","-"&TEXT(MID(P4,6,2)+1,"00"))) -> 2038-39 | R4: =(LEFT(Q4,4)+1&IF(MID(Q4,5,1)="","","-"&TEXT(MID(Q4,6,2)+1,"00"))) -> 2039-40 | S4: 2040-41 | T4: 2041-42 | U4: 2042-43 | V4: 2043-44 | W4: 2044-45 | X4: 2045-46 | Y4: 2046-47 | Z4: 2047-48 | AA4: 2048-49 | AB4: 2049-50 | AC4: 2050-51 | AD4: 2051-52 | AE4: 2052-53 | AF4: 2053-54 | AG4: 2054-55 | AH4: 2055-56 | AI4: 2056-57 | AJ4: 2057-58 | AK4: 2058-59 | AL4: 2059-60 | AM4: 2060-61 | AN4: 2061-62 | AO4: 2062-63 | AP4: 2063-64 | AQ4: 2064-65 | AR4: 2065-66 | AS4: 2066-67 | AT4: 2067-68 | AU4: 2068-69 | AV4: 2069-70 | AW4: 2070-71 | AX4: 2071-72 | AY4: 2072-73 | AZ4: 2073-74 | BA4: 2074-75 | BB4: 2075-76 | BC4: 2076-77 | BD4: 2077-78 | BE4: 2078-79 | BF4: 2079-80 | BG4: 2080-81 | BH4: 2081-82 | BI4: 2082-83
B6: Inflation Assumption (CPI % increase) | D6: =f -> 0.025 | G6: =$D$6 -> 0.025 | H6: =$D$6 -> 0.025 | I6: 0.025 | J6: 0.025 | K6: 0.025 | L6: 0.025 | M6: 0.025 | N6: 0.025 | O6: 0.025 | P6: 0.025 | Q6: 0.025 | R6: 0.025 | S6: 0.025 | T6: 0.025 | U6: 0.025 | V6: 0.025 | W6: 0.025 | X6: 0.025 | Y6: 0.025 | Z6: 0.025 | AA6: 0.025 | AB6: 0.025 | AC6: 0.025 | AD6: 0.025 | AE6: 0.025 | AF6: 0.025 | AG6: 0.025 | AH6: 0.025 | AI6: 0.025 | AJ6: 0.025 | AK6: 0.025 | AL6: 0.025 | AM6: 0.025 | AN6: 0.025 | AO6: 0.025 | AP6: 0.025 | AQ6: 0.025 | AR6: 0.025 | AS6: 0.025 | AT6: 0.025 | AU6: 0.025 | AV6: 0.025 | AW6: 0.025 | AX6: 0.025 | AY6: 0.025 | AZ6: 0.025 | BA6: 0.025 | BB6: 0.025 | BC6: 0.025 | BD6: 0.025 | BE6: 0.025 | BF6: 0.025 | BG6: 0.025 | BH6: 0.025 | BI6: 0.025
B7: Cumulative Inflation Index (CPI end period) | F7: 1 | G7: =F7*(1+G6) -> 1.025 | H7: =G7*(1+H6) -> 1.050625 | I7: =H7*(1+I6) -> 1.076890625 | J7: =I7*(1+J6) -> 1.103812891 | K7: 1.131408213 | L7: 1.159693418 | M7: 1.188685754 | N7: 1.218402898 | O7: 1.24886297 | P7: =O7*(1+P6) -> 1.280084544 | Q7: 1.312086658 | R7: 1.344888824 | S7: 1.378511045 | T7: 1.412973821 | U7: 1.448298166 | V7: 1.484505621 | W7: 1.521618261 | X7: 1.559658718 | Y7: 1.598650186 | Z7: 1.63861644 | AA7: 1.679581851 | AB7: 1.721571398 | AC7: 1.764610683 | AD7: 1.80872595 | AE7: 1.853944098 | AF7: 1.900292701 | AG7: 1.947800018 | AH7: 1.996495019 | AI7: 2.046407394 | AJ7: 2.097567579 | AK7: 2.150006769 | AL7: 2.203756938 | AM7: 2.258850861 | AN7: 2.315322133 | AO7: 2.373205186 | AP7: 2.432535316 | AQ7: 2.493348699 | AR7: 2.555682416 | AS7: 2.619574476 | AT7: 2.685063838 | AU7: 2.752190434 | AV7: 2.820995195 | AW7: 2.891520075 | AX7: 2.963808077 | AY7: 3.037903279 | AZ7: 3.113850861 | BA7: 3.191697132 | BB7: 3.271489561 | BC7: 3.3532768 | BD7: 3.43710872 | BE7: 3.523036438 | BF7: 3.611112349 | BG7: 3.701390157 | BH7: 3.793924911 | BI7: 3.888773034
B9: Opening Regulatory Asset Base (RAB) | F9: =RAB -> 17999.44749
B10: Real Net Capital Expenditure (capex) | G10: =SUM(G11:G60) -> 294.3523046 | H10: =SUM(H11:H60) -> 294.3523046 | I10: 294.3523046 | J10: 294.3523046 | K10: 294.3523046 | L10: =SUM(L11:L60) -> 0 | M10: 0 | N10: 0 | O10: 0 | P10: 0
C11: =Asset1 -> Transmission Lines (pre 2004-05) | G11: ='PTRM input'!G169*(1+rvanilla01)^0.5 -> 0 | H11: ='PTRM input'!H169*(1+rvanilla02)^0.5 -> 0 | I11: ='PTRM input'!I169*(1+rvanilla03)^0.5 -> 0 | J11: ='PTRM input'!J169*(1+rvanilla04)^0.5 -> 0 | K11: ='PTRM input'!K169*(1+rvanilla05)^0.5 -> 0 | L11: ='PTRM input'!L169*(1+rvanilla06)^0.5 -> 0 | M11: ='PTRM input'!M169*(1+rvanilla07)^0.5 -> 0 | N11: ='PTRM input'!N169*(1+rvanilla08)^0.5 -> 0 | O11: ='PTRM input'!O169*(1+rvanilla09)^0.5 -> 0 | P11: ='PTRM input'!P169*(1+rvanilla10)^0.5 -> 0
C12: =Asset2 -> Underground Cables (pre 2004-05) | G12: ='PTRM input'!G170*(1+rvanilla01)^0.5 -> 0 | H12: ='PTRM input'!H170*(1+rvanilla02)^0.5 -> 0 | I12: ='PTRM input'!I170*(1+rvanilla03)^0.5 -> 0 | J12: ='PTRM input'!J170*(1+rvanilla04)^0.5 -> 0 | K12: ='PTRM input'!K170*(1+rvanilla05)^0.5 -> 0 | L12: ='PTRM input'!L170*(1+rvanilla06)^0.5 -> 0 | M12: ='PTRM input'!M170*(1+rvanilla07)^0.5 -> 0 | N12: ='PTRM input'!N170*(1+rvanilla08)^0.5 -> 0 | O12: ='PTRM input'!O170*(1+rvanilla09)^0.5 -> 0 | P12: ='PTRM input'!P170*(1+rvanilla10)^0.5 -> 0
C13: =Asset3 -> Substations including Buildings (pre 2004-05) | G13: ='PTRM input'!G171*(1+rvanilla01)^0.5 -> 0 | H13: ='PTRM input'!H171*(1+rvanilla02)^0.5 -> 0 | I13: ='PTRM input'!I171*(1+rvanilla03)^0.5 -> 0 | J13: ='PTRM input'!J171*(1+rvanilla04)^0.5 -> 0 | K13: ='PTRM input'!K171*(1+rvanilla05)^0.5 -> 0 | L13: ='PTRM input'!L171*(1+rvanilla06)^0.5 -> 0 | M13: ='PTRM input'!M171*(1+rvanilla07)^0.5 -> 0 | N13: ='PTRM input'!N171*(1+rvanilla08)^0.5 -> 0 | O13: ='PTRM input'!O171*(1+rvanilla09)^0.5 -> 0 | P13: ='PTRM input'!P171*(1+rvanilla10)^0.5 -> 0
C14: =Asset4 -> Transmission Lines (2004-09) | G14: ='PTRM input'!G172*(1+rvanilla01)^0.5 -> 0 | H14: ='PTRM input'!H172*(1+rvanilla02)^0.5 -> 0 | I14: ='PTRM input'!I172*(1+rvanilla03)^0.5 -> 0 | J14: ='PTRM input'!J172*(1+rvanilla04)^0.5 -> 0 | K14: ='PTRM input'!K172*(1+rvanilla05)^0.5 -> 0 | L14: ='PTRM input'!L172*(1+rvanilla06)^0.5 -> 0 | M14: ='PTRM input'!M172*(1+rvanilla07)^0.5 -> 0 | N14: ='PTRM input'!N172*(1+rvanilla08)^0.5 -> 0 | O14: ='PTRM input'!O172*(1+rvanilla09)^0.5 -> 0 | P14: ='PTRM input'!P172*(1+rvanilla10)^0.5 -> 0
C15: =Asset5 -> Underground Cables (2004-09) | G15: ='PTRM input'!G173*(1+rvanilla01)^0.5 -> 0 | H15: ='PTRM input'!H173*(1+rvanilla02)^0.5 -> 0 | I15: ='PTRM input'!I173*(1+rvanilla03)^0.5 -> 0 | J15: ='PTRM input'!J173*(1+rvanilla04)^0.5 -> 0 | K15: ='PTRM input'!K173*(1+rvanilla05)^0.5 -> 0 | L15: ='PTRM input'!L173*(1+rvanilla06)^0.5 -> 0 | M15: ='PTRM input'!M173*(1+rvanilla07)^0.5 -> 0 | N15: ='PTRM input'!N173*(1+rvanilla08)^0.5 -> 0 | O15: ='PTRM input'!O173*(1+rvanilla09)^0.5 -> 0 | P15: ='PTRM input'!P173*(1+rvanilla10)^0.5 -> 0
C16: =Asset6 -> Substations including Buildings (2004-09) | G16: ='PTRM input'!G174*(1+rvanilla01)^0.5 -> 0 | H16: ='PTRM input'!H174*(1+rvanilla02)^0.5 -> 0 | I16: ='PTRM input'!I174*(1+rvanilla03)^0.5 -> 0 | J16: ='PTRM input'!J174*(1+rvanilla04)^0.5 -> 0 | K16: ='PTRM input'!K174*(1+rvanilla05)^0.5 -> 0 | L16: ='PTRM input'!L174*(1+rvanilla06)^0.5 -> 0 | M16: ='PTRM input'!M174*(1+rvanilla07)^0.5 -> 0 | N16: ='PTRM input'!N174*(1+rvanilla08)^0.5 -> 0 | O16: ='PTRM input'!O174*(1+rvanilla09)^0.5 -> 0 | P16: ='PTRM input'!P174*(1+rvanilla10)^0.5 -> 0
C17: =Asset7 -> SCADA and Communications (2004-09) | G17: ='PTRM input'!G175*(1+rvanilla01)^0.5 -> 0 | H17: ='PTRM input'!H175*(1+rvanilla02)^0.5 -> 0 | I17: ='PTRM input'!I175*(1+rvanilla03)^0.5 -> 0 | J17: ='PTRM input'!J175*(1+rvanilla04)^0.5 -> 0 | K17: ='PTRM input'!K175*(1+rvanilla05)^0.5 -> 0 | L17: ='PTRM input'!L175*(1+rvanilla06)^0.5 -> 0 | M17: ='PTRM input'!M175*(1+rvanilla07)^0.5 -> 0 | N17: ='PTRM input'!N175*(1+rvanilla08)^0.5 -> 0 | O17: ='PTRM input'!O175*(1+rvanilla09)^0.5 -> 0 | P17: ='PTRM input'!P175*(1+rvanilla10)^0.5 -> 0
C18: =Asset8 -> Transmission Lines & Cables (09-14) | G18: ='PTRM input'!G176*(1+rvanilla01)^0.5 -> 0 | H18: ='PTRM input'!H176*(1+rvanilla02)^0.5 -> 0 | I18: ='PTRM input'!I176*(1+rvanilla03)^0.5 -> 0 | J18: ='PTRM input'!J176*(1+rvanilla04)^0.5 -> 0 | K18: ='PTRM input'!K176*(1+rvanilla05)^0.5 -> 0 | L18: ='PTRM input'!L176*(1+rvanilla06)^0.5 -> 0 | M18: ='PTRM input'!M176*(1+rvanilla07)^0.5 -> 0 | N18: ='PTRM input'!N176*(1+rvanilla08)^0.5 -> 0 | O18: ='PTRM input'!O176*(1+rvanilla09)^0.5 -> 0 | P18: ='PTRM input'!P176*(1+rvanilla10)^0.5 -> 0
C19: =Asset9 -> Substations (09-14) | G19: ='PTRM input'!G177*(1+rvanilla01)^0.5 -> 0 | H19: ='PTRM input'!H177*(1+rvanilla02)^0.5 -> 0 | I19: ='PTRM input'!I177*(1+rvanilla03)^0.5 -> 0 | J19: ='PTRM input'!J177*(1+rvanilla04)^0.5 -> 0 | K19: ='PTRM input'!K177*(1+rvanilla05)^0.5 -> 0 | L19: ='PTRM input'!L177*(1+rvanilla06)^0.5 -> 0 | M19: ='PTRM input'!M177*(1+rvanilla07)^0.5 -> 0 | N19: ='PTRM input'!N177*(1+rvanilla08)^0.5 -> 0 | O19: ='PTRM input'!O177*(1+rvanilla09)^0.5 -> 0 | P19: ='PTRM input'!P177*(1+rvanilla10)^0.5 -> 0
C20: =Asset10 -> Secondary Systems (09-14) | G20: ='PTRM input'!G178*(1+rvanilla01)^0.5 -> 0 | H20: ='PTRM input'!H178*(1+rvanilla02)^0.5 -> 0 | I20: ='PTRM input'!I178*(1+rvanilla03)^0.5 -> 0 | J20: ='PTRM input'!J178*(1+rvanilla04)^0.5 -> 0 | K20: ='PTRM input'!K178*(1+rvanilla05)^0.5 -> 0 | L20: ='PTRM input'!L178*(1+rvanilla06)^0.5 -> 0 | M20: ='PTRM input'!M178*(1+rvanilla07)^0.5 -> 0 | N20: ='PTRM input'!N178*(1+rvanilla08)^0.5 -> 0 | O20: ='PTRM input'!O178*(1+rvanilla09)^0.5 -> 0 | P20: ='PTRM input'!P178*(1+rvanilla10)^0.5 -> 0
C21: =Asset11 -> Communications (09-14) | G21: ='PTRM input'!G179*(1+rvanilla01)^0.5 -> 0 | H21: ='PTRM input'!H179*(1+rvanilla02)^0.5 -> 0 | I21: ='PTRM input'!I179*(1+rvanilla03)^0.5 -> 0 | J21: ='PTRM input'!J179*(1+rvanilla04)^0.5 -> 0 | K21: ='PTRM input'!K179*(1+rvanilla05)^0.5 -> 0 | L21: ='PTRM input'!L179*(1+rvanilla06)^0.5 -> 0 | M21: ='PTRM input'!M179*(1+rvanilla07)^0.5 -> 0 | N21: ='PTRM input'!N179*(1+rvanilla08)^0.5 -> 0 | O21: ='PTRM input'!O179*(1+rvanilla09)^0.5 -> 0 | P21: ='PTRM input'!P179*(1+rvanilla10)^0.5 -> 0
C22: =Asset12 -> Minor Plant, Motor Vehicles & Mobile Plant (2009-14) | G22: ='PTRM input'!G180*(1+rvanilla01)^0.5 -> 0 | H22: ='PTRM input'!H180*(1+rvanilla02)^0.5 -> 0 | I22: ='PTRM input'!I180*(1+rvanilla03)^0.5 -> 0 | J22: ='PTRM input'!J180*(1+rvanilla04)^0.5 -> 0 | K22: ='PTRM input'!K180*(1+rvanilla05)^0.5 -> 0 | L22: ='PTRM input'!L180*(1+rvanilla06)^0.5 -> 0 | M22: ='PTRM input'!M180*(1+rvanilla07)^0.5 -> 0 | N22: ='PTRM input'!N180*(1+rvanilla08)^0.5 -> 0 | O22: ='PTRM input'!O180*(1+rvanilla09)^0.5 -> 0 | P22: ='PTRM input'!P180*(1+rvanilla10)^0.5 -> 0
C23: =Asset13 -> Transmission Lines (2014-18) | G23: ='PTRM input'!G181*(1+rvanilla01)^0.5 -> 0 | H23: ='PTRM input'!H181*(1+rvanilla02)^0.5 -> 0 | I23: ='PTRM input'!I181*(1+rvanilla03)^0.5 -> 0 | J23: ='PTRM input'!J181*(1+rvanilla04)^0.5 -> 0 | K23: ='PTRM input'!K181*(1+rvanilla05)^0.5 -> 0 | L23: ='PTRM input'!L181*(1+rvanilla06)^0.5 -> 0 | M23: ='PTRM input'!M181*(1+rvanilla07)^0.5 -> 0 | N23: ='PTRM input'!N181*(1+rvanilla08)^0.5 -> 0 | O23: ='PTRM input'!O181*(1+rvanilla09)^0.5 -> 0 | P23: ='PTRM input'!P181*(1+rvanilla10)^0.5 -> 0
C24: =Asset14 -> Underground Cables (2014-18) | G24: ='PTRM input'!G182*(1+rvanilla01)^0.5 -> 0 | H24: ='PTRM input'!H182*(1+rvanilla02)^0.5 -> 0 | I24: ='PTRM input'!I182*(1+rvanilla03)^0.5 -> 0 | J24: ='PTRM input'!J182*(1+rvanilla04)^0.5 -> 0 | K24: ='PTRM input'!K182*(1+rvanilla05)^0.5 -> 0 | L24: ='PTRM input'!L182*(1+rvanilla06)^0.5 -> 0 | M24: ='PTRM input'!M182*(1+rvanilla07)^0.5 -> 0 | N24: ='PTRM input'!N182*(1+rvanilla08)^0.5 -> 0 | O24: ='PTRM input'!O182*(1+rvanilla09)^0.5 -> 0 | P24: ='PTRM input'!P182*(1+rvanilla10)^0.5 -> 0
C25: =Asset15 -> Substations (2014-18) | G25: ='PTRM input'!G183*(1+rvanilla01)^0.5 -> 0 | H25: ='PTRM input'!H183*(1+rvanilla02)^0.5 -> 0 | I25: ='PTRM input'!I183*(1+rvanilla03)^0.5 -> 0 | J25: ='PTRM input'!J183*(1+rvanilla04)^0.5 -> 0 | K25: ='PTRM input'!K183*(1+rvanilla05)^0.5 -> 0 | L25: ='PTRM input'!L183*(1+rvanilla06)^0.5 -> 0 | M25: ='PTRM input'!M183*(1+rvanilla07)^0.5 -> 0 | N25: ='PTRM input'!N183*(1+rvanilla08)^0.5 -> 0 | O25: ='PTRM input'!O183*(1+rvanilla09)^0.5 -> 0 | P25: ='PTRM input'!P183*(1+rvanilla10)^0.5 -> 0
C26: =Asset16 -> Secondary Systems (2014-18) | G26: ='PTRM input'!G184*(1+rvanilla01)^0.5 -> 0 | H26: ='PTRM input'!H184*(1+rvanilla02)^0.5 -> 0 | I26: ='PTRM input'!I184*(1+rvanilla03)^0.5 -> 0 | J26: ='PTRM input'!J184*(1+rvanilla04)^0.5 -> 0 | K26: ='PTRM input'!K184*(1+rvanilla05)^0.5 -> 0 | L26: ='PTRM input'!L184*(1+rvanilla06)^0.5 -> 0 | M26: ='PTRM input'!M184*(1+rvanilla07)^0.5 -> 0 | N26: ='PTRM input'!N184*(1+rvanilla08)^0.5 -> 0 | O26: ='PTRM input'!O184*(1+rvanilla09)^0.5 -> 0 | P26: ='PTRM input'!P184*(1+rvanilla10)^0.5 -> 0
C27: =Asset17 -> Communications (short life) (2014-18) | G27: ='PTRM input'!G185*(1+rvanilla01)^0.5 -> 0 | H27: ='PTRM input'!H185*(1+rvanilla02)^0.5 -> 0 | I27: ='PTRM input'!I185*(1+rvanilla03)^0.5 -> 0 | J27: ='PTRM input'!J185*(1+rvanilla04)^0.5 -> 0 | K27: ='PTRM input'!K185*(1+rvanilla05)^0.5 -> 0 | L27: ='PTRM input'!L185*(1+rvanilla06)^0.5 -> 0 | M27: ='PTRM input'!M185*(1+rvanilla07)^0.5 -> 0 | N27: ='PTRM input'!N185*(1+rvanilla08)^0.5 -> 0 | O27: ='PTRM input'!O185*(1+rvanilla09)^0.5 -> 0 | P27: ='PTRM input'!P185*(1+rvanilla10)^0.5 -> 0
C28: =Asset18 -> Business IT (2014-18) | G28: ='PTRM input'!G186*(1+rvanilla01)^0.5 -> 0 | H28: ='PTRM input'!H186*(1+rvanilla02)^0.5 -> 0 | I28: ='PTRM input'!I186*(1+rvanilla03)^0.5 -> 0 | J28: ='PTRM input'!J186*(1+rvanilla04)^0.5 -> 0 | K28: ='PTRM input'!K186*(1+rvanilla05)^0.5 -> 0 | L28: ='PTRM input'!L186*(1+rvanilla06)^0.5 -> 0 | M28: ='PTRM input'!M186*(1+rvanilla07)^0.5 -> 0 | N28: ='PTRM input'!N186*(1+rvanilla08)^0.5 -> 0 | O28: ='PTRM input'!O186*(1+rvanilla09)^0.5 -> 0 | P28: ='PTRM input'!P186*(1+rvanilla10)^0.5 -> 0
C29: =Asset19 -> Minor Plant, Motor Vehicles & Mobile Plant (2014-18) | G29: ='PTRM input'!G187*(1+rvanilla01)^0.5 -> 0 | H29: ='PTRM input'!H187*(1+rvanilla02)^0.5 -> 0 | I29: ='PTRM input'!I187*(1+rvanilla03)^0.5 -> 0 | J29: ='PTRM input'!J187*(1+rvanilla04)^0.5 -> 0 | K29: ='PTRM input'!K187*(1+rvanilla05)^0.5 -> 0 | L29: ='PTRM input'!L187*(1+rvanilla06)^0.5 -> 0 | M29: ='PTRM input'!M187*(1+rvanilla07)^0.5 -> 0 | N29: ='PTRM input'!N187*(1+rvanilla08)^0.5 -> 0 | O29: ='PTRM input'!O187*(1+rvanilla09)^0.5 -> 0 | P29: ='PTRM input'!P187*(1+rvanilla10)^0.5 -> 0
C30: =Asset20 -> Transmission Line Life Extension (2014-18) | G30: ='PTRM input'!G188*(1+rvanilla01)^0.5 -> 0 | H30: ='PTRM input'!H188*(1+rvanilla02)^0.5 -> 0 | I30: ='PTRM input'!I188*(1+rvanilla03)^0.5 -> 0 | J30: ='PTRM input'!J188*(1+rvanilla04)^0.5 -> 0 | K30: ='PTRM input'!K188*(1+rvanilla05)^0.5 -> 0 | L30: ='PTRM input'!L188*(1+rvanilla06)^0.5 -> 0 | M30: ='PTRM input'!M188*(1+rvanilla07)^0.5 -> 0 | N30: ='PTRM input'!N188*(1+rvanilla08)^0.5 -> 0 | O30: ='PTRM input'!O188*(1+rvanilla09)^0.5 -> 0 | P30: ='PTRM input'!P188*(1+rvanilla10)^0.5 -> 0
C31: =Asset21 -> Residual - other | G31: ='PTRM input'!G189*(1+rvanilla01)^0.5 -> 0 | H31: ='PTRM input'!H189*(1+rvanilla02)^0.5 -> 0 | I31: ='PTRM input'!I189*(1+rvanilla03)^0.5 -> 0 | J31: ='PTRM input'!J189*(1+rvanilla04)^0.5 -> 0 | K31: ='PTRM input'!K189*(1+rvanilla05)^0.5 -> 0 | L31: ='PTRM input'!L189*(1+rvanilla06)^0.5 -> 0 | M31: ='PTRM input'!M189*(1+rvanilla07)^0.5 -> 0 | N31: ='PTRM input'!N189*(1+rvanilla08)^0.5 -> 0 | O31: ='PTRM input'!O189*(1+rvanilla09)^0.5 -> 0 | P31: ='PTRM input'!P189*(1+rvanilla10)^0.5 -> 0
C32: =Asset22 -> Transmission Lines (2018 onwards) | G32: ='PTRM input'!G190*(1+rvanilla01)^0.5 -> 95.26781859 | H32: ='PTRM input'!H190*(1+rvanilla02)^0.5 -> 95.26781859 | I32: ='PTRM input'!I190*(1+rvanilla03)^0.5 -> 95.26781859 | J32: ='PTRM input'!J190*(1+rvanilla04)^0.5 -> 95.26781859 | K32: ='PTRM input'!K190*(1+rvanilla05)^0.5 -> 95.26781859 | L32: ='PTRM input'!L190*(1+rvanilla06)^0.5 -> 0 | M32: ='PTRM input'!M190*(1+rvanilla07)^0.5 -> 0 | N32: ='PTRM input'!N190*(1+rvanilla08)^0.5 -> 0 | O32: ='PTRM input'!O190*(1+rvanilla09)^0.5 -> 0 | P32: ='PTRM input'!P190*(1+rvanilla10)^0.5 -> 0
C33: =Asset23 -> Underground Cables (2018 onwards) | G33: ='PTRM input'!G191*(1+rvanilla01)^0.5 -> 0.8559892631 | H33: ='PTRM input'!H191*(1+rvanilla02)^0.5 -> 0.8559892631 | I33: ='PTRM input'!I191*(1+rvanilla03)^0.5 -> 0.8559892631 | J33: ='PTRM input'!J191*(1+rvanilla04)^0.5 -> 0.8559892631 | K33: ='PTRM input'!K191*(1+rvanilla05)^0.5 -> 0.8559892631 | L33: ='PTRM input'!L191*(1+rvanilla06)^0.5 -> 0 | M33: ='PTRM input'!M191*(1+rvanilla07)^0.5 -> 0 | N33: ='PTRM input'!N191*(1+rvanilla08)^0.5 -> 0 | O33: ='PTRM input'!O191*(1+rvanilla09)^0.5 -> 0 | P33: ='PTRM input'!P191*(1+rvanilla10)^0.5 -> 0
C34: =Asset24 -> Substations (2018 onwards) | G34: ='PTRM input'!G192*(1+rvanilla01)^0.5 -> 102.8274471 | H34: ='PTRM input'!H192*(1+rvanilla02)^0.5 -> 102.8274471 | I34: ='PTRM input'!I192*(1+rvanilla03)^0.5 -> 102.8274471 | J34: ='PTRM input'!J192*(1+rvanilla04)^0.5 -> 102.8274471 | K34: ='PTRM input'!K192*(1+rvanilla05)^0.5 -> 102.8274471 | L34: ='PTRM input'!L192*(1+rvanilla06)^0.5 -> 0 | M34: ='PTRM input'!M192*(1+rvanilla07)^0.5 -> 0 | N34: ='PTRM input'!N192*(1+rvanilla08)^0.5 -> 0 | O34: ='PTRM input'!O192*(1+rvanilla09)^0.5 -> 0 | P34: ='PTRM input'!P192*(1+rvanilla10)^0.5 -> 0
C35: =Asset25 -> Secondary Systems (2018 onwards) | G35: ='PTRM input'!G193*(1+rvanilla01)^0.5 -> 39.84301852 | H35: ='PTRM input'!H193*(1+rvanilla02)^0.5 -> 39.84301852 | I35: ='PTRM input'!I193*(1+rvanilla03)^0.5 -> 39.84301852 | J35: ='PTRM input'!J193*(1+rvanilla04)^0.5 -> 39.84301852 | K35: ='PTRM input'!K193*(1+rvanilla05)^0.5 -> 39.84301852 | L35: ='PTRM input'!L193*(1+rvanilla06)^0.5 -> 0 | M35: ='PTRM input'!M193*(1+rvanilla07)^0.5 -> 0 | N35: ='PTRM input'!N193*(1+rvanilla08)^0.5 -> 0 | O35: ='PTRM input'!O193*(1+rvanilla09)^0.5 -> 0 | P35: ='PTRM input'!P193*(1+rvanilla10)^0.5 -> 0
C36: =Asset26 -> Communications (short life) (2018 onwards) | G36: ='PTRM input'!G194*(1+rvanilla01)^0.5 -> 5.505921998 | H36: ='PTRM input'!H194*(1+rvanilla02)^0.5 -> 5.505921998 | I36: ='PTRM input'!I194*(1+rvanilla03)^0.5 -> 5.505921998 | J36: ='PTRM input'!J194*(1+rvanilla04)^0.5 -> 5.505921998 | K36: ='PTRM input'!K194*(1+rvanilla05)^0.5 -> 5.505921998 | L36: ='PTRM input'!L194*(1+rvanilla06)^0.5 -> 0 | M36: ='PTRM input'!M194*(1+rvanilla07)^0.5 -> 0 | N36: ='PTRM input'!N194*(1+rvanilla08)^0.5 -> 0 | O36: ='PTRM input'!O194*(1+rvanilla09)^0.5 -> 0 | P36: ='PTRM input'!P194*(1+rvanilla10)^0.5 -> 0
C37: =Asset27 -> Business IT (2018 onwards) | G37: ='PTRM input'!G195*(1+rvanilla01)^0.5 -> 28.89353574 | H37: ='PTRM input'!H195*(1+rvanilla02)^0.5 -> 28.89353574 | I37: ='PTRM input'!I195*(1+rvanilla03)^0.5 -> 28.89353574 | J37: ='PTRM input'!J195*(1+rvanilla04)^0.5 -> 28.89353574 | K37: ='PTRM input'!K195*(1+rvanilla05)^0.5 -> 28.89353574 | L37: ='PTRM input'!L195*(1+rvanilla06)^0.5 -> 0 | M37: ='PTRM input'!M195*(1+rvanilla07)^0.5 -> 0 | N37: ='PTRM input'!N195*(1+rvanilla08)^0.5 -> 0 | O37: ='PTRM input'!O195*(1+rvanilla09)^0.5 -> 0 | P37: ='PTRM input'!P195*(1+rvanilla10)^0.5 -> 0
C38: =Asset28 -> Minor Plant, Motor Vehicles & Mobile Plant (2018 onwards) | G38: ='PTRM input'!G196*(1+rvanilla01)^0.5 -> 12.43708317 | H38: ='PTRM input'!H196*(1+rvanilla02)^0.5 -> 12.43708317 | I38: ='PTRM input'!I196*(1+rvanilla03)^0.5 -> 12.43708317 | J38: ='PTRM input'!J196*(1+rvanilla04)^0.5 -> 12.43708317 | K38: ='PTRM input'!K196*(1+rvanilla05)^0.5 -> 12.43708317 | L38: ='PTRM input'!L196*(1+rvanilla06)^0.5 -> 0 | M38: ='PTRM input'!M196*(1+rvanilla07)^0.5 -> 0 | N38: ='PTRM input'!N196*(1+rvanilla08)^0.5 -> 0 | O38: ='PTRM input'!O196*(1+rvanilla09)^0.5 -> 0 | P38: ='PTRM input'!P196*(1+rvanilla10)^0.5 -> 0
C39: =Asset29 -> Transmission Line Life Extension (2018-23) | G39: ='PTRM input'!G197*(1+rvanilla01)^0.5 -> 0 | H39: ='PTRM input'!H197*(1+rvanilla02)^0.5 -> 0 | I39: ='PTRM input'!I197*(1+rvanilla03)^0.5 -> 0 | J39: ='PTRM input'!J197*(1+rvanilla04)^0.5 -> 0 | K39: ='PTRM input'!K197*(1+rvanilla05)^0.5 -> 0 | L39: ='PTRM input'!L197*(1+rvanilla06)^0.5 -> 0 | M39: ='PTRM input'!M197*(1+rvanilla07)^0.5 -> 0 | N39: ='PTRM input'!N197*(1+rvanilla08)^0.5 -> 0 | O39: ='PTRM input'!O197*(1+rvanilla09)^0.5 -> 0 | P39: ='PTRM input'!P197*(1+rvanilla10)^0.5 -> 0
C40: =Asset30 -> Land and Easements | G40: ='PTRM input'!G198*(1+rvanilla01)^0.5 -> 8.721490137 | H40: ='PTRM input'!H198*(1+rvanilla02)^0.5 -> 8.721490137 | I40: ='PTRM input'!I198*(1+rvanilla03)^0.5 -> 8.721490137 | J40: ='PTRM input'!J198*(1+rvanilla04)^0.5 -> 8.721490137 | K40: ='PTRM input'!K198*(1+rvanilla05)^0.5 -> 8.721490137 | L40: ='PTRM input'!L198*(1+rvanilla06)^0.5 -> 0 | M40: ='PTRM input'!M198*(1+rvanilla07)^0.5 -> 0 | N40: ='PTRM input'!N198*(1+rvanilla08)^0.5 -> 0 | O40: ='PTRM input'!O198*(1+rvanilla09)^0.5 -> 0 | P40: ='PTRM input'!P198*(1+rvanilla10)^0.5 -> 0
C41: =Asset31 -> Synchronous Condensers | G41: ='PTRM input'!G199*(1+rvanilla01)^0.5 -> 0 | H41: ='PTRM input'!H199*(1+rvanilla02)^0.5 -> 0 | I41: ='PTRM input'!I199*(1+rvanilla03)^0.5 -> 0 | J41: ='PTRM input'!J199*(1+rvanilla04)^0.5 -> 0 | K41: ='PTRM input'!K199*(1+rvanilla05)^0.5 -> 0 | L41: ='PTRM input'!L199*(1+rvanilla06)^0.5 -> 0 | M41: ='PTRM input'!M199*(1+rvanilla07)^0.5 -> 0 | N41: ='PTRM input'!N199*(1+rvanilla08)^0.5 -> 0 | O41: ='PTRM input'!O199*(1+rvanilla09)^0.5 -> 0 | P41: ='PTRM input'!P199*(1+rvanilla10)^0.5 -> 0
C42: =Asset32 -> Leasehold Land and Property | G42: ='PTRM input'!G200*(1+rvanilla01)^0.5 -> 0 | H42: ='PTRM input'!H200*(1+rvanilla02)^0.5 -> 0 | I42: ='PTRM input'!I200*(1+rvanilla03)^0.5 -> 0 | J42: ='PTRM input'!J200*(1+rvanilla04)^0.5 -> 0 | K42: ='PTRM input'!K200*(1+rvanilla05)^0.5 -> 0 | L42: ='PTRM input'!L200*(1+rvanilla06)^0.5 -> 0 | M42: ='PTRM input'!M200*(1+rvanilla07)^0.5 -> 0 | N42: ='PTRM input'!N200*(1+rvanilla08)^0.5 -> 0 | O42: ='PTRM input'!O200*(1+rvanilla09)^0.5 -> 0 | P42: ='PTRM input'!P200*(1+rvanilla10)^0.5 -> 0
C43: =Asset33 -> Biodiversity offsets (Stewardship sites) - VNI West | G43: ='PTRM input'!G201*(1+rvanilla01)^0.5 -> 0 | H43: ='PTRM input'!H201*(1+rvanilla02)^0.5 -> 0 | I43: ='PTRM input'!I201*(1+rvanilla03)^0.5 -> 0 | J43: ='PTRM input'!J201*(1+rvanilla04)^0.5 -> 0 | K43: ='PTRM input'!K201*(1+rvanilla05)^0.5 -> 0 | L43: ='PTRM input'!L201*(1+rvanilla06)^0.5 -> 0 | M43: ='PTRM input'!M201*(1+rvanilla07)^0.5 -> 0 | N43: ='PTRM input'!N201*(1+rvanilla08)^0.5 -> 0 | O43: ='PTRM input'!O201*(1+rvanilla09)^0.5 -> 0 | P43: ='PTRM input'!P201*(1+rvanilla10)^0.5 -> 0
C44: =Asset34 -> Biodiversity offsets (Direct payments and other costs) - VNI West | G44: ='PTRM input'!G202*(1+rvanilla01)^0.5 -> 0 | H44: ='PTRM input'!H202*(1+rvanilla02)^0.5 -> 0 | I44: ='PTRM input'!I202*(1+rvanilla03)^0.5 -> 0 | J44: ='PTRM input'!J202*(1+rvanilla04)^0.5 -> 0 | K44: ='PTRM input'!K202*(1+rvanilla05)^0.5 -> 0 | L44: ='PTRM input'!L202*(1+rvanilla06)^0.5 -> 0 | M44: ='PTRM input'!M202*(1+rvanilla07)^0.5 -> 0 | N44: ='PTRM input'!N202*(1+rvanilla08)^0.5 -> 0 | O44: ='PTRM input'!O202*(1+rvanilla09)^0.5 -> 0 | P44: ='PTRM input'!P202*(1+rvanilla10)^0.5 -> 0
C45: =Asset35 -> Biodiversity offsets (Stewardship sites) - Humelink S2 | G45: ='PTRM input'!G203*(1+rvanilla01)^0.5 -> 0 | H45: ='PTRM input'!H203*(1+rvanilla02)^0.5 -> 0 | I45: ='PTRM input'!I203*(1+rvanilla03)^0.5 -> 0 | J45: ='PTRM input'!J203*(1+rvanilla04)^0.5 -> 0 | K45: ='PTRM input'!K203*(1+rvanilla05)^0.5 -> 0 | L45: ='PTRM input'!L203*(1+rvanilla06)^0.5 -> 0 | M45: ='PTRM input'!M203*(1+rvanilla07)^0.5 -> 0 | N45: ='PTRM input'!N203*(1+rvanilla08)^0.5 -> 0 | O45: ='PTRM input'!O203*(1+rvanilla09)^0.5 -> 0 | P45: ='PTRM input'!P203*(1+rvanilla10)^0.5 -> 0
C46: =Asset36 -> Biodiversity offsets (Direct payments and other costs) - Humelink S2 | G46: ='PTRM input'!G204*(1+rvanilla01)^0.5 -> 0 | H46: ='PTRM input'!H204*(1+rvanilla02)^0.5 -> 0 | I46: ='PTRM input'!I204*(1+rvanilla03)^0.5 -> 0 | J46: ='PTRM input'!J204*(1+rvanilla04)^0.5 -> 0 | K46: ='PTRM input'!K204*(1+rvanilla05)^0.5 -> 0 | L46: ='PTRM input'!L204*(1+rvanilla06)^0.5 -> 0 | M46: ='PTRM input'!M204*(1+rvanilla07)^0.5 -> 0 | N46: ='PTRM input'!N204*(1+rvanilla08)^0.5 -> 0 | O46: ='PTRM input'!O204*(1+rvanilla09)^0.5 -> 0 | P46: ='PTRM input'!P204*(1+rvanilla10)^0.5 -> 0
C47: =Asset37 -> 0 | G47: ='PTRM input'!G205*(1+rvanilla01)^0.5 -> 0 | H47: ='PTRM input'!H205*(1+rvanilla02)^0.5 -> 0 | I47: ='PTRM input'!I205*(1+rvanilla03)^0.5 -> 0 | J47: ='PTRM input'!J205*(1+rvanilla04)^0.5 -> 0 | K47: ='PTRM input'!K205*(1+rvanilla05)^0.5 -> 0 | L47: ='PTRM input'!L205*(1+rvanilla06)^0.5 -> 0 | M47: ='PTRM input'!M205*(1+rvanilla07)^0.5 -> 0 | N47: ='PTRM input'!N205*(1+rvanilla08)^0.5 -> 0 | O47: ='PTRM input'!O205*(1+rvanilla09)^0.5 -> 0 | P47: ='PTRM input'!P205*(1+rvanilla10)^0.5 -> 0
C48: =Asset38 -> 0 | G48: ='PTRM input'!G206*(1+rvanilla01)^0.5 -> 0 | H48: ='PTRM input'!H206*(1+rvanilla02)^0.5 -> 0 | I48: ='PTRM input'!I206*(1+rvanilla03)^0.5 -> 0 | J48: ='PTRM input'!J206*(1+rvanilla04)^0.5 -> 0 | K48: ='PTRM input'!K206*(1+rvanilla05)^0.5 -> 0 | L48: ='PTRM input'!L206*(1+rvanilla06)^0.5 -> 0 | M48: ='PTRM input'!M206*(1+rvanilla07)^0.5 -> 0 | N48: ='PTRM input'!N206*(1+rvanilla08)^0.5 -> 0 | O48: ='PTRM input'!O206*(1+rvanilla09)^0.5 -> 0 | P48: ='PTRM input'!P206*(1+rvanilla10)^0.5 -> 0
C49: =Asset39 -> 0 | G49: ='PTRM input'!G207*(1+rvanilla01)^0.5 -> 0 | H49: ='PTRM input'!H207*(1+rvanilla02)^0.5 -> 0 | I49: ='PTRM input'!I207*(1+rvanilla03)^0.5 -> 0 | J49: ='PTRM input'!J207*(1+rvanilla04)^0.5 -> 0 | K49: ='PTRM input'!K207*(1+rvanilla05)^0.5 -> 0 | L49: ='PTRM input'!L207*(1+rvanilla06)^0.5 -> 0 | M49: ='PTRM input'!M207*(1+rvanilla07)^0.5 -> 0 | N49: ='PTRM input'!N207*(1+rvanilla08)^0.5 -> 0 | O49: ='PTRM input'!O207*(1+rvanilla09)^0.5 -> 0 | P49: ='PTRM input'!P207*(1+rvanilla10)^0.5 -> 0
C50: =Asset40 -> 0 | G50: ='PTRM input'!G208*(1+rvanilla01)^0.5 -> 0 | H50: ='PTRM input'!H208*(1+rvanilla02)^0.5 -> 0 | I50: ='PTRM input'!I208*(1+rvanilla03)^0.5 -> 0 | J50: ='PTRM input'!J208*(1+rvanilla04)^0.5 -> 0 | K50: ='PTRM input'!K208*(1+rvanilla05)^0.5 -> 0 | L50: ='PTRM input'!L208*(1+rvanilla06)^0.5 -> 0 | M50: ='PTRM input'!M208*(1+rvanilla07)^0.5 -> 0 | N50: ='PTRM input'!N208*(1+rvanilla08)^0.5 -> 0 | O50: ='PTRM input'!O208*(1+rvanilla09)^0.5 -> 0 | P50: ='PTRM input'!P208*(1+rvanilla10)^0.5 -> 0
C51: =Asset41 -> 0 | G51: ='PTRM input'!G209*(1+rvanilla01)^0.5 -> 0 | H51: ='PTRM input'!H209*(1+rvanilla02)^0.5 -> 0 | I51: ='PTRM input'!I209*(1+rvanilla03)^0.5 -> 0 | J51: ='PTRM input'!J209*(1+rvanilla04)^0.5 -> 0 | K51: ='PTRM input'!K209*(1+rvanilla05)^0.5 -> 0 | L51: ='PTRM input'!L209*(1+rvanilla06)^0.5 -> 0 | M51: ='PTRM input'!M209*(1+rvanilla07)^0.5 -> 0 | N51: ='PTRM input'!N209*(1+rvanilla08)^0.5 -> 0 | O51: ='PTRM input'!O209*(1+rvanilla09)^0.5 -> 0 | P51: ='PTRM input'!P209*(1+rvanilla10)^0.5 -> 0
C52: =Asset42 -> Financeability class #1 (Transmission lines 1y) | G52: ='PTRM input'!G210*(1+rvanilla01)^0.5 -> 0 | H52: ='PTRM input'!H210*(1+rvanilla02)^0.5 -> 0 | I52: ='PTRM input'!I210*(1+rvanilla03)^0.5 -> 0 | J52: ='PTRM input'!J210*(1+rvanilla04)^0.5 -> 0 | K52: ='PTRM input'!K210*(1+rvanilla05)^0.5 -> 0 | L52: ='PTRM input'!L210*(1+rvanilla06)^0.5 -> 0 | M52: ='PTRM input'!M210*(1+rvanilla07)^0.5 -> 0 | N52: ='PTRM input'!N210*(1+rvanilla08)^0.5 -> 0 | O52: ='PTRM input'!O210*(1+rvanilla09)^0.5 -> 0 | P52: ='PTRM input'!P210*(1+rvanilla10)^0.5 -> 0
C53: =Asset43 -> Financeability class #2 (Substations 5y) | G53: ='PTRM input'!G211*(1+rvanilla01)^0.5 -> 0 | H53: ='PTRM input'!H211*(1+rvanilla02)^0.5 -> 0 | I53: ='PTRM input'!I211*(1+rvanilla03)^0.5 -> 0 | J53: ='PTRM input'!J211*(1+rvanilla04)^0.5 -> 0 | K53: ='PTRM input'!K211*(1+rvanilla05)^0.5 -> 0 | L53: ='PTRM input'!L211*(1+rvanilla06)^0.5 -> 0 | M53: ='PTRM input'!M211*(1+rvanilla07)^0.5 -> 0 | N53: ='PTRM input'!N211*(1+rvanilla08)^0.5 -> 0 | O53: ='PTRM input'!O211*(1+rvanilla09)^0.5 -> 0 | P53: ='PTRM input'!P211*(1+rvanilla10)^0.5 -> 0
C54: =Asset44 -> Financeability class #3 | G54: ='PTRM input'!G212*(1+rvanilla01)^0.5 -> 0 | H54: ='PTRM input'!H212*(1+rvanilla02)^0.5 -> 0 | I54: ='PTRM input'!I212*(1+rvanilla03)^0.5 -> 0 | J54: ='PTRM input'!J212*(1+rvanilla04)^0.5 -> 0 | K54: ='PTRM input'!K212*(1+rvanilla05)^0.5 -> 0 | L54: ='PTRM input'!L212*(1+rvanilla06)^0.5 -> 0 | M54: ='PTRM input'!M212*(1+rvanilla07)^0.5 -> 0 | N54: ='PTRM input'!N212*(1+rvanilla08)^0.5 -> 0 | O54: ='PTRM input'!O212*(1+rvanilla09)^0.5 -> 0 | P54: ='PTRM input'!P212*(1+rvanilla10)^0.5 -> 0
C55: =Asset45 -> Financeability class #4 | G55: ='PTRM input'!G213*(1+rvanilla01)^0.5 -> 0 | H55: ='PTRM input'!H213*(1+rvanilla02)^0.5 -> 0 | I55: ='PTRM input'!I213*(1+rvanilla03)^0.5 -> 0 | J55: ='PTRM input'!J213*(1+rvanilla04)^0.5 -> 0 | K55: ='PTRM input'!K213*(1+rvanilla05)^0.5 -> 0 | L55: ='PTRM input'!L213*(1+rvanilla06)^0.5 -> 0 | M55: ='PTRM input'!M213*(1+rvanilla07)^0.5 -> 0 | N55: ='PTRM input'!N213*(1+rvanilla08)^0.5 -> 0 | O55: ='PTRM input'!O213*(1+rvanilla09)^0.5 -> 0 | P55: ='PTRM input'!P213*(1+rvanilla10)^0.5 -> 0
C56: =Asset46 -> Financeability class #5 | G56: ='PTRM input'!G214*(1+rvanilla01)^0.5 -> 0 | H56: ='PTRM input'!H214*(1+rvanilla02)^0.5 -> 0 | I56: ='PTRM input'!I214*(1+rvanilla03)^0.5 -> 0 | J56: ='PTRM input'!J214*(1+rvanilla04)^0.5 -> 0 | K56: ='PTRM input'!K214*(1+rvanilla05)^0.5 -> 0 | L56: ='PTRM input'!L214*(1+rvanilla06)^0.5 -> 0 | M56: ='PTRM input'!M214*(1+rvanilla07)^0.5 -> 0 | N56: ='PTRM input'!N214*(1+rvanilla08)^0.5 -> 0 | O56: ='PTRM input'!O214*(1+rvanilla09)^0.5 -> 0 | P56: ='PTRM input'!P214*(1+rvanilla10)^0.5 -> 0
C57: =Asset47 -> Spare straight-line tax asset class | G57: ='PTRM input'!G215*(1+rvanilla01)^0.5 -> 0 | H57: ='PTRM input'!H215*(1+rvanilla02)^0.5 -> 0 | I57: ='PTRM input'!I215*(1+rvanilla03)^0.5 -> 0 | J57: ='PTRM input'!J215*(1+rvanilla04)^0.5 -> 0 | K57: ='PTRM input'!K215*(1+rvanilla05)^0.5 -> 0 | L57: ='PTRM input'!L215*(1+rvanilla06)^0.5 -> 0 | M57: ='PTRM input'!M215*(1+rvanilla07)^0.5 -> 0 | N57: ='PTRM input'!N215*(1+rvanilla08)^0.5 -> 0 | O57: ='PTRM input'!O215*(1+rvanilla09)^0.5 -> 0 | P57: ='PTRM input'!P215*(1+rvanilla10)^0.5 -> 0
C58: =Asset48 -> Buildings - capital works | G58: ='PTRM input'!G216*(1+rvanilla01)^0.5 -> 0 | H58: ='PTRM input'!H216*(1+rvanilla02)^0.5 -> 0 | I58: ='PTRM input'!I216*(1+rvanilla03)^0.5 -> 0 | J58: ='PTRM input'!J216*(1+rvanilla04)^0.5 -> 0 | K58: ='PTRM input'!K216*(1+rvanilla05)^0.5 -> 0 | L58: ='PTRM input'!L216*(1+rvanilla06)^0.5 -> 0 | M58: ='PTRM input'!M216*(1+rvanilla07)^0.5 -> 0 | N58: ='PTRM input'!N216*(1+rvanilla08)^0.5 -> 0 | O58: ='PTRM input'!O216*(1+rvanilla09)^0.5 -> 0 | P58: ='PTRM input'!P216*(1+rvanilla10)^0.5 -> 0
C59: =Asset49 -> In-house software | G59: ='PTRM input'!G217*(1+rvanilla01)^0.5 -> 0 | H59: ='PTRM input'!H217*(1+rvanilla02)^0.5 -> 0 | I59: ='PTRM input'!I217*(1+rvanilla03)^0.5 -> 0 | J59: ='PTRM input'!J217*(1+rvanilla04)^0.5 -> 0 | K59: ='PTRM input'!K217*(1+rvanilla05)^0.5 -> 0 | L59: ='PTRM input'!L217*(1+rvanilla06)^0.5 -> 0 | M59: ='PTRM input'!M217*(1+rvanilla07)^0.5 -> 0 | N59: ='PTRM input'!N217*(1+rvanilla08)^0.5 -> 0 | O59: ='PTRM input'!O217*(1+rvanilla09)^0.5 -> 0 | P59: ='PTRM input'!P217*(1+rvanilla10)^0.5 -> 0
C60: =Asset50 -> Equity raising costs | G60: ='PTRM input'!G218*(1+rvanilla01)^0.5 -> 0 | H60: ='PTRM input'!H218*(1+rvanilla02)^0.5 -> 0 | I60: ='PTRM input'!I218*(1+rvanilla03)^0.5 -> 0 | J60: ='PTRM input'!J218*(1+rvanilla04)^0.5 -> 0 | K60: ='PTRM input'!K218*(1+rvanilla05)^0.5 -> 0 | L60: ='PTRM input'!L218*(1+rvanilla06)^0.5 -> 0 | M60: ='PTRM input'!M218*(1+rvanilla07)^0.5 -> 0 | N60: ='PTRM input'!N218*(1+rvanilla08)^0.5 -> 0 | O60: ='PTRM input'!O218*(1+rvanilla09)^0.5 -> 0 | P60: ='PTRM input'!P218*(1+rvanilla10)^0.5 -> 0
B61: Nominal Net Capex | G61: =SUM(G62:G111) -> 301.7111122 | H61: =SUM(H62:H111) -> 309.25389 | I61: 316.9852372 | J61: 324.9098682 | K61: 333.0326149 | L61: =SUM(L62:L111) -> 0 | M61: 0 | N61: 0 | O61: 0 | P61: 0
C62: =Asset1 -> Transmission Lines (pre 2004-05) | G62: =G11*G$7 -> 0 | H62: =H11*H$7 -> 0 | I62: 0 | J62: 0 | K62: 0 | L62: =L11*L$7 -> 0 | M62: 0 | N62: 0 | O62: 0 | P62: 0
C63: =Asset2 -> Underground Cables (pre 2004-05) | G63: =G12*G$7 -> 0 | H63: 0 | I63: 0 | J63: 0 | K63: 0 | L63: =L12*L$7 -> 0 | M63: 0 | N63: 0 | O63: 0 | P63: 0
C64: =Asset3 -> Substations including Buildings (pre 2004-05) | G64: =G13*G$7 -> 0 | H64: 0 | I64: 0 | J64: 0 | K64: =K13*K$7 -> 0 | L64: =L13*L$7 -> 0 | M64: 0 | N64: 0 | O64: 0 | P64: 0
C65: =Asset4 -> Transmission Lines (2004-09) | G65: 0 | H65: 0 | I65: 0 | J65: 0 | K65: 0 | L65: 0 | M65: 0 | N65: 0 | O65: 0 | P65: 0
C66: =Asset5 -> Underground Cables (2004-09) | G66: 0 | H66: 0 | I66: 0 | J66: 0 | K66: 0 | L66: 0 | M66: 0 | N66: 0 | O66: 0 | P66: 0
C67: =Asset6 -> Substations including Buildings (2004-09) | G67: 0 | H67: =H16*H$7 -> 0 | I67: 0 | J67: 0 | K67: 0 | L67: 0 | M67: 0 | N67: 0 | O67: 0 | P67: 0
C68: =Asset7 -> SCADA and Communications (2004-09) | G68: 0 | H68: 0 | I68: 0 | J68: 0 | K68: 0 | L68: 0 | M68: 0 | N68: 0 | O68: 0 | P68: 0
C69: =Asset8 -> Transmission Lines & Cables (09-14) | G69: 0 | H69: 0 | I69: 0 | J69: 0 | K69: 0 | L69: 0 | M69: 0 | N69: 0 | O69: 0 | P69: 0
C70: =Asset9 -> Substations (09-14) | G70: 0 | H70: 0 | I70: 0 | J70: 0 | K70: 0 | L70: 0 | M70: 0 | N70: 0 | O70: 0 | P70: 0
C71: =Asset10 -> Secondary Systems (09-14) | G71: 0 | H71: 0 | I71: 0 | J71: 0 | K71: 0 | L71: 0 | M71: 0 | N71: 0 | O71: 0 | P71: 0
C72: =Asset11 -> Communications (09-14) | G72: 0 | H72: 0 | I72: 0 | J72: 0 | K72: 0 | L72: 0 | M72: 0 | N72: 0 | O72: 0 | P72: 0
C73: =Asset12 -> Minor Plant, Motor Vehicles & Mobile Plant (2009-14) | G73: 0 | H73: 0 | I73: 0 | J73: 0 | K73: 0 | L73: 0 | M73: 0 | N73: 0 | O73: 0 | P73: 0
C74: =Asset13 -> Transmission Lines (2014-18) | G74: 0 | H74: 0 | I74: 0 | J74: 0 | K74: 0 | L74: 0 | M74: 0 | N74: 0 | O74: 0 | P74: 0
C75: =Asset14 -> Underground Cables (2014-18) | G75: 0 | H75: 0 | I75: 0 | J75: 0 | K75: 0 | L75: 0 | M75: 0 | N75: 0 | O75: 0 | P75: 0
C76: =Asset15 -> Substations (2014-18) | G76: 0 | H76: 0 | I76: 0 | J76: 0 | K76: 0 | L76: 0 | M76: 0 | N76: 0 | O76: 0 | P76: 0
C77: =Asset16 -> Secondary Systems (2014-18) | G77: 0 | H77: 0 | I77: 0 | J77: 0 | K77: 0 | L77: 0 | M77: 0 | N77: 0 | O77: 0 | P77: 0
C78: =Asset17 -> Communications (short life) (2014-18) | G78: 0 | H78: 0 | I78: 0 | J78: 0 | K78: 0 | L78: 0 | M78: 0 | N78: 0 | O78: 0 | P78: 0
C79: =Asset18 -> Business IT (2014-18) | G79: 0 | H79: 0 | I79: 0 | J79: 0 | K79: 0 | L79: 0 | M79: 0 | N79: 0 | O79: 0 | P79: 0
C80: =Asset19 -> Minor Plant, Motor Vehicles & Mobile Plant (2014-18) | G80: =G29*G$7 -> 0 | H80: 0 | I80: 0 | J80: 0 | K80: 0 | L80: 0 | M80: 0 | N80: 0 | O80: 0 | P80: 0
C81: =Asset20 -> Transmission Line Life Extension (2014-18) | G81: 0 | H81: 0 | I81: 0 | J81: 0 | K81: 0 | L81: 0 | M81: 0 | N81: 0 | O81: 0 | P81: 0
C82: =Asset21 -> Residual - other | G82: 0 | H82: 0 | I82: 0 | J82: 0 | K82: 0 | L82: =L31*L$7 -> 0 | M82: 0 | N82: 0 | O82: 0 | P82: 0
C83: =Asset22 -> Transmission Lines (2018 onwards) | G83: 97.64951406 | H83: 100.0907519 | I83: 102.5930207 | J83: 105.1578462 | K83: 107.7867924 | L83: =L32*L$7 -> 0 | M83: 0 | N83: 0 | O83: 0 | P83: 0
C84: =Asset23 -> Underground Cables (2018 onwards) | G84: 0.8773889946 | H84: 0.8993237195 | I84: 0.9218068125 | J84: 0.9448519828 | K84: 0.9684732824 | L84: =L33*L$7 -> 0 | M84: 0 | N84: 0 | O84: 0 | P84: 0
C85: =Asset24 -> Substations (2018 onwards) | G85: 105.3981333 | H85: 108.0330867 | I85: 110.7339138 | J85: 113.5022617 | K85: 116.3398182 | L85: =L34*L$7 -> 0 | M85: 0 | N85: 0 | O85: 0 | P85: 0
C86: =Asset25 -> Secondary Systems (2018 onwards) | G86: 40.83909398 | H86: 41.86007133 | I86: 42.90657311 | J86: 43.97923744 | K86: 45.07871838 | L86: =L35*L$7 -> 0 | M86: 0 | N86: 0 | O86: 0 | P86: 0
C87: =Asset26 -> Communications (short life) (2018 onwards) | G87: 5.643570048 | H87: 5.784659299 | I87: 5.929275782 | J87: 6.077507676 | K87: 6.229445368 | L87: =L36*L$7 -> 0 | M87: 0 | N87: 0 | O87: 0 | P87: 0
C88: =Asset27 -> Business IT (2018 onwards) | G88: 29.61587414 | H88: 30.35627099 | I88: 31.11517777 | J88: 31.89305721 | K88: 32.69038364 | L88: =L37*L$7 -> 0 | M88: 0 | N88: 0 | O88: 0 | P88: 0
C89: =Asset28 -> Minor Plant, Motor Vehicles & Mobile Plant (2018 onwards) | G89: 12.74801025 | H89: 13.06671051 | I89: 13.39337827 | J89: 13.72821273 | K89: 14.07141805 | L89: =L38*L$7 -> 0 | M89: 0 | N89: 0 | O89: 0 | P89: 0
C90: =Asset29 -> Transmission Line Life Extension (2018-23) | G90: 0 | H90: 0 | I90: 0 | J90: 0 | K90: 0 | L90: =L39*L$7 -> 0 | M90: 0 | N90: 0 | O90: 0 | P90: 0
C91: =Asset30 -> Land and Easements | G91: 8.93952739 | H91: 9.163015575 | I91: 9.392090964 | J91: 9.626893239 | K91: 9.86756557 | L91: =L40*L$7 -> 0 | M91: 0 | N91: 0 | O91: 0 | P91: 0
C92: =Asset31 -> Synchronous Condensers | G92: 0 | H92: 0 | I92: 0 | J92: 0 | K92: 0 | L92: =L41*L$7 -> 0 | M92: 0 | N92: 0 | O92: 0 | P92: 0
C93: =Asset32 -> Leasehold Land and Property | G93: 0 | H93: 0 | I93: 0 | J93: 0 | K93: 0 | L93: =L42*L$7 -> 0 | M93: 0 | N93: 0 | O93: 0 | P93: 0
C94: =Asset33 -> Biodiversity offsets (Stewardship sites) - VNI West | G94: 0 | H94: 0 | I94: 0 | J94: 0 | K94: 0 | L94: =L43*L$7 -> 0 | M94: 0 | N94: 0 | O94: 0 | P94: 0
C95: =Asset34 -> Biodiversity offsets (Direct payments and other costs) - VNI West | G95: 0 | H95: 0 | I95: 0 | J95: 0 | K95: 0 | L95: =L44*L$7 -> 0 | M95: 0 | N95: 0 | O95: 0 | P95: 0
C96: =Asset35 -> Biodiversity offsets (Stewardship sites) - Humelink S2 | G96: =G45*G$7 -> 0 | H96: 0 | I96: 0 | J96: 0 | K96: 0 | L96: =L45*L$7 -> 0 | M96: 0 | N96: 0 | O96: 0 | P96: 0
C97: =Asset36 -> Biodiversity offsets (Direct payments and other costs) - Humelink S2 | G97: 0 | H97: 0 | I97: 0 | J97: 0 | K97: 0 | L97: =L46*L$7 -> 0 | M97: 0 | N97: 0 | O97: 0 | P97: 0
C98: =Asset37 -> 0 | G98: 0 | H98: 0 | I98: 0 | J98: 0 | K98: 0 | L98: =L47*L$7 -> 0 | M98: 0 | N98: 0 | O98: 0 | P98: 0
C99: =Asset38 -> 0 | G99: 0 | H99: 0 | I99: 0 | J99: 0 | K99: 0 | L99: =L48*L$7 -> 0 | M99: 0 | N99: 0 | O99: 0 | P99: 0
C100: =Asset39 -> 0 | G100: 0 | H100: 0 | I100: 0 | J100: 0 | K100: 0 | L100: =L49*L$7 -> 0 | M100: 0 | N100: 0 | O100: 0 | P100: 0
C101: =Asset40 -> 0 | G101: 0 | H101: 0 | I101: 0 | J101: 0 | K101: 0 | L101: =L50*L$7 -> 0 | M101: 0 | N101: 0 | O101: 0 | P101: 0
C102: =Asset41 -> 0 | G102: 0 | H102: 0 | I102: 0 | J102: 0 | K102: 0 | L102: =L51*L$7 -> 0 | M102: 0 | N102: 0 | O102: 0 | P102: 0
C103: =Asset42 -> Financeability class #1 (Transmission lines 1y) | G103: 0 | H103: 0 | I103: 0 | J103: 0 | K103: 0 | L103: =L52*L$7 -> 0 | M103: =M52*M$7 -> 0 | N103: 0 | O103: 0 | P103: 0
C104: =Asset43 -> Financeability class #2 (Substations 5y) | G104: 0 | H104: 0 | I104: 0 | J104: 0 | K104: 0 | L104: =L53*L$7 -> 0 | M104: 0 | N104: 0 | O104: 0 | P104: 0
C105: =Asset44 -> Financeability class #3 | G105: 0 | H105: 0 | I105: 0 | J105: 0 | K105: 0 | L105: =L54*L$7 -> 0 | M105: 0 | N105: 0 | O105: 0 | P105: 0
C106: =Asset45 -> Financeability class #4 | G106: 0 | H106: 0 | I106: 0 | J106: 0 | K106: 0 | L106: =L55*L$7 -> 0 | M106: 0 | N106: 0 | O106: 0 | P106: 0
C107: =Asset46 -> Financeability class #5 | G107: 0 | H107: 0 | I107: 0 | J107: 0 | K107: 0 | L107: =L56*L$7 -> 0 | M107: 0 | N107: 0 | O107: 0 | P107: 0
C108: =Asset47 -> Spare straight-line tax asset class | G108: 0 | H108: 0 | I108: 0 | J108: 0 | K108: 0 | L108: =L57*L$7 -> 0 | M108: 0 | N108: 0 | O108: 0 | P108: 0
C109: =Asset48 -> Buildings - capital works | G109: 0 | H109: 0 | I109: 0 | J109: 0 | K109: 0 | L109: =L58*L$7 -> 0 | M109: 0 | N109: 0 | O109: 0 | P109: 0
C110: =Asset49 -> In-house software | G110: 0 | H110: 0 | I110: 0 | J110: 0 | K110: 0 | L110: =L59*L$7 -> 0 | M110: 0 | N110: 0 | O110: 0 | P110: 0
C111: =Asset50 -> Equity raising costs | G111: 0 | H111: 0 | I111: 0 | J111: 0 | K111: 0 | L111: =L60*L$7 -> 0 | M111: 0 | N111: 0 | O111: 0 | P111: 0
B113: ="Asset Values ($m Real "&F4&")" -> Asset Values ($m Real 2027-28)
B115: Real Straight-line Depreciation | G115: =G128+G141+G154+G167+G180+G193+G206+G219+G232+G245+G258+G271+G284+G297+G310+G323+G336+G349+G362+G375+G388+G401+G414+G427+G440+G453+G466+G479+G492+G505+G518+G531+G544+G557+G570+G583+G596+G609+G622+G635+G648+G661+G674+G687+G700+G713+G726+G739+G752+G765 -> 585.2260351 | H115: =H128+H141+H154+H167+H180+H193+H206+H219+H232+H245+H258+H271+H284+H297+H310+H323+H336+H349+H362+H375+H388+H401+H414+H427+H440+H453+H466+H479+H492+H505+H518+H531+H544+H557+H570+H583+H596+H609+H622+H635+H648+H661+H674+H687+H700+H713+H726+H739+H752+H765 -> 575.7862732 | I115: 553.6493891 | J115: 528.858299 | K115: 488.7609077 | L115: =L128+L141+L154+L167+L180+L193+L206+L219+L232+L245+L258+L271+L284+L297+L310+L323+L336+L349+L362+L375+L388+L401+L414+L427+L440+L453+L466+L479+L492+L505+L518+L531+L544+L557+L570+L583+L596+L609+L622+L635+L648+L661+L674+L687+L700+L713+L726+L739+L752+L765 -> 486.4034154 | M115: 475.9458413 | N115: 464.2834729 | O115: 454.18583 | P115: 443.7000709 | Q115: 439.5017447 | R115: 434.9756649 | S115: 430.0660735 | T115: 425.1285545 | U115: 421.117045 | V115: 418.4024553 | W115: 409.6150132 | X115: 404.2934375 | Y115: 401.6372362 | Z115: 386.8189334 | AA115: 352.3327249 | AB115: 352.3327249 | AC115: 352.128159 | AD115: 351.9668474 | AE115: 324.0911884 | AF115: 317.6274643 | AG115: 317.3183534 | AH115: 315.8842486 | AI115: 303.4412156 | AJ115: 296.419736 | AK115: 286.8903554 | AL115: 282.5384984 | AM115: 279.8674744 | AN115: 276.8139651 | AO115: 268.7186309 | AP115: 251.257103 | AQ115: 245.1710136 | AR115: 235.6219598 | AS115: 218.9859827 | AT115: 186.5797542 | AU115: 181.2837682 | AV115: 175.7818218 | AW115: 172.5027639 | AX115: 169.4851544 | AY115: 161.6572138 | AZ115: 157.0974634 | BA115: 147.3086936 | BB115: 125.7691747 | BC115: 80.13631398 | BD115: 18.94928918 | BE115: 9.526781859 | BF115: 7.621425487 | BG115: 5.716069116 | BH115: 3.810712744 | BI115: 1.905356372
B116: =C128 -> Transmission Lines (pre 2004-05) | D116: Initial Asset Base | G116: =IF(('PTRM input'!$E$515='PTRM input'!$G$514),IF(G$3>A1remlife,A1acvalue-SUM(F116:$F116),IF(A1remlife="N/A","n/a",A1acvalue/A1remlife)),'PTRM input'!G$520) -> 89.4415886 | H116: =IF(('PTRM input'!$E$515='PTRM input'!$G$514),IF(H$3>A1remlife,A1acvalue-SUM($F116:G116),IF(A1remlife="N/A","n/a",A1acvalue/A1remlife)),'PTRM input'!H$520) -> 89.4415886 | I116: =IF(('PTRM input'!$E$515='PTRM input'!$G$514),IF(I$3>A1remlife,A1acvalue-SUM($F116:H116),IF(A1remlife="N/A","n/a",A1acvalue/A1remlife)),'PTRM input'!I$520) -> 89.4415886 | J116: =IF(('PTRM input'!$E$515='PTRM input'!$G$514),IF(J$3>A1remlife,A1acvalue-SUM($F116:I116),IF(A1remlife="N/A","n/a",A1acvalue/A1remlife)),'PTRM input'!J$520) -> 89.4415886 | K116: =IF(('PTRM input'!$E$515='PTRM input'!$G$514),IF(K$3>A1remlife,A1acvalue-SUM($F116:J116),IF(A1remlife="N/A","n/a",A1acvalue/A1remlife)),'PTRM input'!K$520) -> 11.89573128 | L116: =IF(('PTRM input'!$E$515='PTRM input'!$G$514),IF(L$3>A1remlife,A1acvalue-SUM($F116:K116),IF(A1remlife="N/A","n/a",A1acvalue/A1remlife)),'PTRM input'!L$520) -> 0 | M116: =IF(('PTRM input'!$E$515='PTRM input'!$G$514),IF(M$3>A1remlife,A1acvalue-SUM($F116:L116),IF(A1remlife="N/A","n/a",A1acvalue/A1remlife)),'PTRM input'!M$520) -> 0 | N116: =IF(('PTRM input'!$E$515='PTRM input'!$G$514),IF(N$3>A1remlife,A1acvalue-SUM($F116:M116),IF(A1remlife="N/A","n/a",A1acvalue/A1remlife)),'PTRM input'!N$520) -> 0 | O116: =IF(('PTRM input'!$E$515='PTRM input'!$G$514),IF(O$3>A1remlife,A1acvalue-SUM($F116:N116),IF(A1remlife="N/A","n/a",A1acvalue/A1remlife)),'PTRM input'!O$520) -> 0 | P116: =IF(('PTRM input'!$E$515='PTRM input'!$G$514),IF(P$3>A1remlife,A1acvalue-SUM($F116:O116),IF(A1remlife="N/A","n/a",A1acvalue/A1remlife)),'PTRM input'!P$520) -> 0 | Q116: =IF(('PTRM input'!$E$515='PTRM input'!$G$514),IF(Q$3>A1remlife,A1acvalue-SUM($F116:P116),IF(A1remlife="N/A","n/a",A1acvalue/A1remlife)),'PTRM input'!Q$520) -> 0 | R116: =IF(('PTRM input'!$E$515='PTRM input'!$G$514),IF(R$3>A1remlife,A1acvalue-SUM($F116:Q116),IF(A1remlife="N/A","n/a",A1acvalue/A1remlife)),'PTRM input'!R$520) -> 0 | S116: =IF(('PTRM input'!$E$515='PTRM input'!$G$514),IF(S$3>A1remlife,A1acvalue-SUM($F116:R116),IF(A1remlife="N/A","n/a",A1acvalue/A1remlife)),'PTRM input'!S$520) -> 0 | T116: =IF(('PTRM input'!$E$515='PTRM input'!$G$514),IF(T$3>A1remlife,A1acvalue-SUM($F116:S116),IF(A1remlife="N/A","n/a",A1acvalue/A1remlife)),'PTRM input'!T$520) -> 0 | U116: =IF(('PTRM input'!$E$515='PTRM input'!$G$514),IF(U$3>A1remlife,A1acvalue-SUM($F116:T116),IF(A1remlife="N/A","n/a",A1acvalue/A1remlife)),'PTRM input'!U$520) -> 0 | V116: =IF(('PTRM input'!$E$515='PTRM input'!$G$514),IF(V$3>A1remlife,A1acvalue-SUM($F116:U116),IF(A1remlife="N/A","n/a",A1acvalue/A1remlife)),'PTRM input'!V$520) -> 0 | W116: =IF(('PTRM input'!$E$515='PTRM input'!$G$514),IF(W$3>A1remlife,A1acvalue-SUM($F116:V116),IF(A1remlife="N/A","n/a",A1acvalue/A1remlife)),'PTRM input'!W$520) -> 0 | X116: =IF(('PTRM input'!$E$515='PTRM input'!$G$514),IF(X$3>A1remlife,A1acvalue-SUM($F116:W116),IF(A1remlife="N/A","n/a",A1acvalue/A1remlife)),'PTRM input'!X$520) -> 0 | Y116: =IF(('PTRM input'!$E$515='PTRM input'!$G$514),IF(Y$3>A1remlife,A1acvalue-SUM($F116:X116),IF(A1remlife="N/A","n/a",A1acvalue/A1remlife)),'PTRM input'!Y$520) -> 0 | Z116: =IF(('PTRM input'!$E$515='PTRM input'!$G$514),IF(Z$3>A1remlife,A1acvalue-SUM($F116:Y116),IF(A1remlife="N/A","n/a",A1acvalue/A1remlife)),'PTRM input'!Z$520) -> 0 | AA116: =IF(('PTRM input'!$E$515='PTRM input'!$G$514),IF(AA$3>A1remlife,A1acvalue-SUM($F116:Z116),IF(A1remlife="N/A","n/a",A1acvalue/A1remlife)),'PTRM input'!AA$520) -> 0 | AB116: =IF(('PTRM input'!$E$515='PTRM input'!$G$514),IF(AB$3>A1remlife,A1acvalue-SUM($F116:AA116),IF(A1remlife="N/A","n/a",A1acvalue/A1remlife)),'PTRM input'!AB$520) -> 0 | AC116: =IF(('PTRM input'!$E$515='PTRM input'!$G$514),IF(AC$3>A1remlife,A1acvalue-SUM($F116:AB116),IF(A1remlife="N/A","n/a",A1acvalue/A1remlife)),'PTRM input'!AC$520) -> 0 | AD116: =IF(('PTRM input'!$E$515='PTRM input'!$G$514),IF(AD$3>A1remlife,A1acvalue-SUM($F116:AC116),IF(A1remlife="N/A","n/a",A1acvalue/A1remlife)),'PTRM input'!AD$520) -> 0 | AE116: =IF(('PTRM input'!$E$515='PTRM input'!$G$514),IF(AE$3>A1remlife,A1acvalue-SUM($F116:AD116),IF(A1remlife="N/A","n/a",A1acvalue/A1remlife)),'PTRM input'!AE$520) -> 0 | AF116: =IF(('PTRM input'!$E$515='PTRM input'!$G$514),IF(AF$3>A1remlife,A1acvalue-SUM($F116:AE116),IF(A1remlife="N/A","n/a",A1acvalue/A1remlife)),'PTRM input'!AF$520) -> 0 | AG116: =IF(('PTRM input'!$E$515='PTRM input'!$G$514),IF(AG$3>A1remlife,A1acvalue-SUM($F116:AF116),IF(A1remlife="N/A","n/a",A1acvalue/A1remlife)),'PTRM input'!AG$520) -> 0 | AH116: =IF(('PTRM input'!$E$515='PTRM input'!$G$514),IF(AH$3>A1remlife,A1acvalue-SUM($F116:AG116),IF(A1remlife="N/A","n/a",A1acvalue/A1remlife)),'PTRM input'!AH$520) -> 0 | AI116: =IF(('PTRM input'!$E$515='PTRM input'!$G$514),IF(AI$3>A1remlife,A1acvalue-SUM($F116:AH116),IF(A1remlife="N/A","n/a",A1acvalue/A1remlife)),'PTRM input'!AI$520) -> 0 | AJ116: =IF(('PTRM input'!$E$515='PTRM input'!$G$514),IF(AJ$3>A1remlife,A1acvalue-SUM($F116:AI116),IF(A1remlife="N/A","n/a",A1acvalue/A1remlife)),'PTRM input'!AJ$520) -> 0 | AK116: =IF(('PTRM input'!$E$515='PTRM input'!$G$514),IF(AK$3>A1remlife,A1acvalue-SUM($F116:AJ116),IF(A1remlife="N/A","n/a",A1acvalue/A1remlife)),'PTRM input'!AK$520) -> 0 | AL116: =IF(('PTRM input'!$E$515='PTRM input'!$G$514),IF(AL$3>A1remlife,A1acvalue-SUM($F116:AK116),IF(A1remlife="N/A","n/a",A1acvalue/A1remlife)),'PTRM input'!AL$520) -> 0 | AM116: =IF(('PTRM input'!$E$515='PTRM input'!$G$514),IF(AM$3>A1remlife,A1acvalue-SUM($F116:AL116),IF(A1remlife="N/A","n/a",A1acvalue/A1remlife)),'PTRM input'!AM$520) -> 0 | AN116: =IF(('PTRM input'!$E$515='PTRM input'!$G$514),IF(AN$3>A1remlife,A1acvalue-SUM($F116:AM116),IF(A1remlife="N/A","n/a",A1acvalue/A1remlife)),'PTRM input'!AN$520) -> 0 | AO116: =IF(('PTRM input'!$E$515='PTRM input'!$G$514),IF(AO$3>A1remlife,A1acvalue-SUM($F116:AN116),IF(A1remlife="N/A","n/a",A1acvalue/A1remlife)),'PTRM input'!AO$520) -> 0 | AP116: =IF(('PTRM input'!$E$515='PTRM input'!$G$514),IF(AP$3>A1remlife,A1acvalue-SUM($F116:AO116),IF(A1remlife="N/A","n/a",A1acvalue/A1remlife)),'PTRM input'!AP$520) -> 0 | AQ116: =IF(('PTRM input'!$E$515='PTRM input'!$G$514),IF(AQ$3>A1remlife,A1acvalue-SUM($F116:AP116),IF(A1remlife="N/A","n/a",A1acvalue/A1remlife)),'PTRM input'!AQ$520) -> 0 | AR116: =IF(('PTRM input'!$E$515='PTRM input'!$G$514),IF(AR$3>A1remlife,A1acvalue-SUM($F116:AQ116),IF(A1remlife="N/A","n/a",A1acvalue/A1remlife)),'PTRM input'!AR$520) -> 0 | AS116: =IF(('PTRM input'!$E$515='PTRM input'!$G$514),IF(AS$3>A1remlife,A1acvalue-SUM($F116:AR116),IF(A1remlife="N/A","n/a",A1acvalue/A1remlife)),'PTRM input'!AS$520) -> 0 | AT116: =IF(('PTRM input'!$E$515='PTRM input'!$G$514),IF(AT$3>A1remlife,A1acvalue-SUM($F116:AS116),IF(A1remlife="N/A","n/a",A1acvalue/A1remlife)),'PTRM input'!AT$520) -> 0 | AU116: =IF(('PTRM input'!$E$515='PTRM input'!$G$514),IF(AU$3>A1remlife,A1acvalue-SUM($F116:AT116),IF(A1remlife="N/A","n/a",A1acvalue/A1remlife)),'PTRM input'!AU$520) -> 0 | AV116: =IF(('PTRM input'!$E$515='PTRM input'!$G$514),IF(AV$3>A1remlife,A1acvalue-SUM($F116:AU116),IF(A1remlife="N/A","n/a",A1acvalue/A1remlife)),'PTRM input'!AV$520) -> 0 | AW116: =IF(('PTRM input'!$E$515='PTRM input'!$G$514),IF(AW$3>A1remlife,A1acvalue-SUM($F116:AV116),IF(A1remlife="N/A","n/a",A1acvalue/A1remlife)),'PTRM input'!AW$520) -> 0 | AX116: =IF(('PTRM input'!$E$515='PTRM input'!$G$514),IF(AX$3>A1remlife,A1acvalue-SUM($F116:AW116),IF(A1remlife="N/A","n/a",A1acvalue/A1remlife)),'PTRM input'!AX$520) -> 0 | AY116: =IF(('PTRM input'!$E$515='PTRM input'!$G$514),IF(AY$3>A1remlife,A1acvalue-SUM($F116:AX116),IF(A1remlife="N/A","n/a",A1acvalue/A1remlife)),'PTRM input'!AY$520) -> 0 | AZ116: =IF(('PTRM input'!$E$515='PTRM input'!$G$514),IF(AZ$3>A1remlife,A1acvalue-SUM($F116:AY116),IF(A1remlife="N/A","n/a",A1acvalue/A1remlife)),'PTRM input'!AZ$520) -> 0 | BA116: =IF(('PTRM input'!$E$515='PTRM input'!$G$514),IF(BA$3>A1remlife,A1acvalue-SUM($F116:AZ116),IF(A1remlife="N/A","n/a",A1acvalue/A1remlife)),'PTRM input'!BA$520) -> 0 | BB116: =IF(('PTRM input'!$E$515='PTRM input'!$G$514),IF(BB$3>A1remlife,A1acvalue-SUM($F116:BA116),IF(A1remlife="N/A","n/a",A1acvalue/A1remlife)),'PTRM input'!BB$520) -> 0 | BC116: =IF(('PTRM input'!$E$515='PTRM input'!$G$514),IF(BC$3>A1remlife,A1acvalue-SUM($F116:BB116),IF(A1remlife="N/A","n/a",A1acvalue/A1remlife)),'PTRM input'!BC$520) -> 0 | BD116: =IF(('PTRM input'!$E$515='PTRM input'!$G$514),IF(BD$3>A1remlife,A1acvalue-SUM($F116:BC116),IF(A1remlife="N/A","n/a",A1acvalue/A1remlife)),'PTRM input'!BD$520) -> 0 | BE116: =IF(('PTRM input'!$E$515='PTRM input'!$G$514),IF(BE$3>A1remlife,A1acvalue-SUM($F116:BD116),IF(A1remlife="N/A","n/a",A1acvalue/A1remlife)),'PTRM input'!BE$520) -> 0 | BF116: =IF(('PTRM input'!$E$515='PTRM input'!$G$514),IF(BF$3>A1remlife,A1acvalue-SUM($F116:BE116),IF(A1remlife="N/A","n/a",A1acvalue/A1remlife)),'PTRM input'!BF$520) -> 0 | BG116: =IF(('PTRM input'!$E$515='PTRM input'!$G$514),IF(BG$3>A1remlife,A1acvalue-SUM($F116:BF116),IF(A1remlife="N/A","n/a",A1acvalue/A1remlife)),'PTRM input'!BG$520) -> 0 | BH116: =IF(('PTRM input'!$E$515='PTRM input'!$G$514),IF(BH$3>A1remlife,A1acvalue-SUM($F116:BG116),IF(A1remlife="N/A","n/a",A1acvalue/A1remlife)),'PTRM input'!BH$520) -> 0 | BI116: =IF(('PTRM input'!$E$515='PTRM input'!$G$514),IF(BI$3>A1remlife,A1acvalue-SUM($F116:BH116),IF(A1remlife="N/A","n/a",A1acvalue/A1remlife)),'PTRM input'!BI$520) -> 0
D117: Capex in year | E117: 0
E118: 1 | H118: =IF(A1stdlife="n/a","n/a",IF(H$3>(A1stdlife+$E118),('PTRM input'!$G$385*(1+rvanilla01)^0.5)-SUM(G118:$G118),('PTRM input'!$G$385*(1+rvanilla01)^0.5)/A1stdlife)) -> 0 | I118: =IF(A1stdlife="n/a","n/a",IF(I$3>(A1stdlife+$E118),('PTRM input'!$G$385*(1+rvanilla01)^0.5)-SUM($G118:H118),('PTRM input'!$G$385*(1+rvanilla01)^0.5)/A1stdlife)) -> 0 | J118: =IF(A1stdlife="n/a","n/a",IF(J$3>(A1stdlife+$E118),('PTRM input'!$G$385*(1+rvanilla01)^0.5)-SUM($G118:I118),('PTRM input'!$G$385*(1+rvanilla01)^0.5)/A1stdlife)) -> 0 | K118: =IF(A1stdlife="n/a","n/a",IF(K$3>(A1stdlife+$E118),('PTRM input'!$G$385*(1+rvanilla01)^0.5)-SUM($G118:J118),('PTRM input'!$G$385*(1+rvanilla01)^0.5)/A1stdlife)) -> 0 | L118: =IF(A1stdlife="n/a","n/a",IF(L$3>(A1stdlife+$E118),('PTRM input'!$G$385*(1+rvanilla01)^0.5)-SUM($G118:K118),('PTRM input'!$G$385*(1+rvanilla01)^0.5)/A1stdlife)) -> 0 | M118: =IF(A1stdlife="n/a","n/a",IF(M$3>(A1stdlife+$E118),('PTRM input'!$G$385*(1+rvanilla01)^0.5)-SUM($G118:L118),('PTRM input'!$G$385*(1+rvanilla01)^0.5)/A1stdlife)) -> 0 | N118: =IF(A1stdlife="n/a","n/a",IF(N$3>(A1stdlife+$E118),('PTRM input'!$G$385*(1+rvanilla01)^0.5)-SUM($G118:M118),('PTRM input'!$G$385*(1+rvanilla01)^0.5)/A1stdlife)) -> 0 | O118: =IF(A1stdlife="n/a","n/a",IF(O$3>(A1stdlife+$E118),('PTRM input'!$G$385*(1+rvanilla01)^0.5)-SUM($G118:N118),('PTRM input'!$G$385*(1+rvanilla01)^0.5)/A1stdlife)) -> 0 | P118: =IF(A1stdlife="n/a","n/a",IF(P$3>(A1stdlife+$E118),('PTRM input'!$G$385*(1+rvanilla01)^0.5)-SUM($G118:O118),('PTRM input'!$G$385*(1+rvanilla01)^0.5)/A1stdlife)) -> 0 | Q118: =IF(A1stdlife="n/a","n/a",IF(Q$3>(A1stdlife+$E118),('PTRM input'!$G$385*(1+rvanilla01)^0.5)-SUM($G118:P118),('PTRM input'!$G$385*(1+rvanilla01)^0.5)/A1stdlife)) -> 0 | R118: =IF(A1stdlife="n/a","n/a",IF(R$3>(A1stdlife+$E118),('PTRM input'!$G$385*(1+rvanilla01)^0.5)-SUM($G118:Q118),('PTRM input'!$G$385*(1+rvanilla01)^0.5)/A1stdlife)) -> 0 | S118: =IF(A1stdlife="n/a","n/a",IF(S$3>(A1stdlife+$E118),('PTRM input'!$G$385*(1+rvanilla01)^0.5)-SUM($G118:R118),('PTRM input'!$G$385*(1+rvanilla01)^0.5)/A1stdlife)) -> 0 | T118: =IF(A1stdlife="n/a","n/a",IF(T$3>(A1stdlife+$E118),('PTRM input'!$G$385*(1+rvanilla01)^0.5)-SUM($G118:S118),('PTRM input'!$G$385*(1+rvanilla01)^0.5)/A1stdlife)) -> 0 | U118: =IF(A1stdlife="n/a","n/a",IF(U$3>(A1stdlife+$E118),('PTRM input'!$G$385*(1+rvanilla01)^0.5)-SUM($G118:T118),('PTRM input'!$G$385*(1+rvanilla01)^0.5)/A1stdlife)) -> 0 | V118: =IF(A1stdlife="n/a","n/a",IF(V$3>(A1stdlife+$E118),('PTRM input'!$G$385*(1+rvanilla01)^0.5)-SUM($G118:U118),('PTRM input'!$G$385*(1+rvanilla01)^0.5)/A1stdlife)) -> 0 | W118: =IF(A1stdlife="n/a","n/a",IF(W$3>(A1stdlife+$E118),('PTRM input'!$G$385*(1+rvanilla01)^0.5)-SUM($G118:V118),('PTRM input'!$G$385*(1+rvanilla01)^0.5)/A1stdlife)) -> 0 | X118: =IF(A1stdlife="n/a","n/a",IF(X$3>(A1stdlife+$E118),('PTRM input'!$G$385*(1+rvanilla01)^0.5)-SUM($G118:W118),('PTRM input'!$G$385*(1+rvanilla01)^0.5)/A1stdlife)) -> 0 | Y118: =IF(A1stdlife="n/a","n/a",IF(Y$3>(A1stdlife+$E118),('PTRM input'!$G$385*(1+rvanilla01)^0.5)-SUM($G118:X118),('PTRM input'!$G$385*(1+rvanilla01)^0.5)/A1stdlife)) -> 0 | Z118: =IF(A1stdlife="n/a","n/a",IF(Z$3>(A1stdlife+$E118),('PTRM input'!$G$385*(1+rvanilla01)^0.5)-SUM($G118:Y118),('PTRM input'!$G$385*(1+rvanilla01)^0.5)/A1stdlife)) -> 0 | AA118: =IF(A1stdlife="n/a","n/a",IF(AA$3>(A1stdlife+$E118),('PTRM input'!$G$385*(1+rvanilla01)^0.5)-SUM($G118:Z118),('PTRM input'!$G$385*(1+rvanilla01)^0.5)/A1stdlife)) -> 0 | AB118: =IF(A1stdlife="n/a","n/a",IF(AB$3>(A1stdlife+$E118),('PTRM input'!$G$385*(1+rvanilla01)^0.5)-SUM($G118:AA118),('PTRM input'!$G$385*(1+rvanilla01)^0.5)/A1stdlife)) -> 0 | AC118: =IF(A1stdlife="n/a","n/a",IF(AC$3>(A1stdlife+$E118),('PTRM input'!$G$385*(1+rvanilla01)^0.5)-SUM($G118:AB118),('PTRM input'!$G$385*(1+rvanilla01)^0.5)/A1stdlife)) -> 0 | AD118: =IF(A1stdlife="n/a","n/a",IF(AD$3>(A1stdlife+$E118),('PTRM input'!$G$385*(1+rvanilla01)^0.5)-SUM($G118:AC118),('PTRM input'!$G$385*(1+rvanilla01)^0.5)/A1stdlife)) -> 0 | AE118: =IF(A1stdlife="n/a","n/a",IF(AE$3>(A1stdlife+$E118),('PTRM input'!$G$385*(1+rvanilla01)^0.5)-SUM($G118:AD118),('PTRM input'!$G$385*(1+rvanilla01)^0.5)/A1stdlife)) -> 0 | AF118: =IF(A1stdlife="n/a","n/a",IF(AF$3>(A1stdlife+$E118),('PTRM input'!$G$385*(1+rvanilla01)^0.5)-SUM($G118:AE118),('PTRM input'!$G$385*(1+rvanilla01)^0.5)/A1stdlife)) -> 0 | AG118: =IF(A1stdlife="n/a","n/a",IF(AG$3>(A1stdlife+$E118),('PTRM input'!$G$385*(1+rvanilla01)^0.5)-SUM($G118:AF118),('PTRM input'!$G$385*(1+rvanilla01)^0.5)/A1stdlife)) -> 0 | AH118: =IF(A1stdlife="n/a","n/a",IF(AH$3>(A1stdlife+$E118),('PTRM input'!$G$385*(1+rvanilla01)^0.5)-SUM($G118:AG118),('PTRM input'!$G$385*(1+rvanilla01)^0.5)/A1stdlife)) -> 0 | AI118: =IF(A1stdlife="n/a","n/a",IF(AI$3>(A1stdlife+$E118),('PTRM input'!$G$385*(1+rvanilla01)^0.5)-SUM($G118:AH118),('PTRM input'!$G$385*(1+rvanilla01)^0.5)/A1stdlife)) -> 0 | AJ118: =IF(A1stdlife="n/a","n/a",IF(AJ$3>(A1stdlife+$E118),('PTRM input'!$G$385*(1+rvanilla01)^0.5)-SUM($G118:AI118),('PTRM input'!$G$385*(1+rvanilla01)^0.5)/A1stdlife)) -> 0 | AK118: =IF(A1stdlife="n/a","n/a",IF(AK$3>(A1stdlife+$E118),('PTRM input'!$G$385*(1+rvanilla01)^0.5)-SUM($G118:AJ118),('PTRM input'!$G$385*(1+rvanilla01)^0.5)/A1stdlife)) -> 0 | AL118: =IF(A1stdlife="n/a","n/a",IF(AL$3>(A1stdlife+$E118),('PTRM input'!$G$385*(1+rvanilla01)^0.5)-SUM($G118:AK118),('PTRM input'!$G$385*(1+rvanilla01)^0.5)/A1stdlife)) -> 0 | AM118: =IF(A1stdlife="n/a","n/a",IF(AM$3>(A1stdlife+$E118),('PTRM input'!$G$385*(1+rvanilla01)^0.5)-SUM($G118:AL118),('PTRM input'!$G$385*(1+rvanilla01)^0.5)/A1stdlife)) -> 0 | AN118: =IF(A1stdlife="n/a","n/a",IF(AN$3>(A1stdlife+$E118),('PTRM input'!$G$385*(1+rvanilla01)^0.5)-SUM($G118:AM118),('PTRM input'!$G$385*(1+rvanilla01)^0.5)/A1stdlife)) -> 0 | AO118: =IF(A1stdlife="n/a","n/a",IF(AO$3>(A1stdlife+$E118),('PTRM input'!$G$385*(1+rvanilla01)^0.5)-SUM($G118:AN118),('PTRM input'!$G$385*(1+rvanilla01)^0.5)/A1stdlife)) -> 0 | AP118: =IF(A1stdlife="n/a","n/a",IF(AP$3>(A1stdlife+$E118),('PTRM input'!$G$385*(1+rvanilla01)^0.5)-SUM($G118:AO118),('PTRM input'!$G$385*(1+rvanilla01)^0.5)/A1stdlife)) -> 0 | AQ118: =IF(A1stdlife="n/a","n/a",IF(AQ$3>(A1stdlife+$E118),('PTRM input'!$G$385*(1+rvanilla01)^0.5)-SUM($G118:AP118),('PTRM input'!$G$385*(1+rvanilla01)^0.5)/A1stdlife)) -> 0 | AR118: =IF(A1stdlife="n/a","n/a",IF(AR$3>(A1stdlife+$E118),('PTRM input'!$G$385*(1+rvanilla01)^0.5)-SUM($G118:AQ118),('PTRM input'!$G$385*(1+rvanilla01)^0.5)/A1stdlife)) -> 0 | AS118: =IF(A1stdlife="n/a","n/a",IF(AS$3>(A1stdlife+$E118),('PTRM input'!$G$385*(1+rvanilla01)^0.5)-SUM($G118:AR118),('PTRM input'!$G$385*(1+rvanilla01)^0.5)/A1stdlife)) -> 0 | AT118: =IF(A1stdlife="n/a","n/a",IF(AT$3>(A1stdlife+$E118),('PTRM input'!$G$385*(1+rvanilla01)^0.5)-SUM($G118:AS118),('PTRM input'!$G$385*(1+rvanilla01)^0.5)/A1stdlife)) -> 0 | AU118: =IF(A1stdlife="n/a","n/a",IF(AU$3>(A1stdlife+$E118),('PTRM input'!$G$385*(1+rvanilla01)^0.5)-SUM($G118:AT118),('PTRM input'!$G$385*(1+rvanilla01)^0.5)/A1stdlife)) -> 0 | AV118: =IF(A1stdlife="n/a","n/a",IF(AV$3>(A1stdlife+$E118),('PTRM input'!$G$385*(1+rvanilla01)^0.5)-SUM($G118:AU118),('PTRM input'!$G$385*(1+rvanilla01)^0.5)/A1stdlife)) -> 0 | AW118: =IF(A1stdlife="n/a","n/a",IF(AW$3>(A1stdlife+$E118),('PTRM input'!$G$385*(1+rvanilla01)^0.5)-SUM($G118:AV118),('PTRM input'!$G$385*(1+rvanilla01)^0.5)/A1stdlife)) -> 0 | AX118: =IF(A1stdlife="n/a","n/a",IF(AX$3>(A1stdlife+$E118),('PTRM input'!$G$385*(1+rvanilla01)^0.5)-SUM($G118:AW118),('PTRM input'!$G$385*(1+rvanilla01)^0.5)/A1stdlife)) -> 0 | AY118: =IF(A1stdlife="n/a","n/a",IF(AY$3>(A1stdlife+$E118),('PTRM input'!$G$385*(1+rvanilla01)^0.5)-SUM($G118:AX118),('PTRM input'!$G$385*(1+rvanilla01)^0.5)/A1stdlife)) -> 0 | AZ118: =IF(A1stdlife="n/a","n/a",IF(AZ$3>(A1stdlife+$E118),('PTRM input'!$G$385*(1+rvanilla01)^0.5)-SUM($G118:AY118),('PTRM input'!$G$385*(1+rvanilla01)^0.5)/A1stdlife)) -> 0 | BA118: =IF(A1stdlife="n/a","n/a",IF(BA$3>(A1stdlife+$E118),('PTRM input'!$G$385*(1+rvanilla01)^0.5)-SUM($G118:AZ118),('PTRM input'!$G$385*(1+rvanilla01)^0.5)/A1stdlife)) -> 0 | BB118: =IF(A1stdlife="n/a","n/a",IF(BB$3>(A1stdlife+$E118),('PTRM input'!$G$385*(1+rvanilla01)^0.5)-SUM($G118:BA118),('PTRM input'!$G$385*(1+rvanilla01)^0.5)/A1stdlife)) -> 0 | BC118: =IF(A1stdlife="n/a","n/a",IF(BC$3>(A1stdlife+$E118),('PTRM input'!$G$385*(1+rvanilla01)^0.5)-SUM($G118:BB118),('PTRM input'!$G$385*(1+rvanilla01)^0.5)/A1stdlife)) -> 0 | BD118: =IF(A1stdlife="n/a","n/a",IF(BD$3>(A1stdlife+$E118),('PTRM input'!$G$385*(1+rvanilla01)^0.5)-SUM($G118:BC118),('PTRM input'!$G$385*(1+rvanilla01)^0.5)/A1stdlife)) -> 0 | BE118: =IF(A1stdlife="n/a","n/a",IF(BE$3>(A1stdlife+$E118),('PTRM input'!$G$385*(1+rvanilla01)^0.5)-SUM($G118:BD118),('PTRM input'!$G$385*(1+rvanilla01)^0.5)/A1stdlife)) -> 0 | BF118: =IF(A1stdlife="n/a","n/a",IF(BF$3>(A1stdlife+$E118),('PTRM input'!$G$385*(1+rvanilla01)^0.5)-SUM($G118:BE118),('PTRM input'!$G$385*(1+rvanilla01)^0.5)/A1stdlife)) -> 0 | BG118: =IF(A1stdlife="n/a","n/a",IF(BG$3>(A1stdlife+$E118),('PTRM input'!$G$385*(1+rvanilla01)^0.5)-SUM($G118:BF118),('PTRM input'!$G$385*(1+rvanilla01)^0.5)/A1stdlife)) -> 0 | BH118: =IF(A1stdlife="n/a","n/a",IF(BH$3>(A1stdlife+$E118),('PTRM input'!$G$385*(1+rvanilla01)^0.5)-SUM($G118:BG118),('PTRM input'!$G$385*(1+rvanilla01)^0.5)/A1stdlife)) -> 0 | BI118: =IF(A1stdlife="n/a","n/a",IF(BI$3>(A1stdlife+$E118),('PTRM input'!$G$385*(1+rvanilla01)^0.5)-SUM($G118:BH118),('PTRM input'!$G$385*(1+rvanilla01)^0.5)/A1stdlife)) -> 0
E119: 2 | I119: =IF(A1stdlife="n/a","n/a",IF(I$3>(A1stdlife+$E119),('PTRM input'!$H$385*(1+rvanilla02)^0.5)-SUM(H119:$H119),('PTRM input'!$H$385*(1+rvanilla02)^0.5)/A1stdlife)) -> 0 | J119: =IF(A1stdlife="n/a","n/a",IF(J$3>(A1stdlife+$E119),('PTRM input'!$H$385*(1+rvanilla02)^0.5)-SUM($H119:I119),('PTRM input'!$H$385*(1+rvanilla02)^0.5)/A1stdlife)) -> 0 | K119: =IF(A1stdlife="n/a","n/a",IF(K$3>(A1stdlife+$E119),('PTRM input'!$H$385*(1+rvanilla02)^0.5)-SUM($H119:J119),('PTRM input'!$H$385*(1+rvanilla02)^0.5)/A1stdlife)) -> 0 | L119: =IF(A1stdlife="n/a","n/a",IF(L$3>(A1stdlife+$E119),('PTRM input'!$H$385*(1+rvanilla02)^0.5)-SUM($H119:K119),('PTRM input'!$H$385*(1+rvanilla02)^0.5)/A1stdlife)) -> 0 | M119: =IF(A1stdlife="n/a","n/a",IF(M$3>(A1stdlife+$E119),('PTRM input'!$H$385*(1+rvanilla02)^0.5)-SUM($H119:L119),('PTRM input'!$H$385*(1+rvanilla02)^0.5)/A1stdlife)) -> 0 | N119: =IF(A1stdlife="n/a","n/a",IF(N$3>(A1stdlife+$E119),('PTRM input'!$H$385*(1+rvanilla02)^0.5)-SUM($H119:M119),('PTRM input'!$H$385*(1+rvanilla02)^0.5)/A1stdlife)) -> 0 | O119: =IF(A1stdlife="n/a","n/a",IF(O$3>(A1stdlife+$E119),('PTRM input'!$H$385*(1+rvanilla02)^0.5)-SUM($H119:N119),('PTRM input'!$H$385*(1+rvanilla02)^0.5)/A1stdlife)) -> 0 | P119: =IF(A1stdlife="n/a","n/a",IF(P$3>(A1stdlife+$E119),('PTRM input'!$H$385*(1+rvanilla02)^0.5)-SUM($H119:O119),('PTRM input'!$H$385*(1+rvanilla02)^0.5)/A1stdlife)) -> 0 | Q119: =IF(A1stdlife="n/a","n/a",IF(Q$3>(A1stdlife+$E119),('PTRM input'!$H$385*(1+rvanilla02)^0.5)-SUM($H119:P119),('PTRM input'!$H$385*(1+rvanilla02)^0.5)/A1stdlife)) -> 0 | R119: =IF(A1stdlife="n/a","n/a",IF(R$3>(A1stdlife+$E119),('PTRM input'!$H$385*(1+rvanilla02)^0.5)-SUM($H119:Q119),('PTRM input'!$H$385*(1+rvanilla02)^0.5)/A1stdlife)) -> 0 | S119: =IF(A1stdlife="n/a","n/a",IF(S$3>(A1stdlife+$E119),('PTRM input'!$H$385*(1+rvanilla02)^0.5)-SUM($H119:R119),('PTRM input'!$H$385*(1+rvanilla02)^0.5)/A1stdlife)) -> 0 | T119: =IF(A1stdlife="n/a","n/a",IF(T$3>(A1stdlife+$E119),('PTRM input'!$H$385*(1+rvanilla02)^0.5)-SUM($H119:S119),('PTRM input'!$H$385*(1+rvanilla02)^0.5)/A1stdlife)) -> 0 | U119: =IF(A1stdlife="n/a","n/a",IF(U$3>(A1stdlife+$E119),('PTRM input'!$H$385*(1+rvanilla02)^0.5)-SUM($H119:T119),('PTRM input'!$H$385*(1+rvanilla02)^0.5)/A1stdlife)) -> 0 | V119: =IF(A1stdlife="n/a","n/a",IF(V$3>(A1stdlife+$E119),('PTRM input'!$H$385*(1+rvanilla02)^0.5)-SUM($H119:U119),('PTRM input'!$H$385*(1+rvanilla02)^0.5)/A1stdlife)) -> 0 | W119: =IF(A1stdlife="n/a","n/a",IF(W$3>(A1stdlife+$E119),('PTRM input'!$H$385*(1+rvanilla02)^0.5)-SUM($H119:V119),('PTRM input'!$H$385*(1+rvanilla02)^0.5)/A1stdlife)) -> 0 | X119: =IF(A1stdlife="n/a","n/a",IF(X$3>(A1stdlife+$E119),('PTRM input'!$H$385*(1+rvanilla02)^0.5)-SUM($H119:W119),('PTRM input'!$H$385*(1+rvanilla02)^0.5)/A1stdlife)) -> 0 | Y119: =IF(A1stdlife="n/a","n/a",IF(Y$3>(A1stdlife+$E119),('PTRM input'!$H$385*(1+rvanilla02)^0.5)-SUM($H119:X119),('PTRM input'!$H$385*(1+rvanilla02)^0.5)/A1stdlife)) -> 0 | Z119: =IF(A1stdlife="n/a","n/a",IF(Z$3>(A1stdlife+$E119),('PTRM input'!$H$385*(1+rvanilla02)^0.5)-SUM($H119:Y119),('PTRM input'!$H$385*(1+rvanilla02)^0.5)/A1stdlife)) -> 0 | AA119: =IF(A1stdlife="n/a","n/a",IF(AA$3>(A1stdlife+$E119),('PTRM input'!$H$385*(1+rvanilla02)^0.5)-SUM($H119:Z119),('PTRM input'!$H$385*(1+rvanilla02)^0.5)/A1stdlife)) -> 0 | AB119: =IF(A1stdlife="n/a","n/a",IF(AB$3>(A1stdlife+$E119),('PTRM input'!$H$385*(1+rvanilla02)^0.5)-SUM($H119:AA119),('PTRM input'!$H$385*(1+rvanilla02)^0.5)/A1stdlife)) -> 0 | AC119: =IF(A1stdlife="n/a","n/a",IF(AC$3>(A1stdlife+$E119),('PTRM input'!$H$385*(1+rvanilla02)^0.5)-SUM($H119:AB119),('PTRM input'!$H$385*(1+rvanilla02)^0.5)/A1stdlife)) -> 0 | AD119: =IF(A1stdlife="n/a","n/a",IF(AD$3>(A1stdlife+$E119),('PTRM input'!$H$385*(1+rvanilla02)^0.5)-SUM($H119:AC119),('PTRM input'!$H$385*(1+rvanilla02)^0.5)/A1stdlife)) -> 0 | AE119: =IF(A1stdlife="n/a","n/a",IF(AE$3>(A1stdlife+$E119),('PTRM input'!$H$385*(1+rvanilla02)^0.5)-SUM($H119:AD119),('PTRM input'!$H$385*(1+rvanilla02)^0.5)/A1stdlife)) -> 0 | AF119: =IF(A1stdlife="n/a","n/a",IF(AF$3>(A1stdlife+$E119),('PTRM input'!$H$385*(1+rvanilla02)^0.5)-SUM($H119:AE119),('PTRM input'!$H$385*(1+rvanilla02)^0.5)/A1stdlife)) -> 0 | AG119: =IF(A1stdlife="n/a","n/a",IF(AG$3>(A1stdlife+$E119),('PTRM input'!$H$385*(1+rvanilla02)^0.5)-SUM($H119:AF119),('PTRM input'!$H$385*(1+rvanilla02)^0.5)/A1stdlife)) -> 0 | AH119: =IF(A1stdlife="n/a","n/a",IF(AH$3>(A1stdlife+$E119),('PTRM input'!$H$385*(1+rvanilla02)^0.5)-SUM($H119:AG119),('PTRM input'!$H$385*(1+rvanilla02)^0.5)/A1stdlife)) -> 0 | AI119: =IF(A1stdlife="n/a","n/a",IF(AI$3>(A1stdlife+$E119),('PTRM input'!$H$385*(1+rvanilla02)^0.5)-SUM($H119:AH119),('PTRM input'!$H$385*(1+rvanilla02)^0.5)/A1stdlife)) -> 0 | AJ119: =IF(A1stdlife="n/a","n/a",IF(AJ$3>(A1stdlife+$E119),('PTRM input'!$H$385*(1+rvanilla02)^0.5)-SUM($H119:AI119),('PTRM input'!$H$385*(1+rvanilla02)^0.5)/A1stdlife)) -> 0 | AK119: =IF(A1stdlife="n/a","n/a",IF(AK$3>(A1stdlife+$E119),('PTRM input'!$H$385*(1+rvanilla02)^0.5)-SUM($H119:AJ119),('PTRM input'!$H$385*(1+rvanilla02)^0.5)/A1stdlife)) -> 0 | AL119: =IF(A1stdlife="n/a","n/a",IF(AL$3>(A1stdlife+$E119),('PTRM input'!$H$385*(1+rvanilla02)^0.5)-SUM($H119:AK119),('PTRM input'!$H$385*(1+rvanilla02)^0.5)/A1stdlife)) -> 0 | AM119: =IF(A1stdlife="n/a","n/a",IF(AM$3>(A1stdlife+$E119),('PTRM input'!$H$385*(1+rvanilla02)^0.5)-SUM($H119:AL119),('PTRM input'!$H$385*(1+rvanilla02)^0.5)/A1stdlife)) -> 0 | AN119: =IF(A1stdlife="n/a","n/a",IF(AN$3>(A1stdlife+$E119),('PTRM input'!$H$385*(1+rvanilla02)^0.5)-SUM($H119:AM119),('PTRM input'!$H$385*(1+rvanilla02)^0.5)/A1stdlife)) -> 0 | AO119: =IF(A1stdlife="n/a","n/a",IF(AO$3>(A1stdlife+$E119),('PTRM input'!$H$385*(1+rvanilla02)^0.5)-SUM($H119:AN119),('PTRM input'!$H$385*(1+rvanilla02)^0.5)/A1stdlife)) -> 0 | AP119: =IF(A1stdlife="n/a","n/a",IF(AP$3>(A1stdlife+$E119),('PTRM input'!$H$385*(1+rvanilla02)^0.5)-SUM($H119:AO119),('PTRM input'!$H$385*(1+rvanilla02)^0.5)/A1stdlife)) -> 0 | AQ119: =IF(A1stdlife="n/a","n/a",IF(AQ$3>(A1stdlife+$E119),('PTRM input'!$H$385*(1+rvanilla02)^0.5)-SUM($H119:AP119),('PTRM input'!$H$385*(1+rvanilla02)^0.5)/A1stdlife)) -> 0 | AR119: =IF(A1stdlife="n/a","n/a",IF(AR$3>(A1stdlife+$E119),('PTRM input'!$H$385*(1+rvanilla02)^0.5)-SUM($H119:AQ119),('PTRM input'!$H$385*(1+rvanilla02)^0.5)/A1stdlife)) -> 0 | AS119: =IF(A1stdlife="n/a","n/a",IF(AS$3>(A1stdlife+$E119),('PTRM input'!$H$385*(1+rvanilla02)^0.5)-SUM($H119:AR119),('PTRM input'!$H$385*(1+rvanilla02)^0.5)/A1stdlife)) -> 0 | AT119: =IF(A1stdlife="n/a","n/a",IF(AT$3>(A1stdlife+$E119),('PTRM input'!$H$385*(1+rvanilla02)^0.5)-SUM($H119:AS119),('PTRM input'!$H$385*(1+rvanilla02)^0.5)/A1stdlife)) -> 0 | AU119: =IF(A1stdlife="n/a","n/a",IF(AU$3>(A1stdlife+$E119),('PTRM input'!$H$385*(1+rvanilla02)^0.5)-SUM($H119:AT119),('PTRM input'!$H$385*(1+rvanilla02)^0.5)/A1stdlife)) -> 0 | AV119: =IF(A1stdlife="n/a","n/a",IF(AV$3>(A1stdlife+$E119),('PTRM input'!$H$385*(1+rvanilla02)^0.5)-SUM($H119:AU119),('PTRM input'!$H$385*(1+rvanilla02)^0.5)/A1stdlife)) -> 0 | AW119: =IF(A1stdlife="n/a","n/a",IF(AW$3>(A1stdlife+$E119),('PTRM input'!$H$385*(1+rvanilla02)^0.5)-SUM($H119:AV119),('PTRM input'!$H$385*(1+rvanilla02)^0.5)/A1stdlife)) -> 0 | AX119: =IF(A1stdlife="n/a","n/a",IF(AX$3>(A1stdlife+$E119),('PTRM input'!$H$385*(1+rvanilla02)^0.5)-SUM($H119:AW119),('PTRM input'!$H$385*(1+rvanilla02)^0.5)/A1stdlife)) -> 0 | AY119: =IF(A1stdlife="n/a","n/a",IF(AY$3>(A1stdlife+$E119),('PTRM input'!$H$385*(1+rvanilla02)^0.5)-SUM($H119:AX119),('PTRM input'!$H$385*(1+rvanilla02)^0.5)/A1stdlife)) -> 0 | AZ119: =IF(A1stdlife="n/a","n/a",IF(AZ$3>(A1stdlife+$E119),('PTRM input'!$H$385*(1+rvanilla02)^0.5)-SUM($H119:AY119),('PTRM input'!$H$385*(1+rvanilla02)^0.5)/A1stdlife)) -> 0 | BA119: =IF(A1stdlife="n/a","n/a",IF(BA$3>(A1stdlife+$E119),('PTRM input'!$H$385*(1+rvanilla02)^0.5)-SUM($H119:AZ119),('PTRM input'!$H$385*(1+rvanilla02)^0.5)/A1stdlife)) -> 0 | BB119: =IF(A1stdlife="n/a","n/a",IF(BB$3>(A1stdlife+$E119),('PTRM input'!$H$385*(1+rvanilla02)^0.5)-SUM($H119:BA119),('PTRM input'!$H$385*(1+rvanilla02)^0.5)/A1stdlife)) -> 0 | BC119: =IF(A1stdlife="n/a","n/a",IF(BC$3>(A1stdlife+$E119),('PTRM input'!$H$385*(1+rvanilla02)^0.5)-SUM($H119:BB119),('PTRM input'!$H$385*(1+rvanilla02)^0.5)/A1stdlife)) -> 0 | BD119: =IF(A1stdlife="n/a","n/a",IF(BD$3>(A1stdlife+$E119),('PTRM input'!$H$385*(1+rvanilla02)^0.5)-SUM($H119:BC119),('PTRM input'!$H$385*(1+rvanilla02)^0.5)/A1stdlife)) -> 0 | BE119: =IF(A1stdlife="n/a","n/a",IF(BE$3>(A1stdlife+$E119),('PTRM input'!$H$385*(1+rvanilla02)^0.5)-SUM($H119:BD119),('PTRM input'!$H$385*(1+rvanilla02)^0.5)/A1stdlife)) -> 0 | BF119: =IF(A1stdlife="n/a","n/a",IF(BF$3>(A1stdlife+$E119),('PTRM input'!$H$385*(1+rvanilla02)^0.5)-SUM($H119:BE119),('PTRM input'!$H$385*(1+rvanilla02)^0.5)/A1stdlife)) -> 0 | BG119: =IF(A1stdlife="n/a","n/a",IF(BG$3>(A1stdlife+$E119),('PTRM input'!$H$385*(1+rvanilla02)^0.5)-SUM($H119:BF119),('PTRM input'!$H$385*(1+rvanilla02)^0.5)/A1stdlife)) -> 0 | BH119: =IF(A1stdlife="n/a","n/a",IF(BH$3>(A1stdlife+$E119),('PTRM input'!$H$385*(1+rvanilla02)^0.5)-SUM($H119:BG119),('PTRM input'!$H$385*(1+rvanilla02)^0.5)/A1stdlife)) -> 0 | BI119: =IF(A1stdlife="n/a","n/a",IF(BI$3>(A1stdlife+$E119),('PTRM input'!$H$385*(1+rvanilla02)^0.5)-SUM($H119:BH119),('PTRM input'!$H$385*(1+rvanilla02)^0.5)/A1stdlife)) -> 0
E120: 3 | J120: =IF(A1stdlife="n/a","n/a",IF(J$3>(A1stdlife+$E120),('PTRM input'!$I$385*(1+rvanilla03)^0.5)-SUM(I120:$I120),('PTRM input'!$I$385*(1+rvanilla03)^0.5)/A1stdlife)) -> 0 | K120: =IF(A1stdlife="n/a","n/a",IF(K$3>(A1stdlife+$E120),('PTRM input'!$I$385*(1+rvanilla03)^0.5)-SUM($I120:J120),('PTRM input'!$I$385*(1+rvanilla03)^0.5)/A1stdlife)) -> 0 | L120: =IF(A1stdlife="n/a","n/a",IF(L$3>(A1stdlife+$E120),('PTRM input'!$I$385*(1+rvanilla03)^0.5)-SUM($I120:K120),('PTRM input'!$I$385*(1+rvanilla03)^0.5)/A1stdlife)) -> 0 | M120: =IF(A1stdlife="n/a","n/a",IF(M$3>(A1stdlife+$E120),('PTRM input'!$I$385*(1+rvanilla03)^0.5)-SUM($I120:L120),('PTRM input'!$I$385*(1+rvanilla03)^0.5)/A1stdlife)) -> 0 | N120: =IF(A1stdlife="n/a","n/a",IF(N$3>(A1stdlife+$E120),('PTRM input'!$I$385*(1+rvanilla03)^0.5)-SUM($I120:M120),('PTRM input'!$I$385*(1+rvanilla03)^0.5)/A1stdlife)) -> 0 | O120: =IF(A1stdlife="n/a","n/a",IF(O$3>(A1stdlife+$E120),('PTRM input'!$I$385*(1+rvanilla03)^0.5)-SUM($I120:N120),('PTRM input'!$I$385*(1+rvanilla03)^0.5)/A1stdlife)) -> 0 | P120: =IF(A1stdlife="n/a","n/a",IF(P$3>(A1stdlife+$E120),('PTRM input'!$I$385*(1+rvanilla03)^0.5)-SUM($I120:O120),('PTRM input'!$I$385*(1+rvanilla03)^0.5)/A1stdlife)) -> 0 | Q120: =IF(A1stdlife="n/a","n/a",IF(Q$3>(A1stdlife+$E120),('PTRM input'!$I$385*(1+rvanilla03)^0.5)-SUM($I120:P120),('PTRM input'!$I$385*(1+rvanilla03)^0.5)/A1stdlife)) -> 0 | R120: =IF(A1stdlife="n/a","n/a",IF(R$3>(A1stdlife+$E120),('PTRM input'!$I$385*(1+rvanilla03)^0.5)-SUM($I120:Q120),('PTRM input'!$I$385*(1+rvanilla03)^0.5)/A1stdlife)) -> 0 | S120: =IF(A1stdlife="n/a","n/a",IF(S$3>(A1stdlife+$E120),('PTRM input'!$I$385*(1+rvanilla03)^0.5)-SUM($I120:R120),('PTRM input'!$I$385*(1+rvanilla03)^0.5)/A1stdlife)) -> 0 | T120: =IF(A1stdlife="n/a","n/a",IF(T$3>(A1stdlife+$E120),('PTRM input'!$I$385*(1+rvanilla03)^0.5)-SUM($I120:S120),('PTRM input'!$I$385*(1+rvanilla03)^0.5)/A1stdlife)) -> 0 | U120: =IF(A1stdlife="n/a","n/a",IF(U$3>(A1stdlife+$E120),('PTRM input'!$I$385*(1+rvanilla03)^0.5)-SUM($I120:T120),('PTRM input'!$I$385*(1+rvanilla03)^0.5)/A1stdlife)) -> 0 | V120: =IF(A1stdlife="n/a","n/a",IF(V$3>(A1stdlife+$E120),('PTRM input'!$I$385*(1+rvanilla03)^0.5)-SUM($I120:U120),('PTRM input'!$I$385*(1+rvanilla03)^0.5)/A1stdlife)) -> 0 | W120: =IF(A1stdlife="n/a","n/a",IF(W$3>(A1stdlife+$E120),('PTRM input'!$I$385*(1+rvanilla03)^0.5)-SUM($I120:V120),('PTRM input'!$I$385*(1+rvanilla03)^0.5)/A1stdlife)) -> 0 | X120: =IF(A1stdlife="n/a","n/a",IF(X$3>(A1stdlife+$E120),('PTRM input'!$I$385*(1+rvanilla03)^0.5)-SUM($I120:W120),('PTRM input'!$I$385*(1+rvanilla03)^0.5)/A1stdlife)) -> 0 | Y120: =IF(A1stdlife="n/a","n/a",IF(Y$3>(A1stdlife+$E120),('PTRM input'!$I$385*(1+rvanilla03)^0.5)-SUM($I120:X120),('PTRM input'!$I$385*(1+rvanilla03)^0.5)/A1stdlife)) -> 0 | Z120: =IF(A1stdlife="n/a","n/a",IF(Z$3>(A1stdlife+$E120),('PTRM input'!$I$385*(1+rvanilla03)^0.5)-SUM($I120:Y120),('PTRM input'!$I$385*(1+rvanilla03)^0.5)/A1stdlife)) -> 0 | AA120: =IF(A1stdlife="n/a","n/a",IF(AA$3>(A1stdlife+$E120),('PTRM input'!$I$385*(1+rvanilla03)^0.5)-SUM($I120:Z120),('PTRM input'!$I$385*(1+rvanilla03)^0.5)/A1stdlife)) -> 0 | AB120: =IF(A1stdlife="n/a","n/a",IF(AB$3>(A1stdlife+$E120),('PTRM input'!$I$385*(1+rvanilla03)^0.5)-SUM($I120:AA120),('PTRM input'!$I$385*(1+rvanilla03)^0.5)/A1stdlife)) -> 0 | AC120: =IF(A1stdlife="n/a","n/a",IF(AC$3>(A1stdlife+$E120),('PTRM input'!$I$385*(1+rvanilla03)^0.5)-SUM($I120:AB120),('PTRM input'!$I$385*(1+rvanilla03)^0.5)/A1stdlife)) -> 0 | AD120: =IF(A1stdlife="n/a","n/a",IF(AD$3>(A1stdlife+$E120),('PTRM input'!$I$385*(1+rvanilla03)^0.5)-SUM($I120:AC120),('PTRM input'!$I$385*(1+rvanilla03)^0.5)/A1stdlife)) -> 0 | AE120: =IF(A1stdlife="n/a","n/a",IF(AE$3>(A1stdlife+$E120),('PTRM input'!$I$385*(1+rvanilla03)^0.5)-SUM($I120:AD120),('PTRM input'!$I$385*(1+rvanilla03)^0.5)/A1stdlife)) -> 0 | AF120: =IF(A1stdlife="n/a","n/a",IF(AF$3>(A1stdlife+$E120),('PTRM input'!$I$385*(1+rvanilla03)^0.5)-SUM($I120:AE120),('PTRM input'!$I$385*(1+rvanilla03)^0.5)/A1stdlife)) -> 0 | AG120: =IF(A1stdlife="n/a","n/a",IF(AG$3>(A1stdlife+$E120),('PTRM input'!$I$385*(1+rvanilla03)^0.5)-SUM($I120:AF120),('PTRM input'!$I$385*(1+rvanilla03)^0.5)/A1stdlife)) -> 0 | AH120: =IF(A1stdlife="n/a","n/a",IF(AH$3>(A1stdlife+$E120),('PTRM input'!$I$385*(1+rvanilla03)^0.5)-SUM($I120:AG120),('PTRM input'!$I$385*(1+rvanilla03)^0.5)/A1stdlife)) -> 0 | AI120: =IF(A1stdlife="n/a","n/a",IF(AI$3>(A1stdlife+$E120),('PTRM input'!$I$385*(1+rvanilla03)^0.5)-SUM($I120:AH120),('PTRM input'!$I$385*(1+rvanilla03)^0.5)/A1stdlife)) -> 0 | AJ120: =IF(A1stdlife="n/a","n/a",IF(AJ$3>(A1stdlife+$E120),('PTRM input'!$I$385*(1+rvanilla03)^0.5)-SUM($I120:AI120),('PTRM input'!$I$385*(1+rvanilla03)^0.5)/A1stdlife)) -> 0 | AK120: =IF(A1stdlife="n/a","n/a",IF(AK$3>(A1stdlife+$E120),('PTRM input'!$I$385*(1+rvanilla03)^0.5)-SUM($I120:AJ120),('PTRM input'!$I$385*(1+rvanilla03)^0.5)/A1stdlife)) -> 0 | AL120: =IF(A1stdlife="n/a","n/a",IF(AL$3>(A1stdlife+$E120),('PTRM input'!$I$385*(1+rvanilla03)^0.5)-SUM($I120:AK120),('PTRM input'!$I$385*(1+rvanilla03)^0.5)/A1stdlife)) -> 0 | AM120: =IF(A1stdlife="n/a","n/a",IF(AM$3>(A1stdlife+$E120),('PTRM input'!$I$385*(1+rvanilla03)^0.5)-SUM($I120:AL120),('PTRM input'!$I$385*(1+rvanilla03)^0.5)/A1stdlife)) -> 0 | AN120: =IF(A1stdlife="n/a","n/a",IF(AN$3>(A1stdlife+$E120),('PTRM input'!$I$385*(1+rvanilla03)^0.5)-SUM($I120:AM120),('PTRM input'!$I$385*(1+rvanilla03)^0.5)/A1stdlife)) -> 0 | AO120: =IF(A1stdlife="n/a","n/a",IF(AO$3>(A1stdlife+$E120),('PTRM input'!$I$385*(1+rvanilla03)^0.5)-SUM($I120:AN120),('PTRM input'!$I$385*(1+rvanilla03)^0.5)/A1stdlife)) -> 0 | AP120: =IF(A1stdlife="n/a","n/a",IF(AP$3>(A1stdlife+$E120),('PTRM input'!$I$385*(1+rvanilla03)^0.5)-SUM($I120:AO120),('PTRM input'!$I$385*(1+rvanilla03)^0.5)/A1stdlife)) -> 0 | AQ120: =IF(A1stdlife="n/a","n/a",IF(AQ$3>(A1stdlife+$E120),('PTRM input'!$I$385*(1+rvanilla03)^0.5)-SUM($I120:AP120),('PTRM input'!$I$385*(1+rvanilla03)^0.5)/A1stdlife)) -> 0 | AR120: =IF(A1stdlife="n/a","n/a",IF(AR$3>(A1stdlife+$E120),('PTRM input'!$I$385*(1+rvanilla03)^0.5)-SUM($I120:AQ120),('PTRM input'!$I$385*(1+rvanilla03)^0.5)/A1stdlife)) -> 0 | AS120: =IF(A1stdlife="n/a","n/a",IF(AS$3>(A1stdlife+$E120),('PTRM input'!$I$385*(1+rvanilla03)^0.5)-SUM($I120:AR120),('PTRM input'!$I$385*(1+rvanilla03)^0.5)/A1stdlife)) -> 0 | AT120: =IF(A1stdlife="n/a","n/a",IF(AT$3>(A1stdlife+$E120),('PTRM input'!$I$385*(1+rvanilla03)^0.5)-SUM($I120:AS120),('PTRM input'!$I$385*(1+rvanilla03)^0.5)/A1stdlife)) -> 0 | AU120: =IF(A1stdlife="n/a","n/a",IF(AU$3>(A1stdlife+$E120),('PTRM input'!$I$385*(1+rvanilla03)^0.5)-SUM($I120:AT120),('PTRM input'!$I$385*(1+rvanilla03)^0.5)/A1stdlife)) -> 0 | AV120: =IF(A1stdlife="n/a","n/a",IF(AV$3>(A1stdlife+$E120),('PTRM input'!$I$385*(1+rvanilla03)^0.5)-SUM($I120:AU120),('PTRM input'!$I$385*(1+rvanilla03)^0.5)/A1stdlife)) -> 0 | AW120: =IF(A1stdlife="n/a","n/a",IF(AW$3>(A1stdlife+$E120),('PTRM input'!$I$385*(1+rvanilla03)^0.5)-SUM($I120:AV120),('PTRM input'!$I$385*(1+rvanilla03)^0.5)/A1stdlife)) -> 0 | AX120: =IF(A1stdlife="n/a","n/a",IF(AX$3>(A1stdlife+$E120),('PTRM input'!$I$385*(1+rvanilla03)^0.5)-SUM($I120:AW120),('PTRM input'!$I$385*(1+rvanilla03)^0.5)/A1stdlife)) -> 0 | AY120: =IF(A1stdlife="n/a","n/a",IF(AY$3>(A1stdlife+$E120),('PTRM input'!$I$385*(1+rvanilla03)^0.5)-SUM($I120:AX120),('PTRM input'!$I$385*(1+rvanilla03)^0.5)/A1stdlife)) -> 0 | AZ120: =IF(A1stdlife="n/a","n/a",IF(AZ$3>(A1stdlife+$E120),('PTRM input'!$I$385*(1+rvanilla03)^0.5)-SUM($I120:AY120),('PTRM input'!$I$385*(1+rvanilla03)^0.5)/A1stdlife)) -> 0 | BA120: =IF(A1stdlife="n/a","n/a",IF(BA$3>(A1stdlife+$E120),('PTRM input'!$I$385*(1+rvanilla03)^0.5)-SUM($I120:AZ120),('PTRM input'!$I$385*(1+rvanilla03)^0.5)/A1stdlife)) -> 0 | BB120: =IF(A1stdlife="n/a","n/a",IF(BB$3>(A1stdlife+$E120),('PTRM input'!$I$385*(1+rvanilla03)^0.5)-SUM($I120:BA120),('PTRM input'!$I$385*(1+rvanilla03)^0.5)/A1stdlife)) -> 0 | BC120: =IF(A1stdlife="n/a","n/a",IF(BC$3>(A1stdlife+$E120),('PTRM input'!$I$385*(1+rvanilla03)^0.5)-SUM($I120:BB120),('PTRM input'!$I$385*(1+rvanilla03)^0.5)/A1stdlife)) -> 0 | BD120: =IF(A1stdlife="n/a","n/a",IF(BD$3>(A1stdlife+$E120),('PTRM input'!$I$385*(1+rvanilla03)^0.5)-SUM($I120:BC120),('PTRM input'!$I$385*(1+rvanilla03)^0.5)/A1stdlife)) -> 0 | BE120: =IF(A1stdlife="n/a","n/a",IF(BE$3>(A1stdlife+$E120),('PTRM input'!$I$385*(1+rvanilla03)^0.5)-SUM($I120:BD120),('PTRM input'!$I$385*(1+rvanilla03)^0.5)/A1stdlife)) -> 0 | BF120: =IF(A1stdlife="n/a","n/a",IF(BF$3>(A1stdlife+$E120),('PTRM input'!$I$385*(1+rvanilla03)^0.5)-SUM($I120:BE120),('PTRM input'!$I$385*(1+rvanilla03)^0.5)/A1stdlife)) -> 0 | BG120: =IF(A1stdlife="n/a","n/a",IF(BG$3>(A1stdlife+$E120),('PTRM input'!$I$385*(1+rvanilla03)^0.5)-SUM($I120:BF120),('PTRM input'!$I$385*(1+rvanilla03)^0.5)/A1stdlife)) -> 0 | BH120: =IF(A1stdlife="n/a","n/a",IF(BH$3>(A1stdlife+$E120),('PTRM input'!$I$385*(1+rvanilla03)^0.5)-SUM($I120:BG120),('PTRM input'!$I$385*(1+rvanilla03)^0.5)/A1stdlife)) -> 0 | BI120: =IF(A1stdlife="n/a","n/a",IF(BI$3>(A1stdlife+$E120),('PTRM input'!$I$385*(1+rvanilla03)^0.5)-SUM($I120:BH120),('PTRM input'!$I$385*(1+rvanilla03)^0.5)/A1stdlife)) -> 0
E121: 4 | K121: =IF(A1stdlife="n/a","n/a",IF(K$3>(A1stdlife+$E121),('PTRM input'!$J$385*(1+rvanilla04)^0.5)-SUM(J121:$J121),('PTRM input'!$J$385*(1+rvanilla04)^0.5)/A1stdlife)) -> 0 | L121: =IF(A1stdlife="n/a","n/a",IF(L$3>(A1stdlife+$E121),('PTRM input'!$J$385*(1+rvanilla04)^0.5)-SUM($J121:K121),('PTRM input'!$J$385*(1+rvanilla04)^0.5)/A1stdlife)) -> 0 | M121: =IF(A1stdlife="n/a","n/a",IF(M$3>(A1stdlife+$E121),('PTRM input'!$J$385*(1+rvanilla04)^0.5)-SUM($J121:L121),('PTRM input'!$J$385*(1+rvanilla04)^0.5)/A1stdlife)) -> 0 | N121: =IF(A1stdlife="n/a","n/a",IF(N$3>(A1stdlife+$E121),('PTRM input'!$J$385*(1+rvanilla04)^0.5)-SUM($J121:M121),('PTRM input'!$J$385*(1+rvanilla04)^0.5)/A1stdlife)) -> 0 | O121: =IF(A1stdlife="n/a","n/a",IF(O$3>(A1stdlife+$E121),('PTRM input'!$J$385*(1+rvanilla04)^0.5)-SUM($J121:N121),('PTRM input'!$J$385*(1+rvanilla04)^0.5)/A1stdlife)) -> 0 | P121: =IF(A1stdlife="n/a","n/a",IF(P$3>(A1stdlife+$E121),('PTRM input'!$J$385*(1+rvanilla04)^0.5)-SUM($J121:O121),('PTRM input'!$J$385*(1+rvanilla04)^0.5)/A1stdlife)) -> 0 | Q121: =IF(A1stdlife="n/a","n/a",IF(Q$3>(A1stdlife+$E121),('PTRM input'!$J$385*(1+rvanilla04)^0.5)-SUM($J121:P121),('PTRM input'!$J$385*(1+rvanilla04)^0.5)/A1stdlife)) -> 0 | R121: =IF(A1stdlife="n/a","n/a",IF(R$3>(A1stdlife+$E121),('PTRM input'!$J$385*(1+rvanilla04)^0.5)-SUM($J121:Q121),('PTRM input'!$J$385*(1+rvanilla04)^0.5)/A1stdlife)) -> 0 | S121: =IF(A1stdlife="n/a","n/a",IF(S$3>(A1stdlife+$E121),('PTRM input'!$J$385*(1+rvanilla04)^0.5)-SUM($J121:R121),('PTRM input'!$J$385*(1+rvanilla04)^0.5)/A1stdlife)) -> 0 | T121: =IF(A1stdlife="n/a","n/a",IF(T$3>(A1stdlife+$E121),('PTRM input'!$J$385*(1+rvanilla04)^0.5)-SUM($J121:S121),('PTRM input'!$J$385*(1+rvanilla04)^0.5)/A1stdlife)) -> 0 | U121: =IF(A1stdlife="n/a","n/a",IF(U$3>(A1stdlife+$E121),('PTRM input'!$J$385*(1+rvanilla04)^0.5)-SUM($J121:T121),('PTRM input'!$J$385*(1+rvanilla04)^0.5)/A1stdlife)) -> 0 | V121: =IF(A1stdlife="n/a","n/a",IF(V$3>(A1stdlife+$E121),('PTRM input'!$J$385*(1+rvanilla04)^0.5)-SUM($J121:U121),('PTRM input'!$J$385*(1+rvanilla04)^0.5)/A1stdlife)) -> 0 | W121: =IF(A1stdlife="n/a","n/a",IF(W$3>(A1stdlife+$E121),('PTRM input'!$J$385*(1+rvanilla04)^0.5)-SUM($J121:V121),('PTRM input'!$J$385*(1+rvanilla04)^0.5)/A1stdlife)) -> 0 | X121: =IF(A1stdlife="n/a","n/a",IF(X$3>(A1stdlife+$E121),('PTRM input'!$J$385*(1+rvanilla04)^0.5)-SUM($J121:W121),('PTRM input'!$J$385*(1+rvanilla04)^0.5)/A1stdlife)) -> 0 | Y121: =IF(A1stdlife="n/a","n/a",IF(Y$3>(A1stdlife+$E121),('PTRM input'!$J$385*(1+rvanilla04)^0.5)-SUM($J121:X121),('PTRM input'!$J$385*(1+rvanilla04)^0.5)/A1stdlife)) -> 0 | Z121: =IF(A1stdlife="n/a","n/a",IF(Z$3>(A1stdlife+$E121),('PTRM input'!$J$385*(1+rvanilla04)^0.5)-SUM($J121:Y121),('PTRM input'!$J$385*(1+rvanilla04)^0.5)/A1stdlife)) -> 0 | AA121: =IF(A1stdlife="n/a","n/a",IF(AA$3>(A1stdlife+$E121),('PTRM input'!$J$385*(1+rvanilla04)^0.5)-SUM($J121:Z121),('PTRM input'!$J$385*(1+rvanilla04)^0.5)/A1stdlife)) -> 0 | AB121: =IF(A1stdlife="n/a","n/a",IF(AB$3>(A1stdlife+$E121),('PTRM input'!$J$385*(1+rvanilla04)^0.5)-SUM($J121:AA121),('PTRM input'!$J$385*(1+rvanilla04)^0.5)/A1stdlife)) -> 0 | AC121: =IF(A1stdlife="n/a","n/a",IF(AC$3>(A1stdlife+$E121),('PTRM input'!$J$385*(1+rvanilla04)^0.5)-SUM($J121:AB121),('PTRM input'!$J$385*(1+rvanilla04)^0.5)/A1stdlife)) -> 0 | AD121: =IF(A1stdlife="n/a","n/a",IF(AD$3>(A1stdlife+$E121),('PTRM input'!$J$385*(1+rvanilla04)^0.5)-SUM($J121:AC121),('PTRM input'!$J$385*(1+rvanilla04)^0.5)/A1stdlife)) -> 0 | AE121: =IF(A1stdlife="n/a","n/a",IF(AE$3>(A1stdlife+$E121),('PTRM input'!$J$385*(1+rvanilla04)^0.5)-SUM($J121:AD121),('PTRM input'!$J$385*(1+rvanilla04)^0.5)/A1stdlife)) -> 0 | AF121: =IF(A1stdlife="n/a","n/a",IF(AF$3>(A1stdlife+$E121),('PTRM input'!$J$385*(1+rvanilla04)^0.5)-SUM($J121:AE121),('PTRM input'!$J$385*(1+rvanilla04)^0.5)/A1stdlife)) -> 0 | AG121: =IF(A1stdlife="n/a","n/a",IF(AG$3>(A1stdlife+$E121),('PTRM input'!$J$385*(1+rvanilla04)^0.5)-SUM($J121:AF121),('PTRM input'!$J$385*(1+rvanilla04)^0.5)/A1stdlife)) -> 0 | AH121: =IF(A1stdlife="n/a","n/a",IF(AH$3>(A1stdlife+$E121),('PTRM input'!$J$385*(1+rvanilla04)^0.5)-SUM($J121:AG121),('PTRM input'!$J$385*(1+rvanilla04)^0.5)/A1stdlife)) -> 0 | AI121: =IF(A1stdlife="n/a","n/a",IF(AI$3>(A1stdlife+$E121),('PTRM input'!$J$385*(1+rvanilla04)^0.5)-SUM($J121:AH121),('PTRM input'!$J$385*(1+rvanilla04)^0.5)/A1stdlife)) -> 0 | AJ121: =IF(A1stdlife="n/a","n/a",IF(AJ$3>(A1stdlife+$E121),('PTRM input'!$J$385*(1+rvanilla04)^0.5)-SUM($J121:AI121),('PTRM input'!$J$385*(1+rvanilla04)^0.5)/A1stdlife)) -> 0 | AK121: =IF(A1stdlife="n/a","n/a",IF(AK$3>(A1stdlife+$E121),('PTRM input'!$J$385*(1+rvanilla04)^0.5)-SUM($J121:AJ121),('PTRM input'!$J$385*(1+rvanilla04)^0.5)/A1stdlife)) -> 0 | AL121: =IF(A1stdlife="n/a","n/a",IF(AL$3>(A1stdlife+$E121),('PTRM input'!$J$385*(1+rvanilla04)^0.5)-SUM($J121:AK121),('PTRM input'!$J$385*(1+rvanilla04)^0.5)/A1stdlife)) -> 0 | AM121: =IF(A1stdlife="n/a","n/a",IF(AM$3>(A1stdlife+$E121),('PTRM input'!$J$385*(1+rvanilla04)^0.5)-SUM($J121:AL121),('PTRM input'!$J$385*(1+rvanilla04)^0.5)/A1stdlife)) -> 0 | AN121: =IF(A1stdlife="n/a","n/a",IF(AN$3>(A1stdlife+$E121),('PTRM input'!$J$385*(1+rvanilla04)^0.5)-SUM($J121:AM121),('PTRM input'!$J$385*(1+rvanilla04)^0.5)/A1stdlife)) -> 0 | AO121: =IF(A1stdlife="n/a","n/a",IF(AO$3>(A1stdlife+$E121),('PTRM input'!$J$385*(1+rvanilla04)^0.5)-SUM($J121:AN121),('PTRM input'!$J$385*(1+rvanilla04)^0.5)/A1stdlife)) -> 0 | AP121: =IF(A1stdlife="n/a","n/a",IF(AP$3>(A1stdlife+$E121),('PTRM input'!$J$385*(1+rvanilla04)^0.5)-SUM($J121:AO121),('PTRM input'!$J$385*(1+rvanilla04)^0.5)/A1stdlife)) -> 0 | AQ121: =IF(A1stdlife="n/a","n/a",IF(AQ$3>(A1stdlife+$E121),('PTRM input'!$J$385*(1+rvanilla04)^0.5)-SUM($J121:AP121),('PTRM input'!$J$385*(1+rvanilla04)^0.5)/A1stdlife)) -> 0 | AR121: =IF(A1stdlife="n/a","n/a",IF(AR$3>(A1stdlife+$E121),('PTRM input'!$J$385*(1+rvanilla04)^0.5)-SUM($J121:AQ121),('PTRM input'!$J$385*(1+rvanilla04)^0.5)/A1stdlife)) -> 0 | AS121: =IF(A1stdlife="n/a","n/a",IF(AS$3>(A1stdlife+$E121),('PTRM input'!$J$385*(1+rvanilla04)^0.5)-SUM($J121:AR121),('PTRM input'!$J$385*(1+rvanilla04)^0.5)/A1stdlife)) -> 0 | AT121: =IF(A1stdlife="n/a","n/a",IF(AT$3>(A1stdlife+$E121),('PTRM input'!$J$385*(1+rvanilla04)^0.5)-SUM($J121:AS121),('PTRM input'!$J$385*(1+rvanilla04)^0.5)/A1stdlife)) -> 0 | AU121: =IF(A1stdlife="n/a","n/a",IF(AU$3>(A1stdlife+$E121),('PTRM input'!$J$385*(1+rvanilla04)^0.5)-SUM($J121:AT121),('PTRM input'!$J$385*(1+rvanilla04)^0.5)/A1stdlife)) -> 0 | AV121: =IF(A1stdlife="n/a","n/a",IF(AV$3>(A1stdlife+$E121),('PTRM input'!$J$385*(1+rvanilla04)^0.5)-SUM($J121:AU121),('PTRM input'!$J$385*(1+rvanilla04)^0.5)/A1stdlife)) -> 0 | AW121: =IF(A1stdlife="n/a","n/a",IF(AW$3>(A1stdlife+$E121),('PTRM input'!$J$385*(1+rvanilla04)^0.5)-SUM($J121:AV121),('PTRM input'!$J$385*(1+rvanilla04)^0.5)/A1stdlife)) -> 0 | AX121: =IF(A1stdlife="n/a","n/a",IF(AX$3>(A1stdlife+$E121),('PTRM input'!$J$385*(1+rvanilla04)^0.5)-SUM($J121:AW121),('PTRM input'!$J$385*(1+rvanilla04)^0.5)/A1stdlife)) -> 0 | AY121: =IF(A1stdlife="n/a","n/a",IF(AY$3>(A1stdlife+$E121),('PTRM input'!$J$385*(1+rvanilla04)^0.5)-SUM($J121:AX121),('PTRM input'!$J$385*(1+rvanilla04)^0.5)/A1stdlife)) -> 0 | AZ121: =IF(A1stdlife="n/a","n/a",IF(AZ$3>(A1stdlife+$E121),('PTRM input'!$J$385*(1+rvanilla04)^0.5)-SUM($J121:AY121),('PTRM input'!$J$385*(1+rvanilla04)^0.5)/A1stdlife)) -> 0 | BA121: =IF(A1stdlife="n/a","n/a",IF(BA$3>(A1stdlife+$E121),('PTRM input'!$J$385*(1+rvanilla04)^0.5)-SUM($J121:AZ121),('PTRM input'!$J$385*(1+rvanilla04)^0.5)/A1stdlife)) -> 0 | BB121: =IF(A1stdlife="n/a","n/a",IF(BB$3>(A1stdlife+$E121),('PTRM input'!$J$385*(1+rvanilla04)^0.5)-SUM($J121:BA121),('PTRM input'!$J$385*(1+rvanilla04)^0.5)/A1stdlife)) -> 0 | BC121: =IF(A1stdlife="n/a","n/a",IF(BC$3>(A1stdlife+$E121),('PTRM input'!$J$385*(1+rvanilla04)^0.5)-SUM($J121:BB121),('PTRM input'!$J$385*(1+rvanilla04)^0.5)/A1stdlife)) -> 0 | BD121: =IF(A1stdlife="n/a","n/a",IF(BD$3>(A1stdlife+$E121),('PTRM input'!$J$385*(1+rvanilla04)^0.5)-SUM($J121:BC121),('PTRM input'!$J$385*(1+rvanilla04)^0.5)/A1stdlife)) -> 0 | BE121: =IF(A1stdlife="n/a","n/a",IF(BE$3>(A1stdlife+$E121),('PTRM input'!$J$385*(1+rvanilla04)^0.5)-SUM($J121:BD121),('PTRM input'!$J$385*(1+rvanilla04)^0.5)/A1stdlife)) -> 0 | BF121: =IF(A1stdlife="n/a","n/a",IF(BF$3>(A1stdlife+$E121),('PTRM input'!$J$385*(1+rvanilla04)^0.5)-SUM($J121:BE121),('PTRM input'!$J$385*(1+rvanilla04)^0.5)/A1stdlife)) -> 0 | BG121: =IF(A1stdlife="n/a","n/a",IF(BG$3>(A1stdlife+$E121),('PTRM input'!$J$385*(1+rvanilla04)^0.5)-SUM($J121:BF121),('PTRM input'!$J$385*(1+rvanilla04)^0.5)/A1stdlife)) -> 0 | BH121: =IF(A1stdlife="n/a","n/a",IF(BH$3>(A1stdlife+$E121),('PTRM input'!$J$385*(1+rvanilla04)^0.5)-SUM($J121:BG121),('PTRM input'!$J$385*(1+rvanilla04)^0.5)/A1stdlife)) -> 0 | BI121: =IF(A1stdlife="n/a","n/a",IF(BI$3>(A1stdlife+$E121),('PTRM input'!$J$385*(1+rvanilla04)^0.5)-SUM($J121:BH121),('PTRM input'!$J$385*(1+rvanilla04)^0.5)/A1stdlife)) -> 0
E122: 5 | L122: =IF(A1stdlife="n/a","n/a",IF(L$3>(A1stdlife+$E122),('PTRM input'!$K$385*(1+rvanilla05)^0.5)-SUM($K122:K122),('PTRM input'!$K$385*(1+rvanilla05)^0.5)/A1stdlife)) -> 0 | M122: =IF(A1stdlife="n/a","n/a",IF(M$3>(A1stdlife+$E122),('PTRM input'!$K$385*(1+rvanilla05)^0.5)-SUM($K122:L122),('PTRM input'!$K$385*(1+rvanilla05)^0.5)/A1stdlife)) -> 0 | N122: =IF(A1stdlife="n/a","n/a",IF(N$3>(A1stdlife+$E122),('PTRM input'!$K$385*(1+rvanilla05)^0.5)-SUM($K122:M122),('PTRM input'!$K$385*(1+rvanilla05)^0.5)/A1stdlife)) -> 0 | O122: =IF(A1stdlife="n/a","n/a",IF(O$3>(A1stdlife+$E122),('PTRM input'!$K$385*(1+rvanilla05)^0.5)-SUM($K122:N122),('PTRM input'!$K$385*(1+rvanilla05)^0.5)/A1stdlife)) -> 0 | P122: =IF(A1stdlife="n/a","n/a",IF(P$3>(A1stdlife+$E122),('PTRM input'!$K$385*(1+rvanilla05)^0.5)-SUM($K122:O122),('PTRM input'!$K$385*(1+rvanilla05)^0.5)/A1stdlife)) -> 0 | Q122: =IF(A1stdlife="n/a","n/a",IF(Q$3>(A1stdlife+$E122),('PTRM input'!$K$385*(1+rvanilla05)^0.5)-SUM($K122:P122),('PTRM input'!$K$385*(1+rvanilla05)^0.5)/A1stdlife)) -> 0 | R122: =IF(A1stdlife="n/a","n/a",IF(R$3>(A1stdlife+$E122),('PTRM input'!$K$385*(1+rvanilla05)^0.5)-SUM($K122:Q122),('PTRM input'!$K$385*(1+rvanilla05)^0.5)/A1stdlife)) -> 0 | S122: =IF(A1stdlife="n/a","n/a",IF(S$3>(A1stdlife+$E122),('PTRM input'!$K$385*(1+rvanilla05)^0.5)-SUM($K122:R122),('PTRM input'!$K$385*(1+rvanilla05)^0.5)/A1stdlife)) -> 0 | T122: =IF(A1stdlife="n/a","n/a",IF(T$3>(A1stdlife+$E122),('PTRM input'!$K$385*(1+rvanilla05)^0.5)-SUM($K122:S122),('PTRM input'!$K$385*(1+rvanilla05)^0.5)/A1stdlife)) -> 0 | U122: =IF(A1stdlife="n/a","n/a",IF(U$3>(A1stdlife+$E122),('PTRM input'!$K$385*(1+rvanilla05)^0.5)-SUM($K122:T122),('PTRM input'!$K$385*(1+rvanilla05)^0.5)/A1stdlife)) -> 0 | V122: =IF(A1stdlife="n/a","n/a",IF(V$3>(A1stdlife+$E122),('PTRM input'!$K$385*(1+rvanilla05)^0.5)-SUM($K122:U122),('PTRM input'!$K$385*(1+rvanilla05)^0.5)/A1stdlife)) -> 0 | W122: =IF(A1stdlife="n/a","n/a",IF(W$3>(A1stdlife+$E122),('PTRM input'!$K$385*(1+rvanilla05)^0.5)-SUM($K122:V122),('PTRM input'!$K$385*(1+rvanilla05)^0.5)/A1stdlife)) -> 0 | X122: =IF(A1stdlife="n/a","n/a",IF(X$3>(A1stdlife+$E122),('PTRM input'!$K$385*(1+rvanilla05)^0.5)-SUM($K122:W122),('PTRM input'!$K$385*(1+rvanilla05)^0.5)/A1stdlife)) -> 0 | Y122: =IF(A1stdlife="n/a","n/a",IF(Y$3>(A1stdlife+$E122),('PTRM input'!$K$385*(1+rvanilla05)^0.5)-SUM($K122:X122),('PTRM input'!$K$385*(1+rvanilla05)^0.5)/A1stdlife)) -> 0 | Z122: =IF(A1stdlife="n/a","n/a",IF(Z$3>(A1stdlife+$E122),('PTRM input'!$K$385*(1+rvanilla05)^0.5)-SUM($K122:Y122),('PTRM input'!$K$385*(1+rvanilla05)^0.5)/A1stdlife)) -> 0 | AA122: =IF(A1stdlife="n/a","n/a",IF(AA$3>(A1stdlife+$E122),('PTRM input'!$K$385*(1+rvanilla05)^0.5)-SUM($K122:Z122),('PTRM input'!$K$385*(1+rvanilla05)^0.5)/A1stdlife)) -> 0 | AB122: =IF(A1stdlife="n/a","n/a",IF(AB$3>(A1stdlife+$E122),('PTRM input'!$K$385*(1+rvanilla05)^0.5)-SUM($K122:AA122),('PTRM input'!$K$385*(1+rvanilla05)^0.5)/A1stdlife)) -> 0 | AC122: =IF(A1stdlife="n/a","n/a",IF(AC$3>(A1stdlife+$E122),('PTRM input'!$K$385*(1+rvanilla05)^0.5)-SUM($K122:AB122),('PTRM input'!$K$385*(1+rvanilla05)^0.5)/A1stdlife)) -> 0 | AD122: =IF(A1stdlife="n/a","n/a",IF(AD$3>(A1stdlife+$E122),('PTRM input'!$K$385*(1+rvanilla05)^0.5)-SUM($K122:AC122),('PTRM input'!$K$385*(1+rvanilla05)^0.5)/A1stdlife)) -> 0 | AE122: =IF(A1stdlife="n/a","n/a",IF(AE$3>(A1stdlife+$E122),('PTRM input'!$K$385*(1+rvanilla05)^0.5)-SUM($K122:AD122),('PTRM input'!$K$385*(1+rvanilla05)^0.5)/A1stdlife)) -> 0 | AF122: =IF(A1stdlife="n/a","n/a",IF(AF$3>(A1stdlife+$E122),('PTRM input'!$K$385*(1+rvanilla05)^0.5)-SUM($K122:AE122),('PTRM input'!$K$385*(1+rvanilla05)^0.5)/A1stdlife)) -> 0 | AG122: =IF(A1stdlife="n/a","n/a",IF(AG$3>(A1stdlife+$E122),('PTRM input'!$K$385*(1+rvanilla05)^0.5)-SUM($K122:AF122),('PTRM input'!$K$385*(1+rvanilla05)^0.5)/A1stdlife)) -> 0 | AH122: =IF(A1stdlife="n/a","n/a",IF(AH$3>(A1stdlife+$E122),('PTRM input'!$K$385*(1+rvanilla05)^0.5)-SUM($K122:AG122),('PTRM input'!$K$385*(1+rvanilla05)^0.5)/A1stdlife)) -> 0 | AI122: =IF(A1stdlife="n/a","n/a",IF(AI$3>(A1stdlife+$E122),('PTRM input'!$K$385*(1+rvanilla05)^0.5)-SUM($K122:AH122),('PTRM input'!$K$385*(1+rvanilla05)^0.5)/A1stdlife)) -> 0 | AJ122: =IF(A1stdlife="n/a","n/a",IF(AJ$3>(A1stdlife+$E122),('PTRM input'!$K$385*(1+rvanilla05)^0.5)-SUM($K122:AI122),('PTRM input'!$K$385*(1+rvanilla05)^0.5)/A1stdlife)) -> 0 | AK122: =IF(A1stdlife="n/a","n/a",IF(AK$3>(A1stdlife+$E122),('PTRM input'!$K$385*(1+rvanilla05)^0.5)-SUM($K122:AJ122),('PTRM input'!$K$385*(1+rvanilla05)^0.5)/A1stdlife)) -> 0 | AL122: =IF(A1stdlife="n/a","n/a",IF(AL$3>(A1stdlife+$E122),('PTRM input'!$K$385*(1+rvanilla05)^0.5)-SUM($K122:AK122),('PTRM input'!$K$385*(1+rvanilla05)^0.5)/A1stdlife)) -> 0 | AM122: =IF(A1stdlife="n/a","n/a",IF(AM$3>(A1stdlife+$E122),('PTRM input'!$K$385*(1+rvanilla05)^0.5)-SUM($K122:AL122),('PTRM input'!$K$385*(1+rvanilla05)^0.5)/A1stdlife)) -> 0 | AN122: =IF(A1stdlife="n/a","n/a",IF(AN$3>(A1stdlife+$E122),('PTRM input'!$K$385*(1+rvanilla05)^0.5)-SUM($K122:AM122),('PTRM input'!$K$385*(1+rvanilla05)^0.5)/A1stdlife)) -> 0 | AO122: =IF(A1stdlife="n/a","n/a",IF(AO$3>(A1stdlife+$E122),('PTRM input'!$K$385*(1+rvanilla05)^0.5)-SUM($K122:AN122),('PTRM input'!$K$385*(1+rvanilla05)^0.5)/A1stdlife)) -> 0 | AP122: =IF(A1stdlife="n/a","n/a",IF(AP$3>(A1stdlife+$E122),('PTRM input'!$K$385*(1+rvanilla05)^0.5)-SUM($K122:AO122),('PTRM input'!$K$385*(1+rvanilla05)^0.5)/A1stdlife)) -> 0 | AQ122: =IF(A1stdlife="n/a","n/a",IF(AQ$3>(A1stdlife+$E122),('PTRM input'!$K$385*(1+rvanilla05)^0.5)-SUM($K122:AP122),('PTRM input'!$K$385*(1+rvanilla05)^0.5)/A1stdlife)) -> 0 | AR122: =IF(A1stdlife="n/a","n/a",IF(AR$3>(A1stdlife+$E122),('PTRM input'!$K$385*(1+rvanilla05)^0.5)-SUM($K122:AQ122),('PTRM input'!$K$385*(1+rvanilla05)^0.5)/A1stdlife)) -> 0 | AS122: =IF(A1stdlife="n/a","n/a",IF(AS$3>(A1stdlife+$E122),('PTRM input'!$K$385*(1+rvanilla05)^0.5)-SUM($K122:AR122),('PTRM input'!$K$385*(1+rvanilla05)^0.5)/A1stdlife)) -> 0 | AT122: =IF(A1stdlife="n/a","n/a",IF(AT$3>(A1stdlife+$E122),('PTRM input'!$K$385*(1+rvanilla05)^0.5)-SUM($K122:AS122),('PTRM input'!$K$385*(1+rvanilla05)^0.5)/A1stdlife)) -> 0 | AU122: =IF(A1stdlife="n/a","n/a",IF(AU$3>(A1stdlife+$E122),('PTRM input'!$K$385*(1+rvanilla05)^0.5)-SUM($K122:AT122),('PTRM input'!$K$385*(1+rvanilla05)^0.5)/A1stdlife)) -> 0 | AV122: =IF(A1stdlife="n/a","n/a",IF(AV$3>(A1stdlife+$E122),('PTRM input'!$K$385*(1+rvanilla05)^0.5)-SUM($K122:AU122),('PTRM input'!$K$385*(1+rvanilla05)^0.5)/A1stdlife)) -> 0 | AW122: =IF(A1stdlife="n/a","n/a",IF(AW$3>(A1stdlife+$E122),('PTRM input'!$K$385*(1+rvanilla05)^0.5)-SUM($K122:AV122),('PTRM input'!$K$385*(1+rvanilla05)^0.5)/A1stdlife)) -> 0 | AX122: =IF(A1stdlife="n/a","n/a",IF(AX$3>(A1stdlife+$E122),('PTRM input'!$K$385*(1+rvanilla05)^0.5)-SUM($K122:AW122),('PTRM input'!$K$385*(1+rvanilla05)^0.5)/A1stdlife)) -> 0 | AY122: =IF(A1stdlife="n/a","n/a",IF(AY$3>(A1stdlife+$E122),('PTRM input'!$K$385*(1+rvanilla05)^0.5)-SUM($K122:AX122),('PTRM input'!$K$385*(1+rvanilla05)^0.5)/A1stdlife)) -> 0 | AZ122: =IF(A1stdlife="n/a","n/a",IF(AZ$3>(A1stdlife+$E122),('PTRM input'!$K$385*(1+rvanilla05)^0.5)-SUM($K122:AY122),('PTRM input'!$K$385*(1+rvanilla05)^0.5)/A1stdlife)) -> 0 | BA122: =IF(A1stdlife="n/a","n/a",IF(BA$3>(A1stdlife+$E122),('PTRM input'!$K$385*(1+rvanilla05)^0.5)-SUM($K122:AZ122),('PTRM input'!$K$385*(1+rvanilla05)^0.5)/A1stdlife)) -> 0 | BB122: =IF(A1stdlife="n/a","n/a",IF(BB$3>(A1stdlife+$E122),('PTRM input'!$K$385*(1+rvanilla05)^0.5)-SUM($K122:BA122),('PTRM input'!$K$385*(1+rvanilla05)^0.5)/A1stdlife)) -> 0 | BC122: =IF(A1stdlife="n/a","n/a",IF(BC$3>(A1stdlife+$E122),('PTRM input'!$K$385*(1+rvanilla05)^0.5)-SUM($K122:BB122),('PTRM input'!$K$385*(1+rvanilla05)^0.5)/A1stdlife)) -> 0 | BD122: =IF(A1stdlife="n/a","n/a",IF(BD$3>(A1stdlife+$E122),('PTRM input'!$K$385*(1+rvanilla05)^0.5)-SUM($K122:BC122),('PTRM input'!$K$385*(1+rvanilla05)^0.5)/A1stdlife)) -> 0 | BE122: =IF(A1stdlife="n/a","n/a",IF(BE$3>(A1stdlife+$E122),('PTRM input'!$K$385*(1+rvanilla05)^0.5)-SUM($K122:BD122),('PTRM input'!$K$385*(1+rvanilla05)^0.5)/A1stdlife)) -> 0 | BF122: =IF(A1stdlife="n/a","n/a",IF(BF$3>(A1stdlife+$E122),('PTRM input'!$K$385*(1+rvanilla05)^0.5)-SUM($K122:BE122),('PTRM input'!$K$385*(1+rvanilla05)^0.5)/A1stdlife)) -> 0 | BG122: =IF(A1stdlife="n/a","n/a",IF(BG$3>(A1stdlife+$E122),('PTRM input'!$K$385*(1+rvanilla05)^0.5)-SUM($K122:BF122),('PTRM input'!$K$385*(1+rvanilla05)^0.5)/A1stdlife)) -> 0 | BH122: =IF(A1stdlife="n/a","n/a",IF(BH$3>(A1stdlife+$E122),('PTRM input'!$K$385*(1+rvanilla05)^0.5)-SUM($K122:BG122),('PTRM input'!$K$385*(1+rvanilla05)^0.5)/A1stdlife)) -> 0 | BI122: =IF(A1stdlife="n/a","n/a",IF(BI$3>(A1stdlife+$E122),('PTRM input'!$K$385*(1+rvanilla05)^0.5)-SUM($K122:BH122),('PTRM input'!$K$385*(1+rvanilla05)^0.5)/A1stdlife)) -> 0
E123: 6 | M123: =IF(A1stdlife="n/a","n/a",IF(M$3>(A1stdlife+$E123),('PTRM input'!$L$385*(1+rvanilla06)^0.5)-SUM($L123:L123),('PTRM input'!$L$385*(1+rvanilla06)^0.5)/A1stdlife)) -> 0 | N123: =IF(A1stdlife="n/a","n/a",IF(N$3>(A1stdlife+$E123),('PTRM input'!$L$385*(1+rvanilla06)^0.5)-SUM($L123:M123),('PTRM input'!$L$385*(1+rvanilla06)^0.5)/A1stdlife)) -> 0 | O123: =IF(A1stdlife="n/a","n/a",IF(O$3>(A1stdlife+$E123),('PTRM input'!$L$385*(1+rvanilla06)^0.5)-SUM($L123:N123),('PTRM input'!$L$385*(1+rvanilla06)^0.5)/A1stdlife)) -> 0 | P123: =IF(A1stdlife="n/a","n/a",IF(P$3>(A1stdlife+$E123),('PTRM input'!$L$385*(1+rvanilla06)^0.5)-SUM($L123:O123),('PTRM input'!$L$385*(1+rvanilla06)^0.5)/A1stdlife)) -> 0 | Q123: =IF(A1stdlife="n/a","n/a",IF(Q$3>(A1stdlife+$E123),('PTRM input'!$L$385*(1+rvanilla06)^0.5)-SUM($L123:P123),('PTRM input'!$L$385*(1+rvanilla06)^0.5)/A1stdlife)) -> 0 | R123: =IF(A1stdlife="n/a","n/a",IF(R$3>(A1stdlife+$E123),('PTRM input'!$L$385*(1+rvanilla06)^0.5)-SUM($L123:Q123),('PTRM input'!$L$385*(1+rvanilla06)^0.5)/A1stdlife)) -> 0 | S123: =IF(A1stdlife="n/a","n/a",IF(S$3>(A1stdlife+$E123),('PTRM input'!$L$385*(1+rvanilla06)^0.5)-SUM($L123:R123),('PTRM input'!$L$385*(1+rvanilla06)^0.5)/A1stdlife)) -> 0 | T123: =IF(A1stdlife="n/a","n/a",IF(T$3>(A1stdlife+$E123),('PTRM input'!$L$385*(1+rvanilla06)^0.5)-SUM($L123:S123),('PTRM input'!$L$385*(1+rvanilla06)^0.5)/A1stdlife)) -> 0 | U123: =IF(A1stdlife="n/a","n/a",IF(U$3>(A1stdlife+$E123),('PTRM input'!$L$385*(1+rvanilla06)^0.5)-SUM($L123:T123),('PTRM input'!$L$385*(1+rvanilla06)^0.5)/A1stdlife)) -> 0 | V123: =IF(A1stdlife="n/a","n/a",IF(V$3>(A1stdlife+$E123),('PTRM input'!$L$385*(1+rvanilla06)^0.5)-SUM($L123:U123),('PTRM input'!$L$385*(1+rvanilla06)^0.5)/A1stdlife)) -> 0 | W123: =IF(A1stdlife="n/a","n/a",IF(W$3>(A1stdlife+$E123),('PTRM input'!$L$385*(1+rvanilla06)^0.5)-SUM($L123:V123),('PTRM input'!$L$385*(1+rvanilla06)^0.5)/A1stdlife)) -> 0 | X123: =IF(A1stdlife="n/a","n/a",IF(X$3>(A1stdlife+$E123),('PTRM input'!$L$385*(1+rvanilla06)^0.5)-SUM($L123:W123),('PTRM input'!$L$385*(1+rvanilla06)^0.5)/A1stdlife)) -> 0 | Y123: =IF(A1stdlife="n/a","n/a",IF(Y$3>(A1stdlife+$E123),('PTRM input'!$L$385*(1+rvanilla06)^0.5)-SUM($L123:X123),('PTRM input'!$L$385*(1+rvanilla06)^0.5)/A1stdlife)) -> 0 | Z123: =IF(A1stdlife="n/a","n/a",IF(Z$3>(A1stdlife+$E123),('PTRM input'!$L$385*(1+rvanilla06)^0.5)-SUM($L123:Y123),('PTRM input'!$L$385*(1+rvanilla06)^0.5)/A1stdlife)) -> 0 | AA123: =IF(A1stdlife="n/a","n/a",IF(AA$3>(A1stdlife+$E123),('PTRM input'!$L$385*(1+rvanilla06)^0.5)-SUM($L123:Z123),('PTRM input'!$L$385*(1+rvanilla06)^0.5)/A1stdlife)) -> 0 | AB123: =IF(A1stdlife="n/a","n/a",IF(AB$3>(A1stdlife+$E123),('PTRM input'!$L$385*(1+rvanilla06)^0.5)-SUM($L123:AA123),('PTRM input'!$L$385*(1+rvanilla06)^0.5)/A1stdlife)) -> 0 | AC123: =IF(A1stdlife="n/a","n/a",IF(AC$3>(A1stdlife+$E123),('PTRM input'!$L$385*(1+rvanilla06)^0.5)-SUM($L123:AB123),('PTRM input'!$L$385*(1+rvanilla06)^0.5)/A1stdlife)) -> 0 | AD123: =IF(A1stdlife="n/a","n/a",IF(AD$3>(A1stdlife+$E123),('PTRM input'!$L$385*(1+rvanilla06)^0.5)-SUM($L123:AC123),('PTRM input'!$L$385*(1+rvanilla06)^0.5)/A1stdlife)) -> 0 | AE123: =IF(A1stdlife="n/a","n/a",IF(AE$3>(A1stdlife+$E123),('PTRM input'!$L$385*(1+rvanilla06)^0.5)-SUM($L123:AD123),('PTRM input'!$L$385*(1+rvanilla06)^0.5)/A1stdlife)) -> 0 | AF123: =IF(A1stdlife="n/a","n/a",IF(AF$3>(A1stdlife+$E123),('PTRM input'!$L$385*(1+rvanilla06)^0.5)-SUM($L123:AE123),('PTRM input'!$L$385*(1+rvanilla06)^0.5)/A1stdlife)) -> 0 | AG123: =IF(A1stdlife="n/a","n/a",IF(AG$3>(A1stdlife+$E123),('PTRM input'!$L$385*(1+rvanilla06)^0.5)-SUM($L123:AF123),('PTRM input'!$L$385*(1+rvanilla06)^0.5)/A1stdlife)) -> 0 | AH123: =IF(A1stdlife="n/a","n/a",IF(AH$3>(A1stdlife+$E123),('PTRM input'!$L$385*(1+rvanilla06)^0.5)-SUM($L123:AG123),('PTRM input'!$L$385*(1+rvanilla06)^0.5)/A1stdlife)) -> 0 | AI123: =IF(A1stdlife="n/a","n/a",IF(AI$3>(A1stdlife+$E123),('PTRM input'!$L$385*(1+rvanilla06)^0.5)-SUM($L123:AH123),('PTRM input'!$L$385*(1+rvanilla06)^0.5)/A1stdlife)) -> 0 | AJ123: =IF(A1stdlife="n/a","n/a",IF(AJ$3>(A1stdlife+$E123),('PTRM input'!$L$385*(1+rvanilla06)^0.5)-SUM($L123:AI123),('PTRM input'!$L$385*(1+rvanilla06)^0.5)/A1stdlife)) -> 0 | AK123: =IF(A1stdlife="n/a","n/a",IF(AK$3>(A1stdlife+$E123),('PTRM input'!$L$385*(1+rvanilla06)^0.5)-SUM($L123:AJ123),('PTRM input'!$L$385*(1+rvanilla06)^0.5)/A1stdlife)) -> 0 | AL123: =IF(A1stdlife="n/a","n/a",IF(AL$3>(A1stdlife+$E123),('PTRM input'!$L$385*(1+rvanilla06)^0.5)-SUM($L123:AK123),('PTRM input'!$L$385*(1+rvanilla06)^0.5)/A1stdlife)) -> 0 | AM123: =IF(A1stdlife="n/a","n/a",IF(AM$3>(A1stdlife+$E123),('PTRM input'!$L$385*(1+rvanilla06)^0.5)-SUM($L123:AL123),('PTRM input'!$L$385*(1+rvanilla06)^0.5)/A1stdlife)) -> 0 | AN123: =IF(A1stdlife="n/a","n/a",IF(AN$3>(A1stdlife+$E123),('PTRM input'!$L$385*(1+rvanilla06)^0.5)-SUM($L123:AM123),('PTRM input'!$L$385*(1+rvanilla06)^0.5)/A1stdlife)) -> 0 | AO123: =IF(A1stdlife="n/a","n/a",IF(AO$3>(A1stdlife+$E123),('PTRM input'!$L$385*(1+rvanilla06)^0.5)-SUM($L123:AN123),('PTRM input'!$L$385*(1+rvanilla06)^0.5)/A1stdlife)) -> 0 | AP123: =IF(A1stdlife="n/a","n/a",IF(AP$3>(A1stdlife+$E123),('PTRM input'!$L$385*(1+rvanilla06)^0.5)-SUM($L123:AO123),('PTRM input'!$L$385*(1+rvanilla06)^0.5)/A1stdlife)) -> 0 | AQ123: =IF(A1stdlife="n/a","n/a",IF(AQ$3>(A1stdlife+$E123),('PTRM input'!$L$385*(1+rvanilla06)^0.5)-SUM($L123:AP123),('PTRM input'!$L$385*(1+rvanilla06)^0.5)/A1stdlife)) -> 0 | AR123: =IF(A1stdlife="n/a","n/a",IF(AR$3>(A1stdlife+$E123),('PTRM input'!$L$385*(1+rvanilla06)^0.5)-SUM($L123:AQ123),('PTRM input'!$L$385*(1+rvanilla06)^0.5)/A1stdlife)) -> 0 | AS123: =IF(A1stdlife="n/a","n/a",IF(AS$3>(A1stdlife+$E123),('PTRM input'!$L$385*(1+rvanilla06)^0.5)-SUM($L123:AR123),('PTRM input'!$L$385*(1+rvanilla06)^0.5)/A1stdlife)) -> 0 | AT123: =IF(A1stdlife="n/a","n/a",IF(AT$3>(A1stdlife+$E123),('PTRM input'!$L$385*(1+rvanilla06)^0.5)-SUM($L123:AS123),('PTRM input'!$L$385*(1+rvanilla06)^0.5)/A1stdlife)) -> 0 | AU123: =IF(A1stdlife="n/a","n/a",IF(AU$3>(A1stdlife+$E123),('PTRM input'!$L$385*(1+rvanilla06)^0.5)-SUM($L123:AT123),('PTRM input'!$L$385*(1+rvanilla06)^0.5)/A1stdlife)) -> 0 | AV123: =IF(A1stdlife="n/a","n/a",IF(AV$3>(A1stdlife+$E123),('PTRM input'!$L$385*(1+rvanilla06)^0.5)-SUM($L123:AU123),('PTRM input'!$L$385*(1+rvanilla06)^0.5)/A1stdlife)) -> 0 | AW123: =IF(A1stdlife="n/a","n/a",IF(AW$3>(A1stdlife+$E123),('PTRM input'!$L$385*(1+rvanilla06)^0.5)-SUM($L123:AV123),('PTRM input'!$L$385*(1+rvanilla06)^0.5)/A1stdlife)) -> 0 | AX123: =IF(A1stdlife="n/a","n/a",IF(AX$3>(A1stdlife+$E123),('PTRM input'!$L$385*(1+rvanilla06)^0.5)-SUM($L123:AW123),('PTRM input'!$L$385*(1+rvanilla06)^0.5)/A1stdlife)) -> 0 | AY123: =IF(A1stdlife="n/a","n/a",IF(AY$3>(A1stdlife+$E123),('PTRM input'!$L$385*(1+rvanilla06)^0.5)-SUM($L123:AX123),('PTRM input'!$L$385*(1+rvanilla06)^0.5)/A1stdlife)) -> 0 | AZ123: =IF(A1stdlife="n/a","n/a",IF(AZ$3>(A1stdlife+$E123),('PTRM input'!$L$385*(1+rvanilla06)^0.5)-SUM($L123:AY123),('PTRM input'!$L$385*(1+rvanilla06)^0.5)/A1stdlife)) -> 0 | BA123: =IF(A1stdlife="n/a","n/a",IF(BA$3>(A1stdlife+$E123),('PTRM input'!$L$385*(1+rvanilla06)^0.5)-SUM($L123:AZ123),('PTRM input'!$L$385*(1+rvanilla06)^0.5)/A1stdlife)) -> 0 | BB123: =IF(A1stdlife="n/a","n/a",IF(BB$3>(A1stdlife+$E123),('PTRM input'!$L$385*(1+rvanilla06)^0.5)-SUM($L123:BA123),('PTRM input'!$L$385*(1+rvanilla06)^0.5)/A1stdlife)) -> 0 | BC123: =IF(A1stdlife="n/a","n/a",IF(BC$3>(A1stdlife+$E123),('PTRM input'!$L$385*(1+rvanilla06)^0.5)-SUM($L123:BB123),('PTRM input'!$L$385*(1+rvanilla06)^0.5)/A1stdlife)) -> 0 | BD123: =IF(A1stdlife="n/a","n/a",IF(BD$3>(A1stdlife+$E123),('PTRM input'!$L$385*(1+rvanilla06)^0.5)-SUM($L123:BC123),('PTRM input'!$L$385*(1+rvanilla06)^0.5)/A1stdlife)) -> 0 | BE123: =IF(A1stdlife="n/a","n/a",IF(BE$3>(A1stdlife+$E123),('PTRM input'!$L$385*(1+rvanilla06)^0.5)-SUM($L123:BD123),('PTRM input'!$L$385*(1+rvanilla06)^0.5)/A1stdlife)) -> 0 | BF123: =IF(A1stdlife="n/a","n/a",IF(BF$3>(A1stdlife+$E123),('PTRM input'!$L$385*(1+rvanilla06)^0.5)-SUM($L123:BE123),('PTRM input'!$L$385*(1+rvanilla06)^0.5)/A1stdlife)) -> 0 | BG123: =IF(A1stdlife="n/a","n/a",IF(BG$3>(A1stdlife+$E123),('PTRM input'!$L$385*(1+rvanilla06)^0.5)-SUM($L123:BF123),('PTRM input'!$L$385*(1+rvanilla06)^0.5)/A1stdlife)) -> 0 | BH123: =IF(A1stdlife="n/a","n/a",IF(BH$3>(A1stdlife+$E123),('PTRM input'!$L$385*(1+rvanilla06)^0.5)-SUM($L123:BG123),('PTRM input'!$L$385*(1+rvanilla06)^0.5)/A1stdlife)) -> 0 | BI123: =IF(A1stdlife="n/a","n/a",IF(BI$3>(A1stdlife+$E123),('PTRM input'!$L$385*(1+rvanilla06)^0.5)-SUM($L123:BH123),('PTRM input'!$L$385*(1+rvanilla06)^0.5)/A1stdlife)) -> 0
E124: 7 | N124: =IF(A1stdlife="n/a","n/a",IF(N$3>(A1stdlife+$E124),('PTRM input'!$M$385*(1+rvanilla07)^0.5)-SUM($M124:M124),('PTRM input'!$M$385*(1+rvanilla07)^0.5)/A1stdlife)) -> 0 | O124: =IF(A1stdlife="n/a","n/a",IF(O$3>(A1stdlife+$E124),('PTRM input'!$M$385*(1+rvanilla07)^0.5)-SUM($M124:N124),('PTRM input'!$M$385*(1+rvanilla07)^0.5)/A1stdlife)) -> 0 | P124: =IF(A1stdlife="n/a","n/a",IF(P$3>(A1stdlife+$E124),('PTRM input'!$M$385*(1+rvanilla07)^0.5)-SUM($M124:O124),('PTRM input'!$M$385*(1+rvanilla07)^0.5)/A1stdlife)) -> 0 | Q124: =IF(A1stdlife="n/a","n/a",IF(Q$3>(A1stdlife+$E124),('PTRM input'!$M$385*(1+rvanilla07)^0.5)-SUM($M124:P124),('PTRM input'!$M$385*(1+rvanilla07)^0.5)/A1stdlife)) -> 0 | R124: =IF(A1stdlife="n/a","n/a",IF(R$3>(A1stdlife+$E124),('PTRM input'!$M$385*(1+rvanilla07)^0.5)-SUM($M124:Q124),('PTRM input'!$M$385*(1+rvanilla07)^0.5)/A1stdlife)) -> 0 | S124: =IF(A1stdlife="n/a","n/a",IF(S$3>(A1stdlife+$E124),('PTRM input'!$M$385*(1+rvanilla07)^0.5)-SUM($M124:R124),('PTRM input'!$M$385*(1+rvanilla07)^0.5)/A1stdlife)) -> 0 | T124: =IF(A1stdlife="n/a","n/a",IF(T$3>(A1stdlife+$E124),('PTRM input'!$M$385*(1+rvanilla07)^0.5)-SUM($M124:S124),('PTRM input'!$M$385*(1+rvanilla07)^0.5)/A1stdlife)) -> 0 | U124: =IF(A1stdlife="n/a","n/a",IF(U$3>(A1stdlife+$E124),('PTRM input'!$M$385*(1+rvanilla07)^0.5)-SUM($M124:T124),('PTRM input'!$M$385*(1+rvanilla07)^0.5)/A1stdlife)) -> 0 | V124: =IF(A1stdlife="n/a","n/a",IF(V$3>(A1stdlife+$E124),('PTRM input'!$M$385*(1+rvanilla07)^0.5)-SUM($M124:U124),('PTRM input'!$M$385*(1+rvanilla07)^0.5)/A1stdlife)) -> 0 | W124: =IF(A1stdlife="n/a","n/a",IF(W$3>(A1stdlife+$E124),('PTRM input'!$M$385*(1+rvanilla07)^0.5)-SUM($M124:V124),('PTRM input'!$M$385*(1+rvanilla07)^0.5)/A1stdlife)) -> 0 | X124: =IF(A1stdlife="n/a","n/a",IF(X$3>(A1stdlife+$E124),('PTRM input'!$M$385*(1+rvanilla07)^0.5)-SUM($M124:W124),('PTRM input'!$M$385*(1+rvanilla07)^0.5)/A1stdlife)) -> 0 | Y124: =IF(A1stdlife="n/a","n/a",IF(Y$3>(A1stdlife+$E124),('PTRM input'!$M$385*(1+rvanilla07)^0.5)-SUM($M124:X124),('PTRM input'!$M$385*(1+rvanilla07)^0.5)/A1stdlife)) -> 0 | Z124: =IF(A1stdlife="n/a","n/a",IF(Z$3>(A1stdlife+$E124),('PTRM input'!$M$385*(1+rvanilla07)^0.5)-SUM($M124:Y124),('PTRM input'!$M$385*(1+rvanilla07)^0.5)/A1stdlife)) -> 0 | AA124: =IF(A1stdlife="n/a","n/a",IF(AA$3>(A1stdlife+$E124),('PTRM input'!$M$385*(1+rvanilla07)^0.5)-SUM($M124:Z124),('PTRM input'!$M$385*(1+rvanilla07)^0.5)/A1stdlife)) -> 0 | AB124: =IF(A1stdlife="n/a","n/a",IF(AB$3>(A1stdlife+$E124),('PTRM input'!$M$385*(1+rvanilla07)^0.5)-SUM($M124:AA124),('PTRM input'!$M$385*(1+rvanilla07)^0.5)/A1stdlife)) -> 0 | AC124: =IF(A1stdlife="n/a","n/a",IF(AC$3>(A1stdlife+$E124),('PTRM input'!$M$385*(1+rvanilla07)^0.5)-SUM($M124:AB124),('PTRM input'!$M$385*(1+rvanilla07)^0.5)/A1stdlife)) -> 0 | AD124: =IF(A1stdlife="n/a","n/a",IF(AD$3>(A1stdlife+$E124),('PTRM input'!$M$385*(1+rvanilla07)^0.5)-SUM($M124:AC124),('PTRM input'!$M$385*(1+rvanilla07)^0.5)/A1stdlife)) -> 0 | AE124: =IF(A1stdlife="n/a","n/a",IF(AE$3>(A1stdlife+$E124),('PTRM input'!$M$385*(1+rvanilla07)^0.5)-SUM($M124:AD124),('PTRM input'!$M$385*(1+rvanilla07)^0.5)/A1stdlife)) -> 0 | AF124: =IF(A1stdlife="n/a","n/a",IF(AF$3>(A1stdlife+$E124),('PTRM input'!$M$385*(1+rvanilla07)^0.5)-SUM($M124:AE124),('PTRM input'!$M$385*(1+rvanilla07)^0.5)/A1stdlife)) -> 0 | AG124: =IF(A1stdlife="n/a","n/a",IF(AG$3>(A1stdlife+$E124),('PTRM input'!$M$385*(1+rvanilla07)^0.5)-SUM($M124:AF124),('PTRM input'!$M$385*(1+rvanilla07)^0.5)/A1stdlife)) -> 0 | AH124: =IF(A1stdlife="n/a","n/a",IF(AH$3>(A1stdlife+$E124),('PTRM input'!$M$385*(1+rvanilla07)^0.5)-SUM($M124:AG124),('PTRM input'!$M$385*(1+rvanilla07)^0.5)/A1stdlife)) -> 0 | AI124: =IF(A1stdlife="n/a","n/a",IF(AI$3>(A1stdlife+$E124),('PTRM input'!$M$385*(1+rvanilla07)^0.5)-SUM($M124:AH124),('PTRM input'!$M$385*(1+rvanilla07)^0.5)/A1stdlife)) -> 0 | AJ124: =IF(A1stdlife="n/a","n/a",IF(AJ$3>(A1stdlife+$E124),('PTRM input'!$M$385*(1+rvanilla07)^0.5)-SUM($M124:AI124),('PTRM input'!$M$385*(1+rvanilla07)^0.5)/A1stdlife)) -> 0 | AK124: =IF(A1stdlife="n/a","n/a",IF(AK$3>(A1stdlife+$E124),('PTRM input'!$M$385*(1+rvanilla07)^0.5)-SUM($M124:AJ124),('PTRM input'!$M$385*(1+rvanilla07)^0.5)/A1stdlife)) -> 0 | AL124: =IF(A1stdlife="n/a","n/a",IF(AL$3>(A1stdlife+$E124),('PTRM input'!$M$385*(1+rvanilla07)^0.5)-SUM($M124:AK124),('PTRM input'!$M$385*(1+rvanilla07)^0.5)/A1stdlife)) -> 0 | AM124: =IF(A1stdlife="n/a","n/a",IF(AM$3>(A1stdlife+$E124),('PTRM input'!$M$385*(1+rvanilla07)^0.5)-SUM($M124:AL124),('PTRM input'!$M$385*(1+rvanilla07)^0.5)/A1stdlife)) -> 0 | AN124: =IF(A1stdlife="n/a","n/a",IF(AN$3>(A1stdlife+$E124),('PTRM input'!$M$385*(1+rvanilla07)^0.5)-SUM($M124:AM124),('PTRM input'!$M$385*(1+rvanilla07)^0.5)/A1stdlife)) -> 0 | AO124: =IF(A1stdlife="n/a","n/a",IF(AO$3>(A1stdlife+$E124),('PTRM input'!$M$385*(1+rvanilla07)^0.5)-SUM($M124:AN124),('PTRM input'!$M$385*(1+rvanilla07)^0.5)/A1stdlife)) -> 0 | AP124: =IF(A1stdlife="n/a","n/a",IF(AP$3>(A1stdlife+$E124),('PTRM input'!$M$385*(1+rvanilla07)^0.5)-SUM($M124:AO124),('PTRM input'!$M$385*(1+rvanilla07)^0.5)/A1stdlife)) -> 0 | AQ124: =IF(A1stdlife="n/a","n/a",IF(AQ$3>(A1stdlife+$E124),('PTRM input'!$M$385*(1+rvanilla07)^0.5)-SUM($M124:AP124),('PTRM input'!$M$385*(1+rvanilla07)^0.5)/A1stdlife)) -> 0 | AR124: =IF(A1stdlife="n/a","n/a",IF(AR$3>(A1stdlife+$E124),('PTRM input'!$M$385*(1+rvanilla07)^0.5)-SUM($M124:AQ124),('PTRM input'!$M$385*(1+rvanilla07)^0.5)/A1stdlife)) -> 0 | AS124: =IF(A1stdlife="n/a","n/a",IF(AS$3>(A1stdlife+$E124),('PTRM input'!$M$385*(1+rvanilla07)^0.5)-SUM($M124:AR124),('PTRM input'!$M$385*(1+rvanilla07)^0.5)/A1stdlife)) -> 0 | AT124: =IF(A1stdlife="n/a","n/a",IF(AT$3>(A1stdlife+$E124),('PTRM input'!$M$385*(1+rvanilla07)^0.5)-SUM($M124:AS124),('PTRM input'!$M$385*(1+rvanilla07)^0.5)/A1stdlife)) -> 0 | AU124: =IF(A1stdlife="n/a","n/a",IF(AU$3>(A1stdlife+$E124),('PTRM input'!$M$385*(1+rvanilla07)^0.5)-SUM($M124:AT124),('PTRM input'!$M$385*(1+rvanilla07)^0.5)/A1stdlife)) -> 0 | AV124: =IF(A1stdlife="n/a","n/a",IF(AV$3>(A1stdlife+$E124),('PTRM input'!$M$385*(1+rvanilla07)^0.5)-SUM($M124:AU124),('PTRM input'!$M$385*(1+rvanilla07)^0.5)/A1stdlife)) -> 0 | AW124: =IF(A1stdlife="n/a","n/a",IF(AW$3>(A1stdlife+$E124),('PTRM input'!$M$385*(1+rvanilla07)^0.5)-SUM($M124:AV124),('PTRM input'!$M$385*(1+rvanilla07)^0.5)/A1stdlife)) -> 0 | AX124: =IF(A1stdlife="n/a","n/a",IF(AX$3>(A1stdlife+$E124),('PTRM input'!$M$385*(1+rvanilla07)^0.5)-SUM($M124:AW124),('PTRM input'!$M$385*(1+rvanilla07)^0.5)/A1stdlife)) -> 0 | AY124: =IF(A1stdlife="n/a","n/a",IF(AY$3>(A1stdlife+$E124),('PTRM input'!$M$385*(1+rvanilla07)^0.5)-SUM($M124:AX124),('PTRM input'!$M$385*(1+rvanilla07)^0.5)/A1stdlife)) -> 0 | AZ124: =IF(A1stdlife="n/a","n/a",IF(AZ$3>(A1stdlife+$E124),('PTRM input'!$M$385*(1+rvanilla07)^0.5)-SUM($M124:AY124),('PTRM input'!$M$385*(1+rvanilla07)^0.5)/A1stdlife)) -> 0 | BA124: =IF(A1stdlife="n/a","n/a",IF(BA$3>(A1stdlife+$E124),('PTRM input'!$M$385*(1+rvanilla07)^0.5)-SUM($M124:AZ124),('PTRM input'!$M$385*(1+rvanilla07)^0.5)/A1stdlife)) -> 0 | BB124: =IF(A1stdlife="n/a","n/a",IF(BB$3>(A1stdlife+$E124),('PTRM input'!$M$385*(1+rvanilla07)^0.5)-SUM($M124:BA124),('PTRM input'!$M$385*(1+rvanilla07)^0.5)/A1stdlife)) -> 0 | BC124: =IF(A1stdlife="n/a","n/a",IF(BC$3>(A1stdlife+$E124),('PTRM input'!$M$385*(1+rvanilla07)^0.5)-SUM($M124:BB124),('PTRM input'!$M$385*(1+rvanilla07)^0.5)/A1stdlife)) -> 0 | BD124: =IF(A1stdlife="n/a","n/a",IF(BD$3>(A1stdlife+$E124),('PTRM input'!$M$385*(1+rvanilla07)^0.5)-SUM($M124:BC124),('PTRM input'!$M$385*(1+rvanilla07)^0.5)/A1stdlife)) -> 0 | BE124: =IF(A1stdlife="n/a","n/a",IF(BE$3>(A1stdlife+$E124),('PTRM input'!$M$385*(1+rvanilla07)^0.5)-SUM($M124:BD124),('PTRM input'!$M$385*(1+rvanilla07)^0.5)/A1stdlife)) -> 0 | BF124: =IF(A1stdlife="n/a","n/a",IF(BF$3>(A1stdlife+$E124),('PTRM input'!$M$385*(1+rvanilla07)^0.5)-SUM($M124:BE124),('PTRM input'!$M$385*(1+rvanilla07)^0.5)/A1stdlife)) -> 0 | BG124: =IF(A1stdlife="n/a","n/a",IF(BG$3>(A1stdlife+$E124),('PTRM input'!$M$385*(1+rvanilla07)^0.5)-SUM($M124:BF124),('PTRM input'!$M$385*(1+rvanilla07)^0.5)/A1stdlife)) -> 0 | BH124: =IF(A1stdlife="n/a","n/a",IF(BH$3>(A1stdlife+$E124),('PTRM input'!$M$385*(1+rvanilla07)^0.5)-SUM($M124:BG124),('PTRM input'!$M$385*(1+rvanilla07)^0.5)/A1stdlife)) -> 0 | BI124: =IF(A1stdlife="n/a","n/a",IF(BI$3>(A1stdlife+$E124),('PTRM input'!$M$385*(1+rvanilla07)^0.5)-SUM($M124:BH124),('PTRM input'!$M$385*(1+rvanilla07)^0.5)/A1stdlife)) -> 0
E125: 8 | O125: =IF(A1stdlife="n/a","n/a",IF(O$3>(A1stdlife+$E125),('PTRM input'!$N$385*(1+rvanilla08)^0.5)-SUM($N125:N125),('PTRM input'!$N$385*(1+rvanilla08)^0.5)/A1stdlife)) -> 0 | P125: =IF(A1stdlife="n/a","n/a",IF(P$3>(A1stdlife+$E125),('PTRM input'!$N$385*(1+rvanilla08)^0.5)-SUM($N125:O125),('PTRM input'!$N$385*(1+rvanilla08)^0.5)/A1stdlife)) -> 0 | Q125: =IF(A1stdlife="n/a","n/a",IF(Q$3>(A1stdlife+$E125),('PTRM input'!$N$385*(1+rvanilla08)^0.5)-SUM($N125:P125),('PTRM input'!$N$385*(1+rvanilla08)^0.5)/A1stdlife)) -> 0 | R125: =IF(A1stdlife="n/a","n/a",IF(R$3>(A1stdlife+$E125),('PTRM input'!$N$385*(1+rvanilla08)^0.5)-SUM($N125:Q125),('PTRM input'!$N$385*(1+rvanilla08)^0.5)/A1stdlife)) -> 0 | S125: =IF(A1stdlife="n/a","n/a",IF(S$3>(A1stdlife+$E125),('PTRM input'!$N$385*(1+rvanilla08)^0.5)-SUM($N125:R125),('PTRM input'!$N$385*(1+rvanilla08)^0.5)/A1stdlife)) -> 0 | T125: =IF(A1stdlife="n/a","n/a",IF(T$3>(A1stdlife+$E125),('PTRM input'!$N$385*(1+rvanilla08)^0.5)-SUM($N125:S125),('PTRM input'!$N$385*(1+rvanilla08)^0.5)/A1stdlife)) -> 0 | U125: =IF(A1stdlife="n/a","n/a",IF(U$3>(A1stdlife+$E125),('PTRM input'!$N$385*(1+rvanilla08)^0.5)-SUM($N125:T125),('PTRM input'!$N$385*(1+rvanilla08)^0.5)/A1stdlife)) -> 0 | V125: =IF(A1stdlife="n/a","n/a",IF(V$3>(A1stdlife+$E125),('PTRM input'!$N$385*(1+rvanilla08)^0.5)-SUM($N125:U125),('PTRM input'!$N$385*(1+rvanilla08)^0.5)/A1stdlife)) -> 0 | W125: =IF(A1stdlife="n/a","n/a",IF(W$3>(A1stdlife+$E125),('PTRM input'!$N$385*(1+rvanilla08)^0.5)-SUM($N125:V125),('PTRM input'!$N$385*(1+rvanilla08)^0.5)/A1stdlife)) -> 0 | X125: =IF(A1stdlife="n/a","n/a",IF(X$3>(A1stdlife+$E125),('PTRM input'!$N$385*(1+rvanilla08)^0.5)-SUM($N125:W125),('PTRM input'!$N$385*(1+rvanilla08)^0.5)/A1stdlife)) -> 0 | Y125: =IF(A1stdlife="n/a","n/a",IF(Y$3>(A1stdlife+$E125),('PTRM input'!$N$385*(1+rvanilla08)^0.5)-SUM($N125:X125),('PTRM input'!$N$385*(1+rvanilla08)^0.5)/A1stdlife)) -> 0 | Z125: =IF(A1stdlife="n/a","n/a",IF(Z$3>(A1stdlife+$E125),('PTRM input'!$N$385*(1+rvanilla08)^0.5)-SUM($N125:Y125),('PTRM input'!$N$385*(1+rvanilla08)^0.5)/A1stdlife)) -> 0 | AA125: =IF(A1stdlife="n/a","n/a",IF(AA$3>(A1stdlife+$E125),('PTRM input'!$N$385*(1+rvanilla08)^0.5)-SUM($N125:Z125),('PTRM input'!$N$385*(1+rvanilla08)^0.5)/A1stdlife)) -> 0 | AB125: =IF(A1stdlife="n/a","n/a",IF(AB$3>(A1stdlife+$E125),('PTRM input'!$N$385*(1+rvanilla08)^0.5)-SUM($N125:AA125),('PTRM input'!$N$385*(1+rvanilla08)^0.5)/A1stdlife)) -> 0 | AC125: =IF(A1stdlife="n/a","n/a",IF(AC$3>(A1stdlife+$E125),('PTRM input'!$N$385*(1+rvanilla08)^0.5)-SUM($N125:AB125),('PTRM input'!$N$385*(1+rvanilla08)^0.5)/A1stdlife)) -> 0 | AD125: =IF(A1stdlife="n/a","n/a",IF(AD$3>(A1stdlife+$E125),('PTRM input'!$N$385*(1+rvanilla08)^0.5)-SUM($N125:AC125),('PTRM input'!$N$385*(1+rvanilla08)^0.5)/A1stdlife)) -> 0 | AE125: =IF(A1stdlife="n/a","n/a",IF(AE$3>(A1stdlife+$E125),('PTRM input'!$N$385*(1+rvanilla08)^0.5)-SUM($N125:AD125),('PTRM input'!$N$385*(1+rvanilla08)^0.5)/A1stdlife)) -> 0 | AF125: =IF(A1stdlife="n/a","n/a",IF(AF$3>(A1stdlife+$E125),('PTRM input'!$N$385*(1+rvanilla08)^0.5)-SUM($N125:AE125),('PTRM input'!$N$385*(1+rvanilla08)^0.5)/A1stdlife)) -> 0 | AG125: =IF(A1stdlife="n/a","n/a",IF(AG$3>(A1stdlife+$E125),('PTRM input'!$N$385*(1+rvanilla08)^0.5)-SUM($N125:AF125),('PTRM input'!$N$385*(1+rvanilla08)^0.5)/A1stdlife)) -> 0 | AH125: =IF(A1stdlife="n/a","n/a",IF(AH$3>(A1stdlife+$E125),('PTRM input'!$N$385*(1+rvanilla08)^0.5)-SUM($N125:AG125),('PTRM input'!$N$385*(1+rvanilla08)^0.5)/A1stdlife)) -> 0 | AI125: =IF(A1stdlife="n/a","n/a",IF(AI$3>(A1stdlife+$E125),('PTRM input'!$N$385*(1+rvanilla08)^0.5)-SUM($N125:AH125),('PTRM input'!$N$385*(1+rvanilla08)^0.5)/A1stdlife)) -> 0 | AJ125: =IF(A1stdlife="n/a","n/a",IF(AJ$3>(A1stdlife+$E125),('PTRM input'!$N$385*(1+rvanilla08)^0.5)-SUM($N125:AI125),('PTRM input'!$N$385*(1+rvanilla08)^0.5)/A1stdlife)) -> 0 | AK125: =IF(A1stdlife="n/a","n/a",IF(AK$3>(A1stdlife+$E125),('PTRM input'!$N$385*(1+rvanilla08)^0.5)-SUM($N125:AJ125),('PTRM input'!$N$385*(1+rvanilla08)^0.5)/A1stdlife)) -> 0 | AL125: =IF(A1stdlife="n/a","n/a",IF(AL$3>(A1stdlife+$E125),('PTRM input'!$N$385*(1+rvanilla08)^0.5)-SUM($N125:AK125),('PTRM input'!$N$385*(1+rvanilla08)^0.5)/A1stdlife)) -> 0 | AM125: =IF(A1stdlife="n/a","n/a",IF(AM$3>(A1stdlife+$E125),('PTRM input'!$N$385*(1+rvanilla08)^0.5)-SUM($N125:AL125),('PTRM input'!$N$385*(1+rvanilla08)^0.5)/A1stdlife)) -> 0 | AN125: =IF(A1stdlife="n/a","n/a",IF(AN$3>(A1stdlife+$E125),('PTRM input'!$N$385*(1+rvanilla08)^0.5)-SUM($N125:AM125),('PTRM input'!$N$385*(1+rvanilla08)^0.5)/A1stdlife)) -> 0 | AO125: =IF(A1stdlife="n/a","n/a",IF(AO$3>(A1stdlife+$E125),('PTRM input'!$N$385*(1+rvanilla08)^0.5)-SUM($N125:AN125),('PTRM input'!$N$385*(1+rvanilla08)^0.5)/A1stdlife)) -> 0 | AP125: =IF(A1stdlife="n/a","n/a",IF(AP$3>(A1stdlife+$E125),('PTRM input'!$N$385*(1+rvanilla08)^0.5)-SUM($N125:AO125),('PTRM input'!$N$385*(1+rvanilla08)^0.5)/A1stdlife)) -> 0 | AQ125: =IF(A1stdlife="n/a","n/a",IF(AQ$3>(A1stdlife+$E125),('PTRM input'!$N$385*(1+rvanilla08)^0.5)-SUM($N125:AP125),('PTRM input'!$N$385*(1+rvanilla08)^0.5)/A1stdlife)) -> 0 | AR125: =IF(A1stdlife="n/a","n/a",IF(AR$3>(A1stdlife+$E125),('PTRM input'!$N$385*(1+rvanilla08)^0.5)-SUM($N125:AQ125),('PTRM input'!$N$385*(1+rvanilla08)^0.5)/A1stdlife)) -> 0 | AS125: =IF(A1stdlife="n/a","n/a",IF(AS$3>(A1stdlife+$E125),('PTRM input'!$N$385*(1+rvanilla08)^0.5)-SUM($N125:AR125),('PTRM input'!$N$385*(1+rvanilla08)^0.5)/A1stdlife)) -> 0 | AT125: =IF(A1stdlife="n/a","n/a",IF(AT$3>(A1stdlife+$E125),('PTRM input'!$N$385*(1+rvanilla08)^0.5)-SUM($N125:AS125),('PTRM input'!$N$385*(1+rvanilla08)^0.5)/A1stdlife)) -> 0 | AU125: =IF(A1stdlife="n/a","n/a",IF(AU$3>(A1stdlife+$E125),('PTRM input'!$N$385*(1+rvanilla08)^0.5)-SUM($N125:AT125),('PTRM input'!$N$385*(1+rvanilla08)^0.5)/A1stdlife)) -> 0 | AV125: =IF(A1stdlife="n/a","n/a",IF(AV$3>(A1stdlife+$E125),('PTRM input'!$N$385*(1+rvanilla08)^0.5)-SUM($N125:AU125),('PTRM input'!$N$385*(1+rvanilla08)^0.5)/A1stdlife)) -> 0 | AW125: =IF(A1stdlife="n/a","n/a",IF(AW$3>(A1stdlife+$E125),('PTRM input'!$N$385*(1+rvanilla08)^0.5)-SUM($N125:AV125),('PTRM input'!$N$385*(1+rvanilla08)^0.5)/A1stdlife)) -> 0 | AX125: =IF(A1stdlife="n/a","n/a",IF(AX$3>(A1stdlife+$E125),('PTRM input'!$N$385*(1+rvanilla08)^0.5)-SUM($N125:AW125),('PTRM input'!$N$385*(1+rvanilla08)^0.5)/A1stdlife)) -> 0 | AY125: =IF(A1stdlife="n/a","n/a",IF(AY$3>(A1stdlife+$E125),('PTRM input'!$N$385*(1+rvanilla08)^0.5)-SUM($N125:AX125),('PTRM input'!$N$385*(1+rvanilla08)^0.5)/A1stdlife)) -> 0 | AZ125: =IF(A1stdlife="n/a","n/a",IF(AZ$3>(A1stdlife+$E125),('PTRM input'!$N$385*(1+rvanilla08)^0.5)-SUM($N125:AY125),('PTRM input'!$N$385*(1+rvanilla08)^0.5)/A1stdlife)) -> 0 | BA125: =IF(A1stdlife="n/a","n/a",IF(BA$3>(A1stdlife+$E125),('PTRM input'!$N$385*(1+rvanilla08)^0.5)-SUM($N125:AZ125),('PTRM input'!$N$385*(1+rvanilla08)^0.5)/A1stdlife)) -> 0 | BB125: =IF(A1stdlife="n/a","n/a",IF(BB$3>(A1stdlife+$E125),('PTRM input'!$N$385*(1+rvanilla08)^0.5)-SUM($N125:BA125),('PTRM input'!$N$385*(1+rvanilla08)^0.5)/A1stdlife)) -> 0 | BC125: =IF(A1stdlife="n/a","n/a",IF(BC$3>(A1stdlife+$E125),('PTRM input'!$N$385*(1+rvanilla08)^0.5)-SUM($N125:BB125),('PTRM input'!$N$385*(1+rvanilla08)^0.5)/A1stdlife)) -> 0 | BD125: =IF(A1stdlife="n/a","n/a",IF(BD$3>(A1stdlife+$E125),('PTRM input'!$N$385*(1+rvanilla08)^0.5)-SUM($N125:BC125),('PTRM input'!$N$385*(1+rvanilla08)^0.5)/A1stdlife)) -> 0 | BE125: =IF(A1stdlife="n/a","n/a",IF(BE$3>(A1stdlife+$E125),('PTRM input'!$N$385*(1+rvanilla08)^0.5)-SUM($N125:BD125),('PTRM input'!$N$385*(1+rvanilla08)^0.5)/A1stdlife)) -> 0 | BF125: =IF(A1stdlife="n/a","n/a",IF(BF$3>(A1stdlife+$E125),('PTRM input'!$N$385*(1+rvanilla08)^0.5)-SUM($N125:BE125),('PTRM input'!$N$385*(1+rvanilla08)^0.5)/A1stdlife)) -> 0 | BG125: =IF(A1stdlife="n/a","n/a",IF(BG$3>(A1stdlife+$E125),('PTRM input'!$N$385*(1+rvanilla08)^0.5)-SUM($N125:BF125),('PTRM input'!$N$385*(1+rvanilla08)^0.5)/A1stdlife)) -> 0 | BH125: =IF(A1stdlife="n/a","n/a",IF(BH$3>(A1stdlife+$E125),('PTRM input'!$N$385*(1+rvanilla08)^0.5)-SUM($N125:BG125),('PTRM input'!$N$385*(1+rvanilla08)^0.5)/A1stdlife)) -> 0 | BI125: =IF(A1stdlife="n/a","n/a",IF(BI$3>(A1stdlife+$E125),('PTRM input'!$N$385*(1+rvanilla08)^0.5)-SUM($N125:BH125),('PTRM input'!$N$385*(1+rvanilla08)^0.5)/A1stdlife)) -> 0
E126: 9 | P126: =IF(A1stdlife="n/a","n/a",IF(P$3>(A1stdlife+$E126),('PTRM input'!$O$385*(1+rvanilla09)^0.5)-SUM($O126:O126),('PTRM input'!$O$385*(1+rvanilla09)^0.5)/A1stdlife)) -> 0 | Q126: =IF(A1stdlife="n/a","n/a",IF(Q$3>(A1stdlife+$E126),('PTRM input'!$O$385*(1+rvanilla09)^0.5)-SUM($O126:P126),('PTRM input'!$O$385*(1+rvanilla09)^0.5)/A1stdlife)) -> 0 | R126: =IF(A1stdlife="n/a","n/a",IF(R$3>(A1stdlife+$E126),('PTRM input'!$O$385*(1+rvanilla09)^0.5)-SUM($O126:Q126),('PTRM input'!$O$385*(1+rvanilla09)^0.5)/A1stdlife)) -> 0 | S126: =IF(A1stdlife="n/a","n/a",IF(S$3>(A1stdlife+$E126),('PTRM input'!$O$385*(1+rvanilla09)^0.5)-SUM($O126:R126),('PTRM input'!$O$385*(1+rvanilla09)^0.5)/A1stdlife)) -> 0 | T126: =IF(A1stdlife="n/a","n/a",IF(T$3>(A1stdlife+$E126),('PTRM input'!$O$385*(1+rvanilla09)^0.5)-SUM($O126:S126),('PTRM input'!$O$385*(1+rvanilla09)^0.5)/A1stdlife)) -> 0 | U126: =IF(A1stdlife="n/a","n/a",IF(U$3>(A1stdlife+$E126),('PTRM input'!$O$385*(1+rvanilla09)^0.5)-SUM($O126:T126),('PTRM input'!$O$385*(1+rvanilla09)^0.5)/A1stdlife)) -> 0 | V126: =IF(A1stdlife="n/a","n/a",IF(V$3>(A1stdlife+$E126),('PTRM input'!$O$385*(1+rvanilla09)^0.5)-SUM($O126:U126),('PTRM input'!$O$385*(1+rvanilla09)^0.5)/A1stdlife)) -> 0 | W126: =IF(A1stdlife="n/a","n/a",IF(W$3>(A1stdlife+$E126),('PTRM input'!$O$385*(1+rvanilla09)^0.5)-SUM($O126:V126),('PTRM input'!$O$385*(1+rvanilla09)^0.5)/A1stdlife)) -> 0 | X126: =IF(A1stdlife="n/a","n/a",IF(X$3>(A1stdlife+$E126),('PTRM input'!$O$385*(1+rvanilla09)^0.5)-SUM($O126:W126),('PTRM input'!$O$385*(1+rvanilla09)^0.5)/A1stdlife)) -> 0 | Y126: =IF(A1stdlife="n/a","n/a",IF(Y$3>(A1stdlife+$E126),('PTRM input'!$O$385*(1+rvanilla09)^0.5)-SUM($O126:X126),('PTRM input'!$O$385*(1+rvanilla09)^0.5)/A1stdlife)) -> 0 | Z126: =IF(A1stdlife="n/a","n/a",IF(Z$3>(A1stdlife+$E126),('PTRM input'!$O$385*(1+rvanilla09)^0.5)-SUM($O126:Y126),('PTRM input'!$O$385*(1+rvanilla09)^0.5)/A1stdlife)) -> 0 | AA126: =IF(A1stdlife="n/a","n/a",IF(AA$3>(A1stdlife+$E126),('PTRM input'!$O$385*(1+rvanilla09)^0.5)-SUM($O126:Z126),('PTRM input'!$O$385*(1+rvanilla09)^0.5)/A1stdlife)) -> 0 | AB126: =IF(A1stdlife="n/a","n/a",IF(AB$3>(A1stdlife+$E126),('PTRM input'!$O$385*(1+rvanilla09)^0.5)-SUM($O126:AA126),('PTRM input'!$O$385*(1+rvanilla09)^0.5)/A1stdlife)) -> 0 | AC126: =IF(A1stdlife="n/a","n/a",IF(AC$3>(A1stdlife+$E126),('PTRM input'!$O$385*(1+rvanilla09)^0.5)-SUM($O126:AB126),('PTRM input'!$O$385*(1+rvanilla09)^0.5)/A1stdlife)) -> 0 | AD126: =IF(A1stdlife="n/a","n/a",IF(AD$3>(A1stdlife+$E126),('PTRM input'!$O$385*(1+rvanilla09)^0.5)-SUM($O126:AC126),('PTRM input'!$O$385*(1+rvanilla09)^0.5)/A1stdlife)) -> 0 | AE126: =IF(A1stdlife="n/a","n/a",IF(AE$3>(A1stdlife+$E126),('PTRM input'!$O$385*(1+rvanilla09)^0.5)-SUM($O126:AD126),('PTRM input'!$O$385*(1+rvanilla09)^0.5)/A1stdlife)) -> 0 | AF126: =IF(A1stdlife="n/a","n/a",IF(AF$3>(A1stdlife+$E126),('PTRM input'!$O$385*(1+rvanilla09)^0.5)-SUM($O126:AE126),('PTRM input'!$O$385*(1+rvanilla09)^0.5)/A1stdlife)) -> 0 | AG126: =IF(A1stdlife="n/a","n/a",IF(AG$3>(A1stdlife+$E126),('PTRM input'!$O$385*(1+rvanilla09)^0.5)-SUM($O126:AF126),('PTRM input'!$O$385*(1+rvanilla09)^0.5)/A1stdlife)) -> 0 | AH126: =IF(A1stdlife="n/a","n/a",IF(AH$3>(A1stdlife+$E126),('PTRM input'!$O$385*(1+rvanilla09)^0.5)-SUM($O126:AG126),('PTRM input'!$O$385*(1+rvanilla09)^0.5)/A1stdlife)) -> 0 | AI126: =IF(A1stdlife="n/a","n/a",IF(AI$3>(A1stdlife+$E126),('PTRM input'!$O$385*(1+rvanilla09)^0.5)-SUM($O126:AH126),('PTRM input'!$O$385*(1+rvanilla09)^0.5)/A1stdlife)) -> 0 | AJ126: =IF(A1stdlife="n/a","n/a",IF(AJ$3>(A1stdlife+$E126),('PTRM input'!$O$385*(1+rvanilla09)^0.5)-SUM($O126:AI126),('PTRM input'!$O$385*(1+rvanilla09)^0.5)/A1stdlife)) -> 0 | AK126: =IF(A1stdlife="n/a","n/a",IF(AK$3>(A1stdlife+$E126),('PTRM input'!$O$385*(1+rvanilla09)^0.5)-SUM($O126:AJ126),('PTRM input'!$O$385*(1+rvanilla09)^0.5)/A1stdlife)) -> 0 | AL126: =IF(A1stdlife="n/a","n/a",IF(AL$3>(A1stdlife+$E126),('PTRM input'!$O$385*(1+rvanilla09)^0.5)-SUM($O126:AK126),('PTRM input'!$O$385*(1+rvanilla09)^0.5)/A1stdlife)) -> 0 | AM126: =IF(A1stdlife="n/a","n/a",IF(AM$3>(A1stdlife+$E126),('PTRM input'!$O$385*(1+rvanilla09)^0.5)-SUM($O126:AL126),('PTRM input'!$O$385*(1+rvanilla09)^0.5)/A1stdlife)) -> 0 | AN126: =IF(A1stdlife="n/a","n/a",IF(AN$3>(A1stdlife+$E126),('PTRM input'!$O$385*(1+rvanilla09)^0.5)-SUM($O126:AM126),('PTRM input'!$O$385*(1+rvanilla09)^0.5)/A1stdlife)) -> 0 | AO126: =IF(A1stdlife="n/a","n/a",IF(AO$3>(A1stdlife+$E126),('PTRM input'!$O$385*(1+rvanilla09)^0.5)-SUM($O126:AN126),('PTRM input'!$O$385*(1+rvanilla09)^0.5)/A1stdlife)) -> 0 | AP126: =IF(A1stdlife="n/a","n/a",IF(AP$3>(A1stdlife+$E126),('PTRM input'!$O$385*(1+rvanilla09)^0.5)-SUM($O126:AO126),('PTRM input'!$O$385*(1+rvanilla09)^0.5)/A1stdlife)) -> 0 | AQ126: =IF(A1stdlife="n/a","n/a",IF(AQ$3>(A1stdlife+$E126),('PTRM input'!$O$385*(1+rvanilla09)^0.5)-SUM($O126:AP126),('PTRM input'!$O$385*(1+rvanilla09)^0.5)/A1stdlife)) -> 0 | AR126: =IF(A1stdlife="n/a","n/a",IF(AR$3>(A1stdlife+$E126),('PTRM input'!$O$385*(1+rvanilla09)^0.5)-SUM($O126:AQ126),('PTRM input'!$O$385*(1+rvanilla09)^0.5)/A1stdlife)) -> 0 | AS126: =IF(A1stdlife="n/a","n/a",IF(AS$3>(A1stdlife+$E126),('PTRM input'!$O$385*(1+rvanilla09)^0.5)-SUM($O126:AR126),('PTRM input'!$O$385*(1+rvanilla09)^0.5)/A1stdlife)) -> 0 | AT126: =IF(A1stdlife="n/a","n/a",IF(AT$3>(A1stdlife+$E126),('PTRM input'!$O$385*(1+rvanilla09)^0.5)-SUM($O126:AS126),('PTRM input'!$O$385*(1+rvanilla09)^0.5)/A1stdlife)) -> 0 | AU126: =IF(A1stdlife="n/a","n/a",IF(AU$3>(A1stdlife+$E126),('PTRM input'!$O$385*(1+rvanilla09)^0.5)-SUM($O126:AT126),('PTRM input'!$O$385*(1+rvanilla09)^0.5)/A1stdlife)) -> 0 | AV126: =IF(A1stdlife="n/a","n/a",IF(AV$3>(A1stdlife+$E126),('PTRM input'!$O$385*(1+rvanilla09)^0.5)-SUM($O126:AU126),('PTRM input'!$O$385*(1+rvanilla09)^0.5)/A1stdlife)) -> 0 | AW126: =IF(A1stdlife="n/a","n/a",IF(AW$3>(A1stdlife+$E126),('PTRM input'!$O$385*(1+rvanilla09)^0.5)-SUM($O126:AV126),('PTRM input'!$O$385*(1+rvanilla09)^0.5)/A1stdlife)) -> 0 | AX126: =IF(A1stdlife="n/a","n/a",IF(AX$3>(A1stdlife+$E126),('PTRM input'!$O$385*(1+rvanilla09)^0.5)-SUM($O126:AW126),('PTRM input'!$O$385*(1+rvanilla09)^0.5)/A1stdlife)) -> 0 | AY126: =IF(A1stdlife="n/a","n/a",IF(AY$3>(A1stdlife+$E126),('PTRM input'!$O$385*(1+rvanilla09)^0.5)-SUM($O126:AX126),('PTRM input'!$O$385*(1+rvanilla09)^0.5)/A1stdlife)) -> 0 | AZ126: =IF(A1stdlife="n/a","n/a",IF(AZ$3>(A1stdlife+$E126),('PTRM input'!$O$385*(1+rvanilla09)^0.5)-SUM($O126:AY126),('PTRM input'!$O$385*(1+rvanilla09)^0.5)/A1stdlife)) -> 0 | BA126: =IF(A1stdlife="n/a","n/a",IF(BA$3>(A1stdlife+$E126),('PTRM input'!$O$385*(1+rvanilla09)^0.5)-SUM($O126:AZ126),('PTRM input'!$O$385*(1+rvanilla09)^0.5)/A1stdlife)) -> 0 | BB126: =IF(A1stdlife="n/a","n/a",IF(BB$3>(A1stdlife+$E126),('PTRM input'!$O$385*(1+rvanilla09)^0.5)-SUM($O126:BA126),('PTRM input'!$O$385*(1+rvanilla09)^0.5)/A1stdlife)) -> 0 | BC126: =IF(A1stdlife="n/a","n/a",IF(BC$3>(A1stdlife+$E126),('PTRM input'!$O$385*(1+rvanilla09)^0.5)-SUM($O126:BB126),('PTRM input'!$O$385*(1+rvanilla09)^0.5)/A1stdlife)) -> 0 | BD126: =IF(A1stdlife="n/a","n/a",IF(BD$3>(A1stdlife+$E126),('PTRM input'!$O$385*(1+rvanilla09)^0.5)-SUM($O126:BC126),('PTRM input'!$O$385*(1+rvanilla09)^0.5)/A1stdlife)) -> 0 | BE126: =IF(A1stdlife="n/a","n/a",IF(BE$3>(A1stdlife+$E126),('PTRM input'!$O$385*(1+rvanilla09)^0.5)-SUM($O126:BD126),('PTRM input'!$O$385*(1+rvanilla09)^0.5)/A1stdlife)) -> 0 | BF126: =IF(A1stdlife="n/a","n/a",IF(BF$3>(A1stdlife+$E126),('PTRM input'!$O$385*(1+rvanilla09)^0.5)-SUM($O126:BE126),('PTRM input'!$O$385*(1+rvanilla09)^0.5)/A1stdlife)) -> 0 | BG126: =IF(A1stdlife="n/a","n/a",IF(BG$3>(A1stdlife+$E126),('PTRM input'!$O$385*(1+rvanilla09)^0.5)-SUM($O126:BF126),('PTRM input'!$O$385*(1+rvanilla09)^0.5)/A1stdlife)) -> 0 | BH126: =IF(A1stdlife="n/a","n/a",IF(BH$3>(A1stdlife+$E126),('PTRM input'!$O$385*(1+rvanilla09)^0.5)-SUM($O126:BG126),('PTRM input'!$O$385*(1+rvanilla09)^0.5)/A1stdlife)) -> 0 | BI126: =IF(A1stdlife="n/a","n/a",IF(BI$3>(A1stdlife+$E126),('PTRM input'!$O$385*(1+rvanilla09)^0.5)-SUM($O126:BH126),('PTRM input'!$O$385*(1+rvanilla09)^0.5)/A1stdlife)) -> 0
E127: 10 | Q127: =IF(A1stdlife="n/a","n/a",IF(Q$3>(A1stdlife+$E127),('PTRM input'!$P$385*(1+rvanilla10)^0.5)-SUM($P127:P127),('PTRM input'!$P$385*(1+rvanilla10)^0.5)/A1stdlife)) -> 0 | R127: =IF(A1stdlife="n/a","n/a",IF(R$3>(A1stdlife+$E127),('PTRM input'!$P$385*(1+rvanilla10)^0.5)-SUM($P127:Q127),('PTRM input'!$P$385*(1+rvanilla10)^0.5)/A1stdlife)) -> 0 | S127: =IF(A1stdlife="n/a","n/a",IF(S$3>(A1stdlife+$E127),('PTRM input'!$P$385*(1+rvanilla10)^0.5)-SUM($P127:R127),('PTRM input'!$P$385*(1+rvanilla10)^0.5)/A1stdlife)) -> 0 | T127: =IF(A1stdlife="n/a","n/a",IF(T$3>(A1stdlife+$E127),('PTRM input'!$P$385*(1+rvanilla10)^0.5)-SUM($P127:S127),('PTRM input'!$P$385*(1+rvanilla10)^0.5)/A1stdlife)) -> 0 | U127: =IF(A1stdlife="n/a","n/a",IF(U$3>(A1stdlife+$E127),('PTRM input'!$P$385*(1+rvanilla10)^0.5)-SUM($P127:T127),('PTRM input'!$P$385*(1+rvanilla10)^0.5)/A1stdlife)) -> 0 | V127: =IF(A1stdlife="n/a","n/a",IF(V$3>(A1stdlife+$E127),('PTRM input'!$P$385*(1+rvanilla10)^0.5)-SUM($P127:U127),('PTRM input'!$P$385*(1+rvanilla10)^0.5)/A1stdlife)) -> 0 | W127: =IF(A1stdlife="n/a","n/a",IF(W$3>(A1stdlife+$E127),('PTRM input'!$P$385*(1+rvanilla10)^0.5)-SUM($P127:V127),('PTRM input'!$P$385*(1+rvanilla10)^0.5)/A1stdlife)) -> 0 | X127: =IF(A1stdlife="n/a","n/a",IF(X$3>(A1stdlife+$E127),('PTRM input'!$P$385*(1+rvanilla10)^0.5)-SUM($P127:W127),('PTRM input'!$P$385*(1+rvanilla10)^0.5)/A1stdlife)) -> 0 | Y127: =IF(A1stdlife="n/a","n/a",IF(Y$3>(A1stdlife+$E127),('PTRM input'!$P$385*(1+rvanilla10)^0.5)-SUM($P127:X127),('PTRM input'!$P$385*(1+rvanilla10)^0.5)/A1stdlife)) -> 0 | Z127: =IF(A1stdlife="n/a","n/a",IF(Z$3>(A1stdlife+$E127),('PTRM input'!$P$385*(1+rvanilla10)^0.5)-SUM($P127:Y127),('PTRM input'!$P$385*(1+rvanilla10)^0.5)/A1stdlife)) -> 0 | AA127: =IF(A1stdlife="n/a","n/a",IF(AA$3>(A1stdlife+$E127),('PTRM input'!$P$385*(1+rvanilla10)^0.5)-SUM($P127:Z127),('PTRM input'!$P$385*(1+rvanilla10)^0.5)/A1stdlife)) -> 0 | AB127: =IF(A1stdlife="n/a","n/a",IF(AB$3>(A1stdlife+$E127),('PTRM input'!$P$385*(1+rvanilla10)^0.5)-SUM($P127:AA127),('PTRM input'!$P$385*(1+rvanilla10)^0.5)/A1stdlife)) -> 0 | AC127: =IF(A1stdlife="n/a","n/a",IF(AC$3>(A1stdlife+$E127),('PTRM input'!$P$385*(1+rvanilla10)^0.5)-SUM($P127:AB127),('PTRM input'!$P$385*(1+rvanilla10)^0.5)/A1stdlife)) -> 0 | AD127: =IF(A1stdlife="n/a","n/a",IF(AD$3>(A1stdlife+$E127),('PTRM input'!$P$385*(1+rvanilla10)^0.5)-SUM($P127:AC127),('PTRM input'!$P$385*(1+rvanilla10)^0.5)/A1stdlife)) -> 0 | AE127: =IF(A1stdlife="n/a","n/a",IF(AE$3>(A1stdlife+$E127),('PTRM input'!$P$385*(1+rvanilla10)^0.5)-SUM($P127:AD127),('PTRM input'!$P$385*(1+rvanilla10)^0.5)/A1stdlife)) -> 0 | AF127: =IF(A1stdlife="n/a","n/a",IF(AF$3>(A1stdlife+$E127),('PTRM input'!$P$385*(1+rvanilla10)^0.5)-SUM($P127:AE127),('PTRM input'!$P$385*(1+rvanilla10)^0.5)/A1stdlife)) -> 0 | AG127: =IF(A1stdlife="n/a","n/a",IF(AG$3>(A1stdlife+$E127),('PTRM input'!$P$385*(1+rvanilla10)^0.5)-SUM($P127:AF127),('PTRM input'!$P$385*(1+rvanilla10)^0.5)/A1stdlife)) -> 0 | AH127: =IF(A1stdlife="n/a","n/a",IF(AH$3>(A1stdlife+$E127),('PTRM input'!$P$385*(1+rvanilla10)^0.5)-SUM($P127:AG127),('PTRM input'!$P$385*(1+rvanilla10)^0.5)/A1stdlife)) -> 0 | AI127: =IF(A1stdlife="n/a","n/a",IF(AI$3>(A1stdlife+$E127),('PTRM input'!$P$385*(1+rvanilla10)^0.5)-SUM($P127:AH127),('PTRM input'!$P$385*(1+rvanilla10)^0.5)/A1stdlife)) -> 0 | AJ127: =IF(A1stdlife="n/a","n/a",IF(AJ$3>(A1stdlife+$E127),('PTRM input'!$P$385*(1+rvanilla10)^0.5)-SUM($P127:AI127),('PTRM input'!$P$385*(1+rvanilla10)^0.5)/A1stdlife)) -> 0 | AK127: =IF(A1stdlife="n/a","n/a",IF(AK$3>(A1stdlife+$E127),('PTRM input'!$P$385*(1+rvanilla10)^0.5)-SUM($P127:AJ127),('PTRM input'!$P$385*(1+rvanilla10)^0.5)/A1stdlife)) -> 0 | AL127: =IF(A1stdlife="n/a","n/a",IF(AL$3>(A1stdlife+$E127),('PTRM input'!$P$385*(1+rvanilla10)^0.5)-SUM($P127:AK127),('PTRM input'!$P$385*(1+rvanilla10)^0.5)/A1stdlife)) -> 0 | AM127: =IF(A1stdlife="n/a","n/a",IF(AM$3>(A1stdlife+$E127),('PTRM input'!$P$385*(1+rvanilla10)^0.5)-SUM($P127:AL127),('PTRM input'!$P$385*(1+rvanilla10)^0.5)/A1stdlife)) -> 0 | AN127: =IF(A1stdlife="n/a","n/a",IF(AN$3>(A1stdlife+$E127),('PTRM input'!$P$385*(1+rvanilla10)^0.5)-SUM($P127:AM127),('PTRM input'!$P$385*(1+rvanilla10)^0.5)/A1stdlife)) -> 0 | AO127: =IF(A1stdlife="n/a","n/a",IF(AO$3>(A1stdlife+$E127),('PTRM input'!$P$385*(1+rvanilla10)^0.5)-SUM($P127:AN127),('PTRM input'!$P$385*(1+rvanilla10)^0.5)/A1stdlife)) -> 0 | AP127: =IF(A1stdlife="n/a","n/a",IF(AP$3>(A1stdlife+$E127),('PTRM input'!$P$385*(1+rvanilla10)^0.5)-SUM($P127:AO127),('PTRM input'!$P$385*(1+rvanilla10)^0.5)/A1stdlife)) -> 0 | AQ127: =IF(A1stdlife="n/a","n/a",IF(AQ$3>(A1stdlife+$E127),('PTRM input'!$P$385*(1+rvanilla10)^0.5)-SUM($P127:AP127),('PTRM input'!$P$385*(1+rvanilla10)^0.5)/A1stdlife)) -> 0 | AR127: =IF(A1stdlife="n/a","n/a",IF(AR$3>(A1stdlife+$E127),('PTRM input'!$P$385*(1+rvanilla10)^0.5)-SUM($P127:AQ127),('PTRM input'!$P$385*(1+rvanilla10)^0.5)/A1stdlife)) -> 0 | AS127: =IF(A1stdlife="n/a","n/a",IF(AS$3>(A1stdlife+$E127),('PTRM input'!$P$385*(1+rvanilla10)^0.5)-SUM($P127:AR127),('PTRM input'!$P$385*(1+rvanilla10)^0.5)/A1stdlife)) -> 0 | AT127: =IF(A1stdlife="n/a","n/a",IF(AT$3>(A1stdlife+$E127),('PTRM input'!$P$385*(1+rvanilla10)^0.5)-SUM($P127:AS127),('PTRM input'!$P$385*(1+rvanilla10)^0.5)/A1stdlife)) -> 0 | AU127: =IF(A1stdlife="n/a","n/a",IF(AU$3>(A1stdlife+$E127),('PTRM input'!$P$385*(1+rvanilla10)^0.5)-SUM($P127:AT127),('PTRM input'!$P$385*(1+rvanilla10)^0.5)/A1stdlife)) -> 0 | AV127: =IF(A1stdlife="n/a","n/a",IF(AV$3>(A1stdlife+$E127),('PTRM input'!$P$385*(1+rvanilla10)^0.5)-SUM($P127:AU127),('PTRM input'!$P$385*(1+rvanilla10)^0.5)/A1stdlife)) -> 0 | AW127: =IF(A1stdlife="n/a","n/a",IF(AW$3>(A1stdlife+$E127),('PTRM input'!$P$385*(1+rvanilla10)^0.5)-SUM($P127:AV127),('PTRM input'!$P$385*(1+rvanilla10)^0.5)/A1stdlife)) -> 0 | AX127: =IF(A1stdlife="n/a","n/a",IF(AX$3>(A1stdlife+$E127),('PTRM input'!$P$385*(1+rvanilla10)^0.5)-SUM($P127:AW127),('PTRM input'!$P$385*(1+rvanilla10)^0.5)/A1stdlife)) -> 0 | AY127: =IF(A1stdlife="n/a","n/a",IF(AY$3>(A1stdlife+$E127),('PTRM input'!$P$385*(1+rvanilla10)^0.5)-SUM($P127:AX127),('PTRM input'!$P$385*(1+rvanilla10)^0.5)/A1stdlife)) -> 0 | AZ127: =IF(A1stdlife="n/a","n/a",IF(AZ$3>(A1stdlife+$E127),('PTRM input'!$P$385*(1+rvanilla10)^0.5)-SUM($P127:AY127),('PTRM input'!$P$385*(1+rvanilla10)^0.5)/A1stdlife)) -> 0 | BA127: =IF(A1stdlife="n/a","n/a",IF(BA$3>(A1stdlife+$E127),('PTRM input'!$P$385*(1+rvanilla10)^0.5)-SUM($P127:AZ127),('PTRM input'!$P$385*(1+rvanilla10)^0.5)/A1stdlife)) -> 0 | BB127: =IF(A1stdlife="n/a","n/a",IF(BB$3>(A1stdlife+$E127),('PTRM input'!$P$385*(1+rvanilla10)^0.5)-SUM($P127:BA127),('PTRM input'!$P$385*(1+rvanilla10)^0.5)/A1stdlife)) -> 0 | BC127: =IF(A1stdlife="n/a","n/a",IF(BC$3>(A1stdlife+$E127),('PTRM input'!$P$385*(1+rvanilla10)^0.5)-SUM($P127:BB127),('PTRM input'!$P$385*(1+rvanilla10)^0.5)/A1stdlife)) -> 0 | BD127: =IF(A1stdlife="n/a","n/a",IF(BD$3>(A1stdlife+$E127),('PTRM input'!$P$385*(1+rvanilla10)^0.5)-SUM($P127:BC127),('PTRM input'!$P$385*(1+rvanilla10)^0.5)/A1stdlife)) -> 0 | BE127: =IF(A1stdlife="n/a","n/a",IF(BE$3>(A1stdlife+$E127),('PTRM input'!$P$385*(1+rvanilla10)^0.5)-SUM($P127:BD127),('PTRM input'!$P$385*(1+rvanilla10)^0.5)/A1stdlife)) -> 0 | BF127: =IF(A1stdlife="n/a","n/a",IF(BF$3>(A1stdlife+$E127),('PTRM input'!$P$385*(1+rvanilla10)^0.5)-SUM($P127:BE127),('PTRM input'!$P$385*(1+rvanilla10)^0.5)/A1stdlife)) -> 0 | BG127: =IF(A1stdlife="n/a","n/a",IF(BG$3>(A1stdlife+$E127),('PTRM input'!$P$385*(1+rvanilla10)^0.5)-SUM($P127:BF127),('PTRM input'!$P$385*(1+rvanilla10)^0.5)/A1stdlife)) -> 0 | BH127: =IF(A1stdlife="n/a","n/a",IF(BH$3>(A1stdlife+$E127),('PTRM input'!$P$385*(1+rvanilla10)^0.5)-SUM($P127:BG127),('PTRM input'!$P$385*(1+rvanilla10)^0.5)/A1stdlife)) -> 0 | BI127: =IF(A1stdlife="n/a","n/a",IF(BI$3>(A1stdlife+$E127),('PTRM input'!$P$385*(1+rvanilla10)^0.5)-SUM($P127:BH127),('PTRM input'!$P$385*(1+rvanilla10)^0.5)/A1stdlife)) -> 0
C128: =Asset1 -> Transmission Lines (pre 2004-05) | G128: =SUM(G116:G127) -> 89.4415886 | H128: =SUM(H116:H127) -> 89.4415886 | I128: 89.4415886 | J128: 89.4415886 | K128: 11.89573128 | L128: =SUM(L116:L127) -> 0 | M128: 0 | N128: 0 | O128: 0 | P128: 0 | Q128: 0 | R128: 0 | S128: 0 | T128: 0 | U128: 0 | V128: 0 | W128: 0 | X128: 0 | Y128: 0 | Z128: 0 | AA128: 0 | AB128: 0 | AC128: 0 | AD128: 0 | AE128: 0 | AF128: 0 | AG128: 0 | AH128: 0 | AI128: 0 | AJ128: 0 | AK128: 0 | AL128: 0 | AM128: 0 | AN128: 0 | AO128: 0 | AP128: 0 | AQ128: 0 | AR128: 0 | AS128: 0 | AT128: 0 | AU128: 0 | AV128: 0 | AW128: 0 | AX128: 0 | AY128: 0 | AZ128: 0 | BA128: 0 | BB128: 0 | BC128: 0 | BD128: 0 | BE128: 0 | BF128: 0 | BG128: 0 | BH128: 0 | BI128: 0
B129: =C141 -> Underground Cables (pre 2004-05) | D129: Initial Asset Base | G129: =IF(('PTRM input'!$E$515='PTRM input'!$G$514),IF(G$3>A2remlife,A2acvalue-SUM(F129:$F129),IF(A2remlife="N/A","n/a",A2acvalue/A2remlife)),'PTRM input'!G$521) -> 8.796615362 | H129: =IF(('PTRM input'!$E$515='PTRM input'!$G$514),IF(H$3>A2remlife,A2acvalue-SUM($F129:G129),IF(A2remlife="N/A","n/a",A2acvalue/A2remlife)),'PTRM input'!H$521) -> 8.796615362 | I129: =IF(('PTRM input'!$E$515='PTRM input'!$G$514),IF(I$3>A2remlife,A2acvalue-SUM($F129:H129),IF(A2remlife="N/A","n/a",A2acvalue/A2remlife)),'PTRM input'!I$521) -> 8.796615362 | J129: =IF(('PTRM input'!$E$515='PTRM input'!$G$514),IF(J$3>A2remlife,A2acvalue-SUM($F129:I129),IF(A2remlife="N/A","n/a",A2acvalue/A2remlife)),'PTRM input'!J$521) -> 8.796615362 | K129: =IF(('PTRM input'!$E$515='PTRM input'!$G$514),IF(K$3>A2remlife,A2acvalue-SUM($F129:J129),IF(A2remlife="N/A","n/a",A2acvalue/A2remlife)),'PTRM input'!K$521) -> 8.796615362 | L129: =IF(('PTRM input'!$E$515='PTRM input'!$G$514),IF(L$3>A2remlife,A2acvalue-SUM($F129:K129),IF(A2remlife="N/A","n/a",A2acvalue/A2remlife)),'PTRM input'!L$521) -> 8.796615362 | M129: =IF(('PTRM input'!$E$515='PTRM input'!$G$514),IF(M$3>A2remlife,A2acvalue-SUM($F129:L129),IF(A2remlife="N/A","n/a",A2acvalue/A2remlife)),'PTRM input'!M$521) -> 8.796615362 | N129: =IF(('PTRM input'!$E$515='PTRM input'!$G$514),IF(N$3>A2remlife,A2acvalue-SUM($F129:M129),IF(A2remlife="N/A","n/a",A2acvalue/A2remlife)),'PTRM input'!N$521) -> 8.796615362 | O129: =IF(('PTRM input'!$E$515='PTRM input'!$G$514),IF(O$3>A2remlife,A2acvalue-SUM($F129:N129),IF(A2remlife="N/A","n/a",A2acvalue/A2remlife)),'PTRM input'!O$521) -> 8.796615362 | P129: =IF(('PTRM input'!$E$515='PTRM input'!$G$514),IF(P$3>A2remlife,A2acvalue-SUM($F129:O129),IF(A2remlife="N/A","n/a",A2acvalue/A2remlife)),'PTRM input'!P$521) -> 8.796615362 | Q129: =IF(('PTRM input'!$E$515='PTRM input'!$G$514),IF(Q$3>A2remlife,A2acvalue-SUM($F129:P129),IF(A2remlife="N/A","n/a",A2acvalue/A2remlife)),'PTRM input'!Q$521) -> 8.796615362 | R129: =IF(('PTRM input'!$E$515='PTRM input'!$G$514),IF(R$3>A2remlife,A2acvalue-SUM($F129:Q129),IF(A2remlife="N/A","n/a",A2acvalue/A2remlife)),'PTRM input'!R$521) -> 8.796615362 | S129: =IF(('PTRM input'!$E$515='PTRM input'!$G$514),IF(S$3>A2remlife,A2acvalue-SUM($F129:R129),IF(A2remlife="N/A","n/a",A2acvalue/A2remlife)),'PTRM input'!S$521) -> 8.796615362 | T129: =IF(('PTRM input'!$E$515='PTRM input'!$G$514),IF(T$3>A2remlife,A2acvalue-SUM($F129:S129),IF(A2remlife="N/A","n/a",A2acvalue/A2remlife)),'PTRM input'!T$521) -> 8.796615362 | U129: =IF(('PTRM input'!$E$515='PTRM input'!$G$514),IF(U$3>A2remlife,A2acvalue-SUM($F129:T129),IF(A2remlife="N/A","n/a",A2acvalue/A2remlife)),'PTRM input'!U$521) -> 8.796615362 | V129: =IF(('PTRM input'!$E$515='PTRM input'!$G$514),IF(V$3>A2remlife,A2acvalue-SUM($F129:U129),IF(A2remlife="N/A","n/a",A2acvalue/A2remlife)),'PTRM input'!V$521) -> 8.796615362 | W129: =IF(('PTRM input'!$E$515='PTRM input'!$G$514),IF(W$3>A2remlife,A2acvalue-SUM($F129:V129),IF(A2remlife="N/A","n/a",A2acvalue/A2remlife)),'PTRM input'!W$521) -> 2.665374455 | X129: =IF(('PTRM input'!$E$515='PTRM input'!$G$514),IF(X$3>A2remlife,A2acvalue-SUM($F129:W129),IF(A2remlife="N/A","n/a",A2acvalue/A2remlife)),'PTRM input'!X$521) -> 0 | Y129: =IF(('PTRM input'!$E$515='PTRM input'!$G$514),IF(Y$3>A2remlife,A2acvalue-SUM($F129:X129),IF(A2remlife="N/A","n/a",A2acvalue/A2remlife)),'PTRM input'!Y$521) -> 0 | Z129: =IF(('PTRM input'!$E$515='PTRM input'!$G$514),IF(Z$3>A2remlife,A2acvalue-SUM($F129:Y129),IF(A2remlife="N/A","n/a",A2acvalue/A2remlife)),'PTRM input'!Z$521) -> 0 | AA129: =IF(('PTRM input'!$E$515='PTRM input'!$G$514),IF(AA$3>A2remlife,A2acvalue-SUM($F129:Z129),IF(A2remlife="N/A","n/a",A2acvalue/A2remlife)),'PTRM input'!AA$521) -> 0 | AB129: =IF(('PTRM input'!$E$515='PTRM input'!$G$514),IF(AB$3>A2remlife,A2acvalue-SUM($F129:AA129),IF(A2remlife="N/A","n/a",A2acvalue/A2remlife)),'PTRM input'!AB$521) -> 0 | AC129: =IF(('PTRM input'!$E$515='PTRM input'!$G$514),IF(AC$3>A2remlife,A2acvalue-SUM($F129:AB129),IF(A2remlife="N/A","n/a",A2acvalue/A2remlife)),'PTRM input'!AC$521) -> 0 | AD129: =IF(('PTRM input'!$E$515='PTRM input'!$G$514),IF(AD$3>A2remlife,A2acvalue-SUM($F129:AC129),IF(A2remlife="N/A","n/a",A2acvalue/A2remlife)),'PTRM input'!AD$521) -> 0 | AE129: =IF(('PTRM input'!$E$515='PTRM input'!$G$514),IF(AE$3>A2remlife,A2acvalue-SUM($F129:AD129),IF(A2remlife="N/A","n/a",A2acvalue/A2remlife)),'PTRM input'!AE$521) -> 0 | AF129: =IF(('PTRM input'!$E$515='PTRM input'!$G$514),IF(AF$3>A2remlife,A2acvalue-SUM($F129:AE129),IF(A2remlife="N/A","n/a",A2acvalue/A2remlife)),'PTRM input'!AF$521) -> 0 | AG129: =IF(('PTRM input'!$E$515='PTRM input'!$G$514),IF(AG$3>A2remlife,A2acvalue-SUM($F129:AF129),IF(A2remlife="N/A","n/a",A2acvalue/A2remlife)),'PTRM input'!AG$521) -> 0 | AH129: =IF(('PTRM input'!$E$515='PTRM input'!$G$514),IF(AH$3>A2remlife,A2acvalue-SUM($F129:AG129),IF(A2remlife="N/A","n/a",A2acvalue/A2remlife)),'PTRM input'!AH$521) -> 0 | AI129: =IF(('PTRM input'!$E$515='PTRM input'!$G$514),IF(AI$3>A2remlife,A2acvalue-SUM($F129:AH129),IF(A2remlife="N/A","n/a",A2acvalue/A2remlife)),'PTRM input'!AI$521) -> 0 | AJ129: =IF(('PTRM input'!$E$515='PTRM input'!$G$514),IF(AJ$3>A2remlife,A2acvalue-SUM($F129:AI129),IF(A2remlife="N/A","n/a",A2acvalue/A2remlife)),'PTRM input'!AJ$521) -> 0 | AK129: =IF(('PTRM input'!$E$515='PTRM input'!$G$514),IF(AK$3>A2remlife,A2acvalue-SUM($F129:AJ129),IF(A2remlife="N/A","n/a",A2acvalue/A2remlife)),'PTRM input'!AK$521) -> 0 | AL129: =IF(('PTRM input'!$E$515='PTRM input'!$G$514),IF(AL$3>A2remlife,A2acvalue-SUM($F129:AK129),IF(A2remlife="N/A","n/a",A2acvalue/A2remlife)),'PTRM input'!AL$521) -> 0 | AM129: =IF(('PTRM input'!$E$515='PTRM input'!$G$514),IF(AM$3>A2remlife,A2acvalue-SUM($F129:AL129),IF(A2remlife="N/A","n/a",A2acvalue/A2remlife)),'PTRM input'!AM$521) -> 0 | AN129: =IF(('PTRM input'!$E$515='PTRM input'!$G$514),IF(AN$3>A2remlife,A2acvalue-SUM($F129:AM129),IF(A2remlife="N/A","n/a",A2acvalue/A2remlife)),'PTRM input'!AN$521) -> 0 | AO129: =IF(('PTRM input'!$E$515='PTRM input'!$G$514),IF(AO$3>A2remlife,A2acvalue-SUM($F129:AN129),IF(A2remlife="N/A","n/a",A2acvalue/A2remlife)),'PTRM input'!AO$521) -> 0 | AP129: =IF(('PTRM input'!$E$515='PTRM input'!$G$514),IF(AP$3>A2remlife,A2acvalue-SUM($F129:AO129),IF(A2remlife="N/A","n/a",A2acvalue/A2remlife)),'PTRM input'!AP$521) -> 0 | AQ129: =IF(('PTRM input'!$E$515='PTRM input'!$G$514),IF(AQ$3>A2remlife,A2acvalue-SUM($F129:AP129),IF(A2remlife="N/A","n/a",A2acvalue/A2remlife)),'PTRM input'!AQ$521) -> 0 | AR129: =IF(('PTRM input'!$E$515='PTRM input'!$G$514),IF(AR$3>A2remlife,A2acvalue-SUM($F129:AQ129),IF(A2remlife="N/A","n/a",A2acvalue/A2remlife)),'PTRM input'!AR$521) -> 0 | AS129: =IF(('PTRM input'!$E$515='PTRM input'!$G$514),IF(AS$3>A2remlife,A2acvalue-SUM($F129:AR129),IF(A2remlife="N/A","n/a",A2acvalue/A2remlife)),'PTRM input'!AS$521) -> 0 | AT129: =IF(('PTRM input'!$E$515='PTRM input'!$G$514),IF(AT$3>A2remlife,A2acvalue-SUM($F129:AS129),IF(A2remlife="N/A","n/a",A2acvalue/A2remlife)),'PTRM input'!AT$521) -> 0 | AU129: =IF(('PTRM input'!$E$515='PTRM input'!$G$514),IF(AU$3>A2remlife,A2acvalue-SUM($F129:AT129),IF(A2remlife="N/A","n/a",A2acvalue/A2remlife)),'PTRM input'!AU$521) -> 0 | AV129: =IF(('PTRM input'!$E$515='PTRM input'!$G$514),IF(AV$3>A2remlife,A2acvalue-SUM($F129:AU129),IF(A2remlife="N/A","n/a",A2acvalue/A2remlife)),'PTRM input'!AV$521) -> 0 | AW129: =IF(('PTRM input'!$E$515='PTRM input'!$G$514),IF(AW$3>A2remlife,A2acvalue-SUM($F129:AV129),IF(A2remlife="N/A","n/a",A2acvalue/A2remlife)),'PTRM input'!AW$521) -> 0 | AX129: =IF(('PTRM input'!$E$515='PTRM input'!$G$514),IF(AX$3>A2remlife,A2acvalue-SUM($F129:AW129),IF(A2remlife="N/A","n/a",A2acvalue/A2remlife)),'PTRM input'!AX$521) -> 0 | AY129: =IF(('PTRM input'!$E$515='PTRM input'!$G$514),IF(AY$3>A2remlife,A2acvalue-SUM($F129:AX129),IF(A2remlife="N/A","n/a",A2acvalue/A2remlife)),'PTRM input'!AY$521) -> 0 | AZ129: =IF(('PTRM input'!$E$515='PTRM input'!$G$514),IF(AZ$3>A2remlife,A2acvalue-SUM($F129:AY129),IF(A2remlife="N/A","n/a",A2acvalue/A2remlife)),'PTRM input'!AZ$521) -> 0 | BA129: =IF(('PTRM input'!$E$515='PTRM input'!$G$514),IF(BA$3>A2remlife,A2acvalue-SUM($F129:AZ129),IF(A2remlife="N/A","n/a",A2acvalue/A2remlife)),'PTRM input'!BA$521) -> 0 | BB129: =IF(('PTRM input'!$E$515='PTRM input'!$G$514),IF(BB$3>A2remlife,A2acvalue-SUM($F129:BA129),IF(A2remlife="N/A","n/a",A2acvalue/A2remlife)),'PTRM input'!BB$521) -> 0 | BC129: =IF(('PTRM input'!$E$515='PTRM input'!$G$514),IF(BC$3>A2remlife,A2acvalue-SUM($F129:BB129),IF(A2remlife="N/A","n/a",A2acvalue/A2remlife)),'PTRM input'!BC$521) -> 0 | BD129: =IF(('PTRM input'!$E$515='PTRM input'!$G$514),IF(BD$3>A2remlife,A2acvalue-SUM($F129:BC129),IF(A2remlife="N/A","n/a",A2acvalue/A2remlife)),'PTRM input'!BD$521) -> 0 | BE129: =IF(('PTRM input'!$E$515='PTRM input'!$G$514),IF(BE$3>A2remlife,A2acvalue-SUM($F129:BD129),IF(A2remlife="N/A","n/a",A2acvalue/A2remlife)),'PTRM input'!BE$521) -> 0 | BF129: =IF(('PTRM input'!$E$515='PTRM input'!$G$514),IF(BF$3>A2remlife,A2acvalue-SUM($F129:BE129),IF(A2remlife="N/A","n/a",A2acvalue/A2remlife)),'PTRM input'!BF$521) -> 0 | BG129: =IF(('PTRM input'!$E$515='PTRM input'!$G$514),IF(BG$3>A2remlife,A2acvalue-SUM($F129:BF129),IF(A2remlife="N/A","n/a",A2acvalue/A2remlife)),'PTRM input'!BG$521) -> 0 | BH129: =IF(('PTRM input'!$E$515='PTRM input'!$G$514),IF(BH$3>A2remlife,A2acvalue-SUM($F129:BG129),IF(A2remlife="N/A","n/a",A2acvalue/A2remlife)),'PTRM input'!BH$521) -> 0 | BI129: =IF(('PTRM input'!$E$515='PTRM input'!$G$514),IF(BI$3>A2remlife,A2acvalue-SUM($F129:BH129),IF(A2remlife="N/A","n/a",A2acvalue/A2remlife)),'PTRM input'!BI$521) -> 0
D130: Capex in year | E130: 0
E131: 1 | H131: =IF(A2stdlife="n/a","n/a",IF(H$3>(A2stdlife+$E131),('PTRM input'!$G$386*(1+rvanilla01)^0.5)-SUM(G131:$G131),('PTRM input'!$G$386*(1+rvanilla01)^0.5)/A2stdlife)) -> 0 | I131: =IF(A2stdlife="n/a","n/a",IF(I$3>(A2stdlife+$E131),('PTRM input'!$G$386*(1+rvanilla01)^0.5)-SUM($G131:H131),('PTRM input'!$G$386*(1+rvanilla01)^0.5)/A2stdlife)) -> 0 | J131: =IF(A2stdlife="n/a","n/a",IF(J$3>(A2stdlife+$E131),('PTRM input'!$G$386*(1+rvanilla01)^0.5)-SUM($G131:I131),('PTRM input'!$G$386*(1+rvanilla01)^0.5)/A2stdlife)) -> 0 | K131: =IF(A2stdlife="n/a","n/a",IF(K$3>(A2stdlife+$E131),('PTRM input'!$G$386*(1+rvanilla01)^0.5)-SUM($G131:J131),('PTRM input'!$G$386*(1+rvanilla01)^0.5)/A2stdlife)) -> 0 | L131: =IF(A2stdlife="n/a","n/a",IF(L$3>(A2stdlife+$E131),('PTRM input'!$G$386*(1+rvanilla01)^0.5)-SUM($G131:K131),('PTRM input'!$G$386*(1+rvanilla01)^0.5)/A2stdlife)) -> 0 | M131: =IF(A2stdlife="n/a","n/a",IF(M$3>(A2stdlife+$E131),('PTRM input'!$G$386*(1+rvanilla01)^0.5)-SUM($G131:L131),('PTRM input'!$G$386*(1+rvanilla01)^0.5)/A2stdlife)) -> 0 | N131: =IF(A2stdlife="n/a","n/a",IF(N$3>(A2stdlife+$E131),('PTRM input'!$G$386*(1+rvanilla01)^0.5)-SUM($G131:M131),('PTRM input'!$G$386*(1+rvanilla01)^0.5)/A2stdlife)) -> 0 | O131: =IF(A2stdlife="n/a","n/a",IF(O$3>(A2stdlife+$E131),('PTRM input'!$G$386*(1+rvanilla01)^0.5)-SUM($G131:N131),('PTRM input'!$G$386*(1+rvanilla01)^0.5)/A2stdlife)) -> 0 | P131: =IF(A2stdlife="n/a","n/a",IF(P$3>(A2stdlife+$E131),('PTRM input'!$G$386*(1+rvanilla01)^0.5)-SUM($G131:O131),('PTRM input'!$G$386*(1+rvanilla01)^0.5)/A2stdlife)) -> 0 | Q131: =IF(A2stdlife="n/a","n/a",IF(Q$3>(A2stdlife+$E131),('PTRM input'!$G$386*(1+rvanilla01)^0.5)-SUM($G131:P131),('PTRM input'!$G$386*(1+rvanilla01)^0.5)/A2stdlife)) -> 0 | R131: =IF(A2stdlife="n/a","n/a",IF(R$3>(A2stdlife+$E131),('PTRM input'!$G$386*(1+rvanilla01)^0.5)-SUM($G131:Q131),('PTRM input'!$G$386*(1+rvanilla01)^0.5)/A2stdlife)) -> 0 | S131: =IF(A2stdlife="n/a","n/a",IF(S$3>(A2stdlife+$E131),('PTRM input'!$G$386*(1+rvanilla01)^0.5)-SUM($G131:R131),('PTRM input'!$G$386*(1+rvanilla01)^0.5)/A2stdlife)) -> 0 | T131: =IF(A2stdlife="n/a","n/a",IF(T$3>(A2stdlife+$E131),('PTRM input'!$G$386*(1+rvanilla01)^0.5)-SUM($G131:S131),('PTRM input'!$G$386*(1+rvanilla01)^0.5)/A2stdlife)) -> 0 | U131: =IF(A2stdlife="n/a","n/a",IF(U$3>(A2stdlife+$E131),('PTRM input'!$G$386*(1+rvanilla01)^0.5)-SUM($G131:T131),('PTRM input'!$G$386*(1+rvanilla01)^0.5)/A2stdlife)) -> 0 | V131: =IF(A2stdlife="n/a","n/a",IF(V$3>(A2stdlife+$E131),('PTRM input'!$G$386*(1+rvanilla01)^0.5)-SUM($G131:U131),('PTRM input'!$G$386*(1+rvanilla01)^0.5)/A2stdlife)) -> 0 | W131: =IF(A2stdlife="n/a","n/a",IF(W$3>(A2stdlife+$E131),('PTRM input'!$G$386*(1+rvanilla01)^0.5)-SUM($G131:V131),('PTRM input'!$G$386*(1+rvanilla01)^0.5)/A2stdlife)) -> 0 | X131: =IF(A2stdlife="n/a","n/a",IF(X$3>(A2stdlife+$E131),('PTRM input'!$G$386*(1+rvanilla01)^0.5)-SUM($G131:W131),('PTRM input'!$G$386*(1+rvanilla01)^0.5)/A2stdlife)) -> 0 | Y131: =IF(A2stdlife="n/a","n/a",IF(Y$3>(A2stdlife+$E131),('PTRM input'!$G$386*(1+rvanilla01)^0.5)-SUM($G131:X131),('PTRM input'!$G$386*(1+rvanilla01)^0.5)/A2stdlife)) -> 0 | Z131: =IF(A2stdlife="n/a","n/a",IF(Z$3>(A2stdlife+$E131),('PTRM input'!$G$386*(1+rvanilla01)^0.5)-SUM($G131:Y131),('PTRM input'!$G$386*(1+rvanilla01)^0.5)/A2stdlife)) -> 0 | AA131: =IF(A2stdlife="n/a","n/a",IF(AA$3>(A2stdlife+$E131),('PTRM input'!$G$386*(1+rvanilla01)^0.5)-SUM($G131:Z131),('PTRM input'!$G$386*(1+rvanilla01)^0.5)/A2stdlife)) -> 0 | AB131: =IF(A2stdlife="n/a","n/a",IF(AB$3>(A2stdlife+$E131),('PTRM input'!$G$386*(1+rvanilla01)^0.5)-SUM($G131:AA131),('PTRM input'!$G$386*(1+rvanilla01)^0.5)/A2stdlife)) -> 0 | AC131: =IF(A2stdlife="n/a","n/a",IF(AC$3>(A2stdlife+$E131),('PTRM input'!$G$386*(1+rvanilla01)^0.5)-SUM($G131:AB131),('PTRM input'!$G$386*(1+rvanilla01)^0.5)/A2stdlife)) -> 0 | AD131: =IF(A2stdlife="n/a","n/a",IF(AD$3>(A2stdlife+$E131),('PTRM input'!$G$386*(1+rvanilla01)^0.5)-SUM($G131:AC131),('PTRM input'!$G$386*(1+rvanilla01)^0.5)/A2stdlife)) -> 0 | AE131: =IF(A2stdlife="n/a","n/a",IF(AE$3>(A2stdlife+$E131),('PTRM input'!$G$386*(1+rvanilla01)^0.5)-SUM($G131:AD131),('PTRM input'!$G$386*(1+rvanilla01)^0.5)/A2stdlife)) -> 0 | AF131: =IF(A2stdlife="n/a","n/a",IF(AF$3>(A2stdlife+$E131),('PTRM input'!$G$386*(1+rvanilla01)^0.5)-SUM($G131:AE131),('PTRM input'!$G$386*(1+rvanilla01)^0.5)/A2stdlife)) -> 0 | AG131: =IF(A2stdlife="n/a","n/a",IF(AG$3>(A2stdlife+$E131),('PTRM input'!$G$386*(1+rvanilla01)^0.5)-SUM($G131:AF131),('PTRM input'!$G$386*(1+rvanilla01)^0.5)/A2stdlife)) -> 0 | AH131: =IF(A2stdlife="n/a","n/a",IF(AH$3>(A2stdlife+$E131),('PTRM input'!$G$386*(1+rvanilla01)^0.5)-SUM($G131:AG131),('PTRM input'!$G$386*(1+rvanilla01)^0.5)/A2stdlife)) -> 0 | AI131: =IF(A2stdlife="n/a","n/a",IF(AI$3>(A2stdlife+$E131),('PTRM input'!$G$386*(1+rvanilla01)^0.5)-SUM($G131:AH131),('PTRM input'!$G$386*(1+rvanilla01)^0.5)/A2stdlife)) -> 0 | AJ131: =IF(A2stdlife="n/a","n/a",IF(AJ$3>(A2stdlife+$E131),('PTRM input'!$G$386*(1+rvanilla01)^0.5)-SUM($G131:AI131),('PTRM input'!$G$386*(1+rvanilla01)^0.5)/A2stdlife)) -> 0 | AK131: =IF(A2stdlife="n/a","n/a",IF(AK$3>(A2stdlife+$E131),('PTRM input'!$G$386*(1+rvanilla01)^0.5)-SUM($G131:AJ131),('PTRM input'!$G$386*(1+rvanilla01)^0.5)/A2stdlife)) -> 0 | AL131: =IF(A2stdlife="n/a","n/a",IF(AL$3>(A2stdlife+$E131),('PTRM input'!$G$386*(1+rvanilla01)^0.5)-SUM($G131:AK131),('PTRM input'!$G$386*(1+rvanilla01)^0.5)/A2stdlife)) -> 0 | AM131: =IF(A2stdlife="n/a","n/a",IF(AM$3>(A2stdlife+$E131),('PTRM input'!$G$386*(1+rvanilla01)^0.5)-SUM($G131:AL131),('PTRM input'!$G$386*(1+rvanilla01)^0.5)/A2stdlife)) -> 0 | AN131: =IF(A2stdlife="n/a","n/a",IF(AN$3>(A2stdlife+$E131),('PTRM input'!$G$386*(1+rvanilla01)^0.5)-SUM($G131:AM131),('PTRM input'!$G$386*(1+rvanilla01)^0.5)/A2stdlife)) -> 0 | AO131: =IF(A2stdlife="n/a","n/a",IF(AO$3>(A2stdlife+$E131),('PTRM input'!$G$386*(1+rvanilla01)^0.5)-SUM($G131:AN131),('PTRM input'!$G$386*(1+rvanilla01)^0.5)/A2stdlife)) -> 0 | AP131: =IF(A2stdlife="n/a","n/a",IF(AP$3>(A2stdlife+$E131),('PTRM input'!$G$386*(1+rvanilla01)^0.5)-SUM($G131:AO131),('PTRM input'!$G$386*(1+rvanilla01)^0.5)/A2stdlife)) -> 0 | AQ131: =IF(A2stdlife="n/a","n/a",IF(AQ$3>(A2stdlife+$E131),('PTRM input'!$G$386*(1+rvanilla01)^0.5)-SUM($G131:AP131),('PTRM input'!$G$386*(1+rvanilla01)^0.5)/A2stdlife)) -> 0 | AR131: =IF(A2stdlife="n/a","n/a",IF(AR$3>(A2stdlife+$E131),('PTRM input'!$G$386*(1+rvanilla01)^0.5)-SUM($G131:AQ131),('PTRM input'!$G$386*(1+rvanilla01)^0.5)/A2stdlife)) -> 0 | AS131: =IF(A2stdlife="n/a","n/a",IF(AS$3>(A2stdlife+$E131),('PTRM input'!$G$386*(1+rvanilla01)^0.5)-SUM($G131:AR131),('PTRM input'!$G$386*(1+rvanilla01)^0.5)/A2stdlife)) -> 0 | AT131: =IF(A2stdlife="n/a","n/a",IF(AT$3>(A2stdlife+$E131),('PTRM input'!$G$386*(1+rvanilla01)^0.5)-SUM($G131:AS131),('PTRM input'!$G$386*(1+rvanilla01)^0.5)/A2stdlife)) -> 0 | AU131: =IF(A2stdlife="n/a","n/a",IF(AU$3>(A2stdlife+$E131),('PTRM input'!$G$386*(1+rvanilla01)^0.5)-SUM($G131:AT131),('PTRM input'!$G$386*(1+rvanilla01)^0.5)/A2stdlife)) -> 0 | AV131: =IF(A2stdlife="n/a","n/a",IF(AV$3>(A2stdlife+$E131),('PTRM input'!$G$386*(1+rvanilla01)^0.5)-SUM($G131:AU131),('PTRM input'!$G$386*(1+rvanilla01)^0.5)/A2stdlife)) -> 0 | AW131: =IF(A2stdlife="n/a","n/a",IF(AW$3>(A2stdlife+$E131),('PTRM input'!$G$386*(1+rvanilla01)^0.5)-SUM($G131:AV131),('PTRM input'!$G$386*(1+rvanilla01)^0.5)/A2stdlife)) -> 0 | AX131: =IF(A2stdlife="n/a","n/a",IF(AX$3>(A2stdlife+$E131),('PTRM input'!$G$386*(1+rvanilla01)^0.5)-SUM($G131:AW131),('PTRM input'!$G$386*(1+rvanilla01)^0.5)/A2stdlife)) -> 0 | AY131: =IF(A2stdlife="n/a","n/a",IF(AY$3>(A2stdlife+$E131),('PTRM input'!$G$386*(1+rvanilla01)^0.5)-SUM($G131:AX131),('PTRM input'!$G$386*(1+rvanilla01)^0.5)/A2stdlife)) -> 0 | AZ131: =IF(A2stdlife="n/a","n/a",IF(AZ$3>(A2stdlife+$E131),('PTRM input'!$G$386*(1+rvanilla01)^0.5)-SUM($G131:AY131),('PTRM input'!$G$386*(1+rvanilla01)^0.5)/A2stdlife)) -> 0 | BA131: =IF(A2stdlife="n/a","n/a",IF(BA$3>(A2stdlife+$E131),('PTRM input'!$G$386*(1+rvanilla01)^0.5)-SUM($G131:AZ131),('PTRM input'!$G$386*(1+rvanilla01)^0.5)/A2stdlife)) -> 0 | BB131: =IF(A2stdlife="n/a","n/a",IF(BB$3>(A2stdlife+$E131),('PTRM input'!$G$386*(1+rvanilla01)^0.5)-SUM($G131:BA131),('PTRM input'!$G$386*(1+rvanilla01)^0.5)/A2stdlife)) -> 0 | BC131: =IF(A2stdlife="n/a","n/a",IF(BC$3>(A2stdlife+$E131),('PTRM input'!$G$386*(1+rvanilla01)^0.5)-SUM($G131:BB131),('PTRM input'!$G$386*(1+rvanilla01)^0.5)/A2stdlife)) -> 0 | BD131: =IF(A2stdlife="n/a","n/a",IF(BD$3>(A2stdlife+$E131),('PTRM input'!$G$386*(1+rvanilla01)^0.5)-SUM($G131:BC131),('PTRM input'!$G$386*(1+rvanilla01)^0.5)/A2stdlife)) -> 0 | BE131: =IF(A2stdlife="n/a","n/a",IF(BE$3>(A2stdlife+$E131),('PTRM input'!$G$386*(1+rvanilla01)^0.5)-SUM($G131:BD131),('PTRM input'!$G$386*(1+rvanilla01)^0.5)/A2stdlife)) -> 0 | BF131: =IF(A2stdlife="n/a","n/a",IF(BF$3>(A2stdlife+$E131),('PTRM input'!$G$386*(1+rvanilla01)^0.5)-SUM($G131:BE131),('PTRM input'!$G$386*(1+rvanilla01)^0.5)/A2stdlife)) -> 0 | BG131: =IF(A2stdlife="n/a","n/a",IF(BG$3>(A2stdlife+$E131),('PTRM input'!$G$386*(1+rvanilla01)^0.5)-SUM($G131:BF131),('PTRM input'!$G$386*(1+rvanilla01)^0.5)/A2stdlife)) -> 0 | BH131: =IF(A2stdlife="n/a","n/a",IF(BH$3>(A2stdlife+$E131),('PTRM input'!$G$386*(1+rvanilla01)^0.5)-SUM($G131:BG131),('PTRM input'!$G$386*(1+rvanilla01)^0.5)/A2stdlife)) -> 0 | BI131: =IF(A2stdlife="n/a","n/a",IF(BI$3>(A2stdlife+$E131),('PTRM input'!$G$386*(1+rvanilla01)^0.5)-SUM($G131:BH131),('PTRM input'!$G$386*(1+rvanilla01)^0.5)/A2stdlife)) -> 0
E132: 2 | I132: =IF(A2stdlife="n/a","n/a",IF(I$3>(A2stdlife+$E132),('PTRM input'!$H$386*(1+rvanilla02)^0.5)-SUM(H132:$H132),('PTRM input'!$H$386*(1+rvanilla02)^0.5)/A2stdlife)) -> 0 | J132: =IF(A2stdlife="n/a","n/a",IF(J$3>(A2stdlife+$E132),('PTRM input'!$H$386*(1+rvanilla02)^0.5)-SUM($H132:I132),('PTRM input'!$H$386*(1+rvanilla02)^0.5)/A2stdlife)) -> 0 | K132: =IF(A2stdlife="n/a","n/a",IF(K$3>(A2stdlife+$E132),('PTRM input'!$H$386*(1+rvanilla02)^0.5)-SUM($H132:J132),('PTRM input'!$H$386*(1+rvanilla02)^0.5)/A2stdlife)) -> 0 | L132: =IF(A2stdlife="n/a","n/a",IF(L$3>(A2stdlife+$E132),('PTRM input'!$H$386*(1+rvanilla02)^0.5)-SUM($H132:K132),('PTRM input'!$H$386*(1+rvanilla02)^0.5)/A2stdlife)) -> 0 | M132: =IF(A2stdlife="n/a","n/a",IF(M$3>(A2stdlife+$E132),('PTRM input'!$H$386*(1+rvanilla02)^0.5)-SUM($H132:L132),('PTRM input'!$H$386*(1+rvanilla02)^0.5)/A2stdlife)) -> 0 | N132: =IF(A2stdlife="n/a","n/a",IF(N$3>(A2stdlife+$E132),('PTRM input'!$H$386*(1+rvanilla02)^0.5)-SUM($H132:M132),('PTRM input'!$H$386*(1+rvanilla02)^0.5)/A2stdlife)) -> 0 | O132: =IF(A2stdlife="n/a","n/a",IF(O$3>(A2stdlife+$E132),('PTRM input'!$H$386*(1+rvanilla02)^0.5)-SUM($H132:N132),('PTRM input'!$H$386*(1+rvanilla02)^0.5)/A2stdlife)) -> 0 | P132: =IF(A2stdlife="n/a","n/a",IF(P$3>(A2stdlife+$E132),('PTRM input'!$H$386*(1+rvanilla02)^0.5)-SUM($H132:O132),('PTRM input'!$H$386*(1+rvanilla02)^0.5)/A2stdlife)) -> 0 | Q132: =IF(A2stdlife="n/a","n/a",IF(Q$3>(A2stdlife+$E132),('PTRM input'!$H$386*(1+rvanilla02)^0.5)-SUM($H132:P132),('PTRM input'!$H$386*(1+rvanilla02)^0.5)/A2stdlife)) -> 0 | R132: =IF(A2stdlife="n/a","n/a",IF(R$3>(A2stdlife+$E132),('PTRM input'!$H$386*(1+rvanilla02)^0.5)-SUM($H132:Q132),('PTRM input'!$H$386*(1+rvanilla02)^0.5)/A2stdlife)) -> 0 | S132: =IF(A2stdlife="n/a","n/a",IF(S$3>(A2stdlife+$E132),('PTRM input'!$H$386*(1+rvanilla02)^0.5)-SUM($H132:R132),('PTRM input'!$H$386*(1+rvanilla02)^0.5)/A2stdlife)) -> 0 | T132: =IF(A2stdlife="n/a","n/a",IF(T$3>(A2stdlife+$E132),('PTRM input'!$H$386*(1+rvanilla02)^0.5)-SUM($H132:S132),('PTRM input'!$H$386*(1+rvanilla02)^0.5)/A2stdlife)) -> 0 | U132: =IF(A2stdlife="n/a","n/a",IF(U$3>(A2stdlife+$E132),('PTRM input'!$H$386*(1+rvanilla02)^0.5)-SUM($H132:T132),('PTRM input'!$H$386*(1+rvanilla02)^0.5)/A2stdlife)) -> 0 | V132: =IF(A2stdlife="n/a","n/a",IF(V$3>(A2stdlife+$E132),('PTRM input'!$H$386*(1+rvanilla02)^0.5)-SUM($H132:U132),('PTRM input'!$H$386*(1+rvanilla02)^0.5)/A2stdlife)) -> 0 | W132: =IF(A2stdlife="n/a","n/a",IF(W$3>(A2stdlife+$E132),('PTRM input'!$H$386*(1+rvanilla02)^0.5)-SUM($H132:V132),('PTRM input'!$H$386*(1+rvanilla02)^0.5)/A2stdlife)) -> 0 | X132: =IF(A2stdlife="n/a","n/a",IF(X$3>(A2stdlife+$E132),('PTRM input'!$H$386*(1+rvanilla02)^0.5)-SUM($H132:W132),('PTRM input'!$H$386*(1+rvanilla02)^0.5)/A2stdlife)) -> 0 | Y132: =IF(A2stdlife="n/a","n/a",IF(Y$3>(A2stdlife+$E132),('PTRM input'!$H$386*(1+rvanilla02)^0.5)-SUM($H132:X132),('PTRM input'!$H$386*(1+rvanilla02)^0.5)/A2stdlife)) -> 0 | Z132: =IF(A2stdlife="n/a","n/a",IF(Z$3>(A2stdlife+$E132),('PTRM input'!$H$386*(1+rvanilla02)^0.5)-SUM($H132:Y132),('PTRM input'!$H$386*(1+rvanilla02)^0.5)/A2stdlife)) -> 0 | AA132: =IF(A2stdlife="n/a","n/a",IF(AA$3>(A2stdlife+$E132),('PTRM input'!$H$386*(1+rvanilla02)^0.5)-SUM($H132:Z132),('PTRM input'!$H$386*(1+rvanilla02)^0.5)/A2stdlife)) -> 0 | AB132: =IF(A2stdlife="n/a","n/a",IF(AB$3>(A2stdlife+$E132),('PTRM input'!$H$386*(1+rvanilla02)^0.5)-SUM($H132:AA132),('PTRM input'!$H$386*(1+rvanilla02)^0.5)/A2stdlife)) -> 0 | AC132: =IF(A2stdlife="n/a","n/a",IF(AC$3>(A2stdlife+$E132),('PTRM input'!$H$386*(1+rvanilla02)^0.5)-SUM($H132:AB132),('PTRM input'!$H$386*(1+rvanilla02)^0.5)/A2stdlife)) -> 0 | AD132: =IF(A2stdlife="n/a","n/a",IF(AD$3>(A2stdlife+$E132),('PTRM input'!$H$386*(1+rvanilla02)^0.5)-SUM($H132:AC132),('PTRM input'!$H$386*(1+rvanilla02)^0.5)/A2stdlife)) -> 0 | AE132: =IF(A2stdlife="n/a","n/a",IF(AE$3>(A2stdlife+$E132),('PTRM input'!$H$386*(1+rvanilla02)^0.5)-SUM($H132:AD132),('PTRM input'!$H$386*(1+rvanilla02)^0.5)/A2stdlife)) -> 0 | AF132: =IF(A2stdlife="n/a","n/a",IF(AF$3>(A2stdlife+$E132),('PTRM input'!$H$386*(1+rvanilla02)^0.5)-SUM($H132:AE132),('PTRM input'!$H$386*(1+rvanilla02)^0.5)/A2stdlife)) -> 0 | AG132: =IF(A2stdlife="n/a","n/a",IF(AG$3>(A2stdlife+$E132),('PTRM input'!$H$386*(1+rvanilla02)^0.5)-SUM($H132:AF132),('PTRM input'!$H$386*(1+rvanilla02)^0.5)/A2stdlife)) -> 0 | AH132: =IF(A2stdlife="n/a","n/a",IF(AH$3>(A2stdlife+$E132),('PTRM input'!$H$386*(1+rvanilla02)^0.5)-SUM($H132:AG132),('PTRM input'!$H$386*(1+rvanilla02)^0.5)/A2stdlife)) -> 0 | AI132: =IF(A2stdlife="n/a","n/a",IF(AI$3>(A2stdlife+$E132),('PTRM input'!$H$386*(1+rvanilla02)^0.5)-SUM($H132:AH132),('PTRM input'!$H$386*(1+rvanilla02)^0.5)/A2stdlife)) -> 0 | AJ132: =IF(A2stdlife="n/a","n/a",IF(AJ$3>(A2stdlife+$E132),('PTRM input'!$H$386*(1+rvanilla02)^0.5)-SUM($H132:AI132),('PTRM input'!$H$386*(1+rvanilla02)^0.5)/A2stdlife)) -> 0 | AK132: =IF(A2stdlife="n/a","n/a",IF(AK$3>(A2stdlife+$E132),('PTRM input'!$H$386*(1+rvanilla02)^0.5)-SUM($H132:AJ132),('PTRM input'!$H$386*(1+rvanilla02)^0.5)/A2stdlife)) -> 0 | AL132: =IF(A2stdlife="n/a","n/a",IF(AL$3>(A2stdlife+$E132),('PTRM input'!$H$386*(1+rvanilla02)^0.5)-SUM($H132:AK132),('PTRM input'!$H$386*(1+rvanilla02)^0.5)/A2stdlife)) -> 0 | AM132: =IF(A2stdlife="n/a","n/a",IF(AM$3>(A2stdlife+$E132),('PTRM input'!$H$386*(1+rvanilla02)^0.5)-SUM($H132:AL132),('PTRM input'!$H$386*(1+rvanilla02)^0.5)/A2stdlife)) -> 0 | AN132: =IF(A2stdlife="n/a","n/a",IF(AN$3>(A2stdlife+$E132),('PTRM input'!$H$386*(1+rvanilla02)^0.5)-SUM($H132:AM132),('PTRM input'!$H$386*(1+rvanilla02)^0.5)/A2stdlife)) -> 0 | AO132: =IF(A2stdlife="n/a","n/a",IF(AO$3>(A2stdlife+$E132),('PTRM input'!$H$386*(1+rvanilla02)^0.5)-SUM($H132:AN132),('PTRM input'!$H$386*(1+rvanilla02)^0.5)/A2stdlife)) -> 0 | AP132: =IF(A2stdlife="n/a","n/a",IF(AP$3>(A2stdlife+$E132),('PTRM input'!$H$386*(1+rvanilla02)^0.5)-SUM($H132:AO132),('PTRM input'!$H$386*(1+rvanilla02)^0.5)/A2stdlife)) -> 0 | AQ132: =IF(A2stdlife="n/a","n/a",IF(AQ$3>(A2stdlife+$E132),('PTRM input'!$H$386*(1+rvanilla02)^0.5)-SUM($H132:AP132),('PTRM input'!$H$386*(1+rvanilla02)^0.5)/A2stdlife)) -> 0 | AR132: =IF(A2stdlife="n/a","n/a",IF(AR$3>(A2stdlife+$E132),('PTRM input'!$H$386*(1+rvanilla02)^0.5)-SUM($H132:AQ132),('PTRM input'!$H$386*(1+rvanilla02)^0.5)/A2stdlife)) -> 0 | AS132: =IF(A2stdlife="n/a","n/a",IF(AS$3>(A2stdlife+$E132),('PTRM input'!$H$386*(1+rvanilla02)^0.5)-SUM($H132:AR132),('PTRM input'!$H$386*(1+rvanilla02)^0.5)/A2stdlife)) -> 0 | AT132: =IF(A2stdlife="n/a","n/a",IF(AT$3>(A2stdlife+$E132),('PTRM input'!$H$386*(1+rvanilla02)^0.5)-SUM($H132:AS132),('PTRM input'!$H$386*(1+rvanilla02)^0.5)/A2stdlife)) -> 0 | AU132: =IF(A2stdlife="n/a","n/a",IF(AU$3>(A2stdlife+$E132),('PTRM input'!$H$386*(1+rvanilla02)^0.5)-SUM($H132:AT132),('PTRM input'!$H$386*(1+rvanilla02)^0.5)/A2stdlife)) -> 0 | AV132: =IF(A2stdlife="n/a","n/a",IF(AV$3>(A2stdlife+$E132),('PTRM input'!$H$386*(1+rvanilla02)^0.5)-SUM($H132:AU132),('PTRM input'!$H$386*(1+rvanilla02)^0.5)/A2stdlife)) -> 0 | AW132: =IF(A2stdlife="n/a","n/a",IF(AW$3>(A2stdlife+$E132),('PTRM input'!$H$386*(1+rvanilla02)^0.5)-SUM($H132:AV132),('PTRM input'!$H$386*(1+rvanilla02)^0.5)/A2stdlife)) -> 0 | AX132: =IF(A2stdlife="n/a","n/a",IF(AX$3>(A2stdlife+$E132),('PTRM input'!$H$386*(1+rvanilla02)^0.5)-SUM($H132:AW132),('PTRM input'!$H$386*(1+rvanilla02)^0.5)/A2stdlife)) -> 0 | AY132: =IF(A2stdlife="n/a","n/a",IF(AY$3>(A2stdlife+$E132),('PTRM input'!$H$386*(1+rvanilla02)^0.5)-SUM($H132:AX132),('PTRM input'!$H$386*(1+rvanilla02)^0.5)/A2stdlife)) -> 0 | AZ132: =IF(A2stdlife="n/a","n/a",IF(AZ$3>(A2stdlife+$E132),('PTRM input'!$H$386*(1+rvanilla02)^0.5)-SUM($H132:AY132),('PTRM input'!$H$386*(1+rvanilla02)^0.5)/A2stdlife)) -> 0 | BA132: =IF(A2stdlife="n/a","n/a",IF(BA$3>(A2stdlife+$E132),('PTRM input'!$H$386*(1+rvanilla02)^0.5)-SUM($H132:AZ132),('PTRM input'!$H$386*(1+rvanilla02)^0.5)/A2stdlife)) -> 0 | BB132: =IF(A2stdlife="n/a","n/a",IF(BB$3>(A2stdlife+$E132),('PTRM input'!$H$386*(1+rvanilla02)^0.5)-SUM($H132:BA132),('PTRM input'!$H$386*(1+rvanilla02)^0.5)/A2stdlife)) -> 0 | BC132: =IF(A2stdlife="n/a","n/a",IF(BC$3>(A2stdlife+$E132),('PTRM input'!$H$386*(1+rvanilla02)^0.5)-SUM($H132:BB132),('PTRM input'!$H$386*(1+rvanilla02)^0.5)/A2stdlife)) -> 0 | BD132: =IF(A2stdlife="n/a","n/a",IF(BD$3>(A2stdlife+$E132),('PTRM input'!$H$386*(1+rvanilla02)^0.5)-SUM($H132:BC132),('PTRM input'!$H$386*(1+rvanilla02)^0.5)/A2stdlife)) -> 0 | BE132: =IF(A2stdlife="n/a","n/a",IF(BE$3>(A2stdlife+$E132),('PTRM input'!$H$386*(1+rvanilla02)^0.5)-SUM($H132:BD132),('PTRM input'!$H$386*(1+rvanilla02)^0.5)/A2stdlife)) -> 0 | BF132: =IF(A2stdlife="n/a","n/a",IF(BF$3>(A2stdlife+$E132),('PTRM input'!$H$386*(1+rvanilla02)^0.5)-SUM($H132:BE132),('PTRM input'!$H$386*(1+rvanilla02)^0.5)/A2stdlife)) -> 0 | BG132: =IF(A2stdlife="n/a","n/a",IF(BG$3>(A2stdlife+$E132),('PTRM input'!$H$386*(1+rvanilla02)^0.5)-SUM($H132:BF132),('PTRM input'!$H$386*(1+rvanilla02)^0.5)/A2stdlife)) -> 0 | BH132: =IF(A2stdlife="n/a","n/a",IF(BH$3>(A2stdlife+$E132),('PTRM input'!$H$386*(1+rvanilla02)^0.5)-SUM($H132:BG132),('PTRM input'!$H$386*(1+rvanilla02)^0.5)/A2stdlife)) -> 0 | BI132: =IF(A2stdlife="n/a","n/a",IF(BI$3>(A2stdlife+$E132),('PTRM input'!$H$386*(1+rvanilla02)^0.5)-SUM($H132:BH132),('PTRM input'!$H$386*(1+rvanilla02)^0.5)/A2stdlife)) -> 0
E133: 3 | J133: =IF(A2stdlife="n/a","n/a",IF(J$3>(A2stdlife+$E133),('PTRM input'!$I$386*(1+rvanilla03)^0.5)-SUM(I133:$I133),('PTRM input'!$I$386*(1+rvanilla03)^0.5)/A2stdlife)) -> 0 | K133: =IF(A2stdlife="n/a","n/a",IF(K$3>(A2stdlife+$E133),('PTRM input'!$I$386*(1+rvanilla03)^0.5)-SUM($I133:J133),('PTRM input'!$I$386*(1+rvanilla03)^0.5)/A2stdlife)) -> 0 | L133: =IF(A2stdlife="n/a","n/a",IF(L$3>(A2stdlife+$E133),('PTRM input'!$I$386*(1+rvanilla03)^0.5)-SUM($I133:K133),('PTRM input'!$I$386*(1+rvanilla03)^0.5)/A2stdlife)) -> 0 | M133: =IF(A2stdlife="n/a","n/a",IF(M$3>(A2stdlife+$E133),('PTRM input'!$I$386*(1+rvanilla03)^0.5)-SUM($I133:L133),('PTRM input'!$I$386*(1+rvanilla03)^0.5)/A2stdlife)) -> 0 | N133: =IF(A2stdlife="n/a","n/a",IF(N$3>(A2stdlife+$E133),('PTRM input'!$I$386*(1+rvanilla03)^0.5)-SUM($I133:M133),('PTRM input'!$I$386*(1+rvanilla03)^0.5)/A2stdlife)) -> 0 | O133: =IF(A2stdlife="n/a","n/a",IF(O$3>(A2stdlife+$E133),('PTRM input'!$I$386*(1+rvanilla03)^0.5)-SUM($I133:N133),('PTRM input'!$I$386*(1+rvanilla03)^0.5)/A2stdlife)) -> 0 | P133: =IF(A2stdlife="n/a","n/a",IF(P$3>(A2stdlife+$E133),('PTRM input'!$I$386*(1+rvanilla03)^0.5)-SUM($I133:O133),('PTRM input'!$I$386*(1+rvanilla03)^0.5)/A2stdlife)) -> 0 | Q133: =IF(A2stdlife="n/a","n/a",IF(Q$3>(A2stdlife+$E133),('PTRM input'!$I$386*(1+rvanilla03)^0.5)-SUM($I133:P133),('PTRM input'!$I$386*(1+rvanilla03)^0.5)/A2stdlife)) -> 0 | R133: =IF(A2stdlife="n/a","n/a",IF(R$3>(A2stdlife+$E133),('PTRM input'!$I$386*(1+rvanilla03)^0.5)-SUM($I133:Q133),('PTRM input'!$I$386*(1+rvanilla03)^0.5)/A2stdlife)) -> 0 | S133: =IF(A2stdlife="n/a","n/a",IF(S$3>(A2stdlife+$E133),('PTRM input'!$I$386*(1+rvanilla03)^0.5)-SUM($I133:R133),('PTRM input'!$I$386*(1+rvanilla03)^0.5)/A2stdlife)) -> 0 | T133: =IF(A2stdlife="n/a","n/a",IF(T$3>(A2stdlife+$E133),('PTRM input'!$I$386*(1+rvanilla03)^0.5)-SUM($I133:S133),('PTRM input'!$I$386*(1+rvanilla03)^0.5)/A2stdlife)) -> 0 | U133: =IF(A2stdlife="n/a","n/a",IF(U$3>(A2stdlife+$E133),('PTRM input'!$I$386*(1+rvanilla03)^0.5)-SUM($I133:T133),('PTRM input'!$I$386*(1+rvanilla03)^0.5)/A2stdlife)) -> 0 | V133: =IF(A2stdlife="n/a","n/a",IF(V$3>(A2stdlife+$E133),('PTRM input'!$I$386*(1+rvanilla03)^0.5)-SUM($I133:U133),('PTRM input'!$I$386*(1+rvanilla03)^0.5)/A2stdlife)) -> 0 | W133: =IF(A2stdlife="n/a","n/a",IF(W$3>(A2stdlife+$E133),('PTRM input'!$I$386*(1+rvanilla03)^0.5)-SUM($I133:V133),('PTRM input'!$I$386*(1+rvanilla03)^0.5)/A2stdlife)) -> 0 | X133: =IF(A2stdlife="n/a","n/a",IF(X$3>(A2stdlife+$E133),('PTRM input'!$I$386*(1+rvanilla03)^0.5)-SUM($I133:W133),('PTRM input'!$I$386*(1+rvanilla03)^0.5)/A2stdlife)) -> 0 | Y133: =IF(A2stdlife="n/a","n/a",IF(Y$3>(A2stdlife+$E133),('PTRM input'!$I$386*(1+rvanilla03)^0.5)-SUM($I133:X133),('PTRM input'!$I$386*(1+rvanilla03)^0.5)/A2stdlife)) -> 0 | Z133: =IF(A2stdlife="n/a","n/a",IF(Z$3>(A2stdlife+$E133),('PTRM input'!$I$386*(1+rvanilla03)^0.5)-SUM($I133:Y133),('PTRM input'!$I$386*(1+rvanilla03)^0.5)/A2stdlife)) -> 0 | AA133: =IF(A2stdlife="n/a","n/a",IF(AA$3>(A2stdlife+$E133),('PTRM input'!$I$386*(1+rvanilla03)^0.5)-SUM($I133:Z133),('PTRM input'!$I$386*(1+rvanilla03)^0.5)/A2stdlife)) -> 0 | AB133: =IF(A2stdlife="n/a","n/a",IF(AB$3>(A2stdlife+$E133),('PTRM input'!$I$386*(1+rvanilla03)^0.5)-SUM($I133:AA133),('PTRM input'!$I$386*(1+rvanilla03)^0.5)/A2stdlife)) -> 0 | AC133: =IF(A2stdlife="n/a","n/a",IF(AC$3>(A2stdlife+$E133),('PTRM input'!$I$386*(1+rvanilla03)^0.5)-SUM($I133:AB133),('PTRM input'!$I$386*(1+rvanilla03)^0.5)/A2stdlife)) -> 0 | AD133: =IF(A2stdlife="n/a","n/a",IF(AD$3>(A2stdlife+$E133),('PTRM input'!$I$386*(1+rvanilla03)^0.5)-SUM($I133:AC133),('PTRM input'!$I$386*(1+rvanilla03)^0.5)/A2stdlife)) -> 0 | AE133: =IF(A2stdlife="n/a","n/a",IF(AE$3>(A2stdlife+$E133),('PTRM input'!$I$386*(1+rvanilla03)^0.5)-SUM($I133:AD133),('PTRM input'!$I$386*(1+rvanilla03)^0.5)/A2stdlife)) -> 0 | AF133: =IF(A2stdlife="n/a","n/a",IF(AF$3>(A2stdlife+$E133),('PTRM input'!$I$386*(1+rvanilla03)^0.5)-SUM($I133:AE133),('PTRM input'!$I$386*(1+rvanilla03)^0.5)/A2stdlife)) -> 0 | AG133: =IF(A2stdlife="n/a","n/a",IF(AG$3>(A2stdlife+$E133),('PTRM input'!$I$386*(1+rvanilla03)^0.5)-SUM($I133:AF133),('PTRM input'!$I$386*(1+rvanilla03)^0.5)/A2stdlife)) -> 0 | AH133: =IF(A2stdlife="n/a","n/a",IF(AH$3>(A2stdlife+$E133),('PTRM input'!$I$386*(1+rvanilla03)^0.5)-SUM($I133:AG133),('PTRM input'!$I$386*(1+rvanilla03)^0.5)/A2stdlife)) -> 0 | AI133: =IF(A2stdlife="n/a","n/a",IF(AI$3>(A2stdlife+$E133),('PTRM input'!$I$386*(1+rvanilla03)^0.5)-SUM($I133:AH133),('PTRM input'!$I$386*(1+rvanilla03)^0.5)/A2stdlife)) -> 0 | AJ133: =IF(A2stdlife="n/a","n/a",IF(AJ$3>(A2stdlife+$E133),('PTRM input'!$I$386*(1+rvanilla03)^0.5)-SUM($I133:AI133),('PTRM input'!$I$386*(1+rvanilla03)^0.5)/A2stdlife)) -> 0 | AK133: =IF(A2stdlife="n/a","n/a",IF(AK$3>(A2stdlife+$E133),('PTRM input'!$I$386*(1+rvanilla03)^0.5)-SUM($I133:AJ133),('PTRM input'!$I$386*(1+rvanilla03)^0.5)/A2stdlife)) -> 0 | AL133: =IF(A2stdlife="n/a","n/a",IF(AL$3>(A2stdlife+$E133),('PTRM input'!$I$386*(1+rvanilla03)^0.5)-SUM($I133:AK133),('PTRM input'!$I$386*(1+rvanilla03)^0.5)/A2stdlife)) -> 0 | AM133: =IF(A2stdlife="n/a","n/a",IF(AM$3>(A2stdlife+$E133),('PTRM input'!$I$386*(1+rvanilla03)^0.5)-SUM($I133:AL133),('PTRM input'!$I$386*(1+rvanilla03)^0.5)/A2stdlife)) -> 0 | AN133: =IF(A2stdlife="n/a","n/a",IF(AN$3>(A2stdlife+$E133),('PTRM input'!$I$386*(1+rvanilla03)^0.5)-SUM($I133:AM133),('PTRM input'!$I$386*(1+rvanilla03)^0.5)/A2stdlife)) -> 0 | AO133: =IF(A2stdlife="n/a","n/a",IF(AO$3>(A2stdlife+$E133),('PTRM input'!$I$386*(1+rvanilla03)^0.5)-SUM($I133:AN133),('PTRM input'!$I$386*(1+rvanilla03)^0.5)/A2stdlife)) -> 0 | AP133: =IF(A2stdlife="n/a","n/a",IF(AP$3>(A2stdlife+$E133),('PTRM input'!$I$386*(1+rvanilla03)^0.5)-SUM($I133:AO133),('PTRM input'!$I$386*(1+rvanilla03)^0.5)/A2stdlife)) -> 0 | AQ133: =IF(A2stdlife="n/a","n/a",IF(AQ$3>(A2stdlife+$E133),('PTRM input'!$I$386*(1+rvanilla03)^0.5)-SUM($I133:AP133),('PTRM input'!$I$386*(1+rvanilla03)^0.5)/A2stdlife)) -> 0 | AR133: =IF(A2stdlife="n/a","n/a",IF(AR$3>(A2stdlife+$E133),('PTRM input'!$I$386*(1+rvanilla03)^0.5)-SUM($I133:AQ133),('PTRM input'!$I$386*(1+rvanilla03)^0.5)/A2stdlife)) -> 0 | AS133: =IF(A2stdlife="n/a","n/a",IF(AS$3>(A2stdlife+$E133),('PTRM input'!$I$386*(1+rvanilla03)^0.5)-SUM($I133:AR133),('PTRM input'!$I$386*(1+rvanilla03)^0.5)/A2stdlife)) -> 0 | AT133: =IF(A2stdlife="n/a","n/a",IF(AT$3>(A2stdlife+$E133),('PTRM input'!$I$386*(1+rvanilla03)^0.5)-SUM($I133:AS133),('PTRM input'!$I$386*(1+rvanilla03)^0.5)/A2stdlife)) -> 0 | AU133: =IF(A2stdlife="n/a","n/a",IF(AU$3>(A2stdlife+$E133),('PTRM input'!$I$386*(1+rvanilla03)^0.5)-SUM($I133:AT133),('PTRM input'!$I$386*(1+rvanilla03)^0.5)/A2stdlife)) -> 0 | AV133: =IF(A2stdlife="n/a","n/a",IF(AV$3>(A2stdlife+$E133),('PTRM input'!$I$386*(1+rvanilla03)^0.5)-SUM($I133:AU133),('PTRM input'!$I$386*(1+rvanilla03)^0.5)/A2stdlife)) -> 0 | AW133: =IF(A2stdlife="n/a","n/a",IF(AW$3>(A2stdlife+$E133),('PTRM input'!$I$386*(1+rvanilla03)^0.5)-SUM($I133:AV133),('PTRM input'!$I$386*(1+rvanilla03)^0.5)/A2stdlife)) -> 0 | AX133: =IF(A2stdlife="n/a","n/a",IF(AX$3>(A2stdlife+$E133),('PTRM input'!$I$386*(1+rvanilla03)^0.5)-SUM($I133:AW133),('PTRM input'!$I$386*(1+rvanilla03)^0.5)/A2stdlife)) -> 0 | AY133: =IF(A2stdlife="n/a","n/a",IF(AY$3>(A2stdlife+$E133),('PTRM input'!$I$386*(1+rvanilla03)^0.5)-SUM($I133:AX133),('PTRM input'!$I$386*(1+rvanilla03)^0.5)/A2stdlife)) -> 0 | AZ133: =IF(A2stdlife="n/a","n/a",IF(AZ$3>(A2stdlife+$E133),('PTRM input'!$I$386*(1+rvanilla03)^0.5)-SUM($I133:AY133),('PTRM input'!$I$386*(1+rvanilla03)^0.5)/A2stdlife)) -> 0 | BA133: =IF(A2stdlife="n/a","n/a",IF(BA$3>(A2stdlife+$E133),('PTRM input'!$I$386*(1+rvanilla03)^0.5)-SUM($I133:AZ133),('PTRM input'!$I$386*(1+rvanilla03)^0.5)/A2stdlife)) -> 0 | BB133: =IF(A2stdlife="n/a","n/a",IF(BB$3>(A2stdlife+$E133),('PTRM input'!$I$386*(1+rvanilla03)^0.5)-SUM($I133:BA133),('PTRM input'!$I$386*(1+rvanilla03)^0.5)/A2stdlife)) -> 0 | BC133: =IF(A2stdlife="n/a","n/a",IF(BC$3>(A2stdlife+$E133),('PTRM input'!$I$386*(1+rvanilla03)^0.5)-SUM($I133:BB133),('PTRM input'!$I$386*(1+rvanilla03)^0.5)/A2stdlife)) -> 0 | BD133: =IF(A2stdlife="n/a","n/a",IF(BD$3>(A2stdlife+$E133),('PTRM input'!$I$386*(1+rvanilla03)^0.5)-SUM($I133:BC133),('PTRM input'!$I$386*(1+rvanilla03)^0.5)/A2stdlife)) -> 0 | BE133: =IF(A2stdlife="n/a","n/a",IF(BE$3>(A2stdlife+$E133),('PTRM input'!$I$386*(1+rvanilla03)^0.5)-SUM($I133:BD133),('PTRM input'!$I$386*(1+rvanilla03)^0.5)/A2stdlife)) -> 0 | BF133: =IF(A2stdlife="n/a","n/a",IF(BF$3>(A2stdlife+$E133),('PTRM input'!$I$386*(1+rvanilla03)^0.5)-SUM($I133:BE133),('PTRM input'!$I$386*(1+rvanilla03)^0.5)/A2stdlife)) -> 0 | BG133: =IF(A2stdlife="n/a","n/a",IF(BG$3>(A2stdlife+$E133),('PTRM input'!$I$386*(1+rvanilla03)^0.5)-SUM($I133:BF133),('PTRM input'!$I$386*(1+rvanilla03)^0.5)/A2stdlife)) -> 0 | BH133: =IF(A2stdlife="n/a","n/a",IF(BH$3>(A2stdlife+$E133),('PTRM input'!$I$386*(1+rvanilla03)^0.5)-SUM($I133:BG133),('PTRM input'!$I$386*(1+rvanilla03)^0.5)/A2stdlife)) -> 0 | BI133: =IF(A2stdlife="n/a","n/a",IF(BI$3>(A2stdlife+$E133),('PTRM input'!$I$386*(1+rvanilla03)^0.5)-SUM($I133:BH133),('PTRM input'!$I$386*(1+rvanilla03)^0.5)/A2stdlife)) -> 0
E134: 4 | K134: =IF(A2stdlife="n/a","n/a",IF(K$3>(A2stdlife+$E134),('PTRM input'!$J$386*(1+rvanilla04)^0.5)-SUM(J134:$J134),('PTRM input'!$J$386*(1+rvanilla04)^0.5)/A2stdlife)) -> 0 | L134: =IF(A2stdlife="n/a","n/a",IF(L$3>(A2stdlife+$E134),('PTRM input'!$J$386*(1+rvanilla04)^0.5)-SUM($J134:K134),('PTRM input'!$J$386*(1+rvanilla04)^0.5)/A2stdlife)) -> 0 | M134: =IF(A2stdlife="n/a","n/a",IF(M$3>(A2stdlife+$E134),('PTRM input'!$J$386*(1+rvanilla04)^0.5)-SUM($J134:L134),('PTRM input'!$J$386*(1+rvanilla04)^0.5)/A2stdlife)) -> 0 | N134: =IF(A2stdlife="n/a","n/a",IF(N$3>(A2stdlife+$E134),('PTRM input'!$J$386*(1+rvanilla04)^0.5)-SUM($J134:M134),('PTRM input'!$J$386*(1+rvanilla04)^0.5)/A2stdlife)) -> 0 | O134: =IF(A2stdlife="n/a","n/a",IF(O$3>(A2stdlife+$E134),('PTRM input'!$J$386*(1+rvanilla04)^0.5)-SUM($J134:N134),('PTRM input'!$J$386*(1+rvanilla04)^0.5)/A2stdlife)) -> 0 | P134: =IF(A2stdlife="n/a","n/a",IF(P$3>(A2stdlife+$E134),('PTRM input'!$J$386*(1+rvanilla04)^0.5)-SUM($J134:O134),('PTRM input'!$J$386*(1+rvanilla04)^0.5)/A2stdlife)) -> 0 | Q134: =IF(A2stdlife="n/a","n/a",IF(Q$3>(A2stdlife+$E134),('PTRM input'!$J$386*(1+rvanilla04)^0.5)-SUM($J134:P134),('PTRM input'!$J$386*(1+rvanilla04)^0.5)/A2stdlife)) -> 0 | R134: =IF(A2stdlife="n/a","n/a",IF(R$3>(A2stdlife+$E134),('PTRM input'!$J$386*(1+rvanilla04)^0.5)-SUM($J134:Q134),('PTRM input'!$J$386*(1+rvanilla04)^0.5)/A2stdlife)) -> 0 | S134: =IF(A2stdlife="n/a","n/a",IF(S$3>(A2stdlife+$E134),('PTRM input'!$J$386*(1+rvanilla04)^0.5)-SUM($J134:R134),('PTRM input'!$J$386*(1+rvanilla04)^0.5)/A2stdlife)) -> 0 | T134: =IF(A2stdlife="n/a","n/a",IF(T$3>(A2stdlife+$E134),('PTRM input'!$J$386*(1+rvanilla04)^0.5)-SUM($J134:S134),('PTRM input'!$J$386*(1+rvanilla04)^0.5)/A2stdlife)) -> 0 | U134: =IF(A2stdlife="n/a","n/a",IF(U$3>(A2stdlife+$E134),('PTRM input'!$J$386*(1+rvanilla04)^0.5)-SUM($J134:T134),('PTRM input'!$J$386*(1+rvanilla04)^0.5)/A2stdlife)) -> 0 | V134: =IF(A2stdlife="n/a","n/a",IF(V$3>(A2stdlife+$E134),('PTRM input'!$J$386*(1+rvanilla04)^0.5)-SUM($J134:U134),('PTRM input'!$J$386*(1+rvanilla04)^0.5)/A2stdlife)) -> 0 | W134: =IF(A2stdlife="n/a","n/a",IF(W$3>(A2stdlife+$E134),('PTRM input'!$J$386*(1+rvanilla04)^0.5)-SUM($J134:V134),('PTRM input'!$J$386*(1+rvanilla04)^0.5)/A2stdlife)) -> 0 | X134: =IF(A2stdlife="n/a","n/a",IF(X$3>(A2stdlife+$E134),('PTRM input'!$J$386*(1+rvanilla04)^0.5)-SUM($J134:W134),('PTRM input'!$J$386*(1+rvanilla04)^0.5)/A2stdlife)) -> 0 | Y134: =IF(A2stdlife="n/a","n/a",IF(Y$3>(A2stdlife+$E134),('PTRM input'!$J$386*(1+rvanilla04)^0.5)-SUM($J134:X134),('PTRM input'!$J$386*(1+rvanilla04)^0.5)/A2stdlife)) -> 0 | Z134: =IF(A2stdlife="n/a","n/a",IF(Z$3>(A2stdlife+$E134),('PTRM input'!$J$386*(1+rvanilla04)^0.5)-SUM($J134:Y134),('PTRM input'!$J$386*(1+rvanilla04)^0.5)/A2stdlife)) -> 0 | AA134: =IF(A2stdlife="n/a","n/a",IF(AA$3>(A2stdlife+$E134),('PTRM input'!$J$386*(1+rvanilla04)^0.5)-SUM($J134:Z134),('PTRM input'!$J$386*(1+rvanilla04)^0.5)/A2stdlife)) -> 0 | AB134: =IF(A2stdlife="n/a","n/a",IF(AB$3>(A2stdlife+$E134),('PTRM input'!$J$386*(1+rvanilla04)^0.5)-SUM($J134:AA134),('PTRM input'!$J$386*(1+rvanilla04)^0.5)/A2stdlife)) -> 0 | AC134: =IF(A2stdlife="n/a","n/a",IF(AC$3>(A2stdlife+$E134),('PTRM input'!$J$386*(1+rvanilla04)^0.5)-SUM($J134:AB134),('PTRM input'!$J$386*(1+rvanilla04)^0.5)/A2stdlife)) -> 0 | AD134: =IF(A2stdlife="n/a","n/a",IF(AD$3>(A2stdlife+$E134),('PTRM input'!$J$386*(1+rvanilla04)^0.5)-SUM($J134:AC134),('PTRM input'!$J$386*(1+rvanilla04)^0.5)/A2stdlife)) -> 0 | AE134: =IF(A2stdlife="n/a","n/a",IF(AE$3>(A2stdlife+$E134),('PTRM input'!$J$386*(1+rvanilla04)^0.5)-SUM($J134:AD134),('PTRM input'!$J$386*(1+rvanilla04)^0.5)/A2stdlife)) -> 0 | AF134: =IF(A2stdlife="n/a","n/a",IF(AF$3>(A2stdlife+$E134),('PTRM input'!$J$386*(1+rvanilla04)^0.5)-SUM($J134:AE134),('PTRM input'!$J$386*(1+rvanilla04)^0.5)/A2stdlife)) -> 0 | AG134: =IF(A2stdlife="n/a","n/a",IF(AG$3>(A2stdlife+$E134),('PTRM input'!$J$386*(1+rvanilla04)^0.5)-SUM($J134:AF134),('PTRM input'!$J$386*(1+rvanilla04)^0.5)/A2stdlife)) -> 0 | AH134: =IF(A2stdlife="n/a","n/a",IF(AH$3>(A2stdlife+$E134),('PTRM input'!$J$386*(1+rvanilla04)^0.5)-SUM($J134:AG134),('PTRM input'!$J$386*(1+rvanilla04)^0.5)/A2stdlife)) -> 0 | AI134: =IF(A2stdlife="n/a","n/a",IF(AI$3>(A2stdlife+$E134),('PTRM input'!$J$386*(1+rvanilla04)^0.5)-SUM($J134:AH134),('PTRM input'!$J$386*(1+rvanilla04)^0.5)/A2stdlife)) -> 0 | AJ134: =IF(A2stdlife="n/a","n/a",IF(AJ$3>(A2stdlife+$E134),('PTRM input'!$J$386*(1+rvanilla04)^0.5)-SUM($J134:AI134),('PTRM input'!$J$386*(1+rvanilla04)^0.5)/A2stdlife)) -> 0 | AK134: =IF(A2stdlife="n/a","n/a",IF(AK$3>(A2stdlife+$E134),('PTRM input'!$J$386*(1+rvanilla04)^0.5)-SUM($J134:AJ134),('PTRM input'!$J$386*(1+rvanilla04)^0.5)/A2stdlife)) -> 0 | AL134: =IF(A2stdlife="n/a","n/a",IF(AL$3>(A2stdlife+$E134),('PTRM input'!$J$386*(1+rvanilla04)^0.5)-SUM($J134:AK134),('PTRM input'!$J$386*(1+rvanilla04)^0.5)/A2stdlife)) -> 0 | AM134: =IF(A2stdlife="n/a","n/a",IF(AM$3>(A2stdlife+$E134),('PTRM input'!$J$386*(1+rvanilla04)^0.5)-SUM($J134:AL134),('PTRM input'!$J$386*(1+rvanilla04)^0.5)/A2stdlife)) -> 0 | AN134: =IF(A2stdlife="n/a","n/a",IF(AN$3>(A2stdlife+$E134),('PTRM input'!$J$386*(1+rvanilla04)^0.5)-SUM($J134:AM134),('PTRM input'!$J$386*(1+rvanilla04)^0.5)/A2stdlife)) -> 0 | AO134: =IF(A2stdlife="n/a","n/a",IF(AO$3>(A2stdlife+$E134),('PTRM input'!$J$386*(1+rvanilla04)^0.5)-SUM($J134:AN134),('PTRM input'!$J$386*(1+rvanilla04)^0.5)/A2stdlife)) -> 0 | AP134: =IF(A2stdlife="n/a","n/a",IF(AP$3>(A2stdlife+$E134),('PTRM input'!$J$386*(1+rvanilla04)^0.5)-SUM($J134:AO134),('PTRM input'!$J$386*(1+rvanilla04)^0.5)/A2stdlife)) -> 0 | AQ134: =IF(A2stdlife="n/a","n/a",IF(AQ$3>(A2stdlife+$E134),('PTRM input'!$J$386*(1+rvanilla04)^0.5)-SUM($J134:AP134),('PTRM input'!$J$386*(1+rvanilla04)^0.5)/A2stdlife)) -> 0 | AR134: =IF(A2stdlife="n/a","n/a",IF(AR$3>(A2stdlife+$E134),('PTRM input'!$J$386*(1+rvanilla04)^0.5)-SUM($J134:AQ134),('PTRM input'!$J$386*(1+rvanilla04)^0.5)/A2stdlife)) -> 0 | AS134: =IF(A2stdlife="n/a","n/a",IF(AS$3>(A2stdlife+$E134),('PTRM input'!$J$386*(1+rvanilla04)^0.5)-SUM($J134:AR134),('PTRM input'!$J$386*(1+rvanilla04)^0.5)/A2stdlife)) -> 0 | AT134: =IF(A2stdlife="n/a","n/a",IF(AT$3>(A2stdlife+$E134),('PTRM input'!$J$386*(1+rvanilla04)^0.5)-SUM($J134:AS134),('PTRM input'!$J$386*(1+rvanilla04)^0.5)/A2stdlife)) -> 0 | AU134: =IF(A2stdlife="n/a","n/a",IF(AU$3>(A2stdlife+$E134),('PTRM input'!$J$386*(1+rvanilla04)^0.5)-SUM($J134:AT134),('PTRM input'!$J$386*(1+rvanilla04)^0.5)/A2stdlife)) -> 0 | AV134: =IF(A2stdlife="n/a","n/a",IF(AV$3>(A2stdlife+$E134),('PTRM input'!$J$386*(1+rvanilla04)^0.5)-SUM($J134:AU134),('PTRM input'!$J$386*(1+rvanilla04)^0.5)/A2stdlife)) -> 0 | AW134: =IF(A2stdlife="n/a","n/a",IF(AW$3>(A2stdlife+$E134),('PTRM input'!$J$386*(1+rvanilla04)^0.5)-SUM($J134:AV134),('PTRM input'!$J$386*(1+rvanilla04)^0.5)/A2stdlife)) -> 0 | AX134: =IF(A2stdlife="n/a","n/a",IF(AX$3>(A2stdlife+$E134),('PTRM input'!$J$386*(1+rvanilla04)^0.5)-SUM($J134:AW134),('PTRM input'!$J$386*(1+rvanilla04)^0.5)/A2stdlife)) -> 0 | AY134: =IF(A2stdlife="n/a","n/a",IF(AY$3>(A2stdlife+$E134),('PTRM input'!$J$386*(1+rvanilla04)^0.5)-SUM($J134:AX134),('PTRM input'!$J$386*(1+rvanilla04)^0.5)/A2stdlife)) -> 0 | AZ134: =IF(A2stdlife="n/a","n/a",IF(AZ$3>(A2stdlife+$E134),('PTRM input'!$J$386*(1+rvanilla04)^0.5)-SUM($J134:AY134),('PTRM input'!$J$386*(1+rvanilla04)^0.5)/A2stdlife)) -> 0 | BA134: =IF(A2stdlife="n/a","n/a",IF(BA$3>(A2stdlife+$E134),('PTRM input'!$J$386*(1+rvanilla04)^0.5)-SUM($J134:AZ134),('PTRM input'!$J$386*(1+rvanilla04)^0.5)/A2stdlife)) -> 0 | BB134: =IF(A2stdlife="n/a","n/a",IF(BB$3>(A2stdlife+$E134),('PTRM input'!$J$386*(1+rvanilla04)^0.5)-SUM($J134:BA134),('PTRM input'!$J$386*(1+rvanilla04)^0.5)/A2stdlife)) -> 0 | BC134: =IF(A2stdlife="n/a","n/a",IF(BC$3>(A2stdlife+$E134),('PTRM input'!$J$386*(1+rvanilla04)^0.5)-SUM($J134:BB134),('PTRM input'!$J$386*(1+rvanilla04)^0.5)/A2stdlife)) -> 0 | BD134: =IF(A2stdlife="n/a","n/a",IF(BD$3>(A2stdlife+$E134),('PTRM input'!$J$386*(1+rvanilla04)^0.5)-SUM($J134:BC134),('PTRM input'!$J$386*(1+rvanilla04)^0.5)/A2stdlife)) -> 0 | BE134: =IF(A2stdlife="n/a","n/a",IF(BE$3>(A2stdlife+$E134),('PTRM input'!$J$386*(1+rvanilla04)^0.5)-SUM($J134:BD134),('PTRM input'!$J$386*(1+rvanilla04)^0.5)/A2stdlife)) -> 0 | BF134: =IF(A2stdlife="n/a","n/a",IF(BF$3>(A2stdlife+$E134),('PTRM input'!$J$386*(1+rvanilla04)^0.5)-SUM($J134:BE134),('PTRM input'!$J$386*(1+rvanilla04)^0.5)/A2stdlife)) -> 0 | BG134: =IF(A2stdlife="n/a","n/a",IF(BG$3>(A2stdlife+$E134),('PTRM input'!$J$386*(1+rvanilla04)^0.5)-SUM($J134:BF134),('PTRM input'!$J$386*(1+rvanilla04)^0.5)/A2stdlife)) -> 0 | BH134: =IF(A2stdlife="n/a","n/a",IF(BH$3>(A2stdlife+$E134),('PTRM input'!$J$386*(1+rvanilla04)^0.5)-SUM($J134:BG134),('PTRM input'!$J$386*(1+rvanilla04)^0.5)/A2stdlife)) -> 0 | BI134: =IF(A2stdlife="n/a","n/a",IF(BI$3>(A2stdlife+$E134),('PTRM input'!$J$386*(1+rvanilla04)^0.5)-SUM($J134:BH134),('PTRM input'!$J$386*(1+rvanilla04)^0.5)/A2stdlife)) -> 0
E135: 5 | L135: =IF(A2stdlife="n/a","n/a",IF(L$3>(A2stdlife+$E135),('PTRM input'!$K$386*(1+rvanilla05)^0.5)-SUM($K135:K135),('PTRM input'!$K$386*(1+rvanilla05)^0.5)/A2stdlife)) -> 0 | M135: =IF(A2stdlife="n/a","n/a",IF(M$3>(A2stdlife+$E135),('PTRM input'!$K$386*(1+rvanilla05)^0.5)-SUM($K135:L135),('PTRM input'!$K$386*(1+rvanilla05)^0.5)/A2stdlife)) -> 0 | N135: =IF(A2stdlife="n/a","n/a",IF(N$3>(A2stdlife+$E135),('PTRM input'!$K$386*(1+rvanilla05)^0.5)-SUM($K135:M135),('PTRM input'!$K$386*(1+rvanilla05)^0.5)/A2stdlife)) -> 0 | O135: =IF(A2stdlife="n/a","n/a",IF(O$3>(A2stdlife+$E135),('PTRM input'!$K$386*(1+rvanilla05)^0.5)-SUM($K135:N135),('PTRM input'!$K$386*(1+rvanilla05)^0.5)/A2stdlife)) -> 0 | P135: =IF(A2stdlife="n/a","n/a",IF(P$3>(A2stdlife+$E135),('PTRM input'!$K$386*(1+rvanilla05)^0.5)-SUM($K135:O135),('PTRM input'!$K$386*(1+rvanilla05)^0.5)/A2stdlife)) -> 0 | Q135: =IF(A2stdlife="n/a","n/a",IF(Q$3>(A2stdlife+$E135),('PTRM input'!$K$386*(1+rvanilla05)^0.5)-SUM($K135:P135),('PTRM input'!$K$386*(1+rvanilla05)^0.5)/A2stdlife)) -> 0 | R135: =IF(A2stdlife="n/a","n/a",IF(R$3>(A2stdlife+$E135),('PTRM input'!$K$386*(1+rvanilla05)^0.5)-SUM($K135:Q135),('PTRM input'!$K$386*(1+rvanilla05)^0.5)/A2stdlife)) -> 0 | S135: =IF(A2stdlife="n/a","n/a",IF(S$3>(A2stdlife+$E135),('PTRM input'!$K$386*(1+rvanilla05)^0.5)-SUM($K135:R135),('PTRM input'!$K$386*(1+rvanilla05)^0.5)/A2stdlife)) -> 0 | T135: =IF(A2stdlife="n/a","n/a",IF(T$3>(A2stdlife+$E135),('PTRM input'!$K$386*(1+rvanilla05)^0.5)-SUM($K135:S135),('PTRM input'!$K$386*(1+rvanilla05)^0.5)/A2stdlife)) -> 0 | U135: =IF(A2stdlife="n/a","n/a",IF(U$3>(A2stdlife+$E135),('PTRM input'!$K$386*(1+rvanilla05)^0.5)-SUM($K135:T135),('PTRM input'!$K$386*(1+rvanilla05)^0.5)/A2stdlife)) -> 0 | V135: =IF(A2stdlife="n/a","n/a",IF(V$3>(A2stdlife+$E135),('PTRM input'!$K$386*(1+rvanilla05)^0.5)-SUM($K135:U135),('PTRM input'!$K$386*(1+rvanilla05)^0.5)/A2stdlife)) -> 0 | W135: =IF(A2stdlife="n/a","n/a",IF(W$3>(A2stdlife+$E135),('PTRM input'!$K$386*(1+rvanilla05)^0.5)-SUM($K135:V135),('PTRM input'!$K$386*(1+rvanilla05)^0.5)/A2stdlife)) -> 0 | X135: =IF(A2stdlife="n/a","n/a",IF(X$3>(A2stdlife+$E135),('PTRM input'!$K$386*(1+rvanilla05)^0.5)-SUM($K135:W135),('PTRM input'!$K$386*(1+rvanilla05)^0.5)/A2stdlife)) -> 0 | Y135: =IF(A2stdlife="n/a","n/a",IF(Y$3>(A2stdlife+$E135),('PTRM input'!$K$386*(1+rvanilla05)^0.5)-SUM($K135:X135),('PTRM input'!$K$386*(1+rvanilla05)^0.5)/A2stdlife)) -> 0 | Z135: =IF(A2stdlife="n/a","n/a",IF(Z$3>(A2stdlife+$E135),('PTRM input'!$K$386*(1+rvanilla05)^0.5)-SUM($K135:Y135),('PTRM input'!$K$386*(1+rvanilla05)^0.5)/A2stdlife)) -> 0 | AA135: =IF(A2stdlife="n/a","n/a",IF(AA$3>(A2stdlife+$E135),('PTRM input'!$K$386*(1+rvanilla05)^0.5)-SUM($K135:Z135),('PTRM input'!$K$386*(1+rvanilla05)^0.5)/A2stdlife)) -> 0 | AB135: =IF(A2stdlife="n/a","n/a",IF(AB$3>(A2stdlife+$E135),('PTRM input'!$K$386*(1+rvanilla05)^0.5)-SUM($K135:AA135),('PTRM input'!$K$386*(1+rvanilla05)^0.5)/A2stdlife)) -> 0 | AC135: =IF(A2stdlife="n/a","n/a",IF(AC$3>(A2stdlife+$E135),('PTRM input'!$K$386*(1+rvanilla05)^0.5)-SUM($K135:AB135),('PTRM input'!$K$386*(1+rvanilla05)^0.5)/A2stdlife)) -> 0 | AD135: =IF(A2stdlife="n/a","n/a",IF(AD$3>(A2stdlife+$E135),('PTRM input'!$K$386*(1+rvanilla05)^0.5)-SUM($K135:AC135),('PTRM input'!$K$386*(1+rvanilla05)^0.5)/A2stdlife)) -> 0 | AE135: =IF(A2stdlife="n/a","n/a",IF(AE$3>(A2stdlife+$E135),('PTRM input'!$K$386*(1+rvanilla05)^0.5)-SUM($K135:AD135),('PTRM input'!$K$386*(1+rvanilla05)^0.5)/A2stdlife)) -> 0 | AF135: =IF(A2stdlife="n/a","n/a",IF(AF$3>(A2stdlife+$E135),('PTRM input'!$K$386*(1+rvanilla05)^0.5)-SUM($K135:AE135),('PTRM input'!$K$386*(1+rvanilla05)^0.5)/A2stdlife)) -> 0 | AG135: =IF(A2stdlife="n/a","n/a",IF(AG$3>(A2stdlife+$E135),('PTRM input'!$K$386*(1+rvanilla05)^0.5)-SUM($K135:AF135),('PTRM input'!$K$386*(1+rvanilla05)^0.5)/A2stdlife)) -> 0 | AH135: =IF(A2stdlife="n/a","n/a",IF(AH$3>(A2stdlife+$E135),('PTRM input'!$K$386*(1+rvanilla05)^0.5)-SUM($K135:AG135),('PTRM input'!$K$386*(1+rvanilla05)^0.5)/A2stdlife)) -> 0 | AI135: =IF(A2stdlife="n/a","n/a",IF(AI$3>(A2stdlife+$E135),('PTRM input'!$K$386*(1+rvanilla05)^0.5)-SUM($K135:AH135),('PTRM input'!$K$386*(1+rvanilla05)^0.5)/A2stdlife)) -> 0 | AJ135: =IF(A2stdlife="n/a","n/a",IF(AJ$3>(A2stdlife+$E135),('PTRM input'!$K$386*(1+rvanilla05)^0.5)-SUM($K135:AI135),('PTRM input'!$K$386*(1+rvanilla05)^0.5)/A2stdlife)) -> 0 | AK135: =IF(A2stdlife="n/a","n/a",IF(AK$3>(A2stdlife+$E135),('PTRM input'!$K$386*(1+rvanilla05)^0.5)-SUM($K135:AJ135),('PTRM input'!$K$386*(1+rvanilla05)^0.5)/A2stdlife)) -> 0 | AL135: =IF(A2stdlife="n/a","n/a",IF(AL$3>(A2stdlife+$E135),('PTRM input'!$K$386*(1+rvanilla05)^0.5)-SUM($K135:AK135),('PTRM input'!$K$386*(1+rvanilla05)^0.5)/A2stdlife)) -> 0 | AM135: =IF(A2stdlife="n/a","n/a",IF(AM$3>(A2stdlife+$E135),('PTRM input'!$K$386*(1+rvanilla05)^0.5)-SUM($K135:AL135),('PTRM input'!$K$386*(1+rvanilla05)^0.5)/A2stdlife)) -> 0 | AN135: =IF(A2stdlife="n/a","n/a",IF(AN$3>(A2stdlife+$E135),('PTRM input'!$K$386*(1+rvanilla05)^0.5)-SUM($K135:AM135),('PTRM input'!$K$386*(1+rvanilla05)^0.5)/A2stdlife)) -> 0 | AO135: =IF(A2stdlife="n/a","n/a",IF(AO$3>(A2stdlife+$E135),('PTRM input'!$K$386*(1+rvanilla05)^0.5)-SUM($K135:AN135),('PTRM input'!$K$386*(1+rvanilla05)^0.5)/A2stdlife)) -> 0 | AP135: =IF(A2stdlife="n/a","n/a",IF(AP$3>(A2stdlife+$E135),('PTRM input'!$K$386*(1+rvanilla05)^0.5)-SUM($K135:AO135),('PTRM input'!$K$386*(1+rvanilla05)^0.5)/A2stdlife)) -> 0 | AQ135: =IF(A2stdlife="n/a","n/a",IF(AQ$3>(A2stdlife+$E135),('PTRM input'!$K$386*(1+rvanilla05)^0.5)-SUM($K135:AP135),('PTRM input'!$K$386*(1+rvanilla05)^0.5)/A2stdlife)) -> 0 | AR135: =IF(A2stdlife="n/a","n/a",IF(AR$3>(A2stdlife+$E135),('PTRM input'!$K$386*(1+rvanilla05)^0.5)-SUM($K135:AQ135),('PTRM input'!$K$386*(1+rvanilla05)^0.5)/A2stdlife)) -> 0 | AS135: =IF(A2stdlife="n/a","n/a",IF(AS$3>(A2stdlife+$E135),('PTRM input'!$K$386*(1+rvanilla05)^0.5)-SUM($K135:AR135),('PTRM input'!$K$386*(1+rvanilla05)^0.5)/A2stdlife)) -> 0 | AT135: =IF(A2stdlife="n/a","n/a",IF(AT$3>(A2stdlife+$E135),('PTRM input'!$K$386*(1+rvanilla05)^0.5)-SUM($K135:AS135),('PTRM input'!$K$386*(1+rvanilla05)^0.5)/A2stdlife)) -> 0 | AU135: =IF(A2stdlife="n/a","n/a",IF(AU$3>(A2stdlife+$E135),('PTRM input'!$K$386*(1+rvanilla05)^0.5)-SUM($K135:AT135),('PTRM input'!$K$386*(1+rvanilla05)^0.5)/A2stdlife)) -> 0 | AV135: =IF(A2stdlife="n/a","n/a",IF(AV$3>(A2stdlife+$E135),('PTRM input'!$K$386*(1+rvanilla05)^0.5)-SUM($K135:AU135),('PTRM input'!$K$386*(1+rvanilla05)^0.5)/A2stdlife)) -> 0 | AW135: =IF(A2stdlife="n/a","n/a",IF(AW$3>(A2stdlife+$E135),('PTRM input'!$K$386*(1+rvanilla05)^0.5)-SUM($K135:AV135),('PTRM input'!$K$386*(1+rvanilla05)^0.5)/A2stdlife)) -> 0 | AX135: =IF(A2stdlife="n/a","n/a",IF(AX$3>(A2stdlife+$E135),('PTRM input'!$K$386*(1+rvanilla05)^0.5)-SUM($K135:AW135),('PTRM input'!$K$386*(1+rvanilla05)^0.5)/A2stdlife)) -> 0 | AY135: =IF(A2stdlife="n/a","n/a",IF(AY$3>(A2stdlife+$E135),('PTRM input'!$K$386*(1+rvanilla05)^0.5)-SUM($K135:AX135),('PTRM input'!$K$386*(1+rvanilla05)^0.5)/A2stdlife)) -> 0 | AZ135: =IF(A2stdlife="n/a","n/a",IF(AZ$3>(A2stdlife+$E135),('PTRM input'!$K$386*(1+rvanilla05)^0.5)-SUM($K135:AY135),('PTRM input'!$K$386*(1+rvanilla05)^0.5)/A2stdlife)) -> 0 | BA135: =IF(A2stdlife="n/a","n/a",IF(BA$3>(A2stdlife+$E135),('PTRM input'!$K$386*(1+rvanilla05)^0.5)-SUM($K135:AZ135),('PTRM input'!$K$386*(1+rvanilla05)^0.5)/A2stdlife)) -> 0 | BB135: =IF(A2stdlife="n/a","n/a",IF(BB$3>(A2stdlife+$E135),('PTRM input'!$K$386*(1+rvanilla05)^0.5)-SUM($K135:BA135),('PTRM input'!$K$386*(1+rvanilla05)^0.5)/A2stdlife)) -> 0 | BC135: =IF(A2stdlife="n/a","n/a",IF(BC$3>(A2stdlife+$E135),('PTRM input'!$K$386*(1+rvanilla05)^0.5)-SUM($K135:BB135),('PTRM input'!$K$386*(1+rvanilla05)^0.5)/A2stdlife)) -> 0 | BD135: =IF(A2stdlife="n/a","n/a",IF(BD$3>(A2stdlife+$E135),('PTRM input'!$K$386*(1+rvanilla05)^0.5)-SUM($K135:BC135),('PTRM input'!$K$386*(1+rvanilla05)^0.5)/A2stdlife)) -> 0 | BE135: =IF(A2stdlife="n/a","n/a",IF(BE$3>(A2stdlife+$E135),('PTRM input'!$K$386*(1+rvanilla05)^0.5)-SUM($K135:BD135),('PTRM input'!$K$386*(1+rvanilla05)^0.5)/A2stdlife)) -> 0 | BF135: =IF(A2stdlife="n/a","n/a",IF(BF$3>(A2stdlife+$E135),('PTRM input'!$K$386*(1+rvanilla05)^0.5)-SUM($K135:BE135),('PTRM input'!$K$386*(1+rvanilla05)^0.5)/A2stdlife)) -> 0 | BG135: =IF(A2stdlife="n/a","n/a",IF(BG$3>(A2stdlife+$E135),('PTRM input'!$K$386*(1+rvanilla05)^0.5)-SUM($K135:BF135),('PTRM input'!$K$386*(1+rvanilla05)^0.5)/A2stdlife)) -> 0 | BH135: =IF(A2stdlife="n/a","n/a",IF(BH$3>(A2stdlife+$E135),('PTRM input'!$K$386*(1+rvanilla05)^0.5)-SUM($K135:BG135),('PTRM input'!$K$386*(1+rvanilla05)^0.5)/A2stdlife)) -> 0 | BI135: =IF(A2stdlife="n/a","n/a",IF(BI$3>(A2stdlife+$E135),('PTRM input'!$K$386*(1+rvanilla05)^0.5)-SUM($K135:BH135),('PTRM input'!$K$386*(1+rvanilla05)^0.5)/A2stdlife)) -> 0
E136: 6 | M136: =IF(A2stdlife="n/a","n/a",IF(M$3>(A2stdlife+$E136),('PTRM input'!$L$386*(1+rvanilla06)^0.5)-SUM($L136:L136),('PTRM input'!$L$386*(1+rvanilla06)^0.5)/A2stdlife)) -> 0 | N136: =IF(A2stdlife="n/a","n/a",IF(N$3>(A2stdlife+$E136),('PTRM input'!$L$386*(1+rvanilla06)^0.5)-SUM($L136:M136),('PTRM input'!$L$386*(1+rvanilla06)^0.5)/A2stdlife)) -> 0 | O136: =IF(A2stdlife="n/a","n/a",IF(O$3>(A2stdlife+$E136),('PTRM input'!$L$386*(1+rvanilla06)^0.5)-SUM($L136:N136),('PTRM input'!$L$386*(1+rvanilla06)^0.5)/A2stdlife)) -> 0 | P136: =IF(A2stdlife="n/a","n/a",IF(P$3>(A2stdlife+$E136),('PTRM input'!$L$386*(1+rvanilla06)^0.5)-SUM($L136:O136),('PTRM input'!$L$386*(1+rvanilla06)^0.5)/A2stdlife)) -> 0 | Q136: =IF(A2stdlife="n/a","n/a",IF(Q$3>(A2stdlife+$E136),('PTRM input'!$L$386*(1+rvanilla06)^0.5)-SUM($L136:P136),('PTRM input'!$L$386*(1+rvanilla06)^0.5)/A2stdlife)) -> 0 | R136: =IF(A2stdlife="n/a","n/a",IF(R$3>(A2stdlife+$E136),('PTRM input'!$L$386*(1+rvanilla06)^0.5)-SUM($L136:Q136),('PTRM input'!$L$386*(1+rvanilla06)^0.5)/A2stdlife)) -> 0 | S136: =IF(A2stdlife="n/a","n/a",IF(S$3>(A2stdlife+$E136),('PTRM input'!$L$386*(1+rvanilla06)^0.5)-SUM($L136:R136),('PTRM input'!$L$386*(1+rvanilla06)^0.5)/A2stdlife)) -> 0 | T136: =IF(A2stdlife="n/a","n/a",IF(T$3>(A2stdlife+$E136),('PTRM input'!$L$386*(1+rvanilla06)^0.5)-SUM($L136:S136),('PTRM input'!$L$386*(1+rvanilla06)^0.5)/A2stdlife)) -> 0 | U136: =IF(A2stdlife="n/a","n/a",IF(U$3>(A2stdlife+$E136),('PTRM input'!$L$386*(1+rvanilla06)^0.5)-SUM($L136:T136),('PTRM input'!$L$386*(1+rvanilla06)^0.5)/A2stdlife)) -> 0 | V136: =IF(A2stdlife="n/a","n/a",IF(V$3>(A2stdlife+$E136),('PTRM input'!$L$386*(1+rvanilla06)^0.5)-SUM($L136:U136),('PTRM input'!$L$386*(1+rvanilla06)^0.5)/A2stdlife)) -> 0 | W136: =IF(A2stdlife="n/a","n/a",IF(W$3>(A2stdlife+$E136),('PTRM input'!$L$386*(1+rvanilla06)^0.5)-SUM($L136:V136),('PTRM input'!$L$386*(1+rvanilla06)^0.5)/A2stdlife)) -> 0 | X136: =IF(A2stdlife="n/a","n/a",IF(X$3>(A2stdlife+$E136),('PTRM input'!$L$386*(1+rvanilla06)^0.5)-SUM($L136:W136),('PTRM input'!$L$386*(1+rvanilla06)^0.5)/A2stdlife)) -> 0 | Y136: =IF(A2stdlife="n/a","n/a",IF(Y$3>(A2stdlife+$E136),('PTRM input'!$L$386*(1+rvanilla06)^0.5)-SUM($L136:X136),('PTRM input'!$L$386*(1+rvanilla06)^0.5)/A2stdlife)) -> 0 | Z136: =IF(A2stdlife="n/a","n/a",IF(Z$3>(A2stdlife+$E136),('PTRM input'!$L$386*(1+rvanilla06)^0.5)-SUM($L136:Y136),('PTRM input'!$L$386*(1+rvanilla06)^0.5)/A2stdlife)) -> 0 | AA136: =IF(A2stdlife="n/a","n/a",IF(AA$3>(A2stdlife+$E136),('PTRM input'!$L$386*(1+rvanilla06)^0.5)-SUM($L136:Z136),('PTRM input'!$L$386*(1+rvanilla06)^0.5)/A2stdlife)) -> 0 | AB136: =IF(A2stdlife="n/a","n/a",IF(AB$3>(A2stdlife+$E136),('PTRM input'!$L$386*(1+rvanilla06)^0.5)-SUM($L136:AA136),('PTRM input'!$L$386*(1+rvanilla06)^0.5)/A2stdlife)) -> 0 | AC136: =IF(A2stdlife="n/a","n/a",IF(AC$3>(A2stdlife+$E136),('PTRM input'!$L$386*(1+rvanilla06)^0.5)-SUM($L136:AB136),('PTRM input'!$L$386*(1+rvanilla06)^0.5)/A2stdlife)) -> 0 | AD136: =IF(A2stdlife="n/a","n/a",IF(AD$3>(A2stdlife+$E136),('PTRM input'!$L$386*(1+rvanilla06)^0.5)-SUM($L136:AC136),('PTRM input'!$L$386*(1+rvanilla06)^0.5)/A2stdlife)) -> 0 | AE136: =IF(A2stdlife="n/a","n/a",IF(AE$3>(A2stdlife+$E136),('PTRM input'!$L$386*(1+rvanilla06)^0.5)-SUM($L136:AD136),('PTRM input'!$L$386*(1+rvanilla06)^0.5)/A2stdlife)) -> 0 | AF136: =IF(A2stdlife="n/a","n/a",IF(AF$3>(A2stdlife+$E136),('PTRM input'!$L$386*(1+rvanilla06)^0.5)-SUM($L136:AE136),('PTRM input'!$L$386*(1+rvanilla06)^0.5)/A2stdlife)) -> 0 | AG136: =IF(A2stdlife="n/a","n/a",IF(AG$3>(A2stdlife+$E136),('PTRM input'!$L$386*(1+rvanilla06)^0.5)-SUM($L136:AF136),('PTRM input'!$L$386*(1+rvanilla06)^0.5)/A2stdlife)) -> 0 | AH136: =IF(A2stdlife="n/a","n/a",IF(AH$3>(A2stdlife+$E136),('PTRM input'!$L$386*(1+rvanilla06)^0.5)-SUM($L136:AG136),('PTRM input'!$L$386*(1+rvanilla06)^0.5)/A2stdlife)) -> 0 | AI136: =IF(A2stdlife="n/a","n/a",IF(AI$3>(A2stdlife+$E136),('PTRM input'!$L$386*(1+rvanilla06)^0.5)-SUM($L136:AH136),('PTRM input'!$L$386*(1+rvanilla06)^0.5)/A2stdlife)) -> 0 | AJ136: =IF(A2stdlife="n/a","n/a",IF(AJ$3>(A2stdlife+$E136),('PTRM input'!$L$386*(1+rvanilla06)^0.5)-SUM($L136:AI136),('PTRM input'!$L$386*(1+rvanilla06)^0.5)/A2stdlife)) -> 0 | AK136: =IF(A2stdlife="n/a","n/a",IF(AK$3>(A2stdlife+$E136),('PTRM input'!$L$386*(1+rvanilla06)^0.5)-SUM($L136:AJ136),('PTRM input'!$L$386*(1+rvanilla06)^0.5)/A2stdlife)) -> 0 | AL136: =IF(A2stdlife="n/a","n/a",IF(AL$3>(A2stdlife+$E136),('PTRM input'!$L$386*(1+rvanilla06)^0.5)-SUM($L136:AK136),('PTRM input'!$L$386*(1+rvanilla06)^0.5)/A2stdlife)) -> 0 | AM136: =IF(A2stdlife="n/a","n/a",IF(AM$3>(A2stdlife+$E136),('PTRM input'!$L$386*(1+rvanilla06)^0.5)-SUM($L136:AL136),('PTRM input'!$L$386*(1+rvanilla06)^0.5)/A2stdlife)) -> 0 | AN136: =IF(A2stdlife="n/a","n/a",IF(AN$3>(A2stdlife+$E136),('PTRM input'!$L$386*(1+rvanilla06)^0.5)-SUM($L136:AM136),('PTRM input'!$L$386*(1+rvanilla06)^0.5)/A2stdlife)) -> 0 | AO136: =IF(A2stdlife="n/a","n/a",IF(AO$3>(A2stdlife+$E136),('PTRM input'!$L$386*(1+rvanilla06)^0.5)-SUM($L136:AN136),('PTRM input'!$L$386*(1+rvanilla06)^0.5)/A2stdlife)) -> 0 | AP136: =IF(A2stdlife="n/a","n/a",IF(AP$3>(A2stdlife+$E136),('PTRM input'!$L$386*(1+rvanilla06)^0.5)-SUM($L136:AO136),('PTRM input'!$L$386*(1+rvanilla06)^0.5)/A2stdlife)) -> 0 | AQ136: =IF(A2stdlife="n/a","n/a",IF(AQ$3>(A2stdlife+$E136),('PTRM input'!$L$386*(1+rvanilla06)^0.5)-SUM($L136:AP136),('PTRM input'!$L$386*(1+rvanilla06)^0.5)/A2stdlife)) -> 0 | AR136: =IF(A2stdlife="n/a","n/a",IF(AR$3>(A2stdlife+$E136),('PTRM input'!$L$386*(1+rvanilla06)^0.5)-SUM($L136:AQ136),('PTRM input'!$L$386*(1+rvanilla06)^0.5)/A2stdlife)) -> 0 | AS136: =IF(A2stdlife="n/a","n/a",IF(AS$3>(A2stdlife+$E136),('PTRM input'!$L$386*(1+rvanilla06)^0.5)-SUM($L136:AR136),('PTRM input'!$L$386*(1+rvanilla06)^0.5)/A2stdlife)) -> 0 | AT136: =IF(A2stdlife="n/a","n/a",IF(AT$3>(A2stdlife+$E136),('PTRM input'!$L$386*(1+rvanilla06)^0.5)-SUM($L136:AS136),('PTRM input'!$L$386*(1+rvanilla06)^0.5)/A2stdlife)) -> 0 | AU136: =IF(A2stdlife="n/a","n/a",IF(AU$3>(A2stdlife+$E136),('PTRM input'!$L$386*(1+rvanilla06)^0.5)-SUM($L136:AT136),('PTRM input'!$L$386*(1+rvanilla06)^0.5)/A2stdlife)) -> 0 | AV136: =IF(A2stdlife="n/a","n/a",IF(AV$3>(A2stdlife+$E136),('PTRM input'!$L$386*(1+rvanilla06)^0.5)-SUM($L136:AU136),('PTRM input'!$L$386*(1+rvanilla06)^0.5)/A2stdlife)) -> 0 | AW136: =IF(A2stdlife="n/a","n/a",IF(AW$3>(A2stdlife+$E136),('PTRM input'!$L$386*(1+rvanilla06)^0.5)-SUM($L136:AV136),('PTRM input'!$L$386*(1+rvanilla06)^0.5)/A2stdlife)) -> 0 | AX136: =IF(A2stdlife="n/a","n/a",IF(AX$3>(A2stdlife+$E136),('PTRM input'!$L$386*(1+rvanilla06)^0.5)-SUM($L136:AW136),('PTRM input'!$L$386*(1+rvanilla06)^0.5)/A2stdlife)) -> 0 | AY136: =IF(A2stdlife="n/a","n/a",IF(AY$3>(A2stdlife+$E136),('PTRM input'!$L$386*(1+rvanilla06)^0.5)-SUM($L136:AX136),('PTRM input'!$L$386*(1+rvanilla06)^0.5)/A2stdlife)) -> 0 | AZ136: =IF(A2stdlife="n/a","n/a",IF(AZ$3>(A2stdlife+$E136),('PTRM input'!$L$386*(1+rvanilla06)^0.5)-SUM($L136:AY136),('PTRM input'!$L$386*(1+rvanilla06)^0.5)/A2stdlife)) -> 0 | BA136: =IF(A2stdlife="n/a","n/a",IF(BA$3>(A2stdlife+$E136),('PTRM input'!$L$386*(1+rvanilla06)^0.5)-SUM($L136:AZ136),('PTRM input'!$L$386*(1+rvanilla06)^0.5)/A2stdlife)) -> 0 | BB136: =IF(A2stdlife="n/a","n/a",IF(BB$3>(A2stdlife+$E136),('PTRM input'!$L$386*(1+rvanilla06)^0.5)-SUM($L136:BA136),('PTRM input'!$L$386*(1+rvanilla06)^0.5)/A2stdlife)) -> 0 | BC136: =IF(A2stdlife="n/a","n/a",IF(BC$3>(A2stdlife+$E136),('PTRM input'!$L$386*(1+rvanilla06)^0.5)-SUM($L136:BB136),('PTRM input'!$L$386*(1+rvanilla06)^0.5)/A2stdlife)) -> 0 | BD136: =IF(A2stdlife="n/a","n/a",IF(BD$3>(A2stdlife+$E136),('PTRM input'!$L$386*(1+rvanilla06)^0.5)-SUM($L136:BC136),('PTRM input'!$L$386*(1+rvanilla06)^0.5)/A2stdlife)) -> 0 | BE136: =IF(A2stdlife="n/a","n/a",IF(BE$3>(A2stdlife+$E136),('PTRM input'!$L$386*(1+rvanilla06)^0.5)-SUM($L136:BD136),('PTRM input'!$L$386*(1+rvanilla06)^0.5)/A2stdlife)) -> 0 | BF136: =IF(A2stdlife="n/a","n/a",IF(BF$3>(A2stdlife+$E136),('PTRM input'!$L$386*(1+rvanilla06)^0.5)-SUM($L136:BE136),('PTRM input'!$L$386*(1+rvanilla06)^0.5)/A2stdlife)) -> 0 | BG136: =IF(A2stdlife="n/a","n/a",IF(BG$3>(A2stdlife+$E136),('PTRM input'!$L$386*(1+rvanilla06)^0.5)-SUM($L136:BF136),('PTRM input'!$L$386*(1+rvanilla06)^0.5)/A2stdlife)) -> 0 | BH136: =IF(A2stdlife="n/a","n/a",IF(BH$3>(A2stdlife+$E136),('PTRM input'!$L$386*(1+rvanilla06)^0.5)-SUM($L136:BG136),('PTRM input'!$L$386*(1+rvanilla06)^0.5)/A2stdlife)) -> 0 | BI136: =IF(A2stdlife="n/a","n/a",IF(BI$3>(A2stdlife+$E136),('PTRM input'!$L$386*(1+rvanilla06)^0.5)-SUM($L136:BH136),('PTRM input'!$L$386*(1+rvanilla06)^0.5)/A2stdlife)) -> 0
E137: 7 | N137: =IF(A2stdlife="n/a","n/a",IF(N$3>(A2stdlife+$E137),('PTRM input'!$M$386*(1+rvanilla07)^0.5)-SUM($M137:M137),('PTRM input'!$M$386*(1+rvanilla07)^0.5)/A2stdlife)) -> 0 | O137: =IF(A2stdlife="n/a","n/a",IF(O$3>(A2stdlife+$E137),('PTRM input'!$M$386*(1+rvanilla07)^0.5)-SUM($M137:N137),('PTRM input'!$M$386*(1+rvanilla07)^0.5)/A2stdlife)) -> 0 | P137: =IF(A2stdlife="n/a","n/a",IF(P$3>(A2stdlife+$E137),('PTRM input'!$M$386*(1+rvanilla07)^0.5)-SUM($M137:O137),('PTRM input'!$M$386*(1+rvanilla07)^0.5)/A2stdlife)) -> 0 | Q137: =IF(A2stdlife="n/a","n/a",IF(Q$3>(A2stdlife+$E137),('PTRM input'!$M$386*(1+rvanilla07)^0.5)-SUM($M137:P137),('PTRM input'!$M$386*(1+rvanilla07)^0.5)/A2stdlife)) -> 0 | R137: =IF(A2stdlife="n/a","n/a",IF(R$3>(A2stdlife+$E137),('PTRM input'!$M$386*(1+rvanilla07)^0.5)-SUM($M137:Q137),('PTRM input'!$M$386*(1+rvanilla07)^0.5)/A2stdlife)) -> 0 | S137: =IF(A2stdlife="n/a","n/a",IF(S$3>(A2stdlife+$E137),('PTRM input'!$M$386*(1+rvanilla07)^0.5)-SUM($M137:R137),('PTRM input'!$M$386*(1+rvanilla07)^0.5)/A2stdlife)) -> 0 | T137: =IF(A2stdlife="n/a","n/a",IF(T$3>(A2stdlife+$E137),('PTRM input'!$M$386*(1+rvanilla07)^0.5)-SUM($M137:S137),('PTRM input'!$M$386*(1+rvanilla07)^0.5)/A2stdlife)) -> 0 | U137: =IF(A2stdlife="n/a","n/a",IF(U$3>(A2stdlife+$E137),('PTRM input'!$M$386*(1+rvanilla07)^0.5)-SUM($M137:T137),('PTRM input'!$M$386*(1+rvanilla07)^0.5)/A2stdlife)) -> 0 | V137: =IF(A2stdlife="n/a","n/a",IF(V$3>(A2stdlife+$E137),('PTRM input'!$M$386*(1+rvanilla07)^0.5)-SUM($M137:U137),('PTRM input'!$M$386*(1+rvanilla07)^0.5)/A2stdlife)) -> 0 | W137: =IF(A2stdlife="n/a","n/a",IF(W$3>(A2stdlife+$E137),('PTRM input'!$M$386*(1+rvanilla07)^0.5)-SUM($M137:V137),('PTRM input'!$M$386*(1+rvanilla07)^0.5)/A2stdlife)) -> 0 | X137: =IF(A2stdlife="n/a","n/a",IF(X$3>(A2stdlife+$E137),('PTRM input'!$M$386*(1+rvanilla07)^0.5)-SUM($M137:W137),('PTRM input'!$M$386*(1+rvanilla07)^0.5)/A2stdlife)) -> 0 | Y137: =IF(A2stdlife="n/a","n/a",IF(Y$3>(A2stdlife+$E137),('PTRM input'!$M$386*(1+rvanilla07)^0.5)-SUM($M137:X137),('PTRM input'!$M$386*(1+rvanilla07)^0.5)/A2stdlife)) -> 0 | Z137: =IF(A2stdlife="n/a","n/a",IF(Z$3>(A2stdlife+$E137),('PTRM input'!$M$386*(1+rvanilla07)^0.5)-SUM($M137:Y137),('PTRM input'!$M$386*(1+rvanilla07)^0.5)/A2stdlife)) -> 0 | AA137: =IF(A2stdlife="n/a","n/a",IF(AA$3>(A2stdlife+$E137),('PTRM input'!$M$386*(1+rvanilla07)^0.5)-SUM($M137:Z137),('PTRM input'!$M$386*(1+rvanilla07)^0.5)/A2stdlife)) -> 0 | AB137: =IF(A2stdlife="n/a","n/a",IF(AB$3>(A2stdlife+$E137),('PTRM input'!$M$386*(1+rvanilla07)^0.5)-SUM($M137:AA137),('PTRM input'!$M$386*(1+rvanilla07)^0.5)/A2stdlife)) -> 0 | AC137: =IF(A2stdlife="n/a","n/a",IF(AC$3>(A2stdlife+$E137),('PTRM input'!$M$386*(1+rvanilla07)^0.5)-SUM($M137:AB137),('PTRM input'!$M$386*(1+rvanilla07)^0.5)/A2stdlife)) -> 0 | AD137: =IF(A2stdlife="n/a","n/a",IF(AD$3>(A2stdlife+$E137),('PTRM input'!$M$386*(1+rvanilla07)^0.5)-SUM($M137:AC137),('PTRM input'!$M$386*(1+rvanilla07)^0.5)/A2stdlife)) -> 0 | AE137: =IF(A2stdlife="n/a","n/a",IF(AE$3>(A2stdlife+$E137),('PTRM input'!$M$386*(1+rvanilla07)^0.5)-SUM($M137:AD137),('PTRM input'!$M$386*(1+rvanilla07)^0.5)/A2stdlife)) -> 0 | AF137: =IF(A2stdlife="n/a","n/a",IF(AF$3>(A2stdlife+$E137),('PTRM input'!$M$386*(1+rvanilla07)^0.5)-SUM($M137:AE137),('PTRM input'!$M$386*(1+rvanilla07)^0.5)/A2stdlife)) -> 0 | AG137: =IF(A2stdlife="n/a","n/a",IF(AG$3>(A2stdlife+$E137),('PTRM input'!$M$386*(1+rvanilla07)^0.5)-SUM($M137:AF137),('PTRM input'!$M$386*(1+rvanilla07)^0.5)/A2stdlife)) -> 0 | AH137: =IF(A2stdlife="n/a","n/a",IF(AH$3>(A2stdlife+$E137),('PTRM input'!$M$386*(1+rvanilla07)^0.5)-SUM($M137:AG137),('PTRM input'!$M$386*(1+rvanilla07)^0.5)/A2stdlife)) -> 0 | AI137: =IF(A2stdlife="n/a","n/a",IF(AI$3>(A2stdlife+$E137),('PTRM input'!$M$386*(1+rvanilla07)^0.5)-SUM($M137:AH137),('PTRM input'!$M$386*(1+rvanilla07)^0.5)/A2stdlife)) -> 0 | AJ137: =IF(A2stdlife="n/a","n/a",IF(AJ$3>(A2stdlife+$E137),('PTRM input'!$M$386*(1+rvanilla07)^0.5)-SUM($M137:AI137),('PTRM input'!$M$386*(1+rvanilla07)^0.5)/A2stdlife)) -> 0 | AK137: =IF(A2stdlife="n/a","n/a",IF(AK$3>(A2stdlife+$E137),('PTRM input'!$M$386*(1+rvanilla07)^0.5)-SUM($M137:AJ137),('PTRM input'!$M$386*(1+rvanilla07)^0.5)/A2stdlife)) -> 0 | AL137: =IF(A2stdlife="n/a","n/a",IF(AL$3>(A2stdlife+$E137),('PTRM input'!$M$386*(1+rvanilla07)^0.5)-SUM($M137:AK137),('PTRM input'!$M$386*(1+rvanilla07)^0.5)/A2stdlife)) -> 0 | AM137: =IF(A2stdlife="n/a","n/a",IF(AM$3>(A2stdlife+$E137),('PTRM input'!$M$386*(1+rvanilla07)^0.5)-SUM($M137:AL137),('PTRM input'!$M$386*(1+rvanilla07)^0.5)/A2stdlife)) -> 0 | AN137: =IF(A2stdlife="n/a","n/a",IF(AN$3>(A2stdlife+$E137),('PTRM input'!$M$386*(1+rvanilla07)^0.5)-SUM($M137:AM137),('PTRM input'!$M$386*(1+rvanilla07)^0.5)/A2stdlife)) -> 0 | AO137: =IF(A2stdlife="n/a","n/a",IF(AO$3>(A2stdlife+$E137),('PTRM input'!$M$386*(1+rvanilla07)^0.5)-SUM($M137:AN137),('PTRM input'!$M$386*(1+rvanilla07)^0.5)/A2stdlife)) -> 0 | AP137: =IF(A2stdlife="n/a","n/a",IF(AP$3>(A2stdlife+$E137),('PTRM input'!$M$386*(1+rvanilla07)^0.5)-SUM($M137:AO137),('PTRM input'!$M$386*(1+rvanilla07)^0.5)/A2stdlife)) -> 0 | AQ137: =IF(A2stdlife="n/a","n/a",IF(AQ$3>(A2stdlife+$E137),('PTRM input'!$M$386*(1+rvanilla07)^0.5)-SUM($M137:AP137),('PTRM input'!$M$386*(1+rvanilla07)^0.5)/A2stdlife)) -> 0 | AR137: =IF(A2stdlife="n/a","n/a",IF(AR$3>(A2stdlife+$E137),('PTRM input'!$M$386*(1+rvanilla07)^0.5)-SUM($M137:AQ137),('PTRM input'!$M$386*(1+rvanilla07)^0.5)/A2stdlife)) -> 0 | AS137: =IF(A2stdlife="n/a","n/a",IF(AS$3>(A2stdlife+$E137),('PTRM input'!$M$386*(1+rvanilla07)^0.5)-SUM($M137:AR137),('PTRM input'!$M$386*(1+rvanilla07)^0.5)/A2stdlife)) -> 0 | AT137: =IF(A2stdlife="n/a","n/a",IF(AT$3>(A2stdlife+$E137),('PTRM input'!$M$386*(1+rvanilla07)^0.5)-SUM($M137:AS137),('PTRM input'!$M$386*(1+rvanilla07)^0.5)/A2stdlife)) -> 0 | AU137: =IF(A2stdlife="n/a","n/a",IF(AU$3>(A2stdlife+$E137),('PTRM input'!$M$386*(1+rvanilla07)^0.5)-SUM($M137:AT137),('PTRM input'!$M$386*(1+rvanilla07)^0.5)/A2stdlife)) -> 0 | AV137: =IF(A2stdlife="n/a","n/a",IF(AV$3>(A2stdlife+$E137),('PTRM input'!$M$386*(1+rvanilla07)^0.5)-SUM($M137:AU137),('PTRM input'!$M$386*(1+rvanilla07)^0.5)/A2stdlife)) -> 0 | AW137: =IF(A2stdlife="n/a","n/a",IF(AW$3>(A2stdlife+$E137),('PTRM input'!$M$386*(1+rvanilla07)^0.5)-SUM($M137:AV137),('PTRM input'!$M$386*(1+rvanilla07)^0.5)/A2stdlife)) -> 0 | AX137: =IF(A2stdlife="n/a","n/a",IF(AX$3>(A2stdlife+$E137),('PTRM input'!$M$386*(1+rvanilla07)^0.5)-SUM($M137:AW137),('PTRM input'!$M$386*(1+rvanilla07)^0.5)/A2stdlife)) -> 0 | AY137: =IF(A2stdlife="n/a","n/a",IF(AY$3>(A2stdlife+$E137),('PTRM input'!$M$386*(1+rvanilla07)^0.5)-SUM($M137:AX137),('PTRM input'!$M$386*(1+rvanilla07)^0.5)/A2stdlife)) -> 0 | AZ137: =IF(A2stdlife="n/a","n/a",IF(AZ$3>(A2stdlife+$E137),('PTRM input'!$M$386*(1+rvanilla07)^0.5)-SUM($M137:AY137),('PTRM input'!$M$386*(1+rvanilla07)^0.5)/A2stdlife)) -> 0 | BA137: =IF(A2stdlife="n/a","n/a",IF(BA$3>(A2stdlife+$E137),('PTRM input'!$M$386*(1+rvanilla07)^0.5)-SUM($M137:AZ137),('PTRM input'!$M$386*(1+rvanilla07)^0.5)/A2stdlife)) -> 0 | BB137: =IF(A2stdlife="n/a","n/a",IF(BB$3>(A2stdlife+$E137),('PTRM input'!$M$386*(1+rvanilla07)^0.5)-SUM($M137:BA137),('PTRM input'!$M$386*(1+rvanilla07)^0.5)/A2stdlife)) -> 0 | BC137: =IF(A2stdlife="n/a","n/a",IF(BC$3>(A2stdlife+$E137),('PTRM input'!$M$386*(1+rvanilla07)^0.5)-SUM($M137:BB137),('PTRM input'!$M$386*(1+rvanilla07)^0.5)/A2stdlife)) -> 0 | BD137: =IF(A2stdlife="n/a","n/a",IF(BD$3>(A2stdlife+$E137),('PTRM input'!$M$386*(1+rvanilla07)^0.5)-SUM($M137:BC137),('PTRM input'!$M$386*(1+rvanilla07)^0.5)/A2stdlife)) -> 0 | BE137: =IF(A2stdlife="n/a","n/a",IF(BE$3>(A2stdlife+$E137),('PTRM input'!$M$386*(1+rvanilla07)^0.5)-SUM($M137:BD137),('PTRM input'!$M$386*(1+rvanilla07)^0.5)/A2stdlife)) -> 0 | BF137: =IF(A2stdlife="n/a","n/a",IF(BF$3>(A2stdlife+$E137),('PTRM input'!$M$386*(1+rvanilla07)^0.5)-SUM($M137:BE137),('PTRM input'!$M$386*(1+rvanilla07)^0.5)/A2stdlife)) -> 0 | BG137: =IF(A2stdlife="n/a","n/a",IF(BG$3>(A2stdlife+$E137),('PTRM input'!$M$386*(1+rvanilla07)^0.5)-SUM($M137:BF137),('PTRM input'!$M$386*(1+rvanilla07)^0.5)/A2stdlife)) -> 0 | BH137: =IF(A2stdlife="n/a","n/a",IF(BH$3>(A2stdlife+$E137),('PTRM input'!$M$386*(1+rvanilla07)^0.5)-SUM($M137:BG137),('PTRM input'!$M$386*(1+rvanilla07)^0.5)/A2stdlife)) -> 0 | BI137: =IF(A2stdlife="n/a","n/a",IF(BI$3>(A2stdlife+$E137),('PTRM input'!$M$386*(1+rvanilla07)^0.5)-SUM($M137:BH137),('PTRM input'!$M$386*(1+rvanilla07)^0.5)/A2stdlife)) -> 0
E138: 8 | O138: =IF(A2stdlife="n/a","n/a",IF(O$3>(A2stdlife+$E138),('PTRM input'!$N$386*(1+rvanilla08)^0.5)-SUM($N138:N138),('PTRM input'!$N$386*(1+rvanilla08)^0.5)/A2stdlife)) -> 0 | P138: =IF(A2stdlife="n/a","n/a",IF(P$3>(A2stdlife+$E138),('PTRM input'!$N$386*(1+rvanilla08)^0.5)-SUM($N138:O138),('PTRM input'!$N$386*(1+rvanilla08)^0.5)/A2stdlife)) -> 0 | Q138: =IF(A2stdlife="n/a","n/a",IF(Q$3>(A2stdlife+$E138),('PTRM input'!$N$386*(1+rvanilla08)^0.5)-SUM($N138:P138),('PTRM input'!$N$386*(1+rvanilla08)^0.5)/A2stdlife)) -> 0 | R138: =IF(A2stdlife="n/a","n/a",IF(R$3>(A2stdlife+$E138),('PTRM input'!$N$386*(1+rvanilla08)^0.5)-SUM($N138:Q138),('PTRM input'!$N$386*(1+rvanilla08)^0.5)/A2stdlife)) -> 0 | S138: =IF(A2stdlife="n/a","n/a",IF(S$3>(A2stdlife+$E138),('PTRM input'!$N$386*(1+rvanilla08)^0.5)-SUM($N138:R138),('PTRM input'!$N$386*(1+rvanilla08)^0.5)/A2stdlife)) -> 0 | T138: =IF(A2stdlife="n/a","n/a",IF(T$3>(A2stdlife+$E138),('PTRM input'!$N$386*(1+rvanilla08)^0.5)-SUM($N138:S138),('PTRM input'!$N$386*(1+rvanilla08)^0.5)/A2stdlife)) -> 0 | U138: =IF(A2stdlife="n/a","n/a",IF(U$3>(A2stdlife+$E138),('PTRM input'!$N$386*(1+rvanilla08)^0.5)-SUM($N138:T138),('PTRM input'!$N$386*(1+rvanilla08)^0.5)/A2stdlife)) -> 0 | V138: =IF(A2stdlife="n/a","n/a",IF(V$3>(A2stdlife+$E138),('PTRM input'!$N$386*(1+rvanilla08)^0.5)-SUM($N138:U138),('PTRM input'!$N$386*(1+rvanilla08)^0.5)/A2stdlife)) -> 0 | W138: =IF(A2stdlife="n/a","n/a",IF(W$3>(A2stdlife+$E138),('PTRM input'!$N$386*(1+rvanilla08)^0.5)-SUM($N138:V138),('PTRM input'!$N$386*(1+rvanilla08)^0.5)/A2stdlife)) -> 0 | X138: =IF(A2stdlife="n/a","n/a",IF(X$3>(A2stdlife+$E138),('PTRM input'!$N$386*(1+rvanilla08)^0.5)-SUM($N138:W138),('PTRM input'!$N$386*(1+rvanilla08)^0.5)/A2stdlife)) -> 0 | Y138: =IF(A2stdlife="n/a","n/a",IF(Y$3>(A2stdlife+$E138),('PTRM input'!$N$386*(1+rvanilla08)^0.5)-SUM($N138:X138),('PTRM input'!$N$386*(1+rvanilla08)^0.5)/A2stdlife)) -> 0 | Z138: =IF(A2stdlife="n/a","n/a",IF(Z$3>(A2stdlife+$E138),('PTRM input'!$N$386*(1+rvanilla08)^0.5)-SUM($N138:Y138),('PTRM input'!$N$386*(1+rvanilla08)^0.5)/A2stdlife)) -> 0 | AA138: =IF(A2stdlife="n/a","n/a",IF(AA$3>(A2stdlife+$E138),('PTRM input'!$N$386*(1+rvanilla08)^0.5)-SUM($N138:Z138),('PTRM input'!$N$386*(1+rvanilla08)^0.5)/A2stdlife)) -> 0 | AB138: =IF(A2stdlife="n/a","n/a",IF(AB$3>(A2stdlife+$E138),('PTRM input'!$N$386*(1+rvanilla08)^0.5)-SUM($N138:AA138),('PTRM input'!$N$386*(1+rvanilla08)^0.5)/A2stdlife)) -> 0 | AC138: =IF(A2stdlife="n/a","n/a",IF(AC$3>(A2stdlife+$E138),('PTRM input'!$N$386*(1+rvanilla08)^0.5)-SUM($N138:AB138),('PTRM input'!$N$386*(1+rvanilla08)^0.5)/A2stdlife)) -> 0 | AD138: =IF(A2stdlife="n/a","n/a",IF(AD$3>(A2stdlife+$E138),('PTRM input'!$N$386*(1+rvanilla08)^0.5)-SUM($N138:AC138),('PTRM input'!$N$386*(1+rvanilla08)^0.5)/A2stdlife)) -> 0 | AE138: =IF(A2stdlife="n/a","n/a",IF(AE$3>(A2stdlife+$E138),('PTRM input'!$N$386*(1+rvanilla08)^0.5)-SUM($N138:AD138),('PTRM input'!$N$386*(1+rvanilla08)^0.5)/A2stdlife)) -> 0 | AF138: =IF(A2stdlife="n/a","n/a",IF(AF$3>(A2stdlife+$E138),('PTRM input'!$N$386*(1+rvanilla08)^0.5)-SUM($N138:AE138),('PTRM input'!$N$386*(1+rvanilla08)^0.5)/A2stdlife)) -> 0 | AG138: =IF(A2stdlife="n/a","n/a",IF(AG$3>(A2stdlife+$E138),('PTRM input'!$N$386*(1+rvanilla08)^0.5)-SUM($N138:AF138),('PTRM input'!$N$386*(1+rvanilla08)^0.5)/A2stdlife)) -> 0 | AH138: =IF(A2stdlife="n/a","n/a",IF(AH$3>(A2stdlife+$E138),('PTRM input'!$N$386*(1+rvanilla08)^0.5)-SUM($N138:AG138),('PTRM input'!$N$386*(1+rvanilla08)^0.5)/A2stdlife)) -> 0 | AI138: =IF(A2stdlife="n/a","n/a",IF(AI$3>(A2stdlife+$E138),('PTRM input'!$N$386*(1+rvanilla08)^0.5)-SUM($N138:AH138),('PTRM input'!$N$386*(1+rvanilla08)^0.5)/A2stdlife)) -> 0 | AJ138: =IF(A2stdlife="n/a","n/a",IF(AJ$3>(A2stdlife+$E138),('PTRM input'!$N$386*(1+rvanilla08)^0.5)-SUM($N138:AI138),('PTRM input'!$N$386*(1+rvanilla08)^0.5)/A2stdlife)) -> 0 | AK138: =IF(A2stdlife="n/a","n/a",IF(AK$3>(A2stdlife+$E138),('PTRM input'!$N$386*(1+rvanilla08)^0.5)-SUM($N138:AJ138),('PTRM input'!$N$386*(1+rvanilla08)^0.5)/A2stdlife)) -> 0 | AL138: =IF(A2stdlife="n/a","n/a",IF(AL$3>(A2stdlife+$E138),('PTRM input'!$N$386*(1+rvanilla08)^0.5)-SUM($N138:AK138),('PTRM input'!$N$386*(1+rvanilla08)^0.5)/A2stdlife)) -> 0 | AM138: =IF(A2stdlife="n/a","n/a",IF(AM$3>(A2stdlife+$E138),('PTRM input'!$N$386*(1+rvanilla08)^0.5)-SUM($N138:AL138),('PTRM input'!$N$386*(1+rvanilla08)^0.5)/A2stdlife)) -> 0 | AN138: =IF(A2stdlife="n/a","n/a",IF(AN$3>(A2stdlife+$E138),('PTRM input'!$N$386*(1+rvanilla08)^0.5)-SUM($N138:AM138),('PTRM input'!$N$386*(1+rvanilla08)^0.5)/A2stdlife)) -> 0 | AO138: =IF(A2stdlife="n/a","n/a",IF(AO$3>(A2stdlife+$E138),('PTRM input'!$N$386*(1+rvanilla08)^0.5)-SUM($N138:AN138),('PTRM input'!$N$386*(1+rvanilla08)^0.5)/A2stdlife)) -> 0 | AP138: =IF(A2stdlife="n/a","n/a",IF(AP$3>(A2stdlife+$E138),('PTRM input'!$N$386*(1+rvanilla08)^0.5)-SUM($N138:AO138),('PTRM input'!$N$386*(1+rvanilla08)^0.5)/A2stdlife)) -> 0 | AQ138: =IF(A2stdlife="n/a","n/a",IF(AQ$3>(A2stdlife+$E138),('PTRM input'!$N$386*(1+rvanilla08)^0.5)-SUM($N138:AP138),('PTRM input'!$N$386*(1+rvanilla08)^0.5)/A2stdlife)) -> 0 | AR138: =IF(A2stdlife="n/a","n/a",IF(AR$3>(A2stdlife+$E138),('PTRM input'!$N$386*(1+rvanilla08)^0.5)-SUM($N138:AQ138),('PTRM input'!$N$386*(1+rvanilla08)^0.5)/A2stdlife)) -> 0 | AS138: =IF(A2stdlife="n/a","n/a",IF(AS$3>(A2stdlife+$E138),('PTRM input'!$N$386*(1+rvanilla08)^0.5)-SUM($N138:AR138),('PTRM input'!$N$386*(1+rvanilla08)^0.5)/A2stdlife)) -> 0 | AT138: =IF(A2stdlife="n/a","n/a",IF(AT$3>(A2stdlife+$E138),('PTRM input'!$N$386*(1+rvanilla08)^0.5)-SUM($N138:AS138),('PTRM input'!$N$386*(1+rvanilla08)^0.5)/A2stdlife)) -> 0 | AU138: =IF(A2stdlife="n/a","n/a",IF(AU$3>(A2stdlife+$E138),('PTRM input'!$N$386*(1+rvanilla08)^0.5)-SUM($N138:AT138),('PTRM input'!$N$386*(1+rvanilla08)^0.5)/A2stdlife)) -> 0 | AV138: =IF(A2stdlife="n/a","n/a",IF(AV$3>(A2stdlife+$E138),('PTRM input'!$N$386*(1+rvanilla08)^0.5)-SUM($N138:AU138),('PTRM input'!$N$386*(1+rvanilla08)^0.5)/A2stdlife)) -> 0 | AW138: =IF(A2stdlife="n/a","n/a",IF(AW$3>(A2stdlife+$E138),('PTRM input'!$N$386*(1+rvanilla08)^0.5)-SUM($N138:AV138),('PTRM input'!$N$386*(1+rvanilla08)^0.5)/A2stdlife)) -> 0 | AX138: =IF(A2stdlife="n/a","n/a",IF(AX$3>(A2stdlife+$E138),('PTRM input'!$N$386*(1+rvanilla08)^0.5)-SUM($N138:AW138),('PTRM input'!$N$386*(1+rvanilla08)^0.5)/A2stdlife)) -> 0 | AY138: =IF(A2stdlife="n/a","n/a",IF(AY$3>(A2stdlife+$E138),('PTRM input'!$N$386*(1+rvanilla08)^0.5)-SUM($N138:AX138),('PTRM input'!$N$386*(1+rvanilla08)^0.5)/A2stdlife)) -> 0 | AZ138: =IF(A2stdlife="n/a","n/a",IF(AZ$3>(A2stdlife+$E138),('PTRM input'!$N$386*(1+rvanilla08)^0.5)-SUM($N138:AY138),('PTRM input'!$N$386*(1+rvanilla08)^0.5)/A2stdlife)) -> 0 | BA138: =IF(A2stdlife="n/a","n/a",IF(BA$3>(A2stdlife+$E138),('PTRM input'!$N$386*(1+rvanilla08)^0.5)-SUM($N138:AZ138),('PTRM input'!$N$386*(1+rvanilla08)^0.5)/A2stdlife)) -> 0 | BB138: =IF(A2stdlife="n/a","n/a",IF(BB$3>(A2stdlife+$E138),('PTRM input'!$N$386*(1+rvanilla08)^0.5)-SUM($N138:BA138),('PTRM input'!$N$386*(1+rvanilla08)^0.5)/A2stdlife)) -> 0 | BC138: =IF(A2stdlife="n/a","n/a",IF(BC$3>(A2stdlife+$E138),('PTRM input'!$N$386*(1+rvanilla08)^0.5)-SUM($N138:BB138),('PTRM input'!$N$386*(1+rvanilla08)^0.5)/A2stdlife)) -> 0 | BD138: =IF(A2stdlife="n/a","n/a",IF(BD$3>(A2stdlife+$E138),('PTRM input'!$N$386*(1+rvanilla08)^0.5)-SUM($N138:BC138),('PTRM input'!$N$386*(1+rvanilla08)^0.5)/A2stdlife)) -> 0 | BE138: =IF(A2stdlife="n/a","n/a",IF(BE$3>(A2stdlife+$E138),('PTRM input'!$N$386*(1+rvanilla08)^0.5)-SUM($N138:BD138),('PTRM input'!$N$386*(1+rvanilla08)^0.5)/A2stdlife)) -> 0 | BF138: =IF(A2stdlife="n/a","n/a",IF(BF$3>(A2stdlife+$E138),('PTRM input'!$N$386*(1+rvanilla08)^0.5)-SUM($N138:BE138),('PTRM input'!$N$386*(1+rvanilla08)^0.5)/A2stdlife)) -> 0 | BG138: =IF(A2stdlife="n/a","n/a",IF(BG$3>(A2stdlife+$E138),('PTRM input'!$N$386*(1+rvanilla08)^0.5)-SUM($N138:BF138),('PTRM input'!$N$386*(1+rvanilla08)^0.5)/A2stdlife)) -> 0 | BH138: =IF(A2stdlife="n/a","n/a",IF(BH$3>(A2stdlife+$E138),('PTRM input'!$N$386*(1+rvanilla08)^0.5)-SUM($N138:BG138),('PTRM input'!$N$386*(1+rvanilla08)^0.5)/A2stdlife)) -> 0 | BI138: =IF(A2stdlife="n/a","n/a",IF(BI$3>(A2stdlife+$E138),('PTRM input'!$N$386*(1+rvanilla08)^0.5)-SUM($N138:BH138),('PTRM input'!$N$386*(1+rvanilla08)^0.5)/A2stdlife)) -> 0
E139: 9 | P139: =IF(A2stdlife="n/a","n/a",IF(P$3>(A2stdlife+$E139),('PTRM input'!$O$386*(1+rvanilla09)^0.5)-SUM($O139:O139),('PTRM input'!$O$386*(1+rvanilla09)^0.5)/A2stdlife)) -> 0 | Q139: =IF(A2stdlife="n/a","n/a",IF(Q$3>(A2stdlife+$E139),('PTRM input'!$O$386*(1+rvanilla09)^0.5)-SUM($O139:P139),('PTRM input'!$O$386*(1+rvanilla09)^0.5)/A2stdlife)) -> 0 | R139: =IF(A2stdlife="n/a","n/a",IF(R$3>(A2stdlife+$E139),('PTRM input'!$O$386*(1+rvanilla09)^0.5)-SUM($O139:Q139),('PTRM input'!$O$386*(1+rvanilla09)^0.5)/A2stdlife)) -> 0 | S139: =IF(A2stdlife="n/a","n/a",IF(S$3>(A2stdlife+$E139),('PTRM input'!$O$386*(1+rvanilla09)^0.5)-SUM($O139:R139),('PTRM input'!$O$386*(1+rvanilla09)^0.5)/A2stdlife)) -> 0 | T139: =IF(A2stdlife="n/a","n/a",IF(T$3>(A2stdlife+$E139),('PTRM input'!$O$386*(1+rvanilla09)^0.5)-SUM($O139:S139),('PTRM input'!$O$386*(1+rvanilla09)^0.5)/A2stdlife)) -> 0 | U139: =IF(A2stdlife="n/a","n/a",IF(U$3>(A2stdlife+$E139),('PTRM input'!$O$386*(1+rvanilla09)^0.5)-SUM($O139:T139),('PTRM input'!$O$386*(1+rvanilla09)^0.5)/A2stdlife)) -> 0 | V139: =IF(A2stdlife="n/a","n/a",IF(V$3>(A2stdlife+$E139),('PTRM input'!$O$386*(1+rvanilla09)^0.5)-SUM($O139:U139),('PTRM input'!$O$386*(1+rvanilla09)^0.5)/A2stdlife)) -> 0 | W139: =IF(A2stdlife="n/a","n/a",IF(W$3>(A2stdlife+$E139),('PTRM input'!$O$386*(1+rvanilla09)^0.5)-SUM($O139:V139),('PTRM input'!$O$386*(1+rvanilla09)^0.5)/A2stdlife)) -> 0 | X139: =IF(A2stdlife="n/a","n/a",IF(X$3>(A2stdlife+$E139),('PTRM input'!$O$386*(1+rvanilla09)^0.5)-SUM($O139:W139),('PTRM input'!$O$386*(1+rvanilla09)^0.5)/A2stdlife)) -> 0 | Y139: =IF(A2stdlife="n/a","n/a",IF(Y$3>(A2stdlife+$E139),('PTRM input'!$O$386*(1+rvanilla09)^0.5)-SUM($O139:X139),('PTRM input'!$O$386*(1+rvanilla09)^0.5)/A2stdlife)) -> 0 | Z139: =IF(A2stdlife="n/a","n/a",IF(Z$3>(A2stdlife+$E139),('PTRM input'!$O$386*(1+rvanilla09)^0.5)-SUM($O139:Y139),('PTRM input'!$O$386*(1+rvanilla09)^0.5)/A2stdlife)) -> 0 | AA139: =IF(A2stdlife="n/a","n/a",IF(AA$3>(A2stdlife+$E139),('PTRM input'!$O$386*(1+rvanilla09)^0.5)-SUM($O139:Z139),('PTRM input'!$O$386*(1+rvanilla09)^0.5)/A2stdlife)) -> 0 | AB139: =IF(A2stdlife="n/a","n/a",IF(AB$3>(A2stdlife+$E139),('PTRM input'!$O$386*(1+rvanilla09)^0.5)-SUM($O139:AA139),('PTRM input'!$O$386*(1+rvanilla09)^0.5)/A2stdlife)) -> 0 | AC139: =IF(A2stdlife="n/a","n/a",IF(AC$3>(A2stdlife+$E139),('PTRM input'!$O$386*(1+rvanilla09)^0.5)-SUM($O139:AB139),('PTRM input'!$O$386*(1+rvanilla09)^0.5)/A2stdlife)) -> 0 | AD139: =IF(A2stdlife="n/a","n/a",IF(AD$3>(A2stdlife+$E139),('PTRM input'!$O$386*(1+rvanilla09)^0.5)-SUM($O139:AC139),('PTRM input'!$O$386*(1+rvanilla09)^0.5)/A2stdlife)) -> 0 | AE139: =IF(A2stdlife="n/a","n/a",IF(AE$3>(A2stdlife+$E139),('PTRM input'!$O$386*(1+rvanilla09)^0.5)-SUM($O139:AD139),('PTRM input'!$O$386*(1+rvanilla09)^0.5)/A2stdlife)) -> 0 | AF139: =IF(A2stdlife="n/a","n/a",IF(AF$3>(A2stdlife+$E139),('PTRM input'!$O$386*(1+rvanilla09)^0.5)-SUM($O139:AE139),('PTRM input'!$O$386*(1+rvanilla09)^0.5)/A2stdlife)) -> 0 | AG139: =IF(A2stdlife="n/a","n/a",IF(AG$3>(A2stdlife+$E139),('PTRM input'!$O$386*(1+rvanilla09)^0.5)-SUM($O139:AF139),('PTRM input'!$O$386*(1+rvanilla09)^0.5)/A2stdlife)) -> 0 | AH139: =IF(A2stdlife="n/a","n/a",IF(AH$3>(A2stdlife+$E139),('PTRM input'!$O$386*(1+rvanilla09)^0.5)-SUM($O139:AG139),('PTRM input'!$O$386*(1+rvanilla09)^0.5)/A2stdlife)) -> 0 | AI139: =IF(A2stdlife="n/a","n/a",IF(AI$3>(A2stdlife+$E139),('PTRM input'!$O$386*(1+rvanilla09)^0.5)-SUM($O139:AH139),('PTRM input'!$O$386*(1+rvanilla09)^0.5)/A2stdlife)) -> 0 | AJ139: =IF(A2stdlife="n/a","n/a",IF(AJ$3>(A2stdlife+$E139),('PTRM input'!$O$386*(1+rvanilla09)^0.5)-SUM($O139:AI139),('PTRM input'!$O$386*(1+rvanilla09)^0.5)/A2stdlife)) -> 0 | AK139: =IF(A2stdlife="n/a","n/a",IF(AK$3>(A2stdlife+$E139),('PTRM input'!$O$386*(1+rvanilla09)^0.5)-SUM($O139:AJ139),('PTRM input'!$O$386*(1+rvanilla09)^0.5)/A2stdlife)) -> 0 | AL139: =IF(A2stdlife="n/a","n/a",IF(AL$3>(A2stdlife+$E139),('PTRM input'!$O$386*(1+rvanilla09)^0.5)-SUM($O139:AK139),('PTRM input'!$O$386*(1+rvanilla09)^0.5)/A2stdlife)) -> 0 | AM139: =IF(A2stdlife="n/a","n/a",IF(AM$3>(A2stdlife+$E139),('PTRM input'!$O$386*(1+rvanilla09)^0.5)-SUM($O139:AL139),('PTRM input'!$O$386*(1+rvanilla09)^0.5)/A2stdlife)) -> 0 | AN139: =IF(A2stdlife="n/a","n/a",IF(AN$3>(A2stdlife+$E139),('PTRM input'!$O$386*(1+rvanilla09)^0.5)-SUM($O139:AM139),('PTRM input'!$O$386*(1+rvanilla09)^0.5)/A2stdlife)) -> 0 | AO139: =IF(A2stdlife="n/a","n/a",IF(AO$3>(A2stdlife+$E139),('PTRM input'!$O$386*(1+rvanilla09)^0.5)-SUM($O139:AN139),('PTRM input'!$O$386*(1+rvanilla09)^0.5)/A2stdlife)) -> 0 | AP139: =IF(A2stdlife="n/a","n/a",IF(AP$3>(A2stdlife+$E139),('PTRM input'!$O$386*(1+rvanilla09)^0.5)-SUM($O139:AO139),('PTRM input'!$O$386*(1+rvanilla09)^0.5)/A2stdlife)) -> 0 | AQ139: =IF(A2stdlife="n/a","n/a",IF(AQ$3>(A2stdlife+$E139),('PTRM input'!$O$386*(1+rvanilla09)^0.5)-SUM($O139:AP139),('PTRM input'!$O$386*(1+rvanilla09)^0.5)/A2stdlife)) -> 0 | AR139: =IF(A2stdlife="n/a","n/a",IF(AR$3>(A2stdlife+$E139),('PTRM input'!$O$386*(1+rvanilla09)^0.5)-SUM($O139:AQ139),('PTRM input'!$O$386*(1+rvanilla09)^0.5)/A2stdlife)) -> 0 | AS139: =IF(A2stdlife="n/a","n/a",IF(AS$3>(A2stdlife+$E139),('PTRM input'!$O$386*(1+rvanilla09)^0.5)-SUM($O139:AR139),('PTRM input'!$O$386*(1+rvanilla09)^0.5)/A2stdlife)) -> 0 | AT139: =IF(A2stdlife="n/a","n/a",IF(AT$3>(A2stdlife+$E139),('PTRM input'!$O$386*(1+rvanilla09)^0.5)-SUM($O139:AS139),('PTRM input'!$O$386*(1+rvanilla09)^0.5)/A2stdlife)) -> 0 | AU139: =IF(A2stdlife="n/a","n/a",IF(AU$3>(A2stdlife+$E139),('PTRM input'!$O$386*(1+rvanilla09)^0.5)-SUM($O139:AT139),('PTRM input'!$O$386*(1+rvanilla09)^0.5)/A2stdlife)) -> 0 | AV139: =IF(A2stdlife="n/a","n/a",IF(AV$3>(A2stdlife+$E139),('PTRM input'!$O$386*(1+rvanilla09)^0.5)-SUM($O139:AU139),('PTRM input'!$O$386*(1+rvanilla09)^0.5)/A2stdlife)) -> 0 | AW139: =IF(A2stdlife="n/a","n/a",IF(AW$3>(A2stdlife+$E139),('PTRM input'!$O$386*(1+rvanilla09)^0.5)-SUM($O139:AV139),('PTRM input'!$O$386*(1+rvanilla09)^0.5)/A2stdlife)) -> 0 | AX139: =IF(A2stdlife="n/a","n/a",IF(AX$3>(A2stdlife+$E139),('PTRM input'!$O$386*(1+rvanilla09)^0.5)-SUM($O139:AW139),('PTRM input'!$O$386*(1+rvanilla09)^0.5)/A2stdlife)) -> 0 | AY139: =IF(A2stdlife="n/a","n/a",IF(AY$3>(A2stdlife+$E139),('PTRM input'!$O$386*(1+rvanilla09)^0.5)-SUM($O139:AX139),('PTRM input'!$O$386*(1+rvanilla09)^0.5)/A2stdlife)) -> 0 | AZ139: =IF(A2stdlife="n/a","n/a",IF(AZ$3>(A2stdlife+$E139),('PTRM input'!$O$386*(1+rvanilla09)^0.5)-SUM($O139:AY139),('PTRM input'!$O$386*(1+rvanilla09)^0.5)/A2stdlife)) -> 0 | BA139: =IF(A2stdlife="n/a","n/a",IF(BA$3>(A2stdlife+$E139),('PTRM input'!$O$386*(1+rvanilla09)^0.5)-SUM($O139:AZ139),('PTRM input'!$O$386*(1+rvanilla09)^0.5)/A2stdlife)) -> 0 | BB139: =IF(A2stdlife="n/a","n/a",IF(BB$3>(A2stdlife+$E139),('PTRM input'!$O$386*(1+rvanilla09)^0.5)-SUM($O139:BA139),('PTRM input'!$O$386*(1+rvanilla09)^0.5)/A2stdlife)) -> 0 | BC139: =IF(A2stdlife="n/a","n/a",IF(BC$3>(A2stdlife+$E139),('PTRM input'!$O$386*(1+rvanilla09)^0.5)-SUM($O139:BB139),('PTRM input'!$O$386*(1+rvanilla09)^0.5)/A2stdlife)) -> 0 | BD139: =IF(A2stdlife="n/a","n/a",IF(BD$3>(A2stdlife+$E139),('PTRM input'!$O$386*(1+rvanilla09)^0.5)-SUM($O139:BC139),('PTRM input'!$O$386*(1+rvanilla09)^0.5)/A2stdlife)) -> 0 | BE139: =IF(A2stdlife="n/a","n/a",IF(BE$3>(A2stdlife+$E139),('PTRM input'!$O$386*(1+rvanilla09)^0.5)-SUM($O139:BD139),('PTRM input'!$O$386*(1+rvanilla09)^0.5)/A2stdlife)) -> 0 | BF139: =IF(A2stdlife="n/a","n/a",IF(BF$3>(A2stdlife+$E139),('PTRM input'!$O$386*(1+rvanilla09)^0.5)-SUM($O139:BE139),('PTRM input'!$O$386*(1+rvanilla09)^0.5)/A2stdlife)) -> 0 | BG139: =IF(A2stdlife="n/a","n/a",IF(BG$3>(A2stdlife+$E139),('PTRM input'!$O$386*(1+rvanilla09)^0.5)-SUM($O139:BF139),('PTRM input'!$O$386*(1+rvanilla09)^0.5)/A2stdlife)) -> 0 | BH139: =IF(A2stdlife="n/a","n/a",IF(BH$3>(A2stdlife+$E139),('PTRM input'!$O$386*(1+rvanilla09)^0.5)-SUM($O139:BG139),('PTRM input'!$O$386*(1+rvanilla09)^0.5)/A2stdlife)) -> 0 | BI139: =IF(A2stdlife="n/a","n/a",IF(BI$3>(A2stdlife+$E139),('PTRM input'!$O$386*(1+rvanilla09)^0.5)-SUM($O139:BH139),('PTRM input'!$O$386*(1+rvanilla09)^0.5)/A2stdlife)) -> 0
E140: 10 | Q140: =IF(A2stdlife="n/a","n/a",IF(Q$3>(A2stdlife+$E140),('PTRM input'!$P$386*(1+rvanilla10)^0.5)-SUM($P140:P140),('PTRM input'!$P$386*(1+rvanilla10)^0.5)/A2stdlife)) -> 0 | R140: =IF(A2stdlife="n/a","n/a",IF(R$3>(A2stdlife+$E140),('PTRM input'!$P$386*(1+rvanilla10)^0.5)-SUM($P140:Q140),('PTRM input'!$P$386*(1+rvanilla10)^0.5)/A2stdlife)) -> 0 | S140: =IF(A2stdlife="n/a","n/a",IF(S$3>(A2stdlife+$E140),('PTRM input'!$P$386*(1+rvanilla10)^0.5)-SUM($P140:R140),('PTRM input'!$P$386*(1+rvanilla10)^0.5)/A2stdlife)) -> 0 | T140: =IF(A2stdlife="n/a","n/a",IF(T$3>(A2stdlife+$E140),('PTRM input'!$P$386*(1+rvanilla10)^0.5)-SUM($P140:S140),('PTRM input'!$P$386*(1+rvanilla10)^0.5)/A2stdlife)) -> 0 | U140: =IF(A2stdlife="n/a","n/a",IF(U$3>(A2stdlife+$E140),('PTRM input'!$P$386*(1+rvanilla10)^0.5)-SUM($P140:T140),('PTRM input'!$P$386*(1+rvanilla10)^0.5)/A2stdlife)) -> 0 | V140: =IF(A2stdlife="n/a","n/a",IF(V$3>(A2stdlife+$E140),('PTRM input'!$P$386*(1+rvanilla10)^0.5)-SUM($P140:U140),('PTRM input'!$P$386*(1+rvanilla10)^0.5)/A2stdlife)) -> 0 | W140: =IF(A2stdlife="n/a","n/a",IF(W$3>(A2stdlife+$E140),('PTRM input'!$P$386*(1+rvanilla10)^0.5)-SUM($P140:V140),('PTRM input'!$P$386*(1+rvanilla10)^0.5)/A2stdlife)) -> 0 | X140: =IF(A2stdlife="n/a","n/a",IF(X$3>(A2stdlife+$E140),('PTRM input'!$P$386*(1+rvanilla10)^0.5)-SUM($P140:W140),('PTRM input'!$P$386*(1+rvanilla10)^0.5)/A2stdlife)) -> 0 | Y140: =IF(A2stdlife="n/a","n/a",IF(Y$3>(A2stdlife+$E140),('PTRM input'!$P$386*(1+rvanilla10)^0.5)-SUM($P140:X140),('PTRM input'!$P$386*(1+rvanilla10)^0.5)/A2stdlife)) -> 0 | Z140: =IF(A2stdlife="n/a","n/a",IF(Z$3>(A2stdlife+$E140),('PTRM input'!$P$386*(1+rvanilla10)^0.5)-SUM($P140:Y140),('PTRM input'!$P$386*(1+rvanilla10)^0.5)/A2stdlife)) -> 0 | AA140: =IF(A2stdlife="n/a","n/a",IF(AA$3>(A2stdlife+$E140),('PTRM input'!$P$386*(1+rvanilla10)^0.5)-SUM($P140:Z140),('PTRM input'!$P$386*(1+rvanilla10)^0.5)/A2stdlife)) -> 0 | AB140: =IF(A2stdlife="n/a","n/a",IF(AB$3>(A2stdlife+$E140),('PTRM input'!$P$386*(1+rvanilla10)^0.5)-SUM($P140:AA140),('PTRM input'!$P$386*(1+rvanilla10)^0.5)/A2stdlife)) -> 0 | AC140: =IF(A2stdlife="n/a","n/a",IF(AC$3>(A2stdlife+$E140),('PTRM input'!$P$386*(1+rvanilla10)^0.5)-SUM($P140:AB140),('PTRM input'!$P$386*(1+rvanilla10)^0.5)/A2stdlife)) -> 0 | AD140: =IF(A2stdlife="n/a","n/a",IF(AD$3>(A2stdlife+$E140),('PTRM input'!$P$386*(1+rvanilla10)^0.5)-SUM($P140:AC140),('PTRM input'!$P$386*(1+rvanilla10)^0.5)/A2stdlife)) -> 0 | AE140: =IF(A2stdlife="n/a","n/a",IF(AE$3>(A2stdlife+$E140),('PTRM input'!$P$386*(1+rvanilla10)^0.5)-SUM($P140:AD140),('PTRM input'!$P$386*(1+rvanilla10)^0.5)/A2stdlife)) -> 0 | AF140: =IF(A2stdlife="n/a","n/a",IF(AF$3>(A2stdlife+$E140),('PTRM input'!$P$386*(1+rvanilla10)^0.5)-SUM($P140:AE140),('PTRM input'!$P$386*(1+rvanilla10)^0.5)/A2stdlife)) -> 0 | AG140: =IF(A2stdlife="n/a","n/a",IF(AG$3>(A2stdlife+$E140),('PTRM input'!$P$386*(1+rvanilla10)^0.5)-SUM($P140:AF140),('PTRM input'!$P$386*(1+rvanilla10)^0.5)/A2stdlife)) -> 0 | AH140: =IF(A2stdlife="n/a","n/a",IF(AH$3>(A2stdlife+$E140),('PTRM input'!$P$386*(1+rvanilla10)^0.5)-SUM($P140:AG140),('PTRM input'!$P$386*(1+rvanilla10)^0.5)/A2stdlife)) -> 0 | AI140: =IF(A2stdlife="n/a","n/a",IF(AI$3>(A2stdlife+$E140),('PTRM input'!$P$386*(1+rvanilla10)^0.5)-SUM($P140:AH140),('PTRM input'!$P$386*(1+rvanilla10)^0.5)/A2stdlife)) -> 0 | AJ140: =IF(A2stdlife="n/a","n/a",IF(AJ$3>(A2stdlife+$E140),('PTRM input'!$P$386*(1+rvanilla10)^0.5)-SUM($P140:AI140),('PTRM input'!$P$386*(1+rvanilla10)^0.5)/A2stdlife)) -> 0 | AK140: =IF(A2stdlife="n/a","n/a",IF(AK$3>(A2stdlife+$E140),('PTRM input'!$P$386*(1+rvanilla10)^0.5)-SUM($P140:AJ140),('PTRM input'!$P$386*(1+rvanilla10)^0.5)/A2stdlife)) -> 0 | AL140: =IF(A2stdlife="n/a","n/a",IF(AL$3>(A2stdlife+$E140),('PTRM input'!$P$386*(1+rvanilla10)^0.5)-SUM($P140:AK140),('PTRM input'!$P$386*(1+rvanilla10)^0.5)/A2stdlife)) -> 0 | AM140: =IF(A2stdlife="n/a","n/a",IF(AM$3>(A2stdlife+$E140),('PTRM input'!$P$386*(1+rvanilla10)^0.5)-SUM($P140:AL140),('PTRM input'!$P$386*(1+rvanilla10)^0.5)/A2stdlife)) -> 0 | AN140: =IF(A2stdlife="n/a","n/a",IF(AN$3>(A2stdlife+$E140),('PTRM input'!$P$386*(1+rvanilla10)^0.5)-SUM($P140:AM140),('PTRM input'!$P$386*(1+rvanilla10)^0.5)/A2stdlife)) -> 0 | AO140: =IF(A2stdlife="n/a","n/a",IF(AO$3>(A2stdlife+$E140),('PTRM input'!$P$386*(1+rvanilla10)^0.5)-SUM($P140:AN140),('PTRM input'!$P$386*(1+rvanilla10)^0.5)/A2stdlife)) -> 0 | AP140: =IF(A2stdlife="n/a","n/a",IF(AP$3>(A2stdlife+$E140),('PTRM input'!$P$386*(1+rvanilla10)^0.5)-SUM($P140:AO140),('PTRM input'!$P$386*(1+rvanilla10)^0.5)/A2stdlife)) -> 0 | AQ140: =IF(A2stdlife="n/a","n/a",IF(AQ$3>(A2stdlife+$E140),('PTRM input'!$P$386*(1+rvanilla10)^0.5)-SUM($P140:AP140),('PTRM input'!$P$386*(1+rvanilla10)^0.5)/A2stdlife)) -> 0 | AR140: =IF(A2stdlife="n/a","n/a",IF(AR$3>(A2stdlife+$E140),('PTRM input'!$P$386*(1+rvanilla10)^0.5)-SUM($P140:AQ140),('PTRM input'!$P$386*(1+rvanilla10)^0.5)/A2stdlife)) -> 0 | AS140: =IF(A2stdlife="n/a","n/a",IF(AS$3>(A2stdlife+$E140),('PTRM input'!$P$386*(1+rvanilla10)^0.5)-SUM($P140:AR140),('PTRM input'!$P$386*(1+rvanilla10)^0.5)/A2stdlife)) -> 0 | AT140: =IF(A2stdlife="n/a","n/a",IF(AT$3>(A2stdlife+$E140),('PTRM input'!$P$386*(1+rvanilla10)^0.5)-SUM($P140:AS140),('PTRM input'!$P$386*(1+rvanilla10)^0.5)/A2stdlife)) -> 0 | AU140: =IF(A2stdlife="n/a","n/a",IF(AU$3>(A2stdlife+$E140),('PTRM input'!$P$386*(1+rvanilla10)^0.5)-SUM($P140:AT140),('PTRM input'!$P$386*(1+rvanilla10)^0.5)/A2stdlife)) -> 0 | AV140: =IF(A2stdlife="n/a","n/a",IF(AV$3>(A2stdlife+$E140),('PTRM input'!$P$386*(1+rvanilla10)^0.5)-SUM($P140:AU140),('PTRM input'!$P$386*(1+rvanilla10)^0.5)/A2stdlife)) -> 0 | AW140: =IF(A2stdlife="n/a","n/a",IF(AW$3>(A2stdlife+$E140),('PTRM input'!$P$386*(1+rvanilla10)^0.5)-SUM($P140:AV140),('PTRM input'!$P$386*(1+rvanilla10)^0.5)/A2stdlife)) -> 0 | AX140: =IF(A2stdlife="n/a","n/a",IF(AX$3>(A2stdlife+$E140),('PTRM input'!$P$386*(1+rvanilla10)^0.5)-SUM($P140:AW140),('PTRM input'!$P$386*(1+rvanilla10)^0.5)/A2stdlife)) -> 0 | AY140: =IF(A2stdlife="n/a","n/a",IF(AY$3>(A2stdlife+$E140),('PTRM input'!$P$386*(1+rvanilla10)^0.5)-SUM($P140:AX140),('PTRM input'!$P$386*(1+rvanilla10)^0.5)/A2stdlife)) -> 0 | AZ140: =IF(A2stdlife="n/a","n/a",IF(AZ$3>(A2stdlife+$E140),('PTRM input'!$P$386*(1+rvanilla10)^0.5)-SUM($P140:AY140),('PTRM input'!$P$386*(1+rvanilla10)^0.5)/A2stdlife)) -> 0 | BA140: =IF(A2stdlife="n/a","n/a",IF(BA$3>(A2stdlife+$E140),('PTRM input'!$P$386*(1+rvanilla10)^0.5)-SUM($P140:AZ140),('PTRM input'!$P$386*(1+rvanilla10)^0.5)/A2stdlife)) -> 0 | BB140: =IF(A2stdlife="n/a","n/a",IF(BB$3>(A2stdlife+$E140),('PTRM input'!$P$386*(1+rvanilla10)^0.5)-SUM($P140:BA140),('PTRM input'!$P$386*(1+rvanilla10)^0.5)/A2stdlife)) -> 0 | BC140: =IF(A2stdlife="n/a","n/a",IF(BC$3>(A2stdlife+$E140),('PTRM input'!$P$386*(1+rvanilla10)^0.5)-SUM($P140:BB140),('PTRM input'!$P$386*(1+rvanilla10)^0.5)/A2stdlife)) -> 0 | BD140: =IF(A2stdlife="n/a","n/a",IF(BD$3>(A2stdlife+$E140),('PTRM input'!$P$386*(1+rvanilla10)^0.5)-SUM($P140:BC140),('PTRM input'!$P$386*(1+rvanilla10)^0.5)/A2stdlife)) -> 0 | BE140: =IF(A2stdlife="n/a","n/a",IF(BE$3>(A2stdlife+$E140),('PTRM input'!$P$386*(1+rvanilla10)^0.5)-SUM($P140:BD140),('PTRM input'!$P$386*(1+rvanilla10)^0.5)/A2stdlife)) -> 0 | BF140: =IF(A2stdlife="n/a","n/a",IF(BF$3>(A2stdlife+$E140),('PTRM input'!$P$386*(1+rvanilla10)^0.5)-SUM($P140:BE140),('PTRM input'!$P$386*(1+rvanilla10)^0.5)/A2stdlife)) -> 0 | BG140: =IF(A2stdlife="n/a","n/a",IF(BG$3>(A2stdlife+$E140),('PTRM input'!$P$386*(1+rvanilla10)^0.5)-SUM($P140:BF140),('PTRM input'!$P$386*(1+rvanilla10)^0.5)/A2stdlife)) -> 0 | BH140: =IF(A2stdlife="n/a","n/a",IF(BH$3>(A2stdlife+$E140),('PTRM input'!$P$386*(1+rvanilla10)^0.5)-SUM($P140:BG140),('PTRM input'!$P$386*(1+rvanilla10)^0.5)/A2stdlife)) -> 0 | BI140: =IF(A2stdlife="n/a","n/a",IF(BI$3>(A2stdlife+$E140),('PTRM input'!$P$386*(1+rvanilla10)^0.5)-SUM($P140:BH140),('PTRM input'!$P$386*(1+rvanilla10)^0.5)/A2stdlife)) -> 0
C141: =Asset2 -> Underground Cables (pre 2004-05) | G141: =SUM(G129:G140) -> 8.796615362 | H141: =SUM(H129:H140) -> 8.796615362 | I141: 8.796615362 | J141: 8.796615362 | K141: 8.796615362 | L141: =SUM(L129:L140) -> 8.796615362 | M141: 8.796615362 | N141: 8.796615362 | O141: 8.796615362 | P141: 8.796615362 | Q141: 8.796615362 | R141: 8.796615362 | S141: 8.796615362 | T141: 8.796615362 | U141: 8.796615362 | V141: 8.796615362 | W141: 2.665374455 | X141: 0 | Y141: 0 | Z141: 0 | AA141: 0 | AB141: 0 | AC141: 0 | AD141: 0 | AE141: 0 | AF141: 0 | AG141: 0 | AH141: 0 | AI141: 0 | AJ141: 0 | AK141: 0 | AL141: 0 | AM141: 0 | AN141: 0 | AO141: 0 | AP141: 0 | AQ141: 0 | AR141: 0 | AS141: 0 | AT141: 0 | AU141: 0 | AV141: 0 | AW141: 0 | AX141: 0 | AY141: 0 | AZ141: 0 | BA141: 0 | BB141: 0 | BC141: 0 | BD141: 0 | BE141: 0 | BF141: 0 | BG141: 0 | BH141: 0 | BI141: 0
B142: =C154 -> Substations including Buildings (pre 2004-05) | D142: Initial Asset Base | G142: =IF(('PTRM input'!$E$515='PTRM input'!$G$514),IF(G$3>A3remlife,A3acvalue-SUM(F142:$F142),IF(A3remlife="N/A","n/a",A3acvalue/A3remlife)),'PTRM input'!G$522) -> 71.16900849 | H142: =IF(('PTRM input'!$E$515='PTRM input'!$G$514),IF(H$3>A3remlife,A3acvalue-SUM($F142:G142),IF(A3remlife="N/A","n/a",A3acvalue/A3remlife)),'PTRM input'!H$522) -> 71.16900849 | I142: =IF(('PTRM input'!$E$515='PTRM input'!$G$514),IF(I$3>A3remlife,A3acvalue-SUM($F142:H142),IF(A3remlife="N/A","n/a",A3acvalue/A3remlife)),'PTRM input'!I$522) -> 33.80527903 | J142: =IF(('PTRM input'!$E$515='PTRM input'!$G$514),IF(J$3>A3remlife,A3acvalue-SUM($F142:I142),IF(A3remlife="N/A","n/a",A3acvalue/A3remlife)),'PTRM input'!J$522) -> 0 | K142: =IF(('PTRM input'!$E$515='PTRM input'!$G$514),IF(K$3>A3remlife,A3acvalue-SUM($F142:J142),IF(A3remlife="N/A","n/a",A3acvalue/A3remlife)),'PTRM input'!K$522) -> 0 | L142: =IF(('PTRM input'!$E$515='PTRM input'!$G$514),IF(L$3>A3remlife,A3acvalue-SUM($F142:K142),IF(A3remlife="N/A","n/a",A3acvalue/A3remlife)),'PTRM input'!L$522) -> 0 | M142: =IF(('PTRM input'!$E$515='PTRM input'!$G$514),IF(M$3>A3remlife,A3acvalue-SUM($F142:L142),IF(A3remlife="N/A","n/a",A3acvalue/A3remlife)),'PTRM input'!M$522) -> 0 | N142: =IF(('PTRM input'!$E$515='PTRM input'!$G$514),IF(N$3>A3remlife,A3acvalue-SUM($F142:M142),IF(A3remlife="N/A","n/a",A3acvalue/A3remlife)),'PTRM input'!N$522) -> 0 | O142: =IF(('PTRM input'!$E$515='PTRM input'!$G$514),IF(O$3>A3remlife,A3acvalue-SUM($F142:N142),IF(A3remlife="N/A","n/a",A3acvalue/A3remlife)),'PTRM input'!O$522) -> 0 | P142: =IF(('PTRM input'!$E$515='PTRM input'!$G$514),IF(P$3>A3remlife,A3acvalue-SUM($F142:O142),IF(A3remlife="N/A","n/a",A3acvalue/A3remlife)),'PTRM input'!P$522) -> 0 | Q142: =IF(('PTRM input'!$E$515='PTRM input'!$G$514),IF(Q$3>A3remlife,A3acvalue-SUM($F142:P142),IF(A3remlife="N/A","n/a",A3acvalue/A3remlife)),'PTRM input'!Q$522) -> 0 | R142: =IF(('PTRM input'!$E$515='PTRM input'!$G$514),IF(R$3>A3remlife,A3acvalue-SUM($F142:Q142),IF(A3remlife="N/A","n/a",A3acvalue/A3remlife)),'PTRM input'!R$522) -> 0 | S142: =IF(('PTRM input'!$E$515='PTRM input'!$G$514),IF(S$3>A3remlife,A3acvalue-SUM($F142:R142),IF(A3remlife="N/A","n/a",A3acvalue/A3remlife)),'PTRM input'!S$522) -> 0 | T142: =IF(('PTRM input'!$E$515='PTRM input'!$G$514),IF(T$3>A3remlife,A3acvalue-SUM($F142:S142),IF(A3remlife="N/A","n/a",A3acvalue/A3remlife)),'PTRM input'!T$522) -> 0 | U142: =IF(('PTRM input'!$E$515='PTRM input'!$G$514),IF(U$3>A3remlife,A3acvalue-SUM($F142:T142),IF(A3remlife="N/A","n/a",A3acvalue/A3remlife)),'PTRM input'!U$522) -> 0 | V142: =IF(('PTRM input'!$E$515='PTRM input'!$G$514),IF(V$3>A3remlife,A3acvalue-SUM($F142:U142),IF(A3remlife="N/A","n/a",A3acvalue/A3remlife)),'PTRM input'!V$522) -> 0 | W142: =IF(('PTRM input'!$E$515='PTRM input'!$G$514),IF(W$3>A3remlife,A3acvalue-SUM($F142:V142),IF(A3remlife="N/A","n/a",A3acvalue/A3remlife)),'PTRM input'!W$522) -> 0 | X142: =IF(('PTRM input'!$E$515='PTRM input'!$G$514),IF(X$3>A3remlife,A3acvalue-SUM($F142:W142),IF(A3remlife="N/A","n/a",A3acvalue/A3remlife)),'PTRM input'!X$522) -> 0 | Y142: =IF(('PTRM input'!$E$515='PTRM input'!$G$514),IF(Y$3>A3remlife,A3acvalue-SUM($F142:X142),IF(A3remlife="N/A","n/a",A3acvalue/A3remlife)),'PTRM input'!Y$522) -> 0 | Z142: =IF(('PTRM input'!$E$515='PTRM input'!$G$514),IF(Z$3>A3remlife,A3acvalue-SUM($F142:Y142),IF(A3remlife="N/A","n/a",A3acvalue/A3remlife)),'PTRM input'!Z$522) -> 0 | AA142: =IF(('PTRM input'!$E$515='PTRM input'!$G$514),IF(AA$3>A3remlife,A3acvalue-SUM($F142:Z142),IF(A3remlife="N/A","n/a",A3acvalue/A3remlife)),'PTRM input'!AA$522) -> 0 | AB142: =IF(('PTRM input'!$E$515='PTRM input'!$G$514),IF(AB$3>A3remlife,A3acvalue-SUM($F142:AA142),IF(A3remlife="N/A","n/a",A3acvalue/A3remlife)),'PTRM input'!AB$522) -> 0 | AC142: =IF(('PTRM input'!$E$515='PTRM input'!$G$514),IF(AC$3>A3remlife,A3acvalue-SUM($F142:AB142),IF(A3remlife="N/A","n/a",A3acvalue/A3remlife)),'PTRM input'!AC$522) -> 0 | AD142: =IF(('PTRM input'!$E$515='PTRM input'!$G$514),IF(AD$3>A3remlife,A3acvalue-SUM($F142:AC142),IF(A3remlife="N/A","n/a",A3acvalue/A3remlife)),'PTRM input'!AD$522) -> 0 | AE142: =IF(('PTRM input'!$E$515='PTRM input'!$G$514),IF(AE$3>A3remlife,A3acvalue-SUM($F142:AD142),IF(A3remlife="N/A","n/a",A3acvalue/A3remlife)),'PTRM input'!AE$522) -> 0 | AF142: =IF(('PTRM input'!$E$515='PTRM input'!$G$514),IF(AF$3>A3remlife,A3acvalue-SUM($F142:AE142),IF(A3remlife="N/A","n/a",A3acvalue/A3remlife)),'PTRM input'!AF$522) -> 0 | AG142: =IF(('PTRM input'!$E$515='PTRM input'!$G$514),IF(AG$3>A3remlife,A3acvalue-SUM($F142:AF142),IF(A3remlife="N/A","n/a",A3acvalue/A3remlife)),'PTRM input'!AG$522) -> 0 | AH142: =IF(('PTRM input'!$E$515='PTRM input'!$G$514),IF(AH$3>A3remlife,A3acvalue-SUM($F142:AG142),IF(A3remlife="N/A","n/a",A3acvalue/A3remlife)),'PTRM input'!AH$522) -> 0 | AI142: =IF(('PTRM input'!$E$515='PTRM input'!$G$514),IF(AI$3>A3remlife,A3acvalue-SUM($F142:AH142),IF(A3remlife="N/A","n/a",A3acvalue/A3remlife)),'PTRM input'!AI$522) -> 0 | AJ142: =IF(('PTRM input'!$E$515='PTRM input'!$G$514),IF(AJ$3>A3remlife,A3acvalue-SUM($F142:AI142),IF(A3remlife="N/A","n/a",A3acvalue/A3remlife)),'PTRM input'!AJ$522) -> 0 | AK142: =IF(('PTRM input'!$E$515='PTRM input'!$G$514),IF(AK$3>A3remlife,A3acvalue-SUM($F142:AJ142),IF(A3remlife="N/A","n/a",A3acvalue/A3remlife)),'PTRM input'!AK$522) -> 0 | AL142: =IF(('PTRM input'!$E$515='PTRM input'!$G$514),IF(AL$3>A3remlife,A3acvalue-SUM($F142:AK142),IF(A3remlife="N/A","n/a",A3acvalue/A3remlife)),'PTRM input'!AL$522) -> 0 | AM142: =IF(('PTRM input'!$E$515='PTRM input'!$G$514),IF(AM$3>A3remlife,A3acvalue-SUM($F142:AL142),IF(A3remlife="N/A","n/a",A3acvalue/A3remlife)),'PTRM input'!AM$522) -> 0 | AN142: =IF(('PTRM input'!$E$515='PTRM input'!$G$514),IF(AN$3>A3remlife,A3acvalue-SUM($F142:AM142),IF(A3remlife="N/A","n/a",A3acvalue/A3remlife)),'PTRM input'!AN$522) -> 0 | AO142: =IF(('PTRM input'!$E$515='PTRM input'!$G$514),IF(AO$3>A3remlife,A3acvalue-SUM($F142:AN142),IF(A3remlife="N/A","n/a",A3acvalue/A3remlife)),'PTRM input'!AO$522) -> 0 | AP142: =IF(('PTRM input'!$E$515='PTRM input'!$G$514),IF(AP$3>A3remlife,A3acvalue-SUM($F142:AO142),IF(A3remlife="N/A","n/a",A3acvalue/A3remlife)),'PTRM input'!AP$522) -> 0 | AQ142: =IF(('PTRM input'!$E$515='PTRM input'!$G$514),IF(AQ$3>A3remlife,A3acvalue-SUM($F142:AP142),IF(A3remlife="N/A","n/a",A3acvalue/A3remlife)),'PTRM input'!AQ$522) -> 0 | AR142: =IF(('PTRM input'!$E$515='PTRM input'!$G$514),IF(AR$3>A3remlife,A3acvalue-SUM($F142:AQ142),IF(A3remlife="N/A","n/a",A3acvalue/A3remlife)),'PTRM input'!AR$522) -> 0 | AS142: =IF(('PTRM input'!$E$515='PTRM input'!$G$514),IF(AS$3>A3remlife,A3acvalue-SUM($F142:AR142),IF(A3remlife="N/A","n/a",A3acvalue/A3remlife)),'PTRM input'!AS$522) -> 0 | AT142: =IF(('PTRM input'!$E$515='PTRM input'!$G$514),IF(AT$3>A3remlife,A3acvalue-SUM($F142:AS142),IF(A3remlife="N/A","n/a",A3acvalue/A3remlife)),'PTRM input'!AT$522) -> 0 | AU142: =IF(('PTRM input'!$E$515='PTRM input'!$G$514),IF(AU$3>A3remlife,A3acvalue-SUM($F142:AT142),IF(A3remlife="N/A","n/a",A3acvalue/A3remlife)),'PTRM input'!AU$522) -> 0 | AV142: =IF(('PTRM input'!$E$515='PTRM input'!$G$514),IF(AV$3>A3remlife,A3acvalue-SUM($F142:AU142),IF(A3remlife="N/A","n/a",A3acvalue/A3remlife)),'PTRM input'!AV$522) -> 0 | AW142: =IF(('PTRM input'!$E$515='PTRM input'!$G$514),IF(AW$3>A3remlife,A3acvalue-SUM($F142:AV142),IF(A3remlife="N/A","n/a",A3acvalue/A3remlife)),'PTRM input'!AW$522) -> 0 | AX142: =IF(('PTRM input'!$E$515='PTRM input'!$G$514),IF(AX$3>A3remlife,A3acvalue-SUM($F142:AW142),IF(A3remlife="N/A","n/a",A3acvalue/A3remlife)),'PTRM input'!AX$522) -> 0 | AY142: =IF(('PTRM input'!$E$515='PTRM input'!$G$514),IF(AY$3>A3remlife,A3acvalue-SUM($F142:AX142),IF(A3remlife="N/A","n/a",A3acvalue/A3remlife)),'PTRM input'!AY$522) -> 0 | AZ142: =IF(('PTRM input'!$E$515='PTRM input'!$G$514),IF(AZ$3>A3remlife,A3acvalue-SUM($F142:AY142),IF(A3remlife="N/A","n/a",A3acvalue/A3remlife)),'PTRM input'!AZ$522) -> 0 | BA142: =IF(('PTRM input'!$E$515='PTRM input'!$G$514),IF(BA$3>A3remlife,A3acvalue-SUM($F142:AZ142),IF(A3remlife="N/A","n/a",A3acvalue/A3remlife)),'PTRM input'!BA$522) -> 0 | BB142: =IF(('PTRM input'!$E$515='PTRM input'!$G$514),IF(BB$3>A3remlife,A3acvalue-SUM($F142:BA142),IF(A3remlife="N/A","n/a",A3acvalue/A3remlife)),'PTRM input'!BB$522) -> 0 | BC142: =IF(('PTRM input'!$E$515='PTRM input'!$G$514),IF(BC$3>A3remlife,A3acvalue-SUM($F142:BB142),IF(A3remlife="N/A","n/a",A3acvalue/A3remlife)),'PTRM input'!BC$522) -> 0 | BD142: =IF(('PTRM input'!$E$515='PTRM input'!$G$514),IF(BD$3>A3remlife,A3acvalue-SUM($F142:BC142),IF(A3remlife="N/A","n/a",A3acvalue/A3remlife)),'PTRM input'!BD$522) -> 0 | BE142: =IF(('PTRM input'!$E$515='PTRM input'!$G$514),IF(BE$3>A3remlife,A3acvalue-SUM($F142:BD142),IF(A3remlife="N/A","n/a",A3acvalue/A3remlife)),'PTRM input'!BE$522) -> 0 | BF142: =IF(('PTRM input'!$E$515='PTRM input'!$G$514),IF(BF$3>A3remlife,A3acvalue-SUM($F142:BE142),IF(A3remlife="N/A","n/a",A3acvalue/A3remlife)),'PTRM input'!BF$522) -> 0 | BG142: =IF(('PTRM input'!$E$515='PTRM input'!$G$514),IF(BG$3>A3remlife,A3acvalue-SUM($F142:BF142),IF(A3remlife="N/A","n/a",A3acvalue/A3remlife)),'PTRM input'!BG$522) -> 0 | BH142: =IF(('PTRM input'!$E$515='PTRM input'!$G$514),IF(BH$3>A3remlife,A3acvalue-SUM($F142:BG142),IF(A3remlife="N/A","n/a",A3acvalue/A3remlife)),'PTRM input'!BH$522) -> 0 | BI142: =IF(('PTRM input'!$E$515='PTRM input'!$G$514),IF(BI$3>A3remlife,A3acvalue-SUM($F142:BH142),IF(A3remlife="N/A","n/a",A3acvalue/A3remlife)),'PTRM input'!BI$522) -> 0
D143: Capex in year | E143: 0
E144: 1 | H144: =IF(A3stdlife="n/a","n/a",IF(H$3>(A3stdlife+$E144),('PTRM input'!$G$387*(1+rvanilla01)^0.5)-SUM(G144:$G144),('PTRM input'!$G$387*(1+rvanilla01)^0.5)/A3stdlife)) -> 0 | I144: =IF(A3stdlife="n/a","n/a",IF(I$3>(A3stdlife+$E144),('PTRM input'!$G$387*(1+rvanilla01)^0.5)-SUM($G144:H144),('PTRM input'!$G$387*(1+rvanilla01)^0.5)/A3stdlife)) -> 0 | J144: =IF(A3stdlife="n/a","n/a",IF(J$3>(A3stdlife+$E144),('PTRM input'!$G$387*(1+rvanilla01)^0.5)-SUM($G144:I144),('PTRM input'!$G$387*(1+rvanilla01)^0.5)/A3stdlife)) -> 0 | K144: =IF(A3stdlife="n/a","n/a",IF(K$3>(A3stdlife+$E144),('PTRM input'!$G$387*(1+rvanilla01)^0.5)-SUM($G144:J144),('PTRM input'!$G$387*(1+rvanilla01)^0.5)/A3stdlife)) -> 0 | L144: =IF(A3stdlife="n/a","n/a",IF(L$3>(A3stdlife+$E144),('PTRM input'!$G$387*(1+rvanilla01)^0.5)-SUM($G144:K144),('PTRM input'!$G$387*(1+rvanilla01)^0.5)/A3stdlife)) -> 0 | M144: =IF(A3stdlife="n/a","n/a",IF(M$3>(A3stdlife+$E144),('PTRM input'!$G$387*(1+rvanilla01)^0.5)-SUM($G144:L144),('PTRM input'!$G$387*(1+rvanilla01)^0.5)/A3stdlife)) -> 0 | N144: =IF(A3stdlife="n/a","n/a",IF(N$3>(A3stdlife+$E144),('PTRM input'!$G$387*(1+rvanilla01)^0.5)-SUM($G144:M144),('PTRM input'!$G$387*(1+rvanilla01)^0.5)/A3stdlife)) -> 0 | O144: =IF(A3stdlife="n/a","n/a",IF(O$3>(A3stdlife+$E144),('PTRM input'!$G$387*(1+rvanilla01)^0.5)-SUM($G144:N144),('PTRM input'!$G$387*(1+rvanilla01)^0.5)/A3stdlife)) -> 0 | P144: =IF(A3stdlife="n/a","n/a",IF(P$3>(A3stdlife+$E144),('PTRM input'!$G$387*(1+rvanilla01)^0.5)-SUM($G144:O144),('PTRM input'!$G$387*(1+rvanilla01)^0.5)/A3stdlife)) -> 0 | Q144: =IF(A3stdlife="n/a","n/a",IF(Q$3>(A3stdlife+$E144),('PTRM input'!$G$387*(1+rvanilla01)^0.5)-SUM($G144:P144),('PTRM input'!$G$387*(1+rvanilla01)^0.5)/A3stdlife)) -> 0 | R144: =IF(A3stdlife="n/a","n/a",IF(R$3>(A3stdlife+$E144),('PTRM input'!$G$387*(1+rvanilla01)^0.5)-SUM($G144:Q144),('PTRM input'!$G$387*(1+rvanilla01)^0.5)/A3stdlife)) -> 0 | S144: =IF(A3stdlife="n/a","n/a",IF(S$3>(A3stdlife+$E144),('PTRM input'!$G$387*(1+rvanilla01)^0.5)-SUM($G144:R144),('PTRM input'!$G$387*(1+rvanilla01)^0.5)/A3stdlife)) -> 0 | T144: =IF(A3stdlife="n/a","n/a",IF(T$3>(A3stdlife+$E144),('PTRM input'!$G$387*(1+rvanilla01)^0.5)-SUM($G144:S144),('PTRM input'!$G$387*(1+rvanilla01)^0.5)/A3stdlife)) -> 0 | U144: =IF(A3stdlife="n/a","n/a",IF(U$3>(A3stdlife+$E144),('PTRM input'!$G$387*(1+rvanilla01)^0.5)-SUM($G144:T144),('PTRM input'!$G$387*(1+rvanilla01)^0.5)/A3stdlife)) -> 0 | V144: =IF(A3stdlife="n/a","n/a",IF(V$3>(A3stdlife+$E144),('PTRM input'!$G$387*(1+rvanilla01)^0.5)-SUM($G144:U144),('PTRM input'!$G$387*(1+rvanilla01)^0.5)/A3stdlife)) -> 0 | W144: =IF(A3stdlife="n/a","n/a",IF(W$3>(A3stdlife+$E144),('PTRM input'!$G$387*(1+rvanilla01)^0.5)-SUM($G144:V144),('PTRM input'!$G$387*(1+rvanilla01)^0.5)/A3stdlife)) -> 0 | X144: =IF(A3stdlife="n/a","n/a",IF(X$3>(A3stdlife+$E144),('PTRM input'!$G$387*(1+rvanilla01)^0.5)-SUM($G144:W144),('PTRM input'!$G$387*(1+rvanilla01)^0.5)/A3stdlife)) -> 0 | Y144: =IF(A3stdlife="n/a","n/a",IF(Y$3>(A3stdlife+$E144),('PTRM input'!$G$387*(1+rvanilla01)^0.5)-SUM($G144:X144),('PTRM input'!$G$387*(1+rvanilla01)^0.5)/A3stdlife)) -> 0 | Z144: =IF(A3stdlife="n/a","n/a",IF(Z$3>(A3stdlife+$E144),('PTRM input'!$G$387*(1+rvanilla01)^0.5)-SUM($G144:Y144),('PTRM input'!$G$387*(1+rvanilla01)^0.5)/A3stdlife)) -> 0 | AA144: =IF(A3stdlife="n/a","n/a",IF(AA$3>(A3stdlife+$E144),('PTRM input'!$G$387*(1+rvanilla01)^0.5)-SUM($G144:Z144),('PTRM input'!$G$387*(1+rvanilla01)^0.5)/A3stdlife)) -> 0 | AB144: =IF(A3stdlife="n/a","n/a",IF(AB$3>(A3stdlife+$E144),('PTRM input'!$G$387*(1+rvanilla01)^0.5)-SUM($G144:AA144),('PTRM input'!$G$387*(1+rvanilla01)^0.5)/A3stdlife)) -> 0 | AC144: =IF(A3stdlife="n/a","n/a",IF(AC$3>(A3stdlife+$E144),('PTRM input'!$G$387*(1+rvanilla01)^0.5)-SUM($G144:AB144),('PTRM input'!$G$387*(1+rvanilla01)^0.5)/A3stdlife)) -> 0 | AD144: =IF(A3stdlife="n/a","n/a",IF(AD$3>(A3stdlife+$E144),('PTRM input'!$G$387*(1+rvanilla01)^0.5)-SUM($G144:AC144),('PTRM input'!$G$387*(1+rvanilla01)^0.5)/A3stdlife)) -> 0 | AE144: =IF(A3stdlife="n/a","n/a",IF(AE$3>(A3stdlife+$E144),('PTRM input'!$G$387*(1+rvanilla01)^0.5)-SUM($G144:AD144),('PTRM input'!$G$387*(1+rvanilla01)^0.5)/A3stdlife)) -> 0 | AF144: =IF(A3stdlife="n/a","n/a",IF(AF$3>(A3stdlife+$E144),('PTRM input'!$G$387*(1+rvanilla01)^0.5)-SUM($G144:AE144),('PTRM input'!$G$387*(1+rvanilla01)^0.5)/A3stdlife)) -> 0 | AG144: =IF(A3stdlife="n/a","n/a",IF(AG$3>(A3stdlife+$E144),('PTRM input'!$G$387*(1+rvanilla01)^0.5)-SUM($G144:AF144),('PTRM input'!$G$387*(1+rvanilla01)^0.5)/A3stdlife)) -> 0 | AH144: =IF(A3stdlife="n/a","n/a",IF(AH$3>(A3stdlife+$E144),('PTRM input'!$G$387*(1+rvanilla01)^0.5)-SUM($G144:AG144),('PTRM input'!$G$387*(1+rvanilla01)^0.5)/A3stdlife)) -> 0 | AI144: =IF(A3stdlife="n/a","n/a",IF(AI$3>(A3stdlife+$E144),('PTRM input'!$G$387*(1+rvanilla01)^0.5)-SUM($G144:AH144),('PTRM input'!$G$387*(1+rvanilla01)^0.5)/A3stdlife)) -> 0 | AJ144: =IF(A3stdlife="n/a","n/a",IF(AJ$3>(A3stdlife+$E144),('PTRM input'!$G$387*(1+rvanilla01)^0.5)-SUM($G144:AI144),('PTRM input'!$G$387*(1+rvanilla01)^0.5)/A3stdlife)) -> 0 | AK144: =IF(A3stdlife="n/a","n/a",IF(AK$3>(A3stdlife+$E144),('PTRM input'!$G$387*(1+rvanilla01)^0.5)-SUM($G144:AJ144),('PTRM input'!$G$387*(1+rvanilla01)^0.5)/A3stdlife)) -> 0 | AL144: =IF(A3stdlife="n/a","n/a",IF(AL$3>(A3stdlife+$E144),('PTRM input'!$G$387*(1+rvanilla01)^0.5)-SUM($G144:AK144),('PTRM input'!$G$387*(1+rvanilla01)^0.5)/A3stdlife)) -> 0 | AM144: =IF(A3stdlife="n/a","n/a",IF(AM$3>(A3stdlife+$E144),('PTRM input'!$G$387*(1+rvanilla01)^0.5)-SUM($G144:AL144),('PTRM input'!$G$387*(1+rvanilla01)^0.5)/A3stdlife)) -> 0 | AN144: =IF(A3stdlife="n/a","n/a",IF(AN$3>(A3stdlife+$E144),('PTRM input'!$G$387*(1+rvanilla01)^0.5)-SUM($G144:AM144),('PTRM input'!$G$387*(1+rvanilla01)^0.5)/A3stdlife)) -> 0 | AO144: =IF(A3stdlife="n/a","n/a",IF(AO$3>(A3stdlife+$E144),('PTRM input'!$G$387*(1+rvanilla01)^0.5)-SUM($G144:AN144),('PTRM input'!$G$387*(1+rvanilla01)^0.5)/A3stdlife)) -> 0 | AP144: =IF(A3stdlife="n/a","n/a",IF(AP$3>(A3stdlife+$E144),('PTRM input'!$G$387*(1+rvanilla01)^0.5)-SUM($G144:AO144),('PTRM input'!$G$387*(1+rvanilla01)^0.5)/A3stdlife)) -> 0 | AQ144: =IF(A3stdlife="n/a","n/a",IF(AQ$3>(A3stdlife+$E144),('PTRM input'!$G$387*(1+rvanilla01)^0.5)-SUM($G144:AP144),('PTRM input'!$G$387*(1+rvanilla01)^0.5)/A3stdlife)) -> 0 | AR144: =IF(A3stdlife="n/a","n/a",IF(AR$3>(A3stdlife+$E144),('PTRM input'!$G$387*(1+rvanilla01)^0.5)-SUM($G144:AQ144),('PTRM input'!$G$387*(1+rvanilla01)^0.5)/A3stdlife)) -> 0 | AS144: =IF(A3stdlife="n/a","n/a",IF(AS$3>(A3stdlife+$E144),('PTRM input'!$G$387*(1+rvanilla01)^0.5)-SUM($G144:AR144),('PTRM input'!$G$387*(1+rvanilla01)^0.5)/A3stdlife)) -> 0 | AT144: =IF(A3stdlife="n/a","n/a",IF(AT$3>(A3stdlife+$E144),('PTRM input'!$G$387*(1+rvanilla01)^0.5)-SUM($G144:AS144),('PTRM input'!$G$387*(1+rvanilla01)^0.5)/A3stdlife)) -> 0 | AU144: =IF(A3stdlife="n/a","n/a",IF(AU$3>(A3stdlife+$E144),('PTRM input'!$G$387*(1+rvanilla01)^0.5)-SUM($G144:AT144),('PTRM input'!$G$387*(1+rvanilla01)^0.5)/A3stdlife)) -> 0 | AV144: =IF(A3stdlife="n/a","n/a",IF(AV$3>(A3stdlife+$E144),('PTRM input'!$G$387*(1+rvanilla01)^0.5)-SUM($G144:AU144),('PTRM input'!$G$387*(1+rvanilla01)^0.5)/A3stdlife)) -> 0 | AW144: =IF(A3stdlife="n/a","n/a",IF(AW$3>(A3stdlife+$E144),('PTRM input'!$G$387*(1+rvanilla01)^0.5)-SUM($G144:AV144),('PTRM input'!$G$387*(1+rvanilla01)^0.5)/A3stdlife)) -> 0 | AX144: =IF(A3stdlife="n/a","n/a",IF(AX$3>(A3stdlife+$E144),('PTRM input'!$G$387*(1+rvanilla01)^0.5)-SUM($G144:AW144),('PTRM input'!$G$387*(1+rvanilla01)^0.5)/A3stdlife)) -> 0 | AY144: =IF(A3stdlife="n/a","n/a",IF(AY$3>(A3stdlife+$E144),('PTRM input'!$G$387*(1+rvanilla01)^0.5)-SUM($G144:AX144),('PTRM input'!$G$387*(1+rvanilla01)^0.5)/A3stdlife)) -> 0 | AZ144: =IF(A3stdlife="n/a","n/a",IF(AZ$3>(A3stdlife+$E144),('PTRM input'!$G$387*(1+rvanilla01)^0.5)-SUM($G144:AY144),('PTRM input'!$G$387*(1+rvanilla01)^0.5)/A3stdlife)) -> 0 | BA144: =IF(A3stdlife="n/a","n/a",IF(BA$3>(A3stdlife+$E144),('PTRM input'!$G$387*(1+rvanilla01)^0.5)-SUM($G144:AZ144),('PTRM input'!$G$387*(1+rvanilla01)^0.5)/A3stdlife)) -> 0 | BB144: =IF(A3stdlife="n/a","n/a",IF(BB$3>(A3stdlife+$E144),('PTRM input'!$G$387*(1+rvanilla01)^0.5)-SUM($G144:BA144),('PTRM input'!$G$387*(1+rvanilla01)^0.5)/A3stdlife)) -> 0 | BC144: =IF(A3stdlife="n/a","n/a",IF(BC$3>(A3stdlife+$E144),('PTRM input'!$G$387*(1+rvanilla01)^0.5)-SUM($G144:BB144),('PTRM input'!$G$387*(1+rvanilla01)^0.5)/A3stdlife)) -> 0 | BD144: =IF(A3stdlife="n/a","n/a",IF(BD$3>(A3stdlife+$E144),('PTRM input'!$G$387*(1+rvanilla01)^0.5)-SUM($G144:BC144),('PTRM input'!$G$387*(1+rvanilla01)^0.5)/A3stdlife)) -> 0 | BE144: =IF(A3stdlife="n/a","n/a",IF(BE$3>(A3stdlife+$E144),('PTRM input'!$G$387*(1+rvanilla01)^0.5)-SUM($G144:BD144),('PTRM input'!$G$387*(1+rvanilla01)^0.5)/A3stdlife)) -> 0 | BF144: =IF(A3stdlife="n/a","n/a",IF(BF$3>(A3stdlife+$E144),('PTRM input'!$G$387*(1+rvanilla01)^0.5)-SUM($G144:BE144),('PTRM input'!$G$387*(1+rvanilla01)^0.5)/A3stdlife)) -> 0 | BG144: =IF(A3stdlife="n/a","n/a",IF(BG$3>(A3stdlife+$E144),('PTRM input'!$G$387*(1+rvanilla01)^0.5)-SUM($G144:BF144),('PTRM input'!$G$387*(1+rvanilla01)^0.5)/A3stdlife)) -> 0 | BH144: =IF(A3stdlife="n/a","n/a",IF(BH$3>(A3stdlife+$E144),('PTRM input'!$G$387*(1+rvanilla01)^0.5)-SUM($G144:BG144),('PTRM input'!$G$387*(1+rvanilla01)^0.5)/A3stdlife)) -> 0 | BI144: =IF(A3stdlife="n/a","n/a",IF(BI$3>(A3stdlife+$E144),('PTRM input'!$G$387*(1+rvanilla01)^0.5)-SUM($G144:BH144),('PTRM input'!$G$387*(1+rvanilla01)^0.5)/A3stdlife)) -> 0
